Workbook

Sheet Project Details
N3: Project Details Sheet
DC4: NOTE: IF(Type="WBS", IF( NETWORKDAYS.INTL(Plan_Start, MAXIFS($DB48:$DB$100, $C48:$C$100, WBS_ID), Weekends_Field)=0, 1, NETWORKDAYS.INTL(Plan_Start, MAXIFS($DB48:$DB$100, $C48:$C$100, WBS_ID), Weekends_Field)),
C7: Estimator | I7: Summary | U7: Proposal | AA7: Schedule
F11: Required Project Details:
AN12: Client List: | AY12: Craft Roles | BG12: Project Team | BO12: Work Schedule
H13: Client: | K13: Bid Number: | O13: Rev. Number: | S13: Date Created:
G14: =INDEX('Project Details'!$AP$15:$AP$56,MATCH(Client_Name,'Project Details'!$AO$15:$AO$55,0)) -> C-2 | H14: Customer 2 | K14: XXXX | O14: Select | S14: =TODAY() -> 4535800.00% | AO14: Client Name: | AP14: Site Code | AQ14: Rate Sheet | AR14: Rate Code | AS14: Material Mark-Up | AT14: Sub Mark-Up | BA14: Role | BB14: Code | BC14: # | BI14: Employee Name | BJ14: Role | BK14: Code | BP14: Work Schedule | BQ14: Work Days Per Week | BR14: Work Shift Per Day | BS14: WorkDay Code:
AO15: Choose Client | AP15: NA | AQ15: Standard | AR15: 1 | AS15: 0.00% | AT15: 0.00% | BA15: FIELD SUPERINTENDENT | BB15: FSUI | BC15: =IF($BA15<>"", COUNTIF($BJ$15:$BJ$139, $BA15),"") -> 2 | BI15: Employee 1 | BJ15: Journeyman 1 | BK15: =_xlfn.IFNA(INDEX($BB$15:$BB$39, MATCH($BJ15,$BA$15:$BA$39,0)),"") -> 
H16: Contact Name: | K16: Job Number: | O16: FCR Number: | S16: Project Estimator: | AO16: Customer 1 | AP16: C-1 | AQ16: Plant 6 | AS16: 15.00% | AT16: 15.00% | BA16: QC INSPECTOR | BB16: QCI | BC16: 0 | BI16: Employee 2 | BJ16: Journeyman 2 | BP16: Select Cal
H17: ="Please Provide" -> Please Provide | O17: FCR-EST#-001 | S17: Choose Estimator | AO17: Customer 2 | AP17: C-2 | AQ17: Standard | AR17: 1 | AS17: 15.00% | AT17: 15.00% | BA17: FIELD SAFETY | BB17: FS | BC17: 1 | BI17: Employee 3 | BJ17: EQUIPMENT OPERATOR I | BK17: EO-1 | BP17: =_xlfn.CONCAT(BQ17,"x",BR17,"'s") -> 4x8's | BQ17: 4 | BR17: 8 | BS17: 3
AO18: Customer 3 | AP18: C-3 | AQ18: Standard | AR18: 1 | AS18: 15.00% | AT18: 15.00% | BA18: SUPERVISOR | BB18: SUV | BC18: 4 | BI18: Employee 4 | BJ18: Journeyman 1 | BP18: 4x10's | BQ18: 4 | BR18: 10 | BS18: 3
H19: Material Mark-Up: | K19: Contract Type: | O19: Anticipated Start: | S19: Est Working Days: | AO19: Customer 4 | AP19: C-4 | AQ19: Standard | AR19: 1 | AS19: 15.00% | AT19: 15.00% | BA19: FOREMAN | BB19: FM | BC19: 1 | BI19: Employee 5 | BP19: 4x12's | BQ19: 4 | BR19: 12 | BS19: 3
H20: =INDEX($AS$15:$AT$56, MATCH($H$14,$AO$15:$AO$55,0),1) -> 15.00% | K20: Select Type | O20: =TODAY() -> 2024-03-07 | S20: ='Project Estimation'!$O$56 ->  | AO20: Customer 5 | AP20: C-5 | AQ20: Standard | AR20: 1 | AS20: 15.00% | AT20: 15.00% | BA20: CRANE OPERATOR I | BB20: CO-1 | BC20: 1 | BI20: Employee 6 | BJ20: Journeyman 1 | BP20: 5x8's | BQ20: 5 | BR20: 8 | BS20: 2
AO21: Customer 6 | AP21: C-6 | AQ21: Standard | AR21: 1 | AS21: 15.00% | AT21: 15.00% | BA21: CRANE OPERATOR II | BB21: CO-2 | BC21: 1 | BI21: Employee 7 | BJ21: Journeyman 2 | BP21: 5x10's | BQ21: 5 | BR21: 10 | BS21: 2
H22: Subs MarkUp: | K22: Field Schedule: | O22: Shop Schedule: | S22: Anticipated End: | AO22: Customer 7 | AP22: C-7 | AQ22: Standard | AR22: 1 | AS22: 15.00% | AT22: 15.00% | BA22: CRANE RIGGER I | BB22: CR-1 | BC22: 1 | BI22: Employee 8 | BJ22: SUPERVISOR | BK22: SUV | BP22: 5x12's | BQ22: 5 | BR22: 12 | BS22: 2
H23: =INDEX($AS$15:$AT$56, MATCH($H$14,$AO$15:$AO$55,0),2) -> 15.00% | K23: Select Cal | M23: =VLOOKUP($K$23,'Project Details'!$BP$16:$BS$26,4) -> 0 | O23: Select Cal | Q23: =VLOOKUP($O$23,'Project Details'!$BP$16:$BS$26,4) -> 0 | AO23: Customer 8 | AP23: C-8 | AQ23: Standard | AR23: 1 | AS23: 15.00% | AT23: 15.00% | BA23: EQUIPMENT OPERATOR I | BB23: EO-1 | BC23: 4 | BI23: Employee 9 | BJ23: Journeyman 1 | BP23: 6x10's | BQ23: 6 | BR23: 10 | BS23: 1
AO24: Customer 9 | AP24: C-9 | AQ24: Standard | AR24: 1 | AS24: 15.00% | AT24: 15.00% | BA24: MACHINIST | BB24: Mach | BC24: 1 | BI24: Employee 10 | BJ24: HELPER I | BK24: H-1 | BP24: 6x12's | BQ24: 6 | BR24: 12 | BS24: 1
AO25: Customer 10 | AP25: C-10 | AQ25: Standard | AR25: 1 | AS25: 15.00% | AT25: 15.00% | BA25: CARPENTER (J1) | BB25: C-J1 | BC25: 1 | BI25: Employee 11 | BJ25: SUPERVISOR | BK25: SUV | BP25: =_xlfn.CONCAT(BQ25,"x",BR25,"'s") -> 7x10's | BQ25: 7 | BR25: 10 | BS25: 0
G26: Project Title: | AO26: Customer 11 | AP26: C-11 | AQ26: Standard | AR26: 1 | AS26: 15.00% | AT26: 15.00% | BA26: HELPER I | BB26: H-1 | BC26: 6 | BI26: Employee 12 | BJ26: Helper | BP26: 7x12's | BQ26: 7 | BR26: 12 | BS26: 0
AO27: Customer 12 | AP27: C-12 | AQ27: Standard | AR27: 1 | AS27: 15.00% | AT27: 15.00% | BA27: IRONWORKER (J1) | BB27: IW-J1 | BC27: 0 | BI27: Employee 13 | BJ27: Super
H28: Write Project Title / Description | AO28: Customer 13 | AP28: C-13 | AQ28: Standard | AR28: 1 | AS28: 15.00% | AT28: 15.00% | BA28: JOURNEYMAN II | BB28: J2 | BC28: 0 | BI28: Employee 14
AO29: Customer 14 | AP29: C-14 | AQ29: Standard | AR29: 1 | AS29: 15.00% | AT29: 15.00% | BA29: MECHANIC (J1) | BB29: M-J1 | BC29: 1 | BI29: Employee 15 | BJ29: Journeyman 2
G30: Project Description: | AO30: Customer 15 | AP30: C-15 | AQ30: Standard | AR30: 1 | AS30: 15.00% | AT30: 15.00% | BA30: PAINTER (J1) | BB30: P-J1 | BC30: 0 | BI30: Employee 16
AO31: Customer 16 | AP31: C-16 | AQ31: Standard | AR31: 1 | AS31: 15.00% | AT31: 15.00% | BA31: SCAFFOLD BUILDER (J1) | BB31: SB-J1 | BC31: 0 | BI31: Employee 17
H32: Enter General Project Description here - A Granular Scope of work is defined on the estimator based on how you estimated this project. | AO32: Customer 17 | AP32: C-17 | AQ32: Standard | AR32: 1 | AS32: 15.00% | AT32: 15.00% | BA32: RIG WELDER | BB32: RW | BC32: 0 | BI32: Employee 18 | BJ32: Journeyman 1
AO33: Customer 18 | AP33: C-18 | AQ33: Standard | AR33: 1 | AS33: 15.00% | AT33: 15.00% | BA33: ASME CODE WELDER | BB33: CW | BC33: 0 | BI33: Employee 19 | BJ33: Journeyman 2
AO34: Customer 19 | AP34: C-19 | AQ34: Plant 1 | AR34: 2 | AS34: 15.00% | AT34: 15.00% | BA34: CLASS I WELDER | BB34: W-1 | BC34: 0 | BI34: Employee 20 | BJ34: SUPERVISOR | BK34: SUV
AO35: Customer 20 | AP35: C-20 | AQ35: Standard | AR35: 1 | AS35: 15.00% | AT35: 15.00% | BA35: CLASS II WELDER | BB35: W-2 | BC35: 0 | BI35: Employee 21 | BJ35: Crane Foreman
AO36: Customer 21 | AP36: C-21 | AQ36: Standard | AR36: 1 | AS36: 15.00% | AT36: 15.00% | BA36: PLANT WELDER | BB36: PW | BC36: 0 | BI36: Employee 22 | BJ36: Supervisor | BK36: SUV
AO37: Customer 22 | AP37: C-22 | AQ37: Standard | AR37: 1 | AS37: 15.00% | AT37: 15.00% | BA37: PIPEFITTER II | BB37: PF-2 | BC37: 0 | BI37: Employee 23 | BJ37: Journeyman 2
AO38: Customer 23 | AP38: C-23 | AQ38: Plant 2 | AR38: 4 | AS38: 15.00% | AT38: 15.00% | BI38: Employee 24 | BJ38: Shop Foreman
AO39: Customer 24 | AP39: C-24 | AQ39: Standard | AR39: 1 | AS39: 15.00% | AT39: 15.00% | BI39: Employee 25
F40: Technical Declarations: | AO40: Customer 25 | AP40: C-25 | AQ40: Plant 3 | AR40: 5 | AS40: 7.50% | AT40: 5.00% | BI40: Employee 26
AO41: Customer 26 | AP41: C-26 | AQ41: Standard | AR41: 1 | AS41: 15.00% | AT41: 15.00% | BI41: Employee 27 | BJ41: HELPER I | BK41: H-1
G42: 1 | H42: All concrete shall have a minimum compressive strength of 4,000 P.S.I. @ 28 days. | AO42: Customer 27 | AP42: C-27 | AQ42: Standard | AR42: 1 | AS42: 15.00% | AT42: 15.00% | AY42: List of Estimators | BI42: Employee 28 | BJ42: FIELD SUPERINTENDENT | BK42: FSUI
AO43: Customer 28 | AP43: C-28 | AQ43: Standard | AR43: 1 | AS43: 15.00% | AT43: 15.00% | BI43: Employee 29 | BJ43: MECHANIC (J1) | BK43: M-J1
G44: 2 | H44: All rebar shall conform to ASTM A-615, Grade 60. | AO44: Customer 29 | AP44: C-29 | AQ44: Standard | AR44: 1 | AS44: 15.00% | AT44: 15.00% | BA44: Name | BB44: Role | BI44: Employee 30
AO45: Customer 30 | AP45: C-30 | AQ45: Standard | AR45: 1 | AS45: 15.00% | AT45: 15.00% | BA45: Choose Estimator | BI45: Employee 31 | BJ45: FIELD SUPERINTENDENT | BK45: FSUI
G46: 3 | H46: The pad shall be place on 3" of clean sand cushion. | AO46: Customer 31 | AP46: C-31 | AQ46: Standard | AR46: 1 | AS46: 15.00% | AT46: 15.00% | BA46: Employee 1 | BB46: Project Manager | BI46: Employee 32
AO47: Customer 32 | AP47: C-32 | AQ47: Standard | AR47: 1 | AS47: 15.00% | AT47: 15.00% | BA47: Employee 2 | BB47: Project Manager | BI47: Employee 33 | BJ47: EQUIPMENT OPERATOR I | BK47: EO-1
G48: 4 | H48: Proposal includes saw-cutting, hydrovacing 1' deep, and backfilling with sand on the existing concrete sidewalk at 3 locations. | AO48: Customer 33 | AP48: C-33 | AQ48: Plant 4 | AR48: 6 | AS48: 15.00% | AT48: 15.00% | BA48: Employee 3 | BB48: Scheduler | BI48: Employee 34 | BJ48: Journeyman 2
AO49: Customer 34 | AP49: C-34 | AQ49: Standard | AR49: 1 | AS49: 15.00% | AT49: 15.00% | BA49: Employee 4 | BB49: Project Manager | BI49: Employee 35 | BJ49: EQUIPMENT OPERATOR I | BK49: EO-1
G50: 5 | H50: Proposal assumes hydrovac and concrete may be disposed on site. | AO50: Customer 35 | AP50: C-35 | AQ50: Standard | AR50: 1 | AS50: 15.00% | AT50: 15.00% | BA50: Employee 5 | BB50: Management | BI50: Employee 36
AO51: Customer 36 | AP51: C-36 | AQ51: Standard | AR51: 1 | AS51: 15.00% | AT51: 15.00% | BA51: Employee 6 | BB51: Admin | BI51: Employee 37 | BJ51: Journeyman 2
G52: 6 | H52: Concrete testing is included in the price shown. | AO52: Customer 37 | AP52: C-37 | AQ52: Standard | AR52: 1 | AS52: 15.00% | AT52: 15.00% | BA52: Employee 7 | BB52: Supervisor | BI52: Employee 38 | BJ52: Journeyman 1
AO53: Customer 38 | AP53: C-38 | AQ53: Plant 5 | AR53: 7 | AS53: 10.00% | AT53: 10.00% | BA53: Employee 8 | BB53: Superintendant | BI53: Employee 39
AO54: Customer 39 | AP54: C-39 | AQ54: Standard | AR54: 1 | AS54: 15.00% | AT54: 15.00% | BA54: Employee 9 | BB54: Superintendant | BI54: Employee 40 | BJ54: Journeyman 1
AO55: Customer 40 | AP55: C-40 | AQ55: Standard | AR55: 1 | AS55: 15.00% | AT55: 15.00% | BA55: Employee 10 | BB55: General Manager | BI55: Employee 41 | BJ55: HELPER I | BK55: H-1
F56: Contract Declarations: | AO56: Customer 41 | AP56: C-41 | AQ56: Standard | AR56: 1 | AS56: 15.00% | AT56: 15.00% | BA56: Employee 11 | BB56: Project Manager | BI56: Employee 42 | BJ56: HELPER I | BK56: H-1
BA57: Employee 12 | BB57: Project Manager | BI57: Employee 43 | BJ57: EQUIPMENT OPERATOR I | BK57: EO-1
G58: 1 | H58: =_xlfn.CONCAT("This proposal is based on a ",$K$23," work week.") -> This proposal is based on a Select Cal work week. | BA58: Employee 13 | BB58: Project Manager | BI58: Employee 44 | BJ58: HELPER I | BK58: =_xlfn.IFNA(INDEX($BB$15:$BB$39, MATCH($BJ58,$BA$15:$BA$39,0)),"") -> H-1
G59: =G58+1 -> 2 | H59: Material prices can't be guaranteed with current market volatility, remainder of the quote is good for 30 days. | BA59: Employee 14 | BB59: Operations Manager | BI59: Employee 45 | BJ59: Journeyman 1
G60: =G59+1 -> 3 | BA60: Employee 15 | BB60: Operations Manager | BI60: Employee 46 | BJ60: J-2
G61: =G60+1 -> 4 | H61: Payment Terms are net 30. Late Changes could begin to accrue thereafter. | BA61: Employee 16 | BB61: Sr Project Manager | BI61: Employee 47 | BJ61: J-2
G62: 5 | H62: Customer agrees not to hire Our Company employees assigned to this project | BA62: Employee 17 | BB62: Assets Manager | BI62: Employee 48 | BJ62: J-2
G63: 6 | H63: Changes to the scope of work will be billed as a separate change order. | BI63: Employee 49 | BJ63: J-2
G64: 7 | H64: All prior proposals are revoked. This proposal is prepared on an all-or-nothing basis and will expire 30 days after the date shown on the face of the proposal or estimate. This proposal shall become a part of the contract and if any of the provisions of this proposal conflict with any provisions of any other contract document, the provisions of this proposal shall govern. | BI64: Employee 50 | BJ64: J-2
G65: 8 | H65: Payment for the net amount of invoice for portions of or all the work shall be due thirty days after invoice date. For amounts not received by the due date, interest shall accrue at 15% per annum from the invoice date. | BI65: Employee 51 | BJ65: J-2
G66: 9 | H66: For the purpose of Texas Sales and Use Tax calculation, this proposal is offered as a Separated Contract. For new construction, the prices include no sales tax and materials will be taxed on invoices for the work. For repairs and renovations, the prices include no sales tax and you may expect that the total amounts of all invoices for the work shall be taxed. | AY66: Other Office Staff | BI66: Employee 52 | BJ66: J-2
G67: 10 | H67: Pricing is based on work performed during the daylight shift Monday through Friday. No shift differential is included in the pricing. | BI67: Employee 53 | BJ67: J-2
G68: 11 | H68: Work beyond the scope as described shall be performed at rates shown on Industrial End User Price List. | BA68: Name | BB68: Role | BI68: Employee 54 | BJ68: J-2
G69: 12 | H69: Any required excavation shall be by machine and does not provide for encountering rock, voids, fissures, or digging in other than undisturbed, unconsolidated soil with little rock content. | BA69: Employee 18 | BB69: IT Manager | BI69: Employee 55 | BJ69: J-2
G70: 13 | H70: Price specifically excludes any work, transportation, or disposal for lead-containing, TSCA- or RCRA-regulated materials or hydrocarbons, or costs for any lab tests, analysis, or characterization of wastes. | BA70: Employee 19 | BB70: Clerical AP | BI70: Employee 56 | BJ70: J-2
G71: 14 | H71: Price specifically excludes gross receipts tax, third party inspectors, testing, engineering, drafting, licenses, permits, fees, bonds, retainage, work beyond the described scope, and disposal off site. | BA71: Employee 20 | BB71: Office Manager | BI71: Employee 57 | BJ71: J-2
G72: 15 | H72: All prices shown are based on scheduling awarded work at a mutually agreeable time and date. | BA72: Employee 21 | BB72: Safety Supervisor | BI72: Employee 58 | BJ72: J-2
G73: 16 | H73: The Owner shall be responsible to Our Company for costs incurred by Our Company because of Owner-caused delays, disruptions or interference, improperly timed activities, damage to the work, or defective construction of a separate contractor. | BA73: Employee 22 | BB73: Salesman | BI73: Employee 59 | BJ73: J-2
G74: 17 | H74: Our Company is entitled to an equitable adjustment in price for any change based on an Owner-issued Construction Change Directive or executed Our Company Field Change MEMO authorizing billable costs based upon the rates and conditions of the Our Company Industrial End User Price List. | BA74: Employee 23 | BB74: Admin Assitant | BI74: Employee 60 | BJ74: J-2
G75: 18 | H75: If Our Company is delayed at any time in the commencement or progress of the Work by an act or failure to act of the Owner, or of an employee of either the Owner or of a separate contractor employed by the Owner, or by changes ordered in the Work, then the Contract Time shall be extended. | BA75: Employee 24 | BB75: Safety | BI75: Employee 61 | BJ75: J-2
G76: 19 | H76: Our Company operates in the capacity of Contractor only and not as the engineer. Those services may be delivered by Our Company provided they are specifically required by the contract documents. Owner Delegated Design Services must be specifically required by contract. The Owner must specify all performance and design criteria such services must satisfy. | BA76: Employee 25 | BB76: Payroll Clerk | BI76: Employee 62 | BJ76: J-2
G77: 20 | H77: Our Company does not bear the responsibility for failure of Owner-furnished designs, documents or directives to comply with required codes, laws, statutes, or design intent. Such failure relieves Our Company of performance requirements under terms of the contract. | BI77: Employee 63 | BJ77: J-2
G78: 21 | H78: The price of this proposal is subject to increase if the cost of materials or equipment effective at the time of the proposal increase by more than 2% before delivery to the Project. | BI78: Employee 64 | BJ78: J-2
G79: 22 | H79: Labor charges for this scope of work and time frame are all-inclusive for wages, wage taxes, insurance, overhead, and profit. Minimum daily charge for labor shall be 4 hours for local work and 8 hours for out-of-town work. Charges shall accrue for workmen, vehicles, and equipment in transit to and from the jobsite. | BI79: Employee 65 | BJ79: J-2
G80: 23 | H80: Overtime rate for labor shall be 150% of the straight time rate for all work hours beyond 8 per day or 40 per week. All weekend work shall be charged as overtime. Work scheduled or required on any national Holiday shall be billable as double the straight rates for a worker's classification. | BI80: Employee 66 | BJ80: J-2
G81: 24 | H81: Rates are subject to change. Owners having Agreements with Our Company will be notified of the rate changes. Rate changes must be reviewed and accepted by owner prior to work being performed. Work Orders issued following the rate changes will be billable at the revised rates. | BI81: Employee 67 | BJ81: J-2
G82: 25 | H82: Worksite shutdowns and delays due to differing, undisclosed, concealed, or undiscovered conditions shall be charged as work beyond the scope. | BI82: Employee 68 | BJ82: J-2
G83: 26 | H83: No work will proceed without owner authorization. Non-formal, owner-directed changes at the jobsite will be documented on the Our Company daily timesheet. Changes in the Work Scope may proceed immediately upon owner jobsite authorization. Changes based on that release will be billed as reimbursable costs which are extra to the contract and will be calculated based on the Industrial End User Price List. | BI83: Employee 69 | BJ83: J-2
G84: 27 | H84: Charges apply for use or order of tools and equipment not listed. | BI84: Employee 70 | BJ84: J-2
G85: 28 | H85: Daily and weekly equipment rental rates shall prorate for greater than 8 hours per day or 40 hours per week. No reduction shall apply for hours less than 8 hours per day or 40 hours per week. | BI85: Employee 71 | BJ85: J-2
G86: 29 | H86: Minimum charge for equipment shall be 8 hours or 1 day. | BI86: Employee 72 | BJ86: J-2
G87: 30 | H87: All parties agree that the interpretation of "Price-Not-to-Exceed" or similarly-worded agreements is that under all such agreements, Our Company shall perform work on a Time and Materials basis until either the scope of work is complete or until the "Price-Not-to-Exceed" has been reached. At that point, work shall cease whether the scope of work is completed or not and charges shall be calculated using the Industrial End User Price List and time sheet records. | BI87: Employee 73 | BJ87: J-2
G88: 31 | H88: All parties agree that Our Company warrants and guarantees its work against all defects and deficiencies in workmanship and/or materials supplied by Our Company. Owner shall accept work on a daily basis and acknowledges acceptance of the work whether or not owner's representative signs workman time sheets. Upon acceptance of work, all warranty and guarantees shall cease. When in the course of the work, Our Company provides material as specified or required by Owner in the job specification, the entire warranty shall be limited to the manufacturer's warranty only. | BI88: Employee 74 | BJ88: J-2
H89: End of Terms and Conditions. | BI89: Employee 75 | BJ89: J-2
BI90: Employee 76 | BJ90: J-2
BI91: Employee 77 | BJ91: J-2 | BK91: =_xlfn.IFNA(INDEX($BB$15:$BB$39, MATCH($BJ91,$BA$15:$BA$39,0)),"") -> 
BI92: Employee 78 | BJ92: J-2
BI93: Employee 79 | BJ93: J-2
BI94: Employee 80 | BJ94: J-2
BI95: Employee 81 | BJ95: J-2
BI96: Employee 82 | BJ96: J-2
BI97: Employee 83 | BJ97: J-2
BI98: Employee 84 | BJ98: J-2
BI99: Employee 85 | BJ99: J-2
BI100: Employee 86 | BJ100: J-2
BI101: Employee 87 | BJ101: J-2
BI102: Employee 88 | BJ102: J-2
BI103: Employee 89 | BJ103: J-2
BI104: Employee 90 | BJ104: J-2
BI105: Employee 91 | BJ105: J-2
BI106: Employee 92 | BJ106: J-2
BI107: Employee 93 | BJ107: J-2
BI108: Employee 94 | BJ108: J-2
BI109: Employee 95 | BJ109: J-2
BI110: Employee 96 | BJ110: J-2
BI111: Employee 97 | BJ111: J-2
BI112: Employee 98 | BJ112: J-2
BI113: Employee 99 | BJ113: J-2
BI114: Employee 100 | BJ114: J-2
BI115: Employee 101 | BJ115: J-2
BI116: Employee 102 | BJ116: J-2
BI117: Employee 103 | BJ117: J-2
BI118: Employee 104 | BJ118: J-2
BI119: Employee 105 | BJ119: J-2
BI120: Employee 106 | BJ120: J-2
BI121: Employee 107 | BJ121: J-2
BI122: Employee 108 | BJ122: J-2
BI123: Employee 109 | BJ123: J-2 | BK123: =_xlfn.IFNA(INDEX($BB$15:$BB$39, MATCH($BJ123,$BA$15:$BA$39,0)),"") -> 
BI124: Employee 110 | BJ124: J-2
BI125: Employee 111 | BJ125: J-2
BI126: Employee 112 | BJ126: J-2
BI127: Employee 113 | BJ127: J-2
BI128: Employee 114 | BJ128: J-2
BI129: Employee 115 | BJ129: HELPER I | BK129: H-1
BI130: Employee 116 | BJ130: CARPENTER (J1) | BK130: C-J1
BI131: Employee 117 | BJ131: MACHINIST | BK131: Mach
BI132: Employee 118 | BJ132: CRANE RIGGER I | BK132: CR-1
BI133: Employee 119 | BJ133: CRANE OPERATOR II | BK133: CO-2
BI134: Employee 120 | BJ134: CRANE OPERATOR I | BK134: CO-1
BI135: Employee 121 | BJ135: FOREMAN | BK135: FM
BI136: Employee 122 | BJ136: FIELD SAFETY | BK136: FS

Sheet Project Estimation
FG3: WBS=$B$23:$E$182,$G$23:$L$182,$N$23:$T$182,$V$23:$AB$182,$AD$23:$AJ$182,$AL$23:$AR$182,$AT$23:$AZ$182,$BB$23:$BH$182,$BJ$23:$BP$182,$BR$23:$BX$182,$BZ$23:$CF$182,$CH$23:$CM$182,$CO$23:$CR$182,$CT$23:$CW$182,$CY$23:$DB$182,$DD$23:$DG$182,$DI$23:$DL$182,$DN$23:$DT$182,$DV$23:$EB$182,$ED$23:$EJ$182,$EL$23:$ER$182,$ET$23:$EZ$182,$FB$23:$FH$182
CT5: Material Mark-Up: | CU5: ='Project Details'!$H$20 -> 15.00%
AP6: =VLOOKUP('Project Details'!$K$23, 'Project Details'!$BP$16:$BS$26,2) -> 7 | BN6: =VLOOKUP('Project Details'!$K$23, 'Project Details'!$BP$16:$BS$26,2) -> 7 | CL6: =VLOOKUP('Project Details'!$K$23, 'Project Details'!$BP$16:$BS$26,2) -> 7 | CM6: =VLOOKUP('Project Details'!$K$23, 'Project Details'!$BP$16:$BS$26,3) -> 12 | CN6: =VLOOKUP('Project Details'!$K$23, 'Project Details'!$BP$16:$BS$26,4) -> 0 | CT6: Subs Mark-Up: | CU6: ='Project Details'!$H$23 -> 15.00% | FO6: =VLOOKUP('Project Details'!$O$23, 'Project Details'!$BP$16:$BS$26,2) -> 7 | FR6: =VLOOKUP('Project Details'!$O$23, 'Project Details'!$BP$16:$BS$26,3) -> 12 | FS6: =VLOOKUP('Project Details'!$O$23, 'Project Details'!$BP$16:$BS$26,4) -> 0
CP7: =IF(FV6>#REF!,#REF!, FV6) -> 
M11: ⚠ Never Insert Rows ⚠ Always Copy Rows then Insert New Rows!!!
HH12: HH | HQ12: HI:HK,HN:IB
FS13: FO:FS,FV,FY,GB,GG,GJ,GM,GP,GS,GV,GY,HA,HC:HG | IC13: IC | IG13: ID:IK,IR:IX | IY13: IY | JB13: IZ:JI | JJ13: JJ
M14: =Bid_Number & " - " & INDEX('Project Details'!$AP$15:$AP$56, MATCH(Client_Name, 'Project Details'!$AO$15:$AO$55, 0)) & " - " & Project_Title & " - " & "Estimation" -> XXXX - C-2 - Write Project Title / Description - Estimation | CM14: =CM$17+CM$44+CM$56 -> 6.67 | CN14: 3.33 | CO14: 10.00 | CP14: $316.67 | CQ14: $158.33 | CR14: $475.00
M15: Indirect Allocations | U15: =_xlfn.IFNA(INDEX(Tbl_Labor_Rates[#All],MATCH('Project Estimation'!$T15,'Labor Rate Sheet'!$B$11:$B$45,0),MATCH(_xlfn.CONCAT("ST_",VLOOKUP(Client_Name,'Project Summary'!#REF!,3,FALSE)),Tbl_Labor_Rates[#Headers],0)),"") ->  | V15: =_xlfn.IFNA(INDEX(Tbl_Labor_Rates[#All],MATCH('Project Estimation'!$T15,'Labor Rate Sheet'!$B$11:$B$45,0),MATCH(_xlfn.CONCAT("OT_",VLOOKUP(Client_Name,'Project Summary'!#REF!,3,FALSE)),Tbl_Labor_Rates[#Headers],0)),"") ->  | W15: =IFERROR($U15*$S15*$P15, "") ->  | X15: =IFERROR($V15*$S15*$Q15,"") ->  | Y15: =IFERROR($X15+$W15,"") ->  | AC15: =_xlfn.IFNA(INDEX(Tbl_Labor_Rates[#All],MATCH('Project Estimation'!$AB15,'Labor Rate Sheet'!$B$11:$B$45,0),MATCH(_xlfn.CONCAT("ST_",VLOOKUP(Client_Name,'Project Summary'!#REF!,3,FALSE)),Tbl_Labor_Rates[#Headers],0)),"") ->  | AD15: =_xlfn.IFNA(INDEX(Tbl_Labor_Rates[#All],MATCH('Project Estimation'!$AB15,'Labor Rate Sheet'!$B$11:$B$45,0),MATCH(_xlfn.CONCAT("OT_",VLOOKUP(Client_Name,'Project Summary'!#REF!,3,FALSE)),Tbl_Labor_Rates[#Headers],0)),"") ->  | AE15: =IFERROR($AC15*$AA15*$P15, "") ->  | AF15: =IFERROR($AD15*$AA15*$Q15,"") ->  | AG15: =IFERROR($AF15+$AE15,"") ->  | AK15: =_xlfn.IFNA(INDEX(Tbl_Labor_Rates[#All],MATCH('Project Estimation'!$AJ15,'Labor Rate Sheet'!$B$11:$B$45,0),MATCH(_xlfn.CONCAT("ST_",VLOOKUP(Client_Name,'Project Summary'!#REF!,3,FALSE)),Tbl_Labor_Rates[#Headers],0)),"") ->  | AL15: =_xlfn.IFNA(INDEX(Tbl_Labor_Rates[#All],MATCH('Project Estimation'!$AJ15,'Labor Rate Sheet'!$B$11:$B$45,0),MATCH(_xlfn.CONCAT("OT_",VLOOKUP(Client_Name,'Project Summary'!#REF!,3,FALSE)),Tbl_Labor_Rates[#Headers],0)),"") ->  | AM15: =IFERROR($AK15*$AI15*$P15, "") ->  | AN15: =IFERROR($AK15*$AI15*$Q15,"") ->  | AO15: =IFERROR($AN15+$AM15,"") ->  | AS15: =_xlfn.IFNA(INDEX(Tbl_Labor_Rates[#All],MATCH('Project Estimation'!$T15,'Labor Rate Sheet'!$B$11:$B$45,0),MATCH(_xlfn.CONCAT("ST_",VLOOKUP(Client_Name,'Project Summary'!#REF!,3,FALSE)),Tbl_Labor_Rates[#Headers],0)),"") ->  | AT15: =_xlfn.IFNA(INDEX(Tbl_Labor_Rates[#All],MATCH('Project Estimation'!$T15,'Labor Rate Sheet'!$B$11:$B$45,0),MATCH(_xlfn.CONCAT("OT_",VLOOKUP(Client_Name,'Project Summary'!#REF!,3,FALSE)),Tbl_Labor_Rates[#Headers],0)),"") ->  | AU15: =IFERROR($U15*$S15*$P15, "") ->  | AV15: =IFERROR($V15*$S15*$Q15,"") ->  | AW15: =IFERROR($X15+$W15,"") ->  | BA15: =_xlfn.IFNA(INDEX(Tbl_Labor_Rates[#All],MATCH('Project Estimation'!$AB15,'Labor Rate Sheet'!$B$11:$B$45,0),MATCH(_xlfn.CONCAT("ST_",VLOOKUP(Client_Name,'Project Summary'!#REF!,3,FALSE)),Tbl_Labor_Rates[#Headers],0)),"") ->  | BB15: =_xlfn.IFNA(INDEX(Tbl_Labor_Rates[#All],MATCH('Project Estimation'!$AB15,'Labor Rate Sheet'!$B$11:$B$45,0),MATCH(_xlfn.CONCAT("OT_",VLOOKUP(Client_Name,'Project Summary'!#REF!,3,FALSE)),Tbl_Labor_Rates[#Headers],0)),"") ->  | BC15: =IFERROR($AC15*$AA15*$P15, "") ->  | BD15: =IFERROR($AD15*$AA15*$Q15,"") ->  | BE15: =IFERROR($AF15+$AE15,"") ->  | BI15: =_xlfn.IFNA(INDEX(Tbl_Labor_Rates[#All],MATCH('Project Estimation'!$AJ15,'Labor Rate Sheet'!$B$11:$B$45,0),MATCH(_xlfn.CONCAT("ST_",VLOOKUP(Client_Name,'Project Summary'!#REF!,3,FALSE)),Tbl_Labor_Rates[#Headers],0)),"") ->  | BJ15: =_xlfn.IFNA(INDEX(Tbl_Labor_Rates[#All],MATCH('Project Estimation'!$AJ15,'Labor Rate Sheet'!$B$11:$B$45,0),MATCH(_xlfn.CONCAT("OT_",VLOOKUP(Client_Name,'Project Summary'!#REF!,3,FALSE)),Tbl_Labor_Rates[#Headers],0)),"") ->  | BK15: =IFERROR($AK15*$AI15*$P15, "") ->  | BL15: =IFERROR($AK15*$AI15*$Q15,"") ->  | BM15: =IFERROR($AN15+$AM15,"") ->  | BQ15: =_xlfn.IFNA(INDEX(Tbl_Labor_Rates[#All],MATCH('Project Estimation'!$T15,'Labor Rate Sheet'!$B$11:$B$45,0),MATCH(_xlfn.CONCAT("ST_",VLOOKUP(Client_Name,'Project Summary'!#REF!,3,FALSE)),Tbl_Labor_Rates[#Headers],0)),"") ->  | BR15: =_xlfn.IFNA(INDEX(Tbl_Labor_Rates[#All],MATCH('Project Estimation'!$T15,'Labor Rate Sheet'!$B$11:$B$45,0),MATCH(_xlfn.CONCAT("OT_",VLOOKUP(Client_Name,'Project Summary'!#REF!,3,FALSE)),Tbl_Labor_Rates[#Headers],0)),"") ->  | BS15: =IFERROR($U15*$S15*$P15, "") ->  | BT15: =IFERROR($V15*$S15*$Q15,"") ->  | BU15: =IFERROR($X15+$W15,"") ->  | BY15: =_xlfn.IFNA(INDEX(Tbl_Labor_Rates[#All],MATCH('Project Estimation'!$AB15,'Labor Rate Sheet'!$B$11:$B$45,0),MATCH(_xlfn.CONCAT("ST_",VLOOKUP(Client_Name,'Project Summary'!#REF!,3,FALSE)),Tbl_Labor_Rates[#Headers],0)),"") ->  | BZ15: =_xlfn.IFNA(INDEX(Tbl_Labor_Rates[#All],MATCH('Project Estimation'!$AB15,'Labor Rate Sheet'!$B$11:$B$45,0),MATCH(_xlfn.CONCAT("OT_",VLOOKUP(Client_Name,'Project Summary'!#REF!,3,FALSE)),Tbl_Labor_Rates[#Headers],0)),"") ->  | CA15: =IFERROR($AC15*$AA15*$P15, "") ->  | CB15: =IFERROR($AD15*$AA15*$Q15,"") ->  | CC15: =IFERROR($AF15+$AE15,"") ->  | CG15: =_xlfn.IFNA(INDEX(Tbl_Labor_Rates[#All],MATCH('Project Estimation'!$AJ15,'Labor Rate Sheet'!$B$11:$B$45,0),MATCH(_xlfn.CONCAT("ST_",VLOOKUP(Client_Name,'Project Summary'!#REF!,3,FALSE)),Tbl_Labor_Rates[#Headers],0)),"") ->  | CH15: =_xlfn.IFNA(INDEX(Tbl_Labor_Rates[#All],MATCH('Project Estimation'!$AJ15,'Labor Rate Sheet'!$B$11:$B$45,0),MATCH(_xlfn.CONCAT("OT_",VLOOKUP(Client_Name,'Project Summary'!#REF!,3,FALSE)),Tbl_Labor_Rates[#Headers],0)),"") ->  | CI15: =IFERROR($AK15*$AI15*$P15, "") ->  | CJ15: =IFERROR($AK15*$AI15*$Q15,"") ->  | CK15: =IFERROR($AN15+$AM15,"") ->  | CM15: =SUM(CM$17+CM44+CM56) -> 7 | CN15: 3 | CO15: 10 | CP15: $316.67 | CQ15: $158.33 | CR15: $475.00
C16: A
C17: ="WBS_" & TEXT(_xlfn.SEQUENCE(MIN(5, INDEX(K:K, MAX(IF(K:K<>"", ROW(K:K)))) + 2), , 0), "00") -> WBS_00 | K17: LOE | M17: Indirect Supervision | N17: =SUM($N$19:$N$24) -> 10 | O17: =SUM($O$19:$O$24) -> 0.83 | P17: =IF($N17<>"",IF($N17<=8,$N17,IF(AND($AB$6>4,$CM$6>8),$N17*(8/$CM$6),$N17)),"") -> 10 | Q17: =$N17-$P17 -> 0 | T17: SUPERVISION | AB17: SUPERVISION | AJ17: SUPERVISION | AK17: =_xlfn.IFNA(INDEX(Tbl_Labor_Rates[#All],MATCH('Project Estimation'!$AJ17,'Labor Rate Sheet'!$B$11:$B$51,0),MATCH(_xlfn.CONCAT("ST_",VLOOKUP(Client_Name,'Project Details'!$AO$15:$AS$56,4,FALSE)),Tbl_Labor_Rates[#Headers],0)),"") ->  | AL17: =_xlfn.IFNA(INDEX(Tbl_Labor_Rates[#All],MATCH('Project Estimation'!$AJ17,'Labor Rate Sheet'!$B$11:$B$51,0),MATCH(_xlfn.CONCAT("OT_",VLOOKUP(Client_Name,'Project Details'!$AO$15:$AS$56,4,FALSE)),Tbl_Labor_Rates[#Headers],0)),"") ->  | AM17: =IFERROR($AK17*$AI17*$P17, "") ->  | AN17: =IFERROR($AK17*$AI17*$Q17,"") ->  | AO17: =IFERROR($AN17+$AM17,"") ->  | AR17: OFFICE STAFF | AZ17: OFFICE STAFF | BH17: OFFICE STAFF | BI17: =_xlfn.IFNA(INDEX(Tbl_Labor_Rates[#All],MATCH('Project Estimation'!$AJ17,'Labor Rate Sheet'!$B$11:$B$51,0),MATCH(_xlfn.CONCAT("ST_",VLOOKUP(Client_Name,'Project Details'!$AO$15:$AS$56,4,FALSE)),Tbl_Labor_Rates[#Headers],0)),"") ->  | BJ17: =_xlfn.IFNA(INDEX(Tbl_Labor_Rates[#All],MATCH('Project Estimation'!$AJ17,'Labor Rate Sheet'!$B$11:$B$51,0),MATCH(_xlfn.CONCAT("OT_",VLOOKUP(Client_Name,'Project Details'!$AO$15:$AS$56,4,FALSE)),Tbl_Labor_Rates[#Headers],0)),"") ->  | BK17: =IFERROR($AK17*$AI17*$P17, "") ->  | BL17: =IFERROR($AK17*$AI17*$Q17,"") ->  | BM17: =IFERROR($AN17+$AM17,"") ->  | CG17: =_xlfn.IFNA(INDEX(Tbl_Labor_Rates[#All],MATCH('Project Estimation'!$AJ17,'Labor Rate Sheet'!$B$11:$B$51,0),MATCH(_xlfn.CONCAT("ST_",VLOOKUP(Client_Name,'Project Details'!$AO$15:$AS$56,4,FALSE)),Tbl_Labor_Rates[#Headers],0)),"") ->  | CH17: =_xlfn.IFNA(INDEX(Tbl_Labor_Rates[#All],MATCH('Project Estimation'!$AJ17,'Labor Rate Sheet'!$B$11:$B$51,0),MATCH(_xlfn.CONCAT("OT_",VLOOKUP(Client_Name,'Project Details'!$AO$15:$AS$56,4,FALSE)),Tbl_Labor_Rates[#Headers],0)),"") ->  | CI17: =IFERROR($AK17*$AI17*$P17, "") ->  | CJ17: =IFERROR($AK17*$AI17*$Q17,"") ->  | CK17: =IFERROR($AN17+$AM17,"") ->  | CM17: =SUM($CM$19:$CM$24) -> 7 | CN17: =SUM($CN$19:$CN$24) -> 3.33 | CO17: =IFERROR(IF($N17<>"", $CM17+$CN17, ""),"") -> 10.00 | CP17: =SUM($CP$19:$CP$24) -> $316.67 | CQ17: =SUM($CQ$19:$CQ$24) -> $158.33 | CR17: =SUM($CR$19:$CR$24) -> $475.00
C18: WBS_01
C19: WBS_02 | L19: LOE | M19: Manages project and resources according to estimate/schedule/resources/& contract | N19: 10 | O19: =IF(Type="WBS", SUMIFS($O20:$O$24,#REF!,WBS_ID), IF(OR(Type="A", Type="LOE"), ($N19 /Field_Sch_Hours), IF(Type="SUB", $FK19,""))) -> 0.83 | P19: =IF($N19<>"",IF($N19<=8,$N19,IF(AND(Field_Sch_Days>4,Field_Sch_Hours>8),$N19*(8/Field_Sch_Hours),$N19)),"") -> 7 | Q19: =IFERROR($N19-$P19,"") -> 3 | S19: 1 | T19: Planner/Scheduler | U19: =_xlfn.IFNA(INDEX(Tbl_Labor_Rates[#All],MATCH('Project Estimation'!$T19,'Labor Rate Sheet'!$B$11:$B$51,0),MATCH(_xlfn.CONCAT("ST_",VLOOKUP(Client_Name,'Project Details'!$AO$15:$AS$56,4,FALSE)),Tbl_Labor_Rates[#Headers],0)),"") -> $47.50 | V19: =_xlfn.IFNA(INDEX(Tbl_Labor_Rates[#All],MATCH('Project Estimation'!$T19,'Labor Rate Sheet'!$B$11:$B$51,0),MATCH(_xlfn.CONCAT("OT_",VLOOKUP(Client_Name,'Project Details'!$AO$15:$AS$56,4,FALSE)),Tbl_Labor_Rates[#Headers],0)),"") -> $47.50 | W19: =IF(OR(Type="A", Type="LOE"), IFERROR(U19*$S19*P19, ""),"") -> $316.67 | X19: $158.33 | Y19: =IF(OR(Type="A", Type="LOE"), IFERROR($X19+$W19,""),"") -> $475.00 | AC19: =_xlfn.IFNA(INDEX(Tbl_Labor_Rates[#All],MATCH('Project Estimation'!$AB19,'Labor Rate Sheet'!$B$11:$B$51,0),MATCH(_xlfn.CONCAT("ST_",VLOOKUP(Client_Name,'Project Details'!$AO$15:$AS$56,4,FALSE)),Tbl_Labor_Rates[#Headers],0)),"") ->  | AD19: =_xlfn.IFNA(INDEX(Tbl_Labor_Rates[#All],MATCH('Project Estimation'!$AB19,'Labor Rate Sheet'!$B$11:$B$51,0),MATCH(_xlfn.CONCAT("OT_",VLOOKUP(Client_Name,'Project Details'!$AO$15:$AS$56,4,FALSE)),Tbl_Labor_Rates[#Headers],0)),"") ->  | AE19: =IFERROR($AC19*$AA19*$P19, "") ->  | AF19: =IFERROR($AD19*$AA19*$Q19,"") ->  | AG19: =IFERROR($AF19+$AE19,"") ->  | AK19: =_xlfn.IFNA(INDEX(Tbl_Labor_Rates[#All],MATCH('Project Estimation'!$AJ19,'Labor Rate Sheet'!$B$11:$B$51,0),MATCH(_xlfn.CONCAT("ST_",VLOOKUP(Client_Name,'Project Details'!$AO$15:$AS$56,4,FALSE)),Tbl_Labor_Rates[#Headers],0)),"") ->  | AL19: =_xlfn.IFNA(INDEX(Tbl_Labor_Rates[#All],MATCH('Project Estimation'!$AJ19,'Labor Rate Sheet'!$B$11:$B$51,0),MATCH(_xlfn.CONCAT("OT_",VLOOKUP(Client_Name,'Project Details'!$AO$15:$AS$56,4,FALSE)),Tbl_Labor_Rates[#Headers],0)),"") ->  | AM19: =IFERROR(AK19*$AI19*P19,"") ->  | AO19: =IFERROR($AN19+$AM19,"") ->  | AS19: =IF(OR(Type="A", Type="LOE"), _xlfn.IFNA(INDEX(Tbl_Labor_Rates[#All],MATCH('Project Estimation'!AR19,'Labor Rate Sheet'!$B$11:$B$51,0),MATCH(_xlfn.CONCAT("ST_",VLOOKUP(Client_Name,'Project Details'!$AO$15:$AS$56,4,FALSE)),Tbl_Labor_Rates[#Headers],0)),""),"") ->  | AT19: =IF(OR(Type="A", Type="LOE"), _xlfn.IFNA(INDEX(Tbl_Labor_Rates[#All],MATCH('Project Estimation'!AR19,'Labor Rate Sheet'!$B$11:$B$51,0),MATCH(_xlfn.CONCAT("OT_",VLOOKUP(Client_Name,'Project Details'!$AO$15:$AS$56,4,FALSE)),Tbl_Labor_Rates[#Headers],0)),""),"") ->  | AU19: =IF(OR(Type="A", Type="LOE"), IFERROR(AS19*AQ19*$P19, ""),"") ->  | AV19: =IF(OR(Type="A", Type="LOE"), IFERROR(AT19*AQ19*$Q19, ""),"") ->  | AW19: =IF(OR(Type="A",Type="LOE"),IFERROR(AV19+AU19,""),"") ->  | BA19: =_xlfn.IFNA(INDEX(Tbl_Labor_Rates[#All],MATCH('Project Estimation'!$AB19,'Labor Rate Sheet'!$B$11:$B$51,0),MATCH(_xlfn.CONCAT("ST_",VLOOKUP(Client_Name,'Project Details'!$AO$15:$AS$56,4,FALSE)),Tbl_Labor_Rates[#Headers],0)),"") ->  | BB19: =_xlfn.IFNA(INDEX(Tbl_Labor_Rates[#All],MATCH('Project Estimation'!$AB19,'Labor Rate Sheet'!$B$11:$B$51,0),MATCH(_xlfn.CONCAT("OT_",VLOOKUP(Client_Name,'Project Details'!$AO$15:$AS$56,4,FALSE)),Tbl_Labor_Rates[#Headers],0)),"") ->  | BC19: =IFERROR($AC19*$AA19*$P19, "") ->  | BD19: =IFERROR($AD19*$AA19*$Q19,"") ->  | BE19: =IFERROR($AF19+$AE19,"") ->  | BI19: =IF(OR(Type="A", Type="LOE"), _xlfn.IFNA(INDEX(Tbl_Labor_Rates[#All],MATCH('Project Estimation'!BH19,'Labor Rate Sheet'!$B$11:$B$51,0),MATCH(_xlfn.CONCAT("ST_",VLOOKUP(Client_Name,'Project Details'!$AO$15:$AS$56,4,FALSE)),Tbl_Labor_Rates[#Headers],0)),""),"") ->  | BJ19: =IF(OR(Type="A", Type="LOE"), _xlfn.IFNA(INDEX(Tbl_Labor_Rates[#All],MATCH('Project Estimation'!BH19,'Labor Rate Sheet'!$B$11:$B$51,0),MATCH(_xlfn.CONCAT("OT_",VLOOKUP(Client_Name,'Project Details'!$AO$15:$AS$56,4,FALSE)),Tbl_Labor_Rates[#Headers],0)),""),"") ->  | BK19: =IF(OR(Type="A", Type="LOE"), IFERROR(BI19*BG19*$P19, ""),"") ->  | BL19: =IF(OR(Type="A", Type="LOE"), IFERROR(BJ19*BG19*$Q19, ""),"") ->  | BM19: =IF(OR(Type="A",Type="LOE"),IFERROR(BL19+BK19,""),"") ->  | BQ19: =IF(OR(Type="A", Type="LOE"), _xlfn.IFNA(INDEX(Tbl_Labor_Rates[#All],MATCH('Project Estimation'!BP19,'Labor Rate Sheet'!$B$11:$B$51,0),MATCH(_xlfn.CONCAT("ST_",VLOOKUP(Client_Name,'Project Details'!$AO$15:$AS$56,4,FALSE)),Tbl_Labor_Rates[#Headers],0)),""),"") ->  | BR19: =IF(OR(Type="A", Type="LOE"), _xlfn.IFNA(INDEX(Tbl_Labor_Rates[#All],MATCH('Project Estimation'!BP19,'Labor Rate Sheet'!$B$11:$B$51,0),MATCH(_xlfn.CONCAT("OT_",VLOOKUP(Client_Name,'Project Details'!$AO$15:$AS$56,4,FALSE)),Tbl_Labor_Rates[#Headers],0)),""),"") ->  | BS19: =IF(OR(Type="A", Type="LOE"), IFERROR(BQ19*BO19*$P19, ""),"") ->  | BT19: =IF(OR(Type="A", Type="LOE"), IFERROR(BR19*BO19*$Q19, ""),"") ->  | BU19: =IF(OR(Type="A",Type="LOE"),IFERROR(BT19+BS19,""),"") ->  | BY19: =IF(OR(Type="A", Type="LOE"), _xlfn.IFNA(INDEX(Tbl_Labor_Rates[#All],MATCH('Project Estimation'!BX19,'Labor Rate Sheet'!$B$11:$B$51,0),MATCH(_xlfn.CONCAT("ST_",VLOOKUP(Client_Name,'Project Details'!$AO$15:$AS$56,4,FALSE)),Tbl_Labor_Rates[#Headers],0)),""),"") ->  | BZ19: =IF(OR(Type="A", Type="LOE"), _xlfn.IFNA(INDEX(Tbl_Labor_Rates[#All],MATCH('Project Estimation'!BX19,'Labor Rate Sheet'!$B$11:$B$51,0),MATCH(_xlfn.CONCAT("OT_",VLOOKUP(Client_Name,'Project Details'!$AO$15:$AS$56,4,FALSE)),Tbl_Labor_Rates[#Headers],0)),""),"") ->  | CA19: =IF(OR(Type="A", Type="LOE"), IFERROR(BY19*BW19*$P19, ""),"") ->  | CB19: =IF(OR(Type="A", Type="LOE"), IFERROR(BZ19*BW19*$Q19, ""),"") ->  | CC19: =IF(OR(Type="A",Type="LOE"),IFERROR(CB19+CA19,""),"") ->  | CG19: =IF(OR(Type="A", Type="LOE"), _xlfn.IFNA(INDEX(Tbl_Labor_Rates[#All],MATCH('Project Estimation'!CF19,'Labor Rate Sheet'!$B$11:$B$51,0),MATCH(_xlfn.CONCAT("ST_",VLOOKUP(Client_Name,'Project Details'!$AO$15:$AS$56,4,FALSE)),Tbl_Labor_Rates[#Headers],0)),""),"") ->  | CH19: =IF(OR(Type="A", Type="LOE"), _xlfn.IFNA(INDEX(Tbl_Labor_Rates[#All],MATCH('Project Estimation'!CF19,'Labor Rate Sheet'!$B$11:$B$51,0),MATCH(_xlfn.CONCAT("OT_",VLOOKUP(Client_Name,'Project Details'!$AO$15:$AS$56,4,FALSE)),Tbl_Labor_Rates[#Headers],0)),""),"") ->  | CI19: =IF(OR(Type="A", Type="LOE"), IFERROR(CG19*CE19*$P19, ""),"") ->  | CJ19: =IF(OR(Type="A", Type="LOE"), IFERROR(CH19*CE19*$Q19, ""),"") ->  | CK19: =IF(OR(Type="A",Type="LOE"),IFERROR(CJ19+CI19,""),"") ->  | CM19: =IF($N19<>"", ($S19*P19)+($AA19*P19)+($AI19*P19)+($AQ19*P19)+($AY19*P19)+($BG19*P19)+($BO19*P19)+($BW19*P19)+($CE19*P19), "") -> 7 | CN19: 3 | CO19: =IFERROR(IF($N19<>"", $CM19+$CN19, ""),"") -> 10.00 | CP19: =IFERROR(IF($N19<>"",SUM(IF(ISBLANK($AM19),0,$AM19),IF(ISBLANK($AE19),0,$AE19),IF(ISBLANK($W19),0,$W19)),""),"") -> $316.67 | CQ19: =IFERROR(IF($N19<>"",SUM(IF(ISBLANK($AN19),0,$AN19),IF(ISBLANK($AF19),0,$AF19),IF(ISBLANK($X19),0,$X19)),""),"") -> $158.33 | CR19: =IFERROR(IF($N19<>"",SUM(IF(ISBLANK($AN19),0,$AN19),IF(ISBLANK($AM19),0,$AM19),IF(ISBLANK($AG19),0,$AG19),IF(ISBLANK($Y19),0,$Y19),IF(ISBLANK($AO19),0,$AO19)),""),"") -> $475.00
O20: =IF(Type="WBS", SUMIFS($O23:$O$24,#REF!,WBS_ID), IF(OR(Type="A", Type="LOE"), ($N20 /Field_Sch_Hours), IF(Type="SUB", $FK20,""))) ->  | P20: =IF($N20<>"",IF($N20<=8,$N20,IF(AND(Field_Sch_Days>4,Field_Sch_Hours>8),$N20*(8/Field_Sch_Hours),$N20)),"") ->  | U20: =_xlfn.IFNA(INDEX(Tbl_Labor_Rates[#All],MATCH('Project Estimation'!$T20,'Labor Rate Sheet'!$B$11:$B$51,0),MATCH(_xlfn.CONCAT("ST_",VLOOKUP(Client_Name,'Project Details'!$AO$15:$AS$56,4,FALSE)),Tbl_Labor_Rates[#Headers],0)),"") ->  | V20: =_xlfn.IFNA(INDEX(Tbl_Labor_Rates[#All],MATCH('Project Estimation'!$T20,'Labor Rate Sheet'!$B$11:$B$51,0),MATCH(_xlfn.CONCAT("OT_",VLOOKUP(Client_Name,'Project Details'!$AO$15:$AS$56,4,FALSE)),Tbl_Labor_Rates[#Headers],0)),"") ->  | Y20: =IF(OR(Type="A", Type="LOE"), IFERROR($X20+$W20,""),"") ->  | AC20: =_xlfn.IFNA(INDEX(Tbl_Labor_Rates[#All],MATCH('Project Estimation'!$AB20,'Labor Rate Sheet'!$B$11:$B$51,0),MATCH(_xlfn.CONCAT("ST_",VLOOKUP(Client_Name,'Project Details'!$AO$15:$AS$56,4,FALSE)),Tbl_Labor_Rates[#Headers],0)),"") ->  | AD20: =_xlfn.IFNA(INDEX(Tbl_Labor_Rates[#All],MATCH('Project Estimation'!$AB20,'Labor Rate Sheet'!$B$11:$B$51,0),MATCH(_xlfn.CONCAT("OT_",VLOOKUP(Client_Name,'Project Details'!$AO$15:$AS$56,4,FALSE)),Tbl_Labor_Rates[#Headers],0)),"") ->  | AE20: =IFERROR($AC20*$AA20*$P20, "") ->  | AF20: =IFERROR($AD20*$AA20*$Q20,"") ->  | AG20: =IFERROR($AF20+$AE20,"") ->  | AK20: =_xlfn.IFNA(INDEX(Tbl_Labor_Rates[#All],MATCH('Project Estimation'!$AJ20,'Labor Rate Sheet'!$B$11:$B$51,0),MATCH(_xlfn.CONCAT("ST_",VLOOKUP(Client_Name,'Project Details'!$AO$15:$AS$56,4,FALSE)),Tbl_Labor_Rates[#Headers],0)),"") ->  | AL20: =_xlfn.IFNA(INDEX(Tbl_Labor_Rates[#All],MATCH('Project Estimation'!$AJ20,'Labor Rate Sheet'!$B$11:$B$51,0),MATCH(_xlfn.CONCAT("OT_",VLOOKUP(Client_Name,'Project Details'!$AO$15:$AS$56,4,FALSE)),Tbl_Labor_Rates[#Headers],0)),"") ->  | AO20: =IFERROR($AN20+$AM20,"") ->  | AS20: =IF(OR(Type="A", Type="LOE"), _xlfn.IFNA(INDEX(Tbl_Labor_Rates[#All],MATCH('Project Estimation'!AR20,'Labor Rate Sheet'!$B$11:$B$51,0),MATCH(_xlfn.CONCAT("ST_",VLOOKUP(Client_Name,'Project Details'!$AO$15:$AS$56,4,FALSE)),Tbl_Labor_Rates[#Headers],0)),""),"") ->  | AT20: =IF(OR(Type="A", Type="LOE"), _xlfn.IFNA(INDEX(Tbl_Labor_Rates[#All],MATCH('Project Estimation'!AR20,'Labor Rate Sheet'!$B$11:$B$51,0),MATCH(_xlfn.CONCAT("OT_",VLOOKUP(Client_Name,'Project Details'!$AO$15:$AS$56,4,FALSE)),Tbl_Labor_Rates[#Headers],0)),""),"") ->  | AU20: =IF(OR(Type="A", Type="LOE"), IFERROR(AS20*AQ20*$P20, ""),"") ->  | AV20: =IF(OR(Type="A", Type="LOE"), IFERROR(AT20*AQ20*$Q20, ""),"") ->  | AW20: =IF(OR(Type="A",Type="LOE"),IFERROR(AV20+AU20,""),"") ->  | BA20: =_xlfn.IFNA(INDEX(Tbl_Labor_Rates[#All],MATCH('Project Estimation'!$AB20,'Labor Rate Sheet'!$B$11:$B$51,0),MATCH(_xlfn.CONCAT("ST_",VLOOKUP(Client_Name,'Project Details'!$AO$15:$AS$56,4,FALSE)),Tbl_Labor_Rates[#Headers],0)),"") ->  | BB20: =_xlfn.IFNA(INDEX(Tbl_Labor_Rates[#All],MATCH('Project Estimation'!$AB20,'Labor Rate Sheet'!$B$11:$B$51,0),MATCH(_xlfn.CONCAT("OT_",VLOOKUP(Client_Name,'Project Details'!$AO$15:$AS$56,4,FALSE)),Tbl_Labor_Rates[#Headers],0)),"") ->  | BC20: =IFERROR($AC20*$AA20*$P20, "") ->  | BD20: =IFERROR($AD20*$AA20*$Q20,"") ->  | BE20: =IFERROR($AF20+$AE20,"") ->  | BI20: =IF(OR(Type="A", Type="LOE"), _xlfn.IFNA(INDEX(Tbl_Labor_Rates[#All],MATCH('Project Estimation'!BH20,'Labor Rate Sheet'!$B$11:$B$51,0),MATCH(_xlfn.CONCAT("ST_",VLOOKUP(Client_Name,'Project Details'!$AO$15:$AS$56,4,FALSE)),Tbl_Labor_Rates[#Headers],0)),""),"") ->  | BJ20: =IF(OR(Type="A", Type="LOE"), _xlfn.IFNA(INDEX(Tbl_Labor_Rates[#All],MATCH('Project Estimation'!BH20,'Labor Rate Sheet'!$B$11:$B$51,0),MATCH(_xlfn.CONCAT("OT_",VLOOKUP(Client_Name,'Project Details'!$AO$15:$AS$56,4,FALSE)),Tbl_Labor_Rates[#Headers],0)),""),"") ->  | BQ20: =IF(OR(Type="A", Type="LOE"), _xlfn.IFNA(INDEX(Tbl_Labor_Rates[#All],MATCH('Project Estimation'!BP20,'Labor Rate Sheet'!$B$11:$B$51,0),MATCH(_xlfn.CONCAT("ST_",VLOOKUP(Client_Name,'Project Details'!$AO$15:$AS$56,4,FALSE)),Tbl_Labor_Rates[#Headers],0)),""),"") ->  | BR20: =IF(OR(Type="A", Type="LOE"), _xlfn.IFNA(INDEX(Tbl_Labor_Rates[#All],MATCH('Project Estimation'!BP20,'Labor Rate Sheet'!$B$11:$B$51,0),MATCH(_xlfn.CONCAT("OT_",VLOOKUP(Client_Name,'Project Details'!$AO$15:$AS$56,4,FALSE)),Tbl_Labor_Rates[#Headers],0)),""),"") ->  | BY20: =IF(OR(Type="A", Type="LOE"), _xlfn.IFNA(INDEX(Tbl_Labor_Rates[#All],MATCH('Project Estimation'!BX20,'Labor Rate Sheet'!$B$11:$B$51,0),MATCH(_xlfn.CONCAT("ST_",VLOOKUP(Client_Name,'Project Details'!$AO$15:$AS$56,4,FALSE)),Tbl_Labor_Rates[#Headers],0)),""),"") ->  | BZ20: =IF(OR(Type="A", Type="LOE"), _xlfn.IFNA(INDEX(Tbl_Labor_Rates[#All],MATCH('Project Estimation'!BX20,'Labor Rate Sheet'!$B$11:$B$51,0),MATCH(_xlfn.CONCAT("OT_",VLOOKUP(Client_Name,'Project Details'!$AO$15:$AS$56,4,FALSE)),Tbl_Labor_Rates[#Headers],0)),""),"") ->  | CG20: =IF(OR(Type="A", Type="LOE"), _xlfn.IFNA(INDEX(Tbl_Labor_Rates[#All],MATCH('Project Estimation'!CF20,'Labor Rate Sheet'!$B$11:$B$51,0),MATCH(_xlfn.CONCAT("ST_",VLOOKUP(Client_Name,'Project Details'!$AO$15:$AS$56,4,FALSE)),Tbl_Labor_Rates[#Headers],0)),""),"") ->  | CH20: =IF(OR(Type="A", Type="LOE"), _xlfn.IFNA(INDEX(Tbl_Labor_Rates[#All],MATCH('Project Estimation'!CF20,'Labor Rate Sheet'!$B$11:$B$51,0),MATCH(_xlfn.CONCAT("OT_",VLOOKUP(Client_Name,'Project Details'!$AO$15:$AS$56,4,FALSE)),Tbl_Labor_Rates[#Headers],0)),""),"") ->  | CO20: =IF(Type="WBS", SUMIFS(CO26:CO$54,$G26:$G$54,WBS_ID),IF(Type="A", $CM20+$CN20, IF(Type="SUB", 0,IF(Type="M", 0,"")))) ->  | CP20: =IFERROR(IF($N20<>"",SUM(IF(ISBLANK($AM20),0,$AM20),IF(ISBLANK($AE20),0,$AE20),IF(ISBLANK($W20),0,$W20)),""),"") ->  | CQ20: =IFERROR(IF($N20<>"",SUM(IF(ISBLANK($AN20),0,$AN20),IF(ISBLANK($AF20),0,$AF20),IF(ISBLANK($X20),0,$X20)),""),"") ->  | CR20: =IFERROR(IF($N20<>"",SUM(IF(ISBLANK($AN20),0,$AN20),IF(ISBLANK($AM20),0,$AM20),IF(ISBLANK($AG20),0,$AG20),IF(ISBLANK($Y20),0,$Y20),IF(ISBLANK($AO20),0,$AO20)),""),"") -> 
O21: =IF(Type="WBS", SUMIFS($O24:$O$24,#REF!,WBS_ID), IF(OR(Type="A", Type="LOE"), ($N21 /Field_Sch_Hours), IF(Type="SUB", $FK21,""))) ->  | P21: =IF($N21<>"",IF($N21<=8,$N21,IF(AND(Field_Sch_Days>4,Field_Sch_Hours>8),$N21*(8/Field_Sch_Hours),$N21)),"") ->  | U21: =_xlfn.IFNA(INDEX(Tbl_Labor_Rates[#All],MATCH('Project Estimation'!$T21,'Labor Rate Sheet'!$B$11:$B$51,0),MATCH(_xlfn.CONCAT("ST_",VLOOKUP(Client_Name,'Project Details'!$AO$15:$AS$56,4,FALSE)),Tbl_Labor_Rates[#Headers],0)),"") ->  | V21: =_xlfn.IFNA(INDEX(Tbl_Labor_Rates[#All],MATCH('Project Estimation'!$T21,'Labor Rate Sheet'!$B$11:$B$51,0),MATCH(_xlfn.CONCAT("OT_",VLOOKUP(Client_Name,'Project Details'!$AO$15:$AS$56,4,FALSE)),Tbl_Labor_Rates[#Headers],0)),"") ->  | Y21: =IF(OR(Type="A", Type="LOE"), IFERROR($X21+$W21,""),"") ->  | AC21: =_xlfn.IFNA(INDEX(Tbl_Labor_Rates[#All],MATCH('Project Estimation'!$AB21,'Labor Rate Sheet'!$B$11:$B$51,0),MATCH(_xlfn.CONCAT("ST_",VLOOKUP(Client_Name,'Project Details'!$AO$15:$AS$56,4,FALSE)),Tbl_Labor_Rates[#Headers],0)),"") ->  | AD21: =_xlfn.IFNA(INDEX(Tbl_Labor_Rates[#All],MATCH('Project Estimation'!$AB21,'Labor Rate Sheet'!$B$11:$B$51,0),MATCH(_xlfn.CONCAT("OT_",VLOOKUP(Client_Name,'Project Details'!$AO$15:$AS$56,4,FALSE)),Tbl_Labor_Rates[#Headers],0)),"") ->  | AE21: =IFERROR($AC21*$AA21*$P21, "") ->  | AF21: =IFERROR($AD21*$AA21*$Q21,"") ->  | AG21: =IFERROR($AF21+$AE21,"") ->  | AK21: =_xlfn.IFNA(INDEX(Tbl_Labor_Rates[#All],MATCH('Project Estimation'!$AJ21,'Labor Rate Sheet'!$B$11:$B$51,0),MATCH(_xlfn.CONCAT("ST_",VLOOKUP(Client_Name,'Project Details'!$AO$15:$AS$56,4,FALSE)),Tbl_Labor_Rates[#Headers],0)),"") ->  | AL21: =_xlfn.IFNA(INDEX(Tbl_Labor_Rates[#All],MATCH('Project Estimation'!$AJ21,'Labor Rate Sheet'!$B$11:$B$51,0),MATCH(_xlfn.CONCAT("OT_",VLOOKUP(Client_Name,'Project Details'!$AO$15:$AS$56,4,FALSE)),Tbl_Labor_Rates[#Headers],0)),"") ->  | AO21: =IFERROR($AN21+$AM21,"") ->  | AS21: =IF(OR(Type="A", Type="LOE"), _xlfn.IFNA(INDEX(Tbl_Labor_Rates[#All],MATCH('Project Estimation'!AR21,'Labor Rate Sheet'!$B$11:$B$51,0),MATCH(_xlfn.CONCAT("ST_",VLOOKUP(Client_Name,'Project Details'!$AO$15:$AS$56,4,FALSE)),Tbl_Labor_Rates[#Headers],0)),""),"") ->  | AT21: =IF(OR(Type="A", Type="LOE"), _xlfn.IFNA(INDEX(Tbl_Labor_Rates[#All],MATCH('Project Estimation'!AR21,'Labor Rate Sheet'!$B$11:$B$51,0),MATCH(_xlfn.CONCAT("OT_",VLOOKUP(Client_Name,'Project Details'!$AO$15:$AS$56,4,FALSE)),Tbl_Labor_Rates[#Headers],0)),""),"") ->  | AU21: =IF(OR(Type="A", Type="LOE"), IFERROR(AS21*AQ21*$P21, ""),"") ->  | AV21: =IF(OR(Type="A", Type="LOE"), IFERROR(AT21*AQ21*$Q21, ""),"") ->  | AW21: =IF(OR(Type="A",Type="LOE"),IFERROR(AV21+AU21,""),"") ->  | BA21: =_xlfn.IFNA(INDEX(Tbl_Labor_Rates[#All],MATCH('Project Estimation'!$AB21,'Labor Rate Sheet'!$B$11:$B$51,0),MATCH(_xlfn.CONCAT("ST_",VLOOKUP(Client_Name,'Project Details'!$AO$15:$AS$56,4,FALSE)),Tbl_Labor_Rates[#Headers],0)),"") ->  | BB21: =_xlfn.IFNA(INDEX(Tbl_Labor_Rates[#All],MATCH('Project Estimation'!$AB21,'Labor Rate Sheet'!$B$11:$B$51,0),MATCH(_xlfn.CONCAT("OT_",VLOOKUP(Client_Name,'Project Details'!$AO$15:$AS$56,4,FALSE)),Tbl_Labor_Rates[#Headers],0)),"") ->  | BC21: =IFERROR($AC21*$AA21*$P21, "") ->  | BD21: =IFERROR($AD21*$AA21*$Q21,"") ->  | BE21: =IFERROR($AF21+$AE21,"") ->  | BI21: =IF(OR(Type="A", Type="LOE"), _xlfn.IFNA(INDEX(Tbl_Labor_Rates[#All],MATCH('Project Estimation'!BH21,'Labor Rate Sheet'!$B$11:$B$51,0),MATCH(_xlfn.CONCAT("ST_",VLOOKUP(Client_Name,'Project Details'!$AO$15:$AS$56,4,FALSE)),Tbl_Labor_Rates[#Headers],0)),""),"") ->  | BJ21: =IF(OR(Type="A", Type="LOE"), _xlfn.IFNA(INDEX(Tbl_Labor_Rates[#All],MATCH('Project Estimation'!BH21,'Labor Rate Sheet'!$B$11:$B$51,0),MATCH(_xlfn.CONCAT("OT_",VLOOKUP(Client_Name,'Project Details'!$AO$15:$AS$56,4,FALSE)),Tbl_Labor_Rates[#Headers],0)),""),"") ->  | BK21: =IF(OR(Type="A", Type="LOE"), IFERROR(BI21*BG21*$P21, ""),"") ->  | BL21: =IF(OR(Type="A", Type="LOE"), IFERROR(BJ21*BG21*$Q21, ""),"") ->  | BM21: =IF(OR(Type="A",Type="LOE"),IFERROR(BL21+BK21,""),"") ->  | BQ21: =IF(OR(Type="A", Type="LOE"), _xlfn.IFNA(INDEX(Tbl_Labor_Rates[#All],MATCH('Project Estimation'!BP21,'Labor Rate Sheet'!$B$11:$B$51,0),MATCH(_xlfn.CONCAT("ST_",VLOOKUP(Client_Name,'Project Details'!$AO$15:$AS$56,4,FALSE)),Tbl_Labor_Rates[#Headers],0)),""),"") ->  | BR21: =IF(OR(Type="A", Type="LOE"), _xlfn.IFNA(INDEX(Tbl_Labor_Rates[#All],MATCH('Project Estimation'!BP21,'Labor Rate Sheet'!$B$11:$B$51,0),MATCH(_xlfn.CONCAT("OT_",VLOOKUP(Client_Name,'Project Details'!$AO$15:$AS$56,4,FALSE)),Tbl_Labor_Rates[#Headers],0)),""),"") ->  | BS21: =IF(OR(Type="A", Type="LOE"), IFERROR(BQ21*BO21*$P21, ""),"") ->  | BT21: =IF(OR(Type="A", Type="LOE"), IFERROR(BR21*BO21*$Q21, ""),"") ->  | BU21: =IF(OR(Type="A",Type="LOE"),IFERROR(BT21+BS21,""),"") ->  | BY21: =IF(OR(Type="A", Type="LOE"), _xlfn.IFNA(INDEX(Tbl_Labor_Rates[#All],MATCH('Project Estimation'!BX21,'Labor Rate Sheet'!$B$11:$B$51,0),MATCH(_xlfn.CONCAT("ST_",VLOOKUP(Client_Name,'Project Details'!$AO$15:$AS$56,4,FALSE)),Tbl_Labor_Rates[#Headers],0)),""),"") ->  | BZ21: =IF(OR(Type="A", Type="LOE"), _xlfn.IFNA(INDEX(Tbl_Labor_Rates[#All],MATCH('Project Estimation'!BX21,'Labor Rate Sheet'!$B$11:$B$51,0),MATCH(_xlfn.CONCAT("OT_",VLOOKUP(Client_Name,'Project Details'!$AO$15:$AS$56,4,FALSE)),Tbl_Labor_Rates[#Headers],0)),""),"") ->  | CA21: =IF(OR(Type="A", Type="LOE"), IFERROR(BY21*BW21*$P21, ""),"") ->  | CB21: =IF(OR(Type="A", Type="LOE"), IFERROR(BZ21*BW21*$Q21, ""),"") ->  | CC21: =IF(OR(Type="A",Type="LOE"),IFERROR(CB21+CA21,""),"") ->  | CG21: =IF(OR(Type="A", Type="LOE"), _xlfn.IFNA(INDEX(Tbl_Labor_Rates[#All],MATCH('Project Estimation'!CF21,'Labor Rate Sheet'!$B$11:$B$51,0),MATCH(_xlfn.CONCAT("ST_",VLOOKUP(Client_Name,'Project Details'!$AO$15:$AS$56,4,FALSE)),Tbl_Labor_Rates[#Headers],0)),""),"") ->  | CH21: =IF(OR(Type="A", Type="LOE"), _xlfn.IFNA(INDEX(Tbl_Labor_Rates[#All],MATCH('Project Estimation'!CF21,'Labor Rate Sheet'!$B$11:$B$51,0),MATCH(_xlfn.CONCAT("OT_",VLOOKUP(Client_Name,'Project Details'!$AO$15:$AS$56,4,FALSE)),Tbl_Labor_Rates[#Headers],0)),""),"") ->  | CI21: =IF(OR(Type="A", Type="LOE"), IFERROR(CG21*CE21*$P21, ""),"") ->  | CJ21: =IF(OR(Type="A", Type="LOE"), IFERROR(CH21*CE21*$Q21, ""),"") ->  | CK21: =IF(OR(Type="A",Type="LOE"),IFERROR(CJ21+CI21,""),"") ->  | CO21: =IF(Type="WBS", SUMIFS(CO27:CO$54,$G27:$G$54,WBS_ID),IF(Type="A", $CM21+$CN21, IF(Type="SUB", 0,IF(Type="M", 0,"")))) ->  | CP21: =IFERROR(IF($N21<>"",SUM(IF(ISBLANK($AM21),0,$AM21),IF(ISBLANK($AE21),0,$AE21),IF(ISBLANK($W21),0,$W21)),""),"") ->  | CQ21: =IFERROR(IF($N21<>"",SUM(IF(ISBLANK($AN21),0,$AN21),IF(ISBLANK($AF21),0,$AF21),IF(ISBLANK($X21),0,$X21)),""),"") ->  | CR21: =IFERROR(IF($N21<>"",SUM(IF(ISBLANK($AN21),0,$AN21),IF(ISBLANK($AM21),0,$AM21),IF(ISBLANK($AG21),0,$AG21),IF(ISBLANK($Y21),0,$Y21),IF(ISBLANK($AO21),0,$AO21)),""),"") -> 
O22: =IF(Type="WBS", SUMIFS($O24:$O$24,#REF!,WBS_ID), IF(OR(Type="A", Type="LOE"), ($N22 /Field_Sch_Hours), IF(Type="SUB", $FK22,""))) ->  | P22: =IF($N22<>"",IF($N22<=8,$N22,IF(AND(Field_Sch_Days>4,Field_Sch_Hours>8),$N22*(8/Field_Sch_Hours),$N22)),"") ->  | U22: =_xlfn.IFNA(INDEX(Tbl_Labor_Rates[#All],MATCH('Project Estimation'!$T22,'Labor Rate Sheet'!$B$11:$B$51,0),MATCH(_xlfn.CONCAT("ST_",VLOOKUP(Client_Name,'Project Details'!$AO$15:$AS$56,4,FALSE)),Tbl_Labor_Rates[#Headers],0)),"") ->  | V22: =_xlfn.IFNA(INDEX(Tbl_Labor_Rates[#All],MATCH('Project Estimation'!$T22,'Labor Rate Sheet'!$B$11:$B$51,0),MATCH(_xlfn.CONCAT("OT_",VLOOKUP(Client_Name,'Project Details'!$AO$15:$AS$56,4,FALSE)),Tbl_Labor_Rates[#Headers],0)),"") ->  | Y22: =IF(OR(Type="A", Type="LOE"), IFERROR($X22+$W22,""),"") ->  | AC22: =_xlfn.IFNA(INDEX(Tbl_Labor_Rates[#All],MATCH('Project Estimation'!$AB22,'Labor Rate Sheet'!$B$11:$B$51,0),MATCH(_xlfn.CONCAT("ST_",VLOOKUP(Client_Name,'Project Details'!$AO$15:$AS$56,4,FALSE)),Tbl_Labor_Rates[#Headers],0)),"") ->  | AD22: =_xlfn.IFNA(INDEX(Tbl_Labor_Rates[#All],MATCH('Project Estimation'!$AB22,'Labor Rate Sheet'!$B$11:$B$51,0),MATCH(_xlfn.CONCAT("OT_",VLOOKUP(Client_Name,'Project Details'!$AO$15:$AS$56,4,FALSE)),Tbl_Labor_Rates[#Headers],0)),"") ->  | AE22: =IFERROR($AC22*$AA22*$P22, "") ->  | AF22: =IFERROR($AD22*$AA22*$Q22,"") ->  | AG22: =IFERROR($AF22+$AE22,"") ->  | AK22: =_xlfn.IFNA(INDEX(Tbl_Labor_Rates[#All],MATCH('Project Estimation'!$AJ22,'Labor Rate Sheet'!$B$11:$B$51,0),MATCH(_xlfn.CONCAT("ST_",VLOOKUP(Client_Name,'Project Details'!$AO$15:$AS$56,4,FALSE)),Tbl_Labor_Rates[#Headers],0)),"") ->  | AL22: =_xlfn.IFNA(INDEX(Tbl_Labor_Rates[#All],MATCH('Project Estimation'!$AJ22,'Labor Rate Sheet'!$B$11:$B$51,0),MATCH(_xlfn.CONCAT("OT_",VLOOKUP(Client_Name,'Project Details'!$AO$15:$AS$56,4,FALSE)),Tbl_Labor_Rates[#Headers],0)),"") ->  | AO22: =IFERROR($AN22+$AM22,"") ->  | AS22: =IF(OR(Type="A", Type="LOE"), _xlfn.IFNA(INDEX(Tbl_Labor_Rates[#All],MATCH('Project Estimation'!AR22,'Labor Rate Sheet'!$B$11:$B$51,0),MATCH(_xlfn.CONCAT("ST_",VLOOKUP(Client_Name,'Project Details'!$AO$15:$AS$56,4,FALSE)),Tbl_Labor_Rates[#Headers],0)),""),"") ->  | AT22: =IF(OR(Type="A", Type="LOE"), _xlfn.IFNA(INDEX(Tbl_Labor_Rates[#All],MATCH('Project Estimation'!AR22,'Labor Rate Sheet'!$B$11:$B$51,0),MATCH(_xlfn.CONCAT("OT_",VLOOKUP(Client_Name,'Project Details'!$AO$15:$AS$56,4,FALSE)),Tbl_Labor_Rates[#Headers],0)),""),"") ->  | AU22: =IF(OR(Type="A", Type="LOE"), IFERROR(AS22*AQ22*$P22, ""),"") ->  | AV22: =IF(OR(Type="A", Type="LOE"), IFERROR(AT22*AQ22*$Q22, ""),"") ->  | AW22: =IF(OR(Type="A",Type="LOE"),IFERROR(AV22+AU22,""),"") ->  | BA22: =_xlfn.IFNA(INDEX(Tbl_Labor_Rates[#All],MATCH('Project Estimation'!$AB22,'Labor Rate Sheet'!$B$11:$B$51,0),MATCH(_xlfn.CONCAT("ST_",VLOOKUP(Client_Name,'Project Details'!$AO$15:$AS$56,4,FALSE)),Tbl_Labor_Rates[#Headers],0)),"") ->  | BB22: =_xlfn.IFNA(INDEX(Tbl_Labor_Rates[#All],MATCH('Project Estimation'!$AB22,'Labor Rate Sheet'!$B$11:$B$51,0),MATCH(_xlfn.CONCAT("OT_",VLOOKUP(Client_Name,'Project Details'!$AO$15:$AS$56,4,FALSE)),Tbl_Labor_Rates[#Headers],0)),"") ->  | BC22: =IFERROR($AC22*$AA22*$P22, "") ->  | BD22: =IFERROR($AD22*$AA22*$Q22,"") ->  | BE22: =IFERROR($AF22+$AE22,"") ->  | BI22: =IF(OR(Type="A", Type="LOE"), _xlfn.IFNA(INDEX(Tbl_Labor_Rates[#All],MATCH('Project Estimation'!BH22,'Labor Rate Sheet'!$B$11:$B$51,0),MATCH(_xlfn.CONCAT("ST_",VLOOKUP(Client_Name,'Project Details'!$AO$15:$AS$56,4,FALSE)),Tbl_Labor_Rates[#Headers],0)),""),"") ->  | BJ22: =IF(OR(Type="A", Type="LOE"), _xlfn.IFNA(INDEX(Tbl_Labor_Rates[#All],MATCH('Project Estimation'!BH22,'Labor Rate Sheet'!$B$11:$B$51,0),MATCH(_xlfn.CONCAT("OT_",VLOOKUP(Client_Name,'Project Details'!$AO$15:$AS$56,4,FALSE)),Tbl_Labor_Rates[#Headers],0)),""),"") ->  | BK22: =IF(OR(Type="A", Type="LOE"), IFERROR(BI22*BG22*$P22, ""),"") ->  | BL22: =IF(OR(Type="A", Type="LOE"), IFERROR(BJ22*BG22*$Q22, ""),"") ->  | BM22: =IF(OR(Type="A",Type="LOE"),IFERROR(BL22+BK22,""),"") ->  | BQ22: =IF(OR(Type="A", Type="LOE"), _xlfn.IFNA(INDEX(Tbl_Labor_Rates[#All],MATCH('Project Estimation'!BP22,'Labor Rate Sheet'!$B$11:$B$51,0),MATCH(_xlfn.CONCAT("ST_",VLOOKUP(Client_Name,'Project Details'!$AO$15:$AS$56,4,FALSE)),Tbl_Labor_Rates[#Headers],0)),""),"") ->  | BR22: =IF(OR(Type="A", Type="LOE"), _xlfn.IFNA(INDEX(Tbl_Labor_Rates[#All],MATCH('Project Estimation'!BP22,'Labor Rate Sheet'!$B$11:$B$51,0),MATCH(_xlfn.CONCAT("OT_",VLOOKUP(Client_Name,'Project Details'!$AO$15:$AS$56,4,FALSE)),Tbl_Labor_Rates[#Headers],0)),""),"") ->  | BS22: =IF(OR(Type="A", Type="LOE"), IFERROR(BQ22*BO22*$P22, ""),"") ->  | BT22: =IF(OR(Type="A", Type="LOE"), IFERROR(BR22*BO22*$Q22, ""),"") ->  | BU22: =IF(OR(Type="A",Type="LOE"),IFERROR(BT22+BS22,""),"") ->  | BY22: =IF(OR(Type="A", Type="LOE"), _xlfn.IFNA(INDEX(Tbl_Labor_Rates[#All],MATCH('Project Estimation'!BX22,'Labor Rate Sheet'!$B$11:$B$51,0),MATCH(_xlfn.CONCAT("ST_",VLOOKUP(Client_Name,'Project Details'!$AO$15:$AS$56,4,FALSE)),Tbl_Labor_Rates[#Headers],0)),""),"") ->  | BZ22: =IF(OR(Type="A", Type="LOE"), _xlfn.IFNA(INDEX(Tbl_Labor_Rates[#All],MATCH('Project Estimation'!BX22,'Labor Rate Sheet'!$B$11:$B$51,0),MATCH(_xlfn.CONCAT("OT_",VLOOKUP(Client_Name,'Project Details'!$AO$15:$AS$56,4,FALSE)),Tbl_Labor_Rates[#Headers],0)),""),"") ->  | CA22: =IF(OR(Type="A", Type="LOE"), IFERROR(BY22*BW22*$P22, ""),"") ->  | CB22: =IF(OR(Type="A", Type="LOE"), IFERROR(BZ22*BW22*$Q22, ""),"") ->  | CC22: =IF(OR(Type="A",Type="LOE"),IFERROR(CB22+CA22,""),"") ->  | CG22: =IF(OR(Type="A", Type="LOE"), _xlfn.IFNA(INDEX(Tbl_Labor_Rates[#All],MATCH('Project Estimation'!CF22,'Labor Rate Sheet'!$B$11:$B$51,0),MATCH(_xlfn.CONCAT("ST_",VLOOKUP(Client_Name,'Project Details'!$AO$15:$AS$56,4,FALSE)),Tbl_Labor_Rates[#Headers],0)),""),"") ->  | CH22: =IF(OR(Type="A", Type="LOE"), _xlfn.IFNA(INDEX(Tbl_Labor_Rates[#All],MATCH('Project Estimation'!CF22,'Labor Rate Sheet'!$B$11:$B$51,0),MATCH(_xlfn.CONCAT("OT_",VLOOKUP(Client_Name,'Project Details'!$AO$15:$AS$56,4,FALSE)),Tbl_Labor_Rates[#Headers],0)),""),"") ->  | CI22: =IF(OR(Type="A", Type="LOE"), IFERROR(CG22*CE22*$P22, ""),"") ->  | CJ22: =IF(OR(Type="A", Type="LOE"), IFERROR(CH22*CE22*$Q22, ""),"") ->  | CK22: =IF(OR(Type="A",Type="LOE"),IFERROR(CJ22+CI22,""),"") ->  | CO22: =IF(Type="WBS", SUMIFS(CO27:CO$54,$G27:$G$54,WBS_ID),IF(Type="A", $CM22+$CN22, IF(Type="SUB", 0,IF(Type="M", 0,"")))) ->  | CP22: =IFERROR(IF($N22<>"",SUM(IF(ISBLANK($AM22),0,$AM22),IF(ISBLANK($AE22),0,$AE22),IF(ISBLANK($W22),0,$W22)),""),"") ->  | CQ22: =IFERROR(IF($N22<>"",SUM(IF(ISBLANK($AN22),0,$AN22),IF(ISBLANK($AF22),0,$AF22),IF(ISBLANK($X22),0,$X22)),""),"") ->  | CR22: =IFERROR(IF($N22<>"",SUM(IF(ISBLANK($AN22),0,$AN22),IF(ISBLANK($AM22),0,$AM22),IF(ISBLANK($AG22),0,$AG22),IF(ISBLANK($Y22),0,$Y22),IF(ISBLANK($AO22),0,$AO22)),""),"") ->  | CW22: =SUM(CW26:CW44)+SUM(CW46:CW56)+SUM(CW58:CW186) -> $0.00 | DB22: =SUM(DB26:DB44)+SUM(DB46:DB56)+SUM(DB58:DB186) -> $0.00 | DG22: =SUM(DG26:DG44)+SUM(DG46:DG56)+SUM(DG58:DG186) -> $0.00 | DL22: =SUM(DL26:DL44)+SUM(DL46:DL56)+SUM(DL58:DL186) -> $0.00 | DQ22: =SUM(DQ26:DQ44)+SUM(DQ46:DQ56)+SUM(DQ58:DQ186) -> $0.00 | DW22: =SUM(DW26:DW44)+SUM(DW46:DW56)+SUM(DW58:DW186) -> $0.00 | DY22: =SUM(DY26:DY44)+SUM(DY46:DY56)+SUM(DY58:DY186) -> $0.00 | EE22: =SUM(EE26:EE44)+SUM(EE46:EE56)+SUM(EE58:EE186) -> $0.00 | EG22: =SUM(EG26:EG44)+SUM(EG46:EG56)+SUM(EG58:EG186) -> $0.00 | EM22: =SUM(EM26:EM44)+SUM(EM46:EM56)+SUM(EM58:EM186) -> $0.00 | EO22: =SUM(EO26:EO44)+SUM(EO46:EO56)+SUM(EO58:EO186) -> $0.00 | EU22: =SUM(EU26:EU44)+SUM(EU46:EU56)+SUM(EU58:EU186) -> $0.00 | EW22: =SUM(EW26:EW44)+SUM(EW46:EW56)+SUM(EW58:EW186) -> $0.00 | FC22: =SUM(FC26:FC44)+SUM(FC46:FC56)+SUM(FC58:FC186) -> $0.00 | FE22: =SUM(FE26:FE44)+SUM(FE46:FE56)+SUM(FE58:FE186) -> $0.00
B23: ID | C23: Stage ID | D23: Level 1 | E23: Level 2 | F23: Level 3 | G23: WBS ID | H23: Act. # | I23: Act. ID | L23: Activity | S23: Labor Resource 1 | AA23: Labor Resource 2 | AI23: Labor Resource 3 | AQ23: Labor Resource 4 | AY23: Labor Resource 5 | BG23: Labor Resource 6 | BO23: Labor Resource 7 | BW23: Labor Resource 8 | BY23: =IF(OR(Type="A", Type="LOE"), _xlfn.IFNA(INDEX(Tbl_Labor_Rates[#All],MATCH('Project Estimation'!BX23,'Labor Rate Sheet'!$B$11:$B$51,0),MATCH(_xlfn.CONCAT("ST_",VLOOKUP(Client_Name,'Project Details'!$AO$15:$AS$56,4,FALSE)),Tbl_Labor_Rates[#Headers],0)),""),"") ->  | BZ23: =IF(OR(Type="A", Type="LOE"), _xlfn.IFNA(INDEX(Tbl_Labor_Rates[#All],MATCH('Project Estimation'!BX23,'Labor Rate Sheet'!$B$11:$B$51,0),MATCH(_xlfn.CONCAT("OT_",VLOOKUP(Client_Name,'Project Details'!$AO$15:$AS$56,4,FALSE)),Tbl_Labor_Rates[#Headers],0)),""),"") ->  | CA23: =IF(OR(Type="A", Type="LOE"), IFERROR(BY23*BW23*$P23, ""),"") ->  | CB23: =IF(OR(Type="A", Type="LOE"), IFERROR(BZ23*BW23*$Q23, ""),"") ->  | CC23: =IF(OR(Type="A",Type="LOE"),IFERROR(CB23+CA23,""),"") ->  | CE23: Labor Resource 9 | CM23: Labor Totals | CT23: Equipment Rental 1 | CY23: Equipment Rental 2 | DD23: Equipment Rental 3 | DI23: Equipment Rental 4 | DN23: Equipment Rental 5 | DS23: Materials Item 1 | EA23: Material Item 2 | EI23: Material Item 3 | EQ23: Material Item 4 | EY23: Material Item 5 | FG23: Subs | FO23: Calculations - Coming Soon
K24: WBS Level | L24: Type | M24: Activity Description | N24: Activity Labor Hours | O24: Est Work Days | P24: ST | Q24: OT | S24: Qty 1 | T24: Roles 1 | U24: ST Rate 1 | V24: OT Rate 1 | W24: ST Cost 1 | X24: OT Cost 1 | Y24: Total Cost of Role 1 | AA24: Qty 2 | AB24: Roles 2 | AC24: ST Rate 2 | AD24: OT Rate 2 | AE24: ST Cost 2 | AF24: OT Cost 2 | AG24: Total Cost of Role 2 | AI24: Qty 3 | AJ24: Roles 3 | AK24: ST Rate 3 | AL24: OT Rate 3 | AM24: ST Cost 3 | AN24: OT Cost 3 | AO24: Total Cost of Role 3 | AQ24: Qty 4 | AR24: Roles 4 | AS24: ST Rate 4 | AT24: OT Rate 4 | AU24: ST Cost 4 | AV24: OT Cost 4 | AW24: Total Cost of Role 4 | AY24: Qty 5 | AZ24: Roles 5 | BA24: ST Rate 5 | BB24: OT Rate 5 | BC24: ST Cost 5 | BD24: OT Cost 5 | BE24: Total Cost of Role 5 | BG24: Qty 6 | BH24: Roles 6 | BI24: ST Rate 6 | BJ24: OT Rate 6 | BK24: ST Cost 6 | BL24: OT Cost 6 | BM24: Total Cost of Role 6 | BO24: Qty 7 | BP24: Roles 7 | BQ24: ST Rate 7 | BR24: OT Rate 7 | BS24: ST Cost 7 | BT24: OT Cost 7 | BU24: Total Cost of Role 7 | BW24: Qty 8 | BX24: Roles 8 | BY24: ST Rate 8 | BZ24: OT Rate 8 | CA24: ST Cost 8 | CB24: OT Cost 8 | CC24: Total Cost of Role 8 | CE24: Qty 9 | CF24: Roles 9 | CG24: ST Rate 9 | CH24: OT Rate 9 | CI24: ST Cost 9 | CJ24: OT Cost 9 | CK24: Total Cost of Role 9 | CM24: Total ST Labor Hrs | CN24: Total OT Labor Hrs | CO24: Total Labor Hours | CP24: Total ST Labor Costs | CQ24: Total OT Labor Costs | CR24: Total Labor Costs | CT24: Rental 1 | CU24: Hrs | CV24: Rental Rate 1 | CW24: Rental Costs 1 | CY24: Rental 2 | CZ24: Hrs | DA24: Rental Rate 2 | DB24: Rental Costs 2 | DD24: Rental 3 | DE24: Hrs | DF24: Rental Rate 3 | DG24: Rental Costs 3 | DI24: Rental 4 | DJ24: Hrs | DK24: Rental Rate 4 | DL24: Rental Costs 4 | DN24: Rental 5 | DO24: Hrs | DP24: Rental Rate 5 | DQ24: Rental Costs 5 | DS24: Qty 1 | DT24: Material 1 | DU24: Units | DV24: Price/Unit | DW24: Mat. Total Expense 1 | DX24: Mat. MarkUp 1 | DY24: Mat. Total Cost | EA24: Qty 2 | EB24: Material 2 | EC24: Units | ED24: Price/Unit 2 | EE24: Mat. Total Expense 2 | EF24: Mat. MarkUp 2 | EG24: Mat. Total Cost 2 | EI24: Qty 3 | EJ24: Material 3 | EK24: Units | EL24: Price/Unit 3 | EM24: Mat. Total Expense 3 | EN24: Mat. MarkUp 3 | EO24: Mat. Total Cost 3 | EQ24: Qty 4 | ER24: Material 4 | ES24: Units | ET24: Price/Unit 4 | EU24: Mat. Total Expense 4 | EV24: Mat. MarkUp 4 | EW24: Mat. Total Cost 4 | EY24: Qty 5 | EZ24: Material 5 | FA24: Units | FB24: Price/Unit 5 | FC24: Mat. Total Expense 5 | FD24: Mat. MarkUp 5 | FE24: Mat. Total Cost 5 | FG24: Subs Company Name | FH24: Subs Contact Name | FI24: Subs E-Mail / Phone | FJ24: Subs Quote | FK24: Subs Est Working Days | FL24: Subs Mark-Up | FM24: SubsTotal Cost
B25: =IF(ROW(ID)=ROW($B$23)+4,1,MAX(Prev_Col_Range)+1) -> 1 | C25: =IF(ROW(ID)=ROW($B$23)+2,1, IF(AND(WBS_Level=0, Type="WBS"), MAX(Prev_Col_Range)+1,IF(Type="WBS",MAX(Prev_Col_Range),""))) -> 1 | D25: =IF(AND(Type="WBS", WBS_Level>=1), COUNTIFS(C$25:C25, Stage_ID, $K$25:K25, 1), "") -> 1 | E25: =IF(AND(Type="WBS", WBS_Level>=2), COUNTIFS(D$25:D25, Level_1, $K$25:$K25, 2), "") ->  | F25: =IF(AND(Type="WBS", WBS_Level>=3), COUNTIFS(E$25:E25, Level_2, $K$25:K25, 3), "") ->  | G25: =IF(Type<>"", IF(ROW(WBS_ID)=ROWS($G$23)+2, 0, IF(Type="WBS", MAX(Prev_Col_Range)+1, MAX(Prev_Col_Range))),-1) -> 1 | H25: =IF(Type<>"", IF(ROW(Act_ID)=ROWS($H$23)+4, 0, IF(OR(Type="A",Type="SUB"), MAX(Prev_Col_Range)+1, 0)),-1) -> 0 | I25: =IF(Type<>"", IF(ROW(Act_ID)=ROWS($H$23)+4, 0, IF(WBS_ID=MAX(Left_Prev_Col_Range), COUNTIF(Left_Prev_Col_Range, WBS_ID), 0)),-1) -> 0 | K25: =IF(Type="WBS", 1, "") -> 1 | L25: WBS | M25: Key Milestones | N25: =IF('Project Estimation'!$L25="WBS",SUMIFS($N26:$N$185,$G26:$G$185,WBS_ID),IF('Project Estimation'!$L25="SUB",$FK25,"")) -> 0 | O25: =IF(Type="WBS", SUMIFS($O26:$O$185,$G26:$G$185,WBS_ID), IF(OR(Type="A", Type="LOE"), ($N25 /Field_Sch_Hours), IF(Type="SUB", $FK25/Field_Sch_Hours,""))) -> 0.00 | P25: =IF(Type="WBS", SUMIFS($P26:$P$185,$G26:$G$185,WBS_ID), IF($N25<>"", IF($N25<=8,$N25,IF(AND(Field_Sch_Days>4,Field_Sch_Hours>8),$N25*(8/Field_Sch_Hours),$N25)), "")) -> 0 | Q25: =IFERROR($N25-$P25,"") -> 0 | U25: =IF(OR(Type="A", Type="LOE"), _xlfn.IFNA(INDEX(Tbl_Labor_Rates[#All],MATCH('Project Estimation'!T25,'Labor Rate Sheet'!$B$11:$B$51,0),MATCH(_xlfn.CONCAT("ST_",VLOOKUP(Client_Name,'Project Details'!$AO$15:$AS$56,4,FALSE)),Tbl_Labor_Rates[#Headers],0)),""),"") ->  | V25: =IF(OR(Type="A", Type="LOE"), _xlfn.IFNA(INDEX(Tbl_Labor_Rates[#All],MATCH('Project Estimation'!T25,'Labor Rate Sheet'!$B$11:$B$51,0),MATCH(_xlfn.CONCAT("OT_",VLOOKUP(Client_Name,'Project Details'!$AO$15:$AS$56,4,FALSE)),Tbl_Labor_Rates[#Headers],0)),""),"") ->  | W25: =IF(OR(Type="A", Type="LOE"), IFERROR(U25*S25*$P25, ""),"") ->  | X25: =IF(OR(Type="A", Type="LOE"), IFERROR(V25*S25*$Q25, ""),"") ->  | Y25: =IF(OR(Type="A", Type="LOE"), IFERROR(X25+W25,""),"") ->  | AC25: =IF(OR(Type="A", Type="LOE"), _xlfn.IFNA(INDEX(Tbl_Labor_Rates[#All],MATCH('Project Estimation'!AB25,'Labor Rate Sheet'!$B$11:$B$51,0),MATCH(_xlfn.CONCAT("ST_",VLOOKUP(Client_Name,'Project Details'!$AO$15:$AS$56,4,FALSE)),Tbl_Labor_Rates[#Headers],0)),""),"") ->  | AD25: =IF(OR(Type="A", Type="LOE"), _xlfn.IFNA(INDEX(Tbl_Labor_Rates[#All],MATCH('Project Estimation'!AB25,'Labor Rate Sheet'!$B$11:$B$51,0),MATCH(_xlfn.CONCAT("OT_",VLOOKUP(Client_Name,'Project Details'!$AO$15:$AS$56,4,FALSE)),Tbl_Labor_Rates[#Headers],0)),""),"") ->  | AE25: =IF(OR(Type="A", Type="LOE"), IFERROR(AC25*AA25*$P25, ""),"") ->  | AF25: =IF(OR(Type="A", Type="LOE"), IFERROR(AD25*AA25*$Q25, ""),"") ->  | AG25: =IF(OR(Type="A", Type="LOE"), IFERROR(AF25+AE25,""),"") ->  | AK25: =IF(OR(Type="A", Type="LOE"), _xlfn.IFNA(INDEX(Tbl_Labor_Rates[#All],MATCH('Project Estimation'!AJ25,'Labor Rate Sheet'!$B$11:$B$51,0),MATCH(_xlfn.CONCAT("ST_",VLOOKUP(Client_Name,'Project Details'!$AO$15:$AS$56,4,FALSE)),Tbl_Labor_Rates[#Headers],0)),""),"") ->  | AL25: =IF(OR(Type="A", Type="LOE"), _xlfn.IFNA(INDEX(Tbl_Labor_Rates[#All],MATCH('Project Estimation'!AJ25,'Labor Rate Sheet'!$B$11:$B$51,0),MATCH(_xlfn.CONCAT("OT_",VLOOKUP(Client_Name,'Project Details'!$AO$15:$AS$56,4,FALSE)),Tbl_Labor_Rates[#Headers],0)),""),"") ->  | AM25: =IF(OR(Type="A", Type="LOE"), IFERROR(AK25*AI25*$P25, ""),"") ->  | AN25: =IF(OR(Type="A", Type="LOE"), IFERROR(AL25*AI25*$Q25, ""),"") ->  | AO25: =IF(OR(Type="A",Type="LOE"),IFERROR(AN25+AM25,""),"") ->  | AS25: =IF(OR(Type="A", Type="LOE"), _xlfn.IFNA(INDEX(Tbl_Labor_Rates[#All],MATCH('Project Estimation'!AR25,'Labor Rate Sheet'!$B$11:$B$51,0),MATCH(_xlfn.CONCAT("ST_",VLOOKUP(Client_Name,'Project Details'!$AO$15:$AS$56,4,FALSE)),Tbl_Labor_Rates[#Headers],0)),""),"") ->  | AT25: =IF(OR(Type="A", Type="LOE"), _xlfn.IFNA(INDEX(Tbl_Labor_Rates[#All],MATCH('Project Estimation'!AR25,'Labor Rate Sheet'!$B$11:$B$51,0),MATCH(_xlfn.CONCAT("OT_",VLOOKUP(Client_Name,'Project Details'!$AO$15:$AS$56,4,FALSE)),Tbl_Labor_Rates[#Headers],0)),""),"") ->  | AU25: =IF(OR(Type="A", Type="LOE"), IFERROR(AS25*AQ25*$P25, ""),"") ->  | AV25: =IF(OR(Type="A", Type="LOE"), IFERROR(AT25*AQ25*$Q25, ""),"") ->  | AW25: =IF(OR(Type="A",Type="LOE"),IFERROR(AV25+AU25,""),"") ->  | BA25: =IF(OR(Type="A", Type="LOE"), _xlfn.IFNA(INDEX(Tbl_Labor_Rates[#All],MATCH('Project Estimation'!AZ25,'Labor Rate Sheet'!$B$11:$B$51,0),MATCH(_xlfn.CONCAT("ST_",VLOOKUP(Client_Name,'Project Details'!$AO$15:$AS$56,4,FALSE)),Tbl_Labor_Rates[#Headers],0)),""),"") ->  | BB25: =IF(OR(Type="A", Type="LOE"), _xlfn.IFNA(INDEX(Tbl_Labor_Rates[#All],MATCH('Project Estimation'!AZ25,'Labor Rate Sheet'!$B$11:$B$51,0),MATCH(_xlfn.CONCAT("OT_",VLOOKUP(Client_Name,'Project Details'!$AO$15:$AS$56,4,FALSE)),Tbl_Labor_Rates[#Headers],0)),""),"") ->  | BC25: =IF(OR(Type="A", Type="LOE"), IFERROR(BA25*AY25*$P25, ""),"") ->  | BD25: =IF(OR(Type="A", Type="LOE"), IFERROR(BB25*AY25*$Q25, ""),"") ->  | BE25: =IF(OR(Type="A",Type="LOE"),IFERROR(BD25+BC25,""),"") ->  | BI25: =IF(OR(Type="A", Type="LOE"), _xlfn.IFNA(INDEX(Tbl_Labor_Rates[#All],MATCH('Project Estimation'!BH25,'Labor Rate Sheet'!$B$11:$B$51,0),MATCH(_xlfn.CONCAT("ST_",VLOOKUP(Client_Name,'Project Details'!$AO$15:$AS$56,4,FALSE)),Tbl_Labor_Rates[#Headers],0)),""),"") ->  | BJ25: =IF(OR(Type="A", Type="LOE"), _xlfn.IFNA(INDEX(Tbl_Labor_Rates[#All],MATCH('Project Estimation'!BH25,'Labor Rate Sheet'!$B$11:$B$51,0),MATCH(_xlfn.CONCAT("OT_",VLOOKUP(Client_Name,'Project Details'!$AO$15:$AS$56,4,FALSE)),Tbl_Labor_Rates[#Headers],0)),""),"") ->  | BK25: =IF(OR(Type="A", Type="LOE"), IFERROR(BI25*BG25*$P25, ""),"") ->  | BL25: =IF(OR(Type="A", Type="LOE"), IFERROR(BJ25*BG25*$Q25, ""),"") ->  | BM25: =IF(OR(Type="A",Type="LOE"),IFERROR(BL25+BK25,""),"") ->  | BQ25: =IF(OR(Type="A", Type="LOE"), _xlfn.IFNA(INDEX(Tbl_Labor_Rates[#All],MATCH('Project Estimation'!BP25,'Labor Rate Sheet'!$B$11:$B$51,0),MATCH(_xlfn.CONCAT("ST_",VLOOKUP(Client_Name,'Project Details'!$AO$15:$AS$56,4,FALSE)),Tbl_Labor_Rates[#Headers],0)),""),"") ->  | BR25: =IF(OR(Type="A", Type="LOE"), _xlfn.IFNA(INDEX(Tbl_Labor_Rates[#All],MATCH('Project Estimation'!BP25,'Labor Rate Sheet'!$B$11:$B$51,0),MATCH(_xlfn.CONCAT("OT_",VLOOKUP(Client_Name,'Project Details'!$AO$15:$AS$56,4,FALSE)),Tbl_Labor_Rates[#Headers],0)),""),"") ->  | BS25: =IF(OR(Type="A", Type="LOE"), IFERROR(BQ25*BO25*$P25, ""),"") ->  | BT25: =IF(OR(Type="A", Type="LOE"), IFERROR(BR25*BO25*$Q25, ""),"") ->  | BU25: =IF(OR(Type="A",Type="LOE"),IFERROR(BT25+BS25,""),"") ->  | BY25: =IF(OR(Type="A", Type="LOE"), _xlfn.IFNA(INDEX(Tbl_Labor_Rates[#All],MATCH('Project Estimation'!BX25,'Labor Rate Sheet'!$B$11:$B$51,0),MATCH(_xlfn.CONCAT("ST_",VLOOKUP(Client_Name,'Project Details'!$AO$15:$AS$56,4,FALSE)),Tbl_Labor_Rates[#Headers],0)),""),"") ->  | BZ25: =IF(OR(Type="A", Type="LOE"), _xlfn.IFNA(INDEX(Tbl_Labor_Rates[#All],MATCH('Project Estimation'!BX25,'Labor Rate Sheet'!$B$11:$B$51,0),MATCH(_xlfn.CONCAT("OT_",VLOOKUP(Client_Name,'Project Details'!$AO$15:$AS$56,4,FALSE)),Tbl_Labor_Rates[#Headers],0)),""),"") ->  | CA25: =IF(OR(Type="A", Type="LOE"), IFERROR(BY25*BW25*$P25, ""),"") ->  | CB25: =IF(OR(Type="A", Type="LOE"), IFERROR(BZ25*BW25*$Q25, ""),"") ->  | CC25: =IF(OR(Type="A",Type="LOE"),IFERROR(CB25+CA25,""),"") ->  | CG25: =IF(OR(Type="A", Type="LOE"), _xlfn.IFNA(INDEX(Tbl_Labor_Rates[#All],MATCH('Project Estimation'!CF25,'Labor Rate Sheet'!$B$11:$B$51,0),MATCH(_xlfn.CONCAT("ST_",VLOOKUP(Client_Name,'Project Details'!$AO$15:$AS$56,4,FALSE)),Tbl_Labor_Rates[#Headers],0)),""),"") ->  | CH25: =IF(OR(Type="A", Type="LOE"), _xlfn.IFNA(INDEX(Tbl_Labor_Rates[#All],MATCH('Project Estimation'!CF25,'Labor Rate Sheet'!$B$11:$B$51,0),MATCH(_xlfn.CONCAT("OT_",VLOOKUP(Client_Name,'Project Details'!$AO$15:$AS$56,4,FALSE)),Tbl_Labor_Rates[#Headers],0)),""),"") ->  | CI25: =IF(OR(Type="A", Type="LOE"), IFERROR(CG25*CE25*$P25, ""),"") ->  | CJ25: =IF(OR(Type="A", Type="LOE"), IFERROR(CH25*CE25*$Q25, ""),"") ->  | CK25: =IF(OR(Type="A",Type="LOE"),IFERROR(CJ25+CI25,""),"") ->  | CM25: =IF(Type="WBS", SUMIFS(CM26:CM$54,$G26:$G$54,WBS_ID),IF(Type="A", ($S25*P25)+($AA25*P25)+($AI25*P25)+($AQ25*P25)+($AY25*P25)+($BG25*P25)+($BO25*P25)+($BW25*P25)+($CE25*P25), IF(Type="SUB", 0,IF(Type="M", 0,"")))) -> 0 | CN25: =IF(Type="WBS", SUMIFS(CN26:CN$54,$G26:$G$54,WBS_ID),IF(Type="A", ($S25*Q25)+($AA25*Q25)+($AI25*Q25)+($AQ25*Q25)+($AY25*Q25)+($BG25*Q25)+($BO25*Q25)+($BW25*Q25)+($CE25*Q25), IF(Type="SUB", 0,IF(Type="M", 0,"")))) -> 0 | CO25: =IF(Type="WBS", SUMIFS(CO30:CO$54,$G30:$G$54,WBS_ID),IF(Type="A", $CM25+$CN25, IF(Type="SUB", 0,IF(Type="M", 0,"")))) -> 0 | CP25: =IF(Type="WBS", SUMIFS($CP26:$CP$185,$G26:$G$185,WBS_ID), IF($N25<>"", IF(OR(Type="A",Type="LOE"), SUM(IF(ISBLANK(AM25), 0, AM25), IF(ISBLANK(AE25), 0, AE25), IF(ISBLANK(W25), 0, W25)), IF(Type="SUB", 0,IF(Type="M", 0,""))),"")) -> $0.00 | CQ25: =IF(Type="WBS", SUMIFS($CQ26:$CQ$185,$G26:$G$185,WBS_ID), IF($N25<>"", IF(OR(Type="A",Type="LOE"), SUM(IF(ISBLANK(AN25), 0, AN25), IF(ISBLANK(AF25), 0, AF25), IF(ISBLANK(X25), 0, X25)), IF(Type="SUB", 0,IF(Type="M", 0,""))),"")) -> $0.00 | CR25: =IF(Type="SUB", 0, IF(Type="WBS", SUMIFS($CR26:CR$185,$G26:$G$185,WBS_ID), IFERROR(IF(SUM(IF(ISBLANK($AN25), 0, $AN25), IF(ISBLANK($AM25), 0, $AM25), IF(ISBLANK($AG25), 0, $AG25), IF(ISBLANK($Y25), 0, $Y25), IF(ISBLANK($AO25), 0, $AO25))=0, "", SUM(IF(ISBLANK($AN25), 0, $AN25), IF(ISBLANK($AM25), 0, $AM25), IF(ISBLANK($AG25), 0, $AG25), IF(ISBLANK($Y25), 0, $Y25), IF(ISBLANK($AO25), 0, $AO25))),""))) -> $0.00 | CU25: =IF(CT25<>"", $N25, "") ->  | CV25: =_xlfn.IFNA(INDEX(Tbl_Equipment_Rates[#All],MATCH('Project Estimation'!CT25,Tbl_Equipment_Rates[EQUIPMENT CLASSIFICATION],0),MATCH(_xlfn.CONCAT("Hourly Rate ",VLOOKUP(Client_Name,'Project Details'!$AO$15:$AS$60,4,FALSE)), Tbl_Equipment_Rates[#Headers],0)),"") ->  | CW25: =IF(CT25<>"", CU25*CV25, "") ->  | CZ25: =IF(CY25<>"", $N25, "") ->  | DA25: =_xlfn.IFNA(INDEX(Tbl_Equipment_Rates[#All],MATCH('Project Estimation'!CY25,Tbl_Equipment_Rates[EQUIPMENT CLASSIFICATION],0),MATCH(_xlfn.CONCAT("Hourly Rate ",VLOOKUP(Client_Name,'Project Details'!$AO$15:$AS$60,4,FALSE)), Tbl_Equipment_Rates[#Headers],0)),"") ->  | DB25: =IF(CY25<>"", CZ25*DA25, "") ->  | DE25: =IF(DD25<>"", $N25, "") ->  | DF25: =_xlfn.IFNA(INDEX(Tbl_Equipment_Rates[#All],MATCH('Project Estimation'!DD25,Tbl_Equipment_Rates[EQUIPMENT CLASSIFICATION],0),MATCH(_xlfn.CONCAT("Hourly Rate ",VLOOKUP(Client_Name,'Project Details'!$AO$15:$AS$60,4,FALSE)), Tbl_Equipment_Rates[#Headers],0)),"") ->  | DG25: =IF(DD25<>"", DE25*DF25, "") ->  | DJ25: =IF(DI25<>"", $N25, "") ->  | DK25: =_xlfn.IFNA(INDEX(Tbl_Equipment_Rates[#All],MATCH('Project Estimation'!DI25,Tbl_Equipment_Rates[EQUIPMENT CLASSIFICATION],0),MATCH(_xlfn.CONCAT("Hourly Rate ",VLOOKUP(Client_Name,'Project Details'!$AO$15:$AS$60,4,FALSE)), Tbl_Equipment_Rates[#Headers],0)),"") ->  | DL25: =IF(DI25<>"", DJ25*DK25, "") ->  | DO25: =IF(DN25<>"", $N25, "") ->  | DP25: =_xlfn.IFNA(INDEX(Tbl_Equipment_Rates[#All],MATCH('Project Estimation'!DN25,Tbl_Equipment_Rates[EQUIPMENT CLASSIFICATION],0),MATCH(_xlfn.CONCAT("Hourly Rate ",VLOOKUP(Client_Name,'Project Details'!$AO$15:$AS$60,4,FALSE)), Tbl_Equipment_Rates[#Headers],0)),"") ->  | DQ25: =IF(DN25<>"", DO25*DP25, "") ->  | DW25: =IF(OR(DS25<>"",DT25<>"",DU25<>"",DV25<>""), DV25*DS25,"") ->  | DX25: =IF(OR(DT25<>0,DU25<>0,DV25<>0), $CU$5, "") ->  | DY25: =IFERROR(DS25*DV25*(1+DX25),"") ->  | EE25: =IF(OR(EA25<>"",EB25<>"",EC25<>"",ED25<>""), ED25*EA25,"") ->  | EF25: =IF(OR(EB25<>0,EC25<>0,ED25<>0), $CU$5, "") ->  | EG25: =IFERROR(EA25*ED25*(1+EF25),"") ->  | EM25: =IF(OR(EI25<>"",EJ25<>"",EK25<>"",EL25<>""), EL25*EI25,"") ->  | EN25: =IF(OR(EJ25<>0,EK25<>0,EL25<>0), $CU$5, "") ->  | EO25: =IFERROR(EI25*EL25*(1+EN25),"") ->  | EU25: =IF(OR(EQ25<>"",ER25<>"",ES25<>"",ET25<>""), ET25*EQ25,"") ->  | EV25: =IF(OR(ER25<>0,ES25<>0,ET25<>0), $CU$5, "") ->  | EW25: =IFERROR(EQ25*ET25*(1+EV25),"") ->  | FC25: =IF(OR(EY25<>"",EZ25<>"",FA25<>"",FB25<>""), FB25*EY25,"") ->  | FD25: =IF(OR(EZ25<>0,FA25<>0,FB25<>0), $CU$5, "") ->  | FE25: =IFERROR(EY25*FB25*(1+FD25),"") ->  | FL25: =IF($FG25<>"", $CU$6, "") ->  | FM25: =IF($FG25<>"", $FJ25*(1+$FL25),IF($FL25<>"", 0,"")) -> 
B26: 2 | D26: =IF(AND(Type="WBS", WBS_Level>=1), COUNTIFS(C$25:C26, Stage_ID, $K$25:K26, 1), "") ->  | E26: =IF(AND(Type="WBS", WBS_Level>=2), COUNTIFS(D$25:D26, Level_1, $K$25:$K26, 2), "") ->  | F26: =IF(AND(Type="WBS", WBS_Level>=3), COUNTIFS(E$25:E26, Level_2, $K$25:K26, 3), "") ->  | G26: 1 | H26: 0 | I26: 1 | L26: M | M26: Receive Notice to Proceed | N26: 0 | O26: =IF(Type="WBS", SUMIFS($O27:$O$185,$G27:$G$185,WBS_ID), IF(OR(Type="A", Type="LOE"), ($N26 /Field_Sch_Hours), IF(Type="SUB", $FK26/Field_Sch_Hours,""))) ->  | P26: =IF(Type="WBS", SUMIFS($P27:$P$185,$G27:$G$185,WBS_ID), IF($N26<>"", IF($N26<=8,$N26,IF(AND(Field_Sch_Days>4,Field_Sch_Hours>8),$N26*(8/Field_Sch_Hours),$N26)), "")) -> 0 | Q26: 0 | U26: =IF(OR(Type="A", Type="LOE"), _xlfn.IFNA(INDEX(Tbl_Labor_Rates[#All],MATCH('Project Estimation'!T26,'Labor Rate Sheet'!$B$11:$B$51,0),MATCH(_xlfn.CONCAT("ST_",VLOOKUP(Client_Name,'Project Details'!$AO$15:$AS$56,4,FALSE)),Tbl_Labor_Rates[#Headers],0)),""),"") ->  | V26: =IF(OR(Type="A", Type="LOE"), _xlfn.IFNA(INDEX(Tbl_Labor_Rates[#All],MATCH('Project Estimation'!T26,'Labor Rate Sheet'!$B$11:$B$51,0),MATCH(_xlfn.CONCAT("OT_",VLOOKUP(Client_Name,'Project Details'!$AO$15:$AS$56,4,FALSE)),Tbl_Labor_Rates[#Headers],0)),""),"") ->  | AC26: =IF(OR(Type="A", Type="LOE"), _xlfn.IFNA(INDEX(Tbl_Labor_Rates[#All],MATCH('Project Estimation'!AB26,'Labor Rate Sheet'!$B$11:$B$51,0),MATCH(_xlfn.CONCAT("ST_",VLOOKUP(Client_Name,'Project Details'!$AO$15:$AS$56,4,FALSE)),Tbl_Labor_Rates[#Headers],0)),""),"") ->  | AD26: =IF(OR(Type="A", Type="LOE"), _xlfn.IFNA(INDEX(Tbl_Labor_Rates[#All],MATCH('Project Estimation'!AB26,'Labor Rate Sheet'!$B$11:$B$51,0),MATCH(_xlfn.CONCAT("OT_",VLOOKUP(Client_Name,'Project Details'!$AO$15:$AS$56,4,FALSE)),Tbl_Labor_Rates[#Headers],0)),""),"") ->  | AK26: =IF(OR(Type="A", Type="LOE"), _xlfn.IFNA(INDEX(Tbl_Labor_Rates[#All],MATCH('Project Estimation'!AJ26,'Labor Rate Sheet'!$B$11:$B$51,0),MATCH(_xlfn.CONCAT("ST_",VLOOKUP(Client_Name,'Project Details'!$AO$15:$AS$56,4,FALSE)),Tbl_Labor_Rates[#Headers],0)),""),"") ->  | AL26: =IF(OR(Type="A", Type="LOE"), _xlfn.IFNA(INDEX(Tbl_Labor_Rates[#All],MATCH('Project Estimation'!AJ26,'Labor Rate Sheet'!$B$11:$B$51,0),MATCH(_xlfn.CONCAT("OT_",VLOOKUP(Client_Name,'Project Details'!$AO$15:$AS$56,4,FALSE)),Tbl_Labor_Rates[#Headers],0)),""),"") ->  | AS26: =IF(OR(Type="A", Type="LOE"), _xlfn.IFNA(INDEX(Tbl_Labor_Rates[#All],MATCH('Project Estimation'!AR26,'Labor Rate Sheet'!$B$11:$B$51,0),MATCH(_xlfn.CONCAT("ST_",VLOOKUP(Client_Name,'Project Details'!$AO$15:$AS$56,4,FALSE)),Tbl_Labor_Rates[#Headers],0)),""),"") ->  | AT26: =IF(OR(Type="A", Type="LOE"), _xlfn.IFNA(INDEX(Tbl_Labor_Rates[#All],MATCH('Project Estimation'!AR26,'Labor Rate Sheet'!$B$11:$B$51,0),MATCH(_xlfn.CONCAT("OT_",VLOOKUP(Client_Name,'Project Details'!$AO$15:$AS$56,4,FALSE)),Tbl_Labor_Rates[#Headers],0)),""),"") ->  | BA26: =IF(OR(Type="A", Type="LOE"), _xlfn.IFNA(INDEX(Tbl_Labor_Rates[#All],MATCH('Project Estimation'!AZ26,'Labor Rate Sheet'!$B$11:$B$51,0),MATCH(_xlfn.CONCAT("ST_",VLOOKUP(Client_Name,'Project Details'!$AO$15:$AS$56,4,FALSE)),Tbl_Labor_Rates[#Headers],0)),""),"") ->  | BB26: =IF(OR(Type="A", Type="LOE"), _xlfn.IFNA(INDEX(Tbl_Labor_Rates[#All],MATCH('Project Estimation'!AZ26,'Labor Rate Sheet'!$B$11:$B$51,0),MATCH(_xlfn.CONCAT("OT_",VLOOKUP(Client_Name,'Project Details'!$AO$15:$AS$56,4,FALSE)),Tbl_Labor_Rates[#Headers],0)),""),"") ->  | BI26: =IF(OR(Type="A", Type="LOE"), _xlfn.IFNA(INDEX(Tbl_Labor_Rates[#All],MATCH('Project Estimation'!BH26,'Labor Rate Sheet'!$B$11:$B$51,0),MATCH(_xlfn.CONCAT("ST_",VLOOKUP(Client_Name,'Project Details'!$AO$15:$AS$56,4,FALSE)),Tbl_Labor_Rates[#Headers],0)),""),"") ->  | BJ26: =IF(OR(Type="A", Type="LOE"), _xlfn.IFNA(INDEX(Tbl_Labor_Rates[#All],MATCH('Project Estimation'!BH26,'Labor Rate Sheet'!$B$11:$B$51,0),MATCH(_xlfn.CONCAT("OT_",VLOOKUP(Client_Name,'Project Details'!$AO$15:$AS$56,4,FALSE)),Tbl_Labor_Rates[#Headers],0)),""),"") ->  | BQ26: =IF(OR(Type="A", Type="LOE"), _xlfn.IFNA(INDEX(Tbl_Labor_Rates[#All],MATCH('Project Estimation'!BP26,'Labor Rate Sheet'!$B$11:$B$51,0),MATCH(_xlfn.CONCAT("ST_",VLOOKUP(Client_Name,'Project Details'!$AO$15:$AS$56,4,FALSE)),Tbl_Labor_Rates[#Headers],0)),""),"") ->  | BR26: =IF(OR(Type="A", Type="LOE"), _xlfn.IFNA(INDEX(Tbl_Labor_Rates[#All],MATCH('Project Estimation'!BP26,'Labor Rate Sheet'!$B$11:$B$51,0),MATCH(_xlfn.CONCAT("OT_",VLOOKUP(Client_Name,'Project Details'!$AO$15:$AS$56,4,FALSE)),Tbl_Labor_Rates[#Headers],0)),""),"") ->  | BY26: =IF(OR(Type="A", Type="LOE"), _xlfn.IFNA(INDEX(Tbl_Labor_Rates[#All],MATCH('Project Estimation'!BX26,'Labor Rate Sheet'!$B$11:$B$51,0),MATCH(_xlfn.CONCAT("ST_",VLOOKUP(Client_Name,'Project Details'!$AO$15:$AS$56,4,FALSE)),Tbl_Labor_Rates[#Headers],0)),""),"") ->  | BZ26: =IF(OR(Type="A", Type="LOE"), _xlfn.IFNA(INDEX(Tbl_Labor_Rates[#All],MATCH('Project Estimation'!BX26,'Labor Rate Sheet'!$B$11:$B$51,0),MATCH(_xlfn.CONCAT("OT_",VLOOKUP(Client_Name,'Project Details'!$AO$15:$AS$56,4,FALSE)),Tbl_Labor_Rates[#Headers],0)),""),"") ->  | CG26: =IF(OR(Type="A", Type="LOE"), _xlfn.IFNA(INDEX(Tbl_Labor_Rates[#All],MATCH('Project Estimation'!CF26,'Labor Rate Sheet'!$B$11:$B$51,0),MATCH(_xlfn.CONCAT("ST_",VLOOKUP(Client_Name,'Project Details'!$AO$15:$AS$56,4,FALSE)),Tbl_Labor_Rates[#Headers],0)),""),"") ->  | CH26: =IF(OR(Type="A", Type="LOE"), _xlfn.IFNA(INDEX(Tbl_Labor_Rates[#All],MATCH('Project Estimation'!CF26,'Labor Rate Sheet'!$B$11:$B$51,0),MATCH(_xlfn.CONCAT("OT_",VLOOKUP(Client_Name,'Project Details'!$AO$15:$AS$56,4,FALSE)),Tbl_Labor_Rates[#Headers],0)),""),"") ->  | CM26: =IF(Type="WBS", SUMIFS(CM27:CM$54,$G27:$G$54,WBS_ID),IF(Type="A", ($S26*P26)+($AA26*P26)+($AI26*P26)+($AQ26*P26)+($AY26*P26)+($BG26*P26)+($BO26*P26)+($BW26*P26)+($CE26*P26), IF(Type="SUB", 0,IF(Type="M", 0,"")))) -> 0 | CN26: =IF(Type="WBS", SUMIFS(CN27:CN$54,$G27:$G$54,WBS_ID),IF(Type="A", ($S26*Q26)+($AA26*Q26)+($AI26*Q26)+($AQ26*Q26)+($AY26*Q26)+($BG26*Q26)+($BO26*Q26)+($BW26*Q26)+($CE26*Q26), IF(Type="SUB", 0,IF(Type="M", 0,"")))) -> 0 | CO26: =IF(Type="WBS", SUMIFS(CO31:CO$54,$G31:$G$54,WBS_ID),IF(Type="A", $CM26+$CN26, IF(Type="SUB", 0,IF(Type="M", 0,"")))) -> 0 | CP26: =IF(Type="WBS", SUMIFS($CP27:$CP$185,$G27:$G$185,WBS_ID), IF($N26<>"", IF(OR(Type="A",Type="LOE"), SUM(IF(ISBLANK(AM26), 0, AM26), IF(ISBLANK(AE26), 0, AE26), IF(ISBLANK(W26), 0, W26)), IF(Type="SUB", 0,IF(Type="M", 0,""))),"")) -> $0.00 | CQ26: =IF(Type="WBS", SUMIFS($CQ27:$CQ$185,$G27:$G$185,WBS_ID), IF($N26<>"", IF(OR(Type="A",Type="LOE"), SUM(IF(ISBLANK(AN26), 0, AN26), IF(ISBLANK(AF26), 0, AF26), IF(ISBLANK(X26), 0, X26)), IF(Type="SUB", 0,IF(Type="M", 0,""))),"")) -> $0.00 | CR26: =IF(Type="SUB", 0, IF(Type="WBS", SUMIFS($CR27:CR$185,$G27:$G$185,WBS_ID), IFERROR(IF(SUM(IF(ISBLANK($AN26), 0, $AN26), IF(ISBLANK($AM26), 0, $AM26), IF(ISBLANK($AG26), 0, $AG26), IF(ISBLANK($Y26), 0, $Y26), IF(ISBLANK($AO26), 0, $AO26))=0, "", SUM(IF(ISBLANK($AN26), 0, $AN26), IF(ISBLANK($AM26), 0, $AM26), IF(ISBLANK($AG26), 0, $AG26), IF(ISBLANK($Y26), 0, $Y26), IF(ISBLANK($AO26), 0, $AO26))),""))) ->  | CV26: =_xlfn.IFNA(INDEX(Tbl_Equipment_Rates[#All],MATCH('Project Estimation'!CT26,Tbl_Equipment_Rates[EQUIPMENT CLASSIFICATION],0),MATCH(_xlfn.CONCAT("Hourly Rate ",VLOOKUP(Client_Name,'Project Details'!$AO$15:$AS$60,4,FALSE)), Tbl_Equipment_Rates[#Headers],0)),"") ->  | DA26: =_xlfn.IFNA(INDEX(Tbl_Equipment_Rates[#All],MATCH('Project Estimation'!CY26,Tbl_Equipment_Rates[EQUIPMENT CLASSIFICATION],0),MATCH(_xlfn.CONCAT("Hourly Rate ",VLOOKUP(Client_Name,'Project Details'!$AO$15:$AS$60,4,FALSE)), Tbl_Equipment_Rates[#Headers],0)),"") ->  | DF26: =_xlfn.IFNA(INDEX(Tbl_Equipment_Rates[#All],MATCH('Project Estimation'!DD26,Tbl_Equipment_Rates[EQUIPMENT CLASSIFICATION],0),MATCH(_xlfn.CONCAT("Hourly Rate ",VLOOKUP(Client_Name,'Project Details'!$AO$15:$AS$60,4,FALSE)), Tbl_Equipment_Rates[#Headers],0)),"") ->  | DK26: =_xlfn.IFNA(INDEX(Tbl_Equipment_Rates[#All],MATCH('Project Estimation'!DI26,Tbl_Equipment_Rates[EQUIPMENT CLASSIFICATION],0),MATCH(_xlfn.CONCAT("Hourly Rate ",VLOOKUP(Client_Name,'Project Details'!$AO$15:$AS$60,4,FALSE)), Tbl_Equipment_Rates[#Headers],0)),"") ->  | DP26: =_xlfn.IFNA(INDEX(Tbl_Equipment_Rates[#All],MATCH('Project Estimation'!DN26,Tbl_Equipment_Rates[EQUIPMENT CLASSIFICATION],0),MATCH(_xlfn.CONCAT("Hourly Rate ",VLOOKUP(Client_Name,'Project Details'!$AO$15:$AS$60,4,FALSE)), Tbl_Equipment_Rates[#Headers],0)),"") ->  | EG26: =IFERROR(EA26*ED26*(1+EF26),"") ->  | EO26: =IFERROR(EI26*EL26*(1+EN26),"") ->  | EW26: =IFERROR(EQ26*ET26*(1+EV26),"") ->  | FE26: =IFERROR(EY26*FB26*(1+FD26),"") ->  | FL26: =IF($FG26<>"", $CU$6, "") -> 
B27: 1 | D27: =IF(AND(Type="WBS", WBS_Level>=1), COUNTIFS(C$25:C27, Stage_ID, $K$25:K27, 1), "") ->  | E27: =IF(AND(Type="WBS", WBS_Level>=2), COUNTIFS(D$25:D27, Level_1, $K$25:$K27, 2), "") ->  | F27: =IF(AND(Type="WBS", WBS_Level>=3), COUNTIFS(E$25:E27, Level_2, $K$25:K27, 3), "") ->  | G27: 1 | H27: 0 | I27: 2 | L27: M | M27: Order Materials | N27: 0 | O27: =IF(Type="WBS", SUMIFS($O28:$O$185,$G28:$G$185,WBS_ID), IF(OR(Type="A", Type="LOE"), ($N27 /Field_Sch_Hours), IF(Type="SUB", $FK27/Field_Sch_Hours,""))) ->  | P27: =IF(Type="WBS", SUMIFS($P28:$P$185,$G28:$G$185,WBS_ID), IF($N27<>"", IF($N27<=8,$N27,IF(AND(Field_Sch_Days>4,Field_Sch_Hours>8),$N27*(8/Field_Sch_Hours),$N27)), "")) -> 0 | Q27: 0 | U27: =IF(OR(Type="A", Type="LOE"), _xlfn.IFNA(INDEX(Tbl_Labor_Rates[#All],MATCH('Project Estimation'!T27,'Labor Rate Sheet'!$B$11:$B$51,0),MATCH(_xlfn.CONCAT("ST_",VLOOKUP(Client_Name,'Project Details'!$AO$15:$AS$56,4,FALSE)),Tbl_Labor_Rates[#Headers],0)),""),"") ->  | V27: =IF(OR(Type="A", Type="LOE"), _xlfn.IFNA(INDEX(Tbl_Labor_Rates[#All],MATCH('Project Estimation'!T27,'Labor Rate Sheet'!$B$11:$B$51,0),MATCH(_xlfn.CONCAT("OT_",VLOOKUP(Client_Name,'Project Details'!$AO$15:$AS$56,4,FALSE)),Tbl_Labor_Rates[#Headers],0)),""),"") ->  | AC27: =IF(OR(Type="A", Type="LOE"), _xlfn.IFNA(INDEX(Tbl_Labor_Rates[#All],MATCH('Project Estimation'!AB27,'Labor Rate Sheet'!$B$11:$B$51,0),MATCH(_xlfn.CONCAT("ST_",VLOOKUP(Client_Name,'Project Details'!$AO$15:$AS$56,4,FALSE)),Tbl_Labor_Rates[#Headers],0)),""),"") ->  | AD27: =IF(OR(Type="A", Type="LOE"), _xlfn.IFNA(INDEX(Tbl_Labor_Rates[#All],MATCH('Project Estimation'!AB27,'Labor Rate Sheet'!$B$11:$B$51,0),MATCH(_xlfn.CONCAT("OT_",VLOOKUP(Client_Name,'Project Details'!$AO$15:$AS$56,4,FALSE)),Tbl_Labor_Rates[#Headers],0)),""),"") ->  | AK27: =IF(OR(Type="A", Type="LOE"), _xlfn.IFNA(INDEX(Tbl_Labor_Rates[#All],MATCH('Project Estimation'!AJ27,'Labor Rate Sheet'!$B$11:$B$51,0),MATCH(_xlfn.CONCAT("ST_",VLOOKUP(Client_Name,'Project Details'!$AO$15:$AS$56,4,FALSE)),Tbl_Labor_Rates[#Headers],0)),""),"") ->  | AL27: =IF(OR(Type="A", Type="LOE"), _xlfn.IFNA(INDEX(Tbl_Labor_Rates[#All],MATCH('Project Estimation'!AJ27,'Labor Rate Sheet'!$B$11:$B$51,0),MATCH(_xlfn.CONCAT("OT_",VLOOKUP(Client_Name,'Project Details'!$AO$15:$AS$56,4,FALSE)),Tbl_Labor_Rates[#Headers],0)),""),"") ->  | AS27: =IF(OR(Type="A", Type="LOE"), _xlfn.IFNA(INDEX(Tbl_Labor_Rates[#All],MATCH('Project Estimation'!AR27,'Labor Rate Sheet'!$B$11:$B$51,0),MATCH(_xlfn.CONCAT("ST_",VLOOKUP(Client_Name,'Project Details'!$AO$15:$AS$56,4,FALSE)),Tbl_Labor_Rates[#Headers],0)),""),"") ->  | AT27: =IF(OR(Type="A", Type="LOE"), _xlfn.IFNA(INDEX(Tbl_Labor_Rates[#All],MATCH('Project Estimation'!AR27,'Labor Rate Sheet'!$B$11:$B$51,0),MATCH(_xlfn.CONCAT("OT_",VLOOKUP(Client_Name,'Project Details'!$AO$15:$AS$56,4,FALSE)),Tbl_Labor_Rates[#Headers],0)),""),"") ->  | BA27: =IF(OR(Type="A", Type="LOE"), _xlfn.IFNA(INDEX(Tbl_Labor_Rates[#All],MATCH('Project Estimation'!AZ27,'Labor Rate Sheet'!$B$11:$B$51,0),MATCH(_xlfn.CONCAT("ST_",VLOOKUP(Client_Name,'Project Details'!$AO$15:$AS$56,4,FALSE)),Tbl_Labor_Rates[#Headers],0)),""),"") ->  | BB27: =IF(OR(Type="A", Type="LOE"), _xlfn.IFNA(INDEX(Tbl_Labor_Rates[#All],MATCH('Project Estimation'!AZ27,'Labor Rate Sheet'!$B$11:$B$51,0),MATCH(_xlfn.CONCAT("OT_",VLOOKUP(Client_Name,'Project Details'!$AO$15:$AS$56,4,FALSE)),Tbl_Labor_Rates[#Headers],0)),""),"") ->  | BI27: =IF(OR(Type="A", Type="LOE"), _xlfn.IFNA(INDEX(Tbl_Labor_Rates[#All],MATCH('Project Estimation'!BH27,'Labor Rate Sheet'!$B$11:$B$51,0),MATCH(_xlfn.CONCAT("ST_",VLOOKUP(Client_Name,'Project Details'!$AO$15:$AS$56,4,FALSE)),Tbl_Labor_Rates[#Headers],0)),""),"") ->  | BJ27: =IF(OR(Type="A", Type="LOE"), _xlfn.IFNA(INDEX(Tbl_Labor_Rates[#All],MATCH('Project Estimation'!BH27,'Labor Rate Sheet'!$B$11:$B$51,0),MATCH(_xlfn.CONCAT("OT_",VLOOKUP(Client_Name,'Project Details'!$AO$15:$AS$56,4,FALSE)),Tbl_Labor_Rates[#Headers],0)),""),"") ->  | BQ27: =IF(OR(Type="A", Type="LOE"), _xlfn.IFNA(INDEX(Tbl_Labor_Rates[#All],MATCH('Project Estimation'!BP27,'Labor Rate Sheet'!$B$11:$B$51,0),MATCH(_xlfn.CONCAT("ST_",VLOOKUP(Client_Name,'Project Details'!$AO$15:$AS$56,4,FALSE)),Tbl_Labor_Rates[#Headers],0)),""),"") ->  | BR27: =IF(OR(Type="A", Type="LOE"), _xlfn.IFNA(INDEX(Tbl_Labor_Rates[#All],MATCH('Project Estimation'!BP27,'Labor Rate Sheet'!$B$11:$B$51,0),MATCH(_xlfn.CONCAT("OT_",VLOOKUP(Client_Name,'Project Details'!$AO$15:$AS$56,4,FALSE)),Tbl_Labor_Rates[#Headers],0)),""),"") ->  | BY27: =IF(OR(Type="A", Type="LOE"), _xlfn.IFNA(INDEX(Tbl_Labor_Rates[#All],MATCH('Project Estimation'!BX27,'Labor Rate Sheet'!$B$11:$B$51,0),MATCH(_xlfn.CONCAT("ST_",VLOOKUP(Client_Name,'Project Details'!$AO$15:$AS$56,4,FALSE)),Tbl_Labor_Rates[#Headers],0)),""),"") ->  | BZ27: =IF(OR(Type="A", Type="LOE"), _xlfn.IFNA(INDEX(Tbl_Labor_Rates[#All],MATCH('Project Estimation'!BX27,'Labor Rate Sheet'!$B$11:$B$51,0),MATCH(_xlfn.CONCAT("OT_",VLOOKUP(Client_Name,'Project Details'!$AO$15:$AS$56,4,FALSE)),Tbl_Labor_Rates[#Headers],0)),""),"") ->  | CG27: =IF(OR(Type="A", Type="LOE"), _xlfn.IFNA(INDEX(Tbl_Labor_Rates[#All],MATCH('Project Estimation'!CF27,'Labor Rate Sheet'!$B$11:$B$51,0),MATCH(_xlfn.CONCAT("ST_",VLOOKUP(Client_Name,'Project Details'!$AO$15:$AS$56,4,FALSE)),Tbl_Labor_Rates[#Headers],0)),""),"") ->  | CH27: =IF(OR(Type="A", Type="LOE"), _xlfn.IFNA(INDEX(Tbl_Labor_Rates[#All],MATCH('Project Estimation'!CF27,'Labor Rate Sheet'!$B$11:$B$51,0),MATCH(_xlfn.CONCAT("OT_",VLOOKUP(Client_Name,'Project Details'!$AO$15:$AS$56,4,FALSE)),Tbl_Labor_Rates[#Headers],0)),""),"") ->  | CM27: =IF(Type="WBS", SUMIFS(CM28:CM$54,$G28:$G$54,WBS_ID),IF(Type="A", ($S27*P27)+($AA27*P27)+($AI27*P27)+($AQ27*P27)+($AY27*P27)+($BG27*P27)+($BO27*P27)+($BW27*P27)+($CE27*P27), IF(Type="SUB", 0,IF(Type="M", 0,"")))) -> 0 | CN27: =IF(Type="WBS", SUMIFS(CN28:CN$54,$G28:$G$54,WBS_ID),IF(Type="A", ($S27*Q27)+($AA27*Q27)+($AI27*Q27)+($AQ27*Q27)+($AY27*Q27)+($BG27*Q27)+($BO27*Q27)+($BW27*Q27)+($CE27*Q27), IF(Type="SUB", 0,IF(Type="M", 0,"")))) -> 0 | CO27: =IF(Type="WBS", SUMIFS(CO32:CO$54,$G32:$G$54,WBS_ID),IF(Type="A", $CM27+$CN27, IF(Type="SUB", 0,IF(Type="M", 0,"")))) -> 0 | CP27: =IF(Type="WBS", SUMIFS($CP28:$CP$185,$G28:$G$185,WBS_ID), IF($N27<>"", IF(OR(Type="A",Type="LOE"), SUM(IF(ISBLANK(AM27), 0, AM27), IF(ISBLANK(AE27), 0, AE27), IF(ISBLANK(W27), 0, W27)), IF(Type="SUB", 0,IF(Type="M", 0,""))),"")) -> $0.00 | CQ27: =IF(Type="WBS", SUMIFS($CQ28:$CQ$185,$G28:$G$185,WBS_ID), IF($N27<>"", IF(OR(Type="A",Type="LOE"), SUM(IF(ISBLANK(AN27), 0, AN27), IF(ISBLANK(AF27), 0, AF27), IF(ISBLANK(X27), 0, X27)), IF(Type="SUB", 0,IF(Type="M", 0,""))),"")) -> $0.00 | CR27: =IF(Type="SUB", 0, IF(Type="WBS", SUMIFS($CR28:CR$185,$G28:$G$185,WBS_ID), IFERROR(IF(SUM(IF(ISBLANK($AN27), 0, $AN27), IF(ISBLANK($AM27), 0, $AM27), IF(ISBLANK($AG27), 0, $AG27), IF(ISBLANK($Y27), 0, $Y27), IF(ISBLANK($AO27), 0, $AO27))=0, "", SUM(IF(ISBLANK($AN27), 0, $AN27), IF(ISBLANK($AM27), 0, $AM27), IF(ISBLANK($AG27), 0, $AG27), IF(ISBLANK($Y27), 0, $Y27), IF(ISBLANK($AO27), 0, $AO27))),""))) ->  | CV27: =_xlfn.IFNA(INDEX(Tbl_Equipment_Rates[#All],MATCH('Project Estimation'!CT27,Tbl_Equipment_Rates[EQUIPMENT CLASSIFICATION],0),MATCH(_xlfn.CONCAT("Hourly Rate ",VLOOKUP(Client_Name,'Project Details'!$AO$15:$AS$60,4,FALSE)), Tbl_Equipment_Rates[#Headers],0)),"") ->  | DA27: =_xlfn.IFNA(INDEX(Tbl_Equipment_Rates[#All],MATCH('Project Estimation'!CY27,Tbl_Equipment_Rates[EQUIPMENT CLASSIFICATION],0),MATCH(_xlfn.CONCAT("Hourly Rate ",VLOOKUP(Client_Name,'Project Details'!$AO$15:$AS$60,4,FALSE)), Tbl_Equipment_Rates[#Headers],0)),"") ->  | DF27: =_xlfn.IFNA(INDEX(Tbl_Equipment_Rates[#All],MATCH('Project Estimation'!DD27,Tbl_Equipment_Rates[EQUIPMENT CLASSIFICATION],0),MATCH(_xlfn.CONCAT("Hourly Rate ",VLOOKUP(Client_Name,'Project Details'!$AO$15:$AS$60,4,FALSE)), Tbl_Equipment_Rates[#Headers],0)),"") ->  | DK27: =_xlfn.IFNA(INDEX(Tbl_Equipment_Rates[#All],MATCH('Project Estimation'!DI27,Tbl_Equipment_Rates[EQUIPMENT CLASSIFICATION],0),MATCH(_xlfn.CONCAT("Hourly Rate ",VLOOKUP(Client_Name,'Project Details'!$AO$15:$AS$60,4,FALSE)), Tbl_Equipment_Rates[#Headers],0)),"") ->  | DP27: =_xlfn.IFNA(INDEX(Tbl_Equipment_Rates[#All],MATCH('Project Estimation'!DN27,Tbl_Equipment_Rates[EQUIPMENT CLASSIFICATION],0),MATCH(_xlfn.CONCAT("Hourly Rate ",VLOOKUP(Client_Name,'Project Details'!$AO$15:$AS$60,4,FALSE)), Tbl_Equipment_Rates[#Headers],0)),"") ->  | EG27: =IFERROR(EA27*ED27*(1+EF27),"") ->  | EO27: =IFERROR(EI27*EL27*(1+EN27),"") ->  | EW27: =IFERROR(EQ27*ET27*(1+EV27),"") ->  | FE27: =IFERROR(EY27*FB27*(1+FD27),"") -> 
B28: 3 | D28: =IF(AND(Type="WBS", WBS_Level>=1), COUNTIFS(C$25:C28, Stage_ID, $K$25:K28, 1), "") ->  | E28: =IF(AND(Type="WBS", WBS_Level>=2), COUNTIFS(D$25:D28, Level_1, $K$25:$K28, 2), "") ->  | F28: =IF(AND(Type="WBS", WBS_Level>=3), COUNTIFS(E$25:E28, Level_2, $K$25:K28, 3), "") ->  | G28: 1 | H28: 0 | I28: 3 | L28: M | M28: Mobilization to Hansford | N28: 0 | O28: =IF(Type="WBS", SUMIFS($O29:$O$185,$G29:$G$185,WBS_ID), IF(OR(Type="A", Type="LOE"), ($N28 /Field_Sch_Hours), IF(Type="SUB", $FK28/Field_Sch_Hours,""))) ->  | P28: =IF(Type="WBS", SUMIFS($P29:$P$185,$G29:$G$185,WBS_ID), IF($N28<>"", IF($N28<=8,$N28,IF(AND(Field_Sch_Days>4,Field_Sch_Hours>8),$N28*(8/Field_Sch_Hours),$N28)), "")) -> 0 | Q28: 0 | U28: =IF(OR(Type="A", Type="LOE"), _xlfn.IFNA(INDEX(Tbl_Labor_Rates[#All],MATCH('Project Estimation'!T28,'Labor Rate Sheet'!$B$11:$B$51,0),MATCH(_xlfn.CONCAT("ST_",VLOOKUP(Client_Name,'Project Details'!$AO$15:$AS$56,4,FALSE)),Tbl_Labor_Rates[#Headers],0)),""),"") ->  | V28: =IF(OR(Type="A", Type="LOE"), _xlfn.IFNA(INDEX(Tbl_Labor_Rates[#All],MATCH('Project Estimation'!T28,'Labor Rate Sheet'!$B$11:$B$51,0),MATCH(_xlfn.CONCAT("OT_",VLOOKUP(Client_Name,'Project Details'!$AO$15:$AS$56,4,FALSE)),Tbl_Labor_Rates[#Headers],0)),""),"") ->  | AC28: =IF(OR(Type="A", Type="LOE"), _xlfn.IFNA(INDEX(Tbl_Labor_Rates[#All],MATCH('Project Estimation'!AB28,'Labor Rate Sheet'!$B$11:$B$51,0),MATCH(_xlfn.CONCAT("ST_",VLOOKUP(Client_Name,'Project Details'!$AO$15:$AS$56,4,FALSE)),Tbl_Labor_Rates[#Headers],0)),""),"") ->  | AD28: =IF(OR(Type="A", Type="LOE"), _xlfn.IFNA(INDEX(Tbl_Labor_Rates[#All],MATCH('Project Estimation'!AB28,'Labor Rate Sheet'!$B$11:$B$51,0),MATCH(_xlfn.CONCAT("OT_",VLOOKUP(Client_Name,'Project Details'!$AO$15:$AS$56,4,FALSE)),Tbl_Labor_Rates[#Headers],0)),""),"") ->  | AK28: =IF(OR(Type="A", Type="LOE"), _xlfn.IFNA(INDEX(Tbl_Labor_Rates[#All],MATCH('Project Estimation'!AJ28,'Labor Rate Sheet'!$B$11:$B$51,0),MATCH(_xlfn.CONCAT("ST_",VLOOKUP(Client_Name,'Project Details'!$AO$15:$AS$56,4,FALSE)),Tbl_Labor_Rates[#Headers],0)),""),"") ->  | AL28: =IF(OR(Type="A", Type="LOE"), _xlfn.IFNA(INDEX(Tbl_Labor_Rates[#All],MATCH('Project Estimation'!AJ28,'Labor Rate Sheet'!$B$11:$B$51,0),MATCH(_xlfn.CONCAT("OT_",VLOOKUP(Client_Name,'Project Details'!$AO$15:$AS$56,4,FALSE)),Tbl_Labor_Rates[#Headers],0)),""),"") ->  | AS28: =IF(OR(Type="A", Type="LOE"), _xlfn.IFNA(INDEX(Tbl_Labor_Rates[#All],MATCH('Project Estimation'!AR28,'Labor Rate Sheet'!$B$11:$B$51,0),MATCH(_xlfn.CONCAT("ST_",VLOOKUP(Client_Name,'Project Details'!$AO$15:$AS$56,4,FALSE)),Tbl_Labor_Rates[#Headers],0)),""),"") ->  | AT28: =IF(OR(Type="A", Type="LOE"), _xlfn.IFNA(INDEX(Tbl_Labor_Rates[#All],MATCH('Project Estimation'!AR28,'Labor Rate Sheet'!$B$11:$B$51,0),MATCH(_xlfn.CONCAT("OT_",VLOOKUP(Client_Name,'Project Details'!$AO$15:$AS$56,4,FALSE)),Tbl_Labor_Rates[#Headers],0)),""),"") ->  | BA28: =IF(OR(Type="A", Type="LOE"), _xlfn.IFNA(INDEX(Tbl_Labor_Rates[#All],MATCH('Project Estimation'!AZ28,'Labor Rate Sheet'!$B$11:$B$51,0),MATCH(_xlfn.CONCAT("ST_",VLOOKUP(Client_Name,'Project Details'!$AO$15:$AS$56,4,FALSE)),Tbl_Labor_Rates[#Headers],0)),""),"") ->  | BB28: =IF(OR(Type="A", Type="LOE"), _xlfn.IFNA(INDEX(Tbl_Labor_Rates[#All],MATCH('Project Estimation'!AZ28,'Labor Rate Sheet'!$B$11:$B$51,0),MATCH(_xlfn.CONCAT("OT_",VLOOKUP(Client_Name,'Project Details'!$AO$15:$AS$56,4,FALSE)),Tbl_Labor_Rates[#Headers],0)),""),"") ->  | BI28: =IF(OR(Type="A", Type="LOE"), _xlfn.IFNA(INDEX(Tbl_Labor_Rates[#All],MATCH('Project Estimation'!BH28,'Labor Rate Sheet'!$B$11:$B$51,0),MATCH(_xlfn.CONCAT("ST_",VLOOKUP(Client_Name,'Project Details'!$AO$15:$AS$56,4,FALSE)),Tbl_Labor_Rates[#Headers],0)),""),"") ->  | BJ28: =IF(OR(Type="A", Type="LOE"), _xlfn.IFNA(INDEX(Tbl_Labor_Rates[#All],MATCH('Project Estimation'!BH28,'Labor Rate Sheet'!$B$11:$B$51,0),MATCH(_xlfn.CONCAT("OT_",VLOOKUP(Client_Name,'Project Details'!$AO$15:$AS$56,4,FALSE)),Tbl_Labor_Rates[#Headers],0)),""),"") ->  | BQ28: =IF(OR(Type="A", Type="LOE"), _xlfn.IFNA(INDEX(Tbl_Labor_Rates[#All],MATCH('Project Estimation'!BP28,'Labor Rate Sheet'!$B$11:$B$51,0),MATCH(_xlfn.CONCAT("ST_",VLOOKUP(Client_Name,'Project Details'!$AO$15:$AS$56,4,FALSE)),Tbl_Labor_Rates[#Headers],0)),""),"") ->  | BR28: =IF(OR(Type="A", Type="LOE"), _xlfn.IFNA(INDEX(Tbl_Labor_Rates[#All],MATCH('Project Estimation'!BP28,'Labor Rate Sheet'!$B$11:$B$51,0),MATCH(_xlfn.CONCAT("OT_",VLOOKUP(Client_Name,'Project Details'!$AO$15:$AS$56,4,FALSE)),Tbl_Labor_Rates[#Headers],0)),""),"") ->  | BY28: =IF(OR(Type="A", Type="LOE"), _xlfn.IFNA(INDEX(Tbl_Labor_Rates[#All],MATCH('Project Estimation'!BX28,'Labor Rate Sheet'!$B$11:$B$51,0),MATCH(_xlfn.CONCAT("ST_",VLOOKUP(Client_Name,'Project Details'!$AO$15:$AS$56,4,FALSE)),Tbl_Labor_Rates[#Headers],0)),""),"") ->  | BZ28: =IF(OR(Type="A", Type="LOE"), _xlfn.IFNA(INDEX(Tbl_Labor_Rates[#All],MATCH('Project Estimation'!BX28,'Labor Rate Sheet'!$B$11:$B$51,0),MATCH(_xlfn.CONCAT("OT_",VLOOKUP(Client_Name,'Project Details'!$AO$15:$AS$56,4,FALSE)),Tbl_Labor_Rates[#Headers],0)),""),"") ->  | CG28: =IF(OR(Type="A", Type="LOE"), _xlfn.IFNA(INDEX(Tbl_Labor_Rates[#All],MATCH('Project Estimation'!CF28,'Labor Rate Sheet'!$B$11:$B$51,0),MATCH(_xlfn.CONCAT("ST_",VLOOKUP(Client_Name,'Project Details'!$AO$15:$AS$56,4,FALSE)),Tbl_Labor_Rates[#Headers],0)),""),"") ->  | CH28: =IF(OR(Type="A", Type="LOE"), _xlfn.IFNA(INDEX(Tbl_Labor_Rates[#All],MATCH('Project Estimation'!CF28,'Labor Rate Sheet'!$B$11:$B$51,0),MATCH(_xlfn.CONCAT("OT_",VLOOKUP(Client_Name,'Project Details'!$AO$15:$AS$56,4,FALSE)),Tbl_Labor_Rates[#Headers],0)),""),"") ->  | CM28: =IF(Type="WBS", SUMIFS(CM29:CM$54,$G29:$G$54,WBS_ID),IF(Type="A", ($S28*P28)+($AA28*P28)+($AI28*P28)+($AQ28*P28)+($AY28*P28)+($BG28*P28)+($BO28*P28)+($BW28*P28)+($CE28*P28), IF(Type="SUB", 0,IF(Type="M", 0,"")))) -> 0 | CN28: =IF(Type="WBS", SUMIFS(CN29:CN$54,$G29:$G$54,WBS_ID),IF(Type="A", ($S28*Q28)+($AA28*Q28)+($AI28*Q28)+($AQ28*Q28)+($AY28*Q28)+($BG28*Q28)+($BO28*Q28)+($BW28*Q28)+($CE28*Q28), IF(Type="SUB", 0,IF(Type="M", 0,"")))) -> 0 | CO28: =IF(Type="WBS", SUMIFS(CO33:CO$54,$G33:$G$54,WBS_ID),IF(Type="A", $CM28+$CN28, IF(Type="SUB", 0,IF(Type="M", 0,"")))) -> 0 | CP28: =IF(Type="WBS", SUMIFS($CP29:$CP$185,$G29:$G$185,WBS_ID), IF($N28<>"", IF(OR(Type="A",Type="LOE"), SUM(IF(ISBLANK(AM28), 0, AM28), IF(ISBLANK(AE28), 0, AE28), IF(ISBLANK(W28), 0, W28)), IF(Type="SUB", 0,IF(Type="M", 0,""))),"")) -> $0.00 | CQ28: =IF(Type="WBS", SUMIFS($CQ29:$CQ$185,$G29:$G$185,WBS_ID), IF($N28<>"", IF(OR(Type="A",Type="LOE"), SUM(IF(ISBLANK(AN28), 0, AN28), IF(ISBLANK(AF28), 0, AF28), IF(ISBLANK(X28), 0, X28)), IF(Type="SUB", 0,IF(Type="M", 0,""))),"")) -> $0.00 | CR28: =IF(Type="SUB", 0, IF(Type="WBS", SUMIFS($CR29:CR$185,$G29:$G$185,WBS_ID), IFERROR(IF(SUM(IF(ISBLANK($AN28), 0, $AN28), IF(ISBLANK($AM28), 0, $AM28), IF(ISBLANK($AG28), 0, $AG28), IF(ISBLANK($Y28), 0, $Y28), IF(ISBLANK($AO28), 0, $AO28))=0, "", SUM(IF(ISBLANK($AN28), 0, $AN28), IF(ISBLANK($AM28), 0, $AM28), IF(ISBLANK($AG28), 0, $AG28), IF(ISBLANK($Y28), 0, $Y28), IF(ISBLANK($AO28), 0, $AO28))),""))) ->  | CV28: =_xlfn.IFNA(INDEX(Tbl_Equipment_Rates[#All],MATCH('Project Estimation'!CT28,Tbl_Equipment_Rates[EQUIPMENT CLASSIFICATION],0),MATCH(_xlfn.CONCAT("Hourly Rate ",VLOOKUP(Client_Name,'Project Details'!$AO$15:$AS$60,4,FALSE)), Tbl_Equipment_Rates[#Headers],0)),"") ->  | DA28: =_xlfn.IFNA(INDEX(Tbl_Equipment_Rates[#All],MATCH('Project Estimation'!CY28,Tbl_Equipment_Rates[EQUIPMENT CLASSIFICATION],0),MATCH(_xlfn.CONCAT("Hourly Rate ",VLOOKUP(Client_Name,'Project Details'!$AO$15:$AS$60,4,FALSE)), Tbl_Equipment_Rates[#Headers],0)),"") ->  | DF28: =_xlfn.IFNA(INDEX(Tbl_Equipment_Rates[#All],MATCH('Project Estimation'!DD28,Tbl_Equipment_Rates[EQUIPMENT CLASSIFICATION],0),MATCH(_xlfn.CONCAT("Hourly Rate ",VLOOKUP(Client_Name,'Project Details'!$AO$15:$AS$60,4,FALSE)), Tbl_Equipment_Rates[#Headers],0)),"") ->  | DK28: =_xlfn.IFNA(INDEX(Tbl_Equipment_Rates[#All],MATCH('Project Estimation'!DI28,Tbl_Equipment_Rates[EQUIPMENT CLASSIFICATION],0),MATCH(_xlfn.CONCAT("Hourly Rate ",VLOOKUP(Client_Name,'Project Details'!$AO$15:$AS$60,4,FALSE)), Tbl_Equipment_Rates[#Headers],0)),"") ->  | DP28: =_xlfn.IFNA(INDEX(Tbl_Equipment_Rates[#All],MATCH('Project Estimation'!DN28,Tbl_Equipment_Rates[EQUIPMENT CLASSIFICATION],0),MATCH(_xlfn.CONCAT("Hourly Rate ",VLOOKUP(Client_Name,'Project Details'!$AO$15:$AS$60,4,FALSE)), Tbl_Equipment_Rates[#Headers],0)),"") -> 
B29: 4 | D29: =IF(AND(Type="WBS", WBS_Level>=1), COUNTIFS(C$25:C29, Stage_ID, $K$25:K29, 1), "") ->  | E29: =IF(AND(Type="WBS", WBS_Level>=2), COUNTIFS(D$25:D29, Level_1, $K$25:$K29, 2), "") ->  | F29: =IF(AND(Type="WBS", WBS_Level>=3), COUNTIFS(E$25:E29, Level_2, $K$25:K29, 3), "") ->  | G29: 1 | H29: 0 | I29: 4 | L29: M | M29: Start Construction at XXXX | N29: 0 | O29: =IF(Type="WBS", SUMIFS($O30:$O$185,$G30:$G$185,WBS_ID), IF(OR(Type="A", Type="LOE"), ($N29 /Field_Sch_Hours), IF(Type="SUB", $FK29/Field_Sch_Hours,""))) ->  | P29: =IF(Type="WBS", SUMIFS($P30:$P$185,$G30:$G$185,WBS_ID), IF($N29<>"", IF($N29<=8,$N29,IF(AND(Field_Sch_Days>4,Field_Sch_Hours>8),$N29*(8/Field_Sch_Hours),$N29)), "")) -> 0 | Q29: 0 | U29: =IF(OR(Type="A", Type="LOE"), _xlfn.IFNA(INDEX(Tbl_Labor_Rates[#All],MATCH('Project Estimation'!T29,'Labor Rate Sheet'!$B$11:$B$51,0),MATCH(_xlfn.CONCAT("ST_",VLOOKUP(Client_Name,'Project Details'!$AO$15:$AS$56,4,FALSE)),Tbl_Labor_Rates[#Headers],0)),""),"") ->  | V29: =IF(OR(Type="A", Type="LOE"), _xlfn.IFNA(INDEX(Tbl_Labor_Rates[#All],MATCH('Project Estimation'!T29,'Labor Rate Sheet'!$B$11:$B$51,0),MATCH(_xlfn.CONCAT("OT_",VLOOKUP(Client_Name,'Project Details'!$AO$15:$AS$56,4,FALSE)),Tbl_Labor_Rates[#Headers],0)),""),"") ->  | AC29: =IF(OR(Type="A", Type="LOE"), _xlfn.IFNA(INDEX(Tbl_Labor_Rates[#All],MATCH('Project Estimation'!AB29,'Labor Rate Sheet'!$B$11:$B$51,0),MATCH(_xlfn.CONCAT("ST_",VLOOKUP(Client_Name,'Project Details'!$AO$15:$AS$56,4,FALSE)),Tbl_Labor_Rates[#Headers],0)),""),"") ->  | AD29: =IF(OR(Type="A", Type="LOE"), _xlfn.IFNA(INDEX(Tbl_Labor_Rates[#All],MATCH('Project Estimation'!AB29,'Labor Rate Sheet'!$B$11:$B$51,0),MATCH(_xlfn.CONCAT("OT_",VLOOKUP(Client_Name,'Project Details'!$AO$15:$AS$56,4,FALSE)),Tbl_Labor_Rates[#Headers],0)),""),"") ->  | AK29: =IF(OR(Type="A", Type="LOE"), _xlfn.IFNA(INDEX(Tbl_Labor_Rates[#All],MATCH('Project Estimation'!AJ29,'Labor Rate Sheet'!$B$11:$B$51,0),MATCH(_xlfn.CONCAT("ST_",VLOOKUP(Client_Name,'Project Details'!$AO$15:$AS$56,4,FALSE)),Tbl_Labor_Rates[#Headers],0)),""),"") ->  | AL29: =IF(OR(Type="A", Type="LOE"), _xlfn.IFNA(INDEX(Tbl_Labor_Rates[#All],MATCH('Project Estimation'!AJ29,'Labor Rate Sheet'!$B$11:$B$51,0),MATCH(_xlfn.CONCAT("OT_",VLOOKUP(Client_Name,'Project Details'!$AO$15:$AS$56,4,FALSE)),Tbl_Labor_Rates[#Headers],0)),""),"") ->  | AS29: =IF(OR(Type="A", Type="LOE"), _xlfn.IFNA(INDEX(Tbl_Labor_Rates[#All],MATCH('Project Estimation'!AR29,'Labor Rate Sheet'!$B$11:$B$51,0),MATCH(_xlfn.CONCAT("ST_",VLOOKUP(Client_Name,'Project Details'!$AO$15:$AS$56,4,FALSE)),Tbl_Labor_Rates[#Headers],0)),""),"") ->  | AT29: =IF(OR(Type="A", Type="LOE"), _xlfn.IFNA(INDEX(Tbl_Labor_Rates[#All],MATCH('Project Estimation'!AR29,'Labor Rate Sheet'!$B$11:$B$51,0),MATCH(_xlfn.CONCAT("OT_",VLOOKUP(Client_Name,'Project Details'!$AO$15:$AS$56,4,FALSE)),Tbl_Labor_Rates[#Headers],0)),""),"") ->  | BA29: =IF(OR(Type="A", Type="LOE"), _xlfn.IFNA(INDEX(Tbl_Labor_Rates[#All],MATCH('Project Estimation'!AZ29,'Labor Rate Sheet'!$B$11:$B$51,0),MATCH(_xlfn.CONCAT("ST_",VLOOKUP(Client_Name,'Project Details'!$AO$15:$AS$56,4,FALSE)),Tbl_Labor_Rates[#Headers],0)),""),"") ->  | BB29: =IF(OR(Type="A", Type="LOE"), _xlfn.IFNA(INDEX(Tbl_Labor_Rates[#All],MATCH('Project Estimation'!AZ29,'Labor Rate Sheet'!$B$11:$B$51,0),MATCH(_xlfn.CONCAT("OT_",VLOOKUP(Client_Name,'Project Details'!$AO$15:$AS$56,4,FALSE)),Tbl_Labor_Rates[#Headers],0)),""),"") ->  | BI29: =IF(OR(Type="A", Type="LOE"), _xlfn.IFNA(INDEX(Tbl_Labor_Rates[#All],MATCH('Project Estimation'!BH29,'Labor Rate Sheet'!$B$11:$B$51,0),MATCH(_xlfn.CONCAT("ST_",VLOOKUP(Client_Name,'Project Details'!$AO$15:$AS$56,4,FALSE)),Tbl_Labor_Rates[#Headers],0)),""),"") ->  | BJ29: =IF(OR(Type="A", Type="LOE"), _xlfn.IFNA(INDEX(Tbl_Labor_Rates[#All],MATCH('Project Estimation'!BH29,'Labor Rate Sheet'!$B$11:$B$51,0),MATCH(_xlfn.CONCAT("OT_",VLOOKUP(Client_Name,'Project Details'!$AO$15:$AS$56,4,FALSE)),Tbl_Labor_Rates[#Headers],0)),""),"") ->  | BQ29: =IF(OR(Type="A", Type="LOE"), _xlfn.IFNA(INDEX(Tbl_Labor_Rates[#All],MATCH('Project Estimation'!BP29,'Labor Rate Sheet'!$B$11:$B$51,0),MATCH(_xlfn.CONCAT("ST_",VLOOKUP(Client_Name,'Project Details'!$AO$15:$AS$56,4,FALSE)),Tbl_Labor_Rates[#Headers],0)),""),"") ->  | BR29: =IF(OR(Type="A", Type="LOE"), _xlfn.IFNA(INDEX(Tbl_Labor_Rates[#All],MATCH('Project Estimation'!BP29,'Labor Rate Sheet'!$B$11:$B$51,0),MATCH(_xlfn.CONCAT("OT_",VLOOKUP(Client_Name,'Project Details'!$AO$15:$AS$56,4,FALSE)),Tbl_Labor_Rates[#Headers],0)),""),"") ->  | BY29: =IF(OR(Type="A", Type="LOE"), _xlfn.IFNA(INDEX(Tbl_Labor_Rates[#All],MATCH('Project Estimation'!BX29,'Labor Rate Sheet'!$B$11:$B$51,0),MATCH(_xlfn.CONCAT("ST_",VLOOKUP(Client_Name,'Project Details'!$AO$15:$AS$56,4,FALSE)),Tbl_Labor_Rates[#Headers],0)),""),"") ->  | BZ29: =IF(OR(Type="A", Type="LOE"), _xlfn.IFNA(INDEX(Tbl_Labor_Rates[#All],MATCH('Project Estimation'!BX29,'Labor Rate Sheet'!$B$11:$B$51,0),MATCH(_xlfn.CONCAT("OT_",VLOOKUP(Client_Name,'Project Details'!$AO$15:$AS$56,4,FALSE)),Tbl_Labor_Rates[#Headers],0)),""),"") ->  | CG29: =IF(OR(Type="A", Type="LOE"), _xlfn.IFNA(INDEX(Tbl_Labor_Rates[#All],MATCH('Project Estimation'!CF29,'Labor Rate Sheet'!$B$11:$B$51,0),MATCH(_xlfn.CONCAT("ST_",VLOOKUP(Client_Name,'Project Details'!$AO$15:$AS$56,4,FALSE)),Tbl_Labor_Rates[#Headers],0)),""),"") ->  | CH29: =IF(OR(Type="A", Type="LOE"), _xlfn.IFNA(INDEX(Tbl_Labor_Rates[#All],MATCH('Project Estimation'!CF29,'Labor Rate Sheet'!$B$11:$B$51,0),MATCH(_xlfn.CONCAT("OT_",VLOOKUP(Client_Name,'Project Details'!$AO$15:$AS$56,4,FALSE)),Tbl_Labor_Rates[#Headers],0)),""),"") ->  | CM29: =IF(Type="WBS", SUMIFS(CM30:CM$54,$G30:$G$54,WBS_ID),IF(Type="A", ($S29*P29)+($AA29*P29)+($AI29*P29)+($AQ29*P29)+($AY29*P29)+($BG29*P29)+($BO29*P29)+($BW29*P29)+($CE29*P29), IF(Type="SUB", 0,IF(Type="M", 0,"")))) -> 0 | CN29: =IF(Type="WBS", SUMIFS(CN30:CN$54,$G30:$G$54,WBS_ID),IF(Type="A", ($S29*Q29)+($AA29*Q29)+($AI29*Q29)+($AQ29*Q29)+($AY29*Q29)+($BG29*Q29)+($BO29*Q29)+($BW29*Q29)+($CE29*Q29), IF(Type="SUB", 0,IF(Type="M", 0,"")))) -> 0 | CO29: =IF(Type="WBS", SUMIFS(CO34:CO$54,$G34:$G$54,WBS_ID),IF(Type="A", $CM29+$CN29, IF(Type="SUB", 0,IF(Type="M", 0,"")))) -> 0 | CP29: =IF(Type="WBS", SUMIFS($CP30:$CP$185,$G30:$G$185,WBS_ID), IF($N29<>"", IF(OR(Type="A",Type="LOE"), SUM(IF(ISBLANK(AM29), 0, AM29), IF(ISBLANK(AE29), 0, AE29), IF(ISBLANK(W29), 0, W29)), IF(Type="SUB", 0,IF(Type="M", 0,""))),"")) -> $0.00 | CQ29: =IF(Type="WBS", SUMIFS($CQ30:$CQ$185,$G30:$G$185,WBS_ID), IF($N29<>"", IF(OR(Type="A",Type="LOE"), SUM(IF(ISBLANK(AN29), 0, AN29), IF(ISBLANK(AF29), 0, AF29), IF(ISBLANK(X29), 0, X29)), IF(Type="SUB", 0,IF(Type="M", 0,""))),"")) -> $0.00 | CR29: =IF(Type="SUB", 0, IF(Type="WBS", SUMIFS($CR30:CR$185,$G30:$G$185,WBS_ID), IFERROR(IF(SUM(IF(ISBLANK($AN29), 0, $AN29), IF(ISBLANK($AM29), 0, $AM29), IF(ISBLANK($AG29), 0, $AG29), IF(ISBLANK($Y29), 0, $Y29), IF(ISBLANK($AO29), 0, $AO29))=0, "", SUM(IF(ISBLANK($AN29), 0, $AN29), IF(ISBLANK($AM29), 0, $AM29), IF(ISBLANK($AG29), 0, $AG29), IF(ISBLANK($Y29), 0, $Y29), IF(ISBLANK($AO29), 0, $AO29))),""))) ->  | CV29: =_xlfn.IFNA(INDEX(Tbl_Equipment_Rates[#All],MATCH('Project Estimation'!CT29,Tbl_Equipment_Rates[EQUIPMENT CLASSIFICATION],0),MATCH(_xlfn.CONCAT("Hourly Rate ",VLOOKUP(Client_Name,'Project Details'!$AO$15:$AS$60,4,FALSE)), Tbl_Equipment_Rates[#Headers],0)),"") ->  | DA29: =_xlfn.IFNA(INDEX(Tbl_Equipment_Rates[#All],MATCH('Project Estimation'!CY29,Tbl_Equipment_Rates[EQUIPMENT CLASSIFICATION],0),MATCH(_xlfn.CONCAT("Hourly Rate ",VLOOKUP(Client_Name,'Project Details'!$AO$15:$AS$60,4,FALSE)), Tbl_Equipment_Rates[#Headers],0)),"") ->  | DF29: =_xlfn.IFNA(INDEX(Tbl_Equipment_Rates[#All],MATCH('Project Estimation'!DD29,Tbl_Equipment_Rates[EQUIPMENT CLASSIFICATION],0),MATCH(_xlfn.CONCAT("Hourly Rate ",VLOOKUP(Client_Name,'Project Details'!$AO$15:$AS$60,4,FALSE)), Tbl_Equipment_Rates[#Headers],0)),"") ->  | DK29: =_xlfn.IFNA(INDEX(Tbl_Equipment_Rates[#All],MATCH('Project Estimation'!DI29,Tbl_Equipment_Rates[EQUIPMENT CLASSIFICATION],0),MATCH(_xlfn.CONCAT("Hourly Rate ",VLOOKUP(Client_Name,'Project Details'!$AO$15:$AS$60,4,FALSE)), Tbl_Equipment_Rates[#Headers],0)),"") ->  | DL29: =IF(DI29<>"", DJ29*DK29, "") ->  | DP29: =_xlfn.IFNA(INDEX(Tbl_Equipment_Rates[#All],MATCH('Project Estimation'!DN29,Tbl_Equipment_Rates[EQUIPMENT CLASSIFICATION],0),MATCH(_xlfn.CONCAT("Hourly Rate ",VLOOKUP(Client_Name,'Project Details'!$AO$15:$AS$60,4,FALSE)), Tbl_Equipment_Rates[#Headers],0)),"") -> 
B30: 5 | D30: =IF(AND(Type="WBS", WBS_Level>=1), COUNTIFS(C$25:C30, Stage_ID, $K$25:K30, 1), "") ->  | E30: =IF(AND(Type="WBS", WBS_Level>=2), COUNTIFS(D$25:D30, Level_1, $K$25:$K30, 2), "") ->  | F30: =IF(AND(Type="WBS", WBS_Level>=3), COUNTIFS(E$25:E30, Level_2, $K$25:K30, 3), "") ->  | G30: 1 | H30: 0 | I30: 5 | L30: M | M30: Hydrovac Raceway Complete | N30: 0 | O30: =IF(Type="WBS", SUMIFS($O31:$O$185,$G31:$G$185,WBS_ID), IF(OR(Type="A", Type="LOE"), ($N30 /Field_Sch_Hours), IF(Type="SUB", $FK30/Field_Sch_Hours,""))) ->  | P30: =IF(Type="WBS", SUMIFS($P31:$P$185,$G31:$G$185,WBS_ID), IF($N30<>"", IF($N30<=8,$N30,IF(AND(Field_Sch_Days>4,Field_Sch_Hours>8),$N30*(8/Field_Sch_Hours),$N30)), "")) -> 0 | Q30: 0 | U30: =IF(OR(Type="A", Type="LOE"), _xlfn.IFNA(INDEX(Tbl_Labor_Rates[#All],MATCH('Project Estimation'!T30,'Labor Rate Sheet'!$B$11:$B$51,0),MATCH(_xlfn.CONCAT("ST_",VLOOKUP(Client_Name,'Project Details'!$AO$15:$AS$56,4,FALSE)),Tbl_Labor_Rates[#Headers],0)),""),"") ->  | V30: =IF(OR(Type="A", Type="LOE"), _xlfn.IFNA(INDEX(Tbl_Labor_Rates[#All],MATCH('Project Estimation'!T30,'Labor Rate Sheet'!$B$11:$B$51,0),MATCH(_xlfn.CONCAT("OT_",VLOOKUP(Client_Name,'Project Details'!$AO$15:$AS$56,4,FALSE)),Tbl_Labor_Rates[#Headers],0)),""),"") ->  | AC30: =IF(OR(Type="A", Type="LOE"), _xlfn.IFNA(INDEX(Tbl_Labor_Rates[#All],MATCH('Project Estimation'!AB30,'Labor Rate Sheet'!$B$11:$B$51,0),MATCH(_xlfn.CONCAT("ST_",VLOOKUP(Client_Name,'Project Details'!$AO$15:$AS$56,4,FALSE)),Tbl_Labor_Rates[#Headers],0)),""),"") ->  | AD30: =IF(OR(Type="A", Type="LOE"), _xlfn.IFNA(INDEX(Tbl_Labor_Rates[#All],MATCH('Project Estimation'!AB30,'Labor Rate Sheet'!$B$11:$B$51,0),MATCH(_xlfn.CONCAT("OT_",VLOOKUP(Client_Name,'Project Details'!$AO$15:$AS$56,4,FALSE)),Tbl_Labor_Rates[#Headers],0)),""),"") ->  | AK30: =IF(OR(Type="A", Type="LOE"), _xlfn.IFNA(INDEX(Tbl_Labor_Rates[#All],MATCH('Project Estimation'!AJ30,'Labor Rate Sheet'!$B$11:$B$51,0),MATCH(_xlfn.CONCAT("ST_",VLOOKUP(Client_Name,'Project Details'!$AO$15:$AS$56,4,FALSE)),Tbl_Labor_Rates[#Headers],0)),""),"") ->  | AL30: =IF(OR(Type="A", Type="LOE"), _xlfn.IFNA(INDEX(Tbl_Labor_Rates[#All],MATCH('Project Estimation'!AJ30,'Labor Rate Sheet'!$B$11:$B$51,0),MATCH(_xlfn.CONCAT("OT_",VLOOKUP(Client_Name,'Project Details'!$AO$15:$AS$56,4,FALSE)),Tbl_Labor_Rates[#Headers],0)),""),"") ->  | AS30: =IF(OR(Type="A", Type="LOE"), _xlfn.IFNA(INDEX(Tbl_Labor_Rates[#All],MATCH('Project Estimation'!AR30,'Labor Rate Sheet'!$B$11:$B$51,0),MATCH(_xlfn.CONCAT("ST_",VLOOKUP(Client_Name,'Project Details'!$AO$15:$AS$56,4,FALSE)),Tbl_Labor_Rates[#Headers],0)),""),"") ->  | AT30: =IF(OR(Type="A", Type="LOE"), _xlfn.IFNA(INDEX(Tbl_Labor_Rates[#All],MATCH('Project Estimation'!AR30,'Labor Rate Sheet'!$B$11:$B$51,0),MATCH(_xlfn.CONCAT("OT_",VLOOKUP(Client_Name,'Project Details'!$AO$15:$AS$56,4,FALSE)),Tbl_Labor_Rates[#Headers],0)),""),"") ->  | BA30: =IF(OR(Type="A", Type="LOE"), _xlfn.IFNA(INDEX(Tbl_Labor_Rates[#All],MATCH('Project Estimation'!AZ30,'Labor Rate Sheet'!$B$11:$B$51,0),MATCH(_xlfn.CONCAT("ST_",VLOOKUP(Client_Name,'Project Details'!$AO$15:$AS$56,4,FALSE)),Tbl_Labor_Rates[#Headers],0)),""),"") ->  | BB30: =IF(OR(Type="A", Type="LOE"), _xlfn.IFNA(INDEX(Tbl_Labor_Rates[#All],MATCH('Project Estimation'!AZ30,'Labor Rate Sheet'!$B$11:$B$51,0),MATCH(_xlfn.CONCAT("OT_",VLOOKUP(Client_Name,'Project Details'!$AO$15:$AS$56,4,FALSE)),Tbl_Labor_Rates[#Headers],0)),""),"") ->  | BI30: =IF(OR(Type="A", Type="LOE"), _xlfn.IFNA(INDEX(Tbl_Labor_Rates[#All],MATCH('Project Estimation'!BH30,'Labor Rate Sheet'!$B$11:$B$51,0),MATCH(_xlfn.CONCAT("ST_",VLOOKUP(Client_Name,'Project Details'!$AO$15:$AS$56,4,FALSE)),Tbl_Labor_Rates[#Headers],0)),""),"") ->  | BJ30: =IF(OR(Type="A", Type="LOE"), _xlfn.IFNA(INDEX(Tbl_Labor_Rates[#All],MATCH('Project Estimation'!BH30,'Labor Rate Sheet'!$B$11:$B$51,0),MATCH(_xlfn.CONCAT("OT_",VLOOKUP(Client_Name,'Project Details'!$AO$15:$AS$56,4,FALSE)),Tbl_Labor_Rates[#Headers],0)),""),"") ->  | BQ30: =IF(OR(Type="A", Type="LOE"), _xlfn.IFNA(INDEX(Tbl_Labor_Rates[#All],MATCH('Project Estimation'!BP30,'Labor Rate Sheet'!$B$11:$B$51,0),MATCH(_xlfn.CONCAT("ST_",VLOOKUP(Client_Name,'Project Details'!$AO$15:$AS$56,4,FALSE)),Tbl_Labor_Rates[#Headers],0)),""),"") ->  | BR30: =IF(OR(Type="A", Type="LOE"), _xlfn.IFNA(INDEX(Tbl_Labor_Rates[#All],MATCH('Project Estimation'!BP30,'Labor Rate Sheet'!$B$11:$B$51,0),MATCH(_xlfn.CONCAT("OT_",VLOOKUP(Client_Name,'Project Details'!$AO$15:$AS$56,4,FALSE)),Tbl_Labor_Rates[#Headers],0)),""),"") ->  | BY30: =IF(OR(Type="A", Type="LOE"), _xlfn.IFNA(INDEX(Tbl_Labor_Rates[#All],MATCH('Project Estimation'!BX30,'Labor Rate Sheet'!$B$11:$B$51,0),MATCH(_xlfn.CONCAT("ST_",VLOOKUP(Client_Name,'Project Details'!$AO$15:$AS$56,4,FALSE)),Tbl_Labor_Rates[#Headers],0)),""),"") ->  | BZ30: =IF(OR(Type="A", Type="LOE"), _xlfn.IFNA(INDEX(Tbl_Labor_Rates[#All],MATCH('Project Estimation'!BX30,'Labor Rate Sheet'!$B$11:$B$51,0),MATCH(_xlfn.CONCAT("OT_",VLOOKUP(Client_Name,'Project Details'!$AO$15:$AS$56,4,FALSE)),Tbl_Labor_Rates[#Headers],0)),""),"") ->  | CG30: =IF(OR(Type="A", Type="LOE"), _xlfn.IFNA(INDEX(Tbl_Labor_Rates[#All],MATCH('Project Estimation'!CF30,'Labor Rate Sheet'!$B$11:$B$51,0),MATCH(_xlfn.CONCAT("ST_",VLOOKUP(Client_Name,'Project Details'!$AO$15:$AS$56,4,FALSE)),Tbl_Labor_Rates[#Headers],0)),""),"") ->  | CH30: =IF(OR(Type="A", Type="LOE"), _xlfn.IFNA(INDEX(Tbl_Labor_Rates[#All],MATCH('Project Estimation'!CF30,'Labor Rate Sheet'!$B$11:$B$51,0),MATCH(_xlfn.CONCAT("OT_",VLOOKUP(Client_Name,'Project Details'!$AO$15:$AS$56,4,FALSE)),Tbl_Labor_Rates[#Headers],0)),""),"") ->  | CM30: =IF(Type="WBS", SUMIFS(CM31:CM$54,$G31:$G$54,WBS_ID),IF(Type="A", ($S30*P30)+($AA30*P30)+($AI30*P30)+($AQ30*P30)+($AY30*P30)+($BG30*P30)+($BO30*P30)+($BW30*P30)+($CE30*P30), IF(Type="SUB", 0,IF(Type="M", 0,"")))) -> 0 | CN30: =IF(Type="WBS", SUMIFS(CN31:CN$54,$G31:$G$54,WBS_ID),IF(Type="A", ($S30*Q30)+($AA30*Q30)+($AI30*Q30)+($AQ30*Q30)+($AY30*Q30)+($BG30*Q30)+($BO30*Q30)+($BW30*Q30)+($CE30*Q30), IF(Type="SUB", 0,IF(Type="M", 0,"")))) -> 0 | CO30: =IF(Type="WBS", SUMIFS(CO35:CO$54,$G35:$G$54,WBS_ID),IF(Type="A", $CM30+$CN30, IF(Type="SUB", 0,IF(Type="M", 0,"")))) -> 0 | CP30: =IF(Type="WBS", SUMIFS($CP31:$CP$185,$G31:$G$185,WBS_ID), IF($N30<>"", IF(OR(Type="A",Type="LOE"), SUM(IF(ISBLANK(AM30), 0, AM30), IF(ISBLANK(AE30), 0, AE30), IF(ISBLANK(W30), 0, W30)), IF(Type="SUB", 0,IF(Type="M", 0,""))),"")) -> $0.00 | CQ30: =IF(Type="WBS", SUMIFS($CQ31:$CQ$185,$G31:$G$185,WBS_ID), IF($N30<>"", IF(OR(Type="A",Type="LOE"), SUM(IF(ISBLANK(AN30), 0, AN30), IF(ISBLANK(AF30), 0, AF30), IF(ISBLANK(X30), 0, X30)), IF(Type="SUB", 0,IF(Type="M", 0,""))),"")) -> $0.00 | CR30: =IF(Type="SUB", 0, IF(Type="WBS", SUMIFS($CR31:CR$185,$G31:$G$185,WBS_ID), IFERROR(IF(SUM(IF(ISBLANK($AN30), 0, $AN30), IF(ISBLANK($AM30), 0, $AM30), IF(ISBLANK($AG30), 0, $AG30), IF(ISBLANK($Y30), 0, $Y30), IF(ISBLANK($AO30), 0, $AO30))=0, "", SUM(IF(ISBLANK($AN30), 0, $AN30), IF(ISBLANK($AM30), 0, $AM30), IF(ISBLANK($AG30), 0, $AG30), IF(ISBLANK($Y30), 0, $Y30), IF(ISBLANK($AO30), 0, $AO30))),""))) ->  | CV30: =_xlfn.IFNA(INDEX(Tbl_Equipment_Rates[#All],MATCH('Project Estimation'!CT30,Tbl_Equipment_Rates[EQUIPMENT CLASSIFICATION],0),MATCH(_xlfn.CONCAT("Hourly Rate ",VLOOKUP(Client_Name,'Project Details'!$AO$15:$AS$60,4,FALSE)), Tbl_Equipment_Rates[#Headers],0)),"") ->  | DA30: =_xlfn.IFNA(INDEX(Tbl_Equipment_Rates[#All],MATCH('Project Estimation'!CY30,Tbl_Equipment_Rates[EQUIPMENT CLASSIFICATION],0),MATCH(_xlfn.CONCAT("Hourly Rate ",VLOOKUP(Client_Name,'Project Details'!$AO$15:$AS$60,4,FALSE)), Tbl_Equipment_Rates[#Headers],0)),"") ->  | DF30: =_xlfn.IFNA(INDEX(Tbl_Equipment_Rates[#All],MATCH('Project Estimation'!DD30,Tbl_Equipment_Rates[EQUIPMENT CLASSIFICATION],0),MATCH(_xlfn.CONCAT("Hourly Rate ",VLOOKUP(Client_Name,'Project Details'!$AO$15:$AS$60,4,FALSE)), Tbl_Equipment_Rates[#Headers],0)),"") ->  | DK30: =_xlfn.IFNA(INDEX(Tbl_Equipment_Rates[#All],MATCH('Project Estimation'!DI30,Tbl_Equipment_Rates[EQUIPMENT CLASSIFICATION],0),MATCH(_xlfn.CONCAT("Hourly Rate ",VLOOKUP(Client_Name,'Project Details'!$AO$15:$AS$60,4,FALSE)), Tbl_Equipment_Rates[#Headers],0)),"") ->  | DP30: =_xlfn.IFNA(INDEX(Tbl_Equipment_Rates[#All],MATCH('Project Estimation'!DN30,Tbl_Equipment_Rates[EQUIPMENT CLASSIFICATION],0),MATCH(_xlfn.CONCAT("Hourly Rate ",VLOOKUP(Client_Name,'Project Details'!$AO$15:$AS$60,4,FALSE)), Tbl_Equipment_Rates[#Headers],0)),"") -> 
B31: 6 | D31: =IF(AND(Type="WBS", WBS_Level>=1), COUNTIFS(C$25:C31, Stage_ID, $K$25:K31, 1), "") ->  | E31: =IF(AND(Type="WBS", WBS_Level>=2), COUNTIFS(D$25:D31, Level_1, $K$25:$K31, 2), "") ->  | F31: =IF(AND(Type="WBS", WBS_Level>=3), COUNTIFS(E$25:E31, Level_2, $K$25:K31, 3), "") ->  | G31: 1 | H31: 0 | I31: 6 | L31: M | M31: Demo of all Piping Complete | N31: 0 | O31: =IF(Type="WBS", SUMIFS($O32:$O$185,$G32:$G$185,WBS_ID), IF(OR(Type="A", Type="LOE"), ($N31 /Field_Sch_Hours), IF(Type="SUB", $FK31/Field_Sch_Hours,""))) ->  | P31: =IF(Type="WBS", SUMIFS($P32:$P$185,$G32:$G$185,WBS_ID), IF($N31<>"", IF($N31<=8,$N31,IF(AND(Field_Sch_Days>4,Field_Sch_Hours>8),$N31*(8/Field_Sch_Hours),$N31)), "")) -> 0 | Q31: 0 | U31: =IF(OR(Type="A", Type="LOE"), _xlfn.IFNA(INDEX(Tbl_Labor_Rates[#All],MATCH('Project Estimation'!T31,'Labor Rate Sheet'!$B$11:$B$51,0),MATCH(_xlfn.CONCAT("ST_",VLOOKUP(Client_Name,'Project Details'!$AO$15:$AS$56,4,FALSE)),Tbl_Labor_Rates[#Headers],0)),""),"") ->  | V31: =IF(OR(Type="A", Type="LOE"), _xlfn.IFNA(INDEX(Tbl_Labor_Rates[#All],MATCH('Project Estimation'!T31,'Labor Rate Sheet'!$B$11:$B$51,0),MATCH(_xlfn.CONCAT("OT_",VLOOKUP(Client_Name,'Project Details'!$AO$15:$AS$56,4,FALSE)),Tbl_Labor_Rates[#Headers],0)),""),"") ->  | AC31: =IF(OR(Type="A", Type="LOE"), _xlfn.IFNA(INDEX(Tbl_Labor_Rates[#All],MATCH('Project Estimation'!AB31,'Labor Rate Sheet'!$B$11:$B$51,0),MATCH(_xlfn.CONCAT("ST_",VLOOKUP(Client_Name,'Project Details'!$AO$15:$AS$56,4,FALSE)),Tbl_Labor_Rates[#Headers],0)),""),"") ->  | AD31: =IF(OR(Type="A", Type="LOE"), _xlfn.IFNA(INDEX(Tbl_Labor_Rates[#All],MATCH('Project Estimation'!AB31,'Labor Rate Sheet'!$B$11:$B$51,0),MATCH(_xlfn.CONCAT("OT_",VLOOKUP(Client_Name,'Project Details'!$AO$15:$AS$56,4,FALSE)),Tbl_Labor_Rates[#Headers],0)),""),"") ->  | AK31: =IF(OR(Type="A", Type="LOE"), _xlfn.IFNA(INDEX(Tbl_Labor_Rates[#All],MATCH('Project Estimation'!AJ31,'Labor Rate Sheet'!$B$11:$B$51,0),MATCH(_xlfn.CONCAT("ST_",VLOOKUP(Client_Name,'Project Details'!$AO$15:$AS$56,4,FALSE)),Tbl_Labor_Rates[#Headers],0)),""),"") ->  | AL31: =IF(OR(Type="A", Type="LOE"), _xlfn.IFNA(INDEX(Tbl_Labor_Rates[#All],MATCH('Project Estimation'!AJ31,'Labor Rate Sheet'!$B$11:$B$51,0),MATCH(_xlfn.CONCAT("OT_",VLOOKUP(Client_Name,'Project Details'!$AO$15:$AS$56,4,FALSE)),Tbl_Labor_Rates[#Headers],0)),""),"") ->  | AS31: =IF(OR(Type="A", Type="LOE"), _xlfn.IFNA(INDEX(Tbl_Labor_Rates[#All],MATCH('Project Estimation'!AR31,'Labor Rate Sheet'!$B$11:$B$51,0),MATCH(_xlfn.CONCAT("ST_",VLOOKUP(Client_Name,'Project Details'!$AO$15:$AS$56,4,FALSE)),Tbl_Labor_Rates[#Headers],0)),""),"") ->  | AT31: =IF(OR(Type="A", Type="LOE"), _xlfn.IFNA(INDEX(Tbl_Labor_Rates[#All],MATCH('Project Estimation'!AR31,'Labor Rate Sheet'!$B$11:$B$51,0),MATCH(_xlfn.CONCAT("OT_",VLOOKUP(Client_Name,'Project Details'!$AO$15:$AS$56,4,FALSE)),Tbl_Labor_Rates[#Headers],0)),""),"") ->  | BA31: =IF(OR(Type="A", Type="LOE"), _xlfn.IFNA(INDEX(Tbl_Labor_Rates[#All],MATCH('Project Estimation'!AZ31,'Labor Rate Sheet'!$B$11:$B$51,0),MATCH(_xlfn.CONCAT("ST_",VLOOKUP(Client_Name,'Project Details'!$AO$15:$AS$56,4,FALSE)),Tbl_Labor_Rates[#Headers],0)),""),"") ->  | BB31: =IF(OR(Type="A", Type="LOE"), _xlfn.IFNA(INDEX(Tbl_Labor_Rates[#All],MATCH('Project Estimation'!AZ31,'Labor Rate Sheet'!$B$11:$B$51,0),MATCH(_xlfn.CONCAT("OT_",VLOOKUP(Client_Name,'Project Details'!$AO$15:$AS$56,4,FALSE)),Tbl_Labor_Rates[#Headers],0)),""),"") ->  | BI31: =IF(OR(Type="A", Type="LOE"), _xlfn.IFNA(INDEX(Tbl_Labor_Rates[#All],MATCH('Project Estimation'!BH31,'Labor Rate Sheet'!$B$11:$B$51,0),MATCH(_xlfn.CONCAT("ST_",VLOOKUP(Client_Name,'Project Details'!$AO$15:$AS$56,4,FALSE)),Tbl_Labor_Rates[#Headers],0)),""),"") ->  | BJ31: =IF(OR(Type="A", Type="LOE"), _xlfn.IFNA(INDEX(Tbl_Labor_Rates[#All],MATCH('Project Estimation'!BH31,'Labor Rate Sheet'!$B$11:$B$51,0),MATCH(_xlfn.CONCAT("OT_",VLOOKUP(Client_Name,'Project Details'!$AO$15:$AS$56,4,FALSE)),Tbl_Labor_Rates[#Headers],0)),""),"") ->  | BQ31: =IF(OR(Type="A", Type="LOE"), _xlfn.IFNA(INDEX(Tbl_Labor_Rates[#All],MATCH('Project Estimation'!BP31,'Labor Rate Sheet'!$B$11:$B$51,0),MATCH(_xlfn.CONCAT("ST_",VLOOKUP(Client_Name,'Project Details'!$AO$15:$AS$56,4,FALSE)),Tbl_Labor_Rates[#Headers],0)),""),"") ->  | BR31: =IF(OR(Type="A", Type="LOE"), _xlfn.IFNA(INDEX(Tbl_Labor_Rates[#All],MATCH('Project Estimation'!BP31,'Labor Rate Sheet'!$B$11:$B$51,0),MATCH(_xlfn.CONCAT("OT_",VLOOKUP(Client_Name,'Project Details'!$AO$15:$AS$56,4,FALSE)),Tbl_Labor_Rates[#Headers],0)),""),"") ->  | BY31: =IF(OR(Type="A", Type="LOE"), _xlfn.IFNA(INDEX(Tbl_Labor_Rates[#All],MATCH('Project Estimation'!BX31,'Labor Rate Sheet'!$B$11:$B$51,0),MATCH(_xlfn.CONCAT("ST_",VLOOKUP(Client_Name,'Project Details'!$AO$15:$AS$56,4,FALSE)),Tbl_Labor_Rates[#Headers],0)),""),"") ->  | BZ31: =IF(OR(Type="A", Type="LOE"), _xlfn.IFNA(INDEX(Tbl_Labor_Rates[#All],MATCH('Project Estimation'!BX31,'Labor Rate Sheet'!$B$11:$B$51,0),MATCH(_xlfn.CONCAT("OT_",VLOOKUP(Client_Name,'Project Details'!$AO$15:$AS$56,4,FALSE)),Tbl_Labor_Rates[#Headers],0)),""),"") ->  | CG31: =IF(OR(Type="A", Type="LOE"), _xlfn.IFNA(INDEX(Tbl_Labor_Rates[#All],MATCH('Project Estimation'!CF31,'Labor Rate Sheet'!$B$11:$B$51,0),MATCH(_xlfn.CONCAT("ST_",VLOOKUP(Client_Name,'Project Details'!$AO$15:$AS$56,4,FALSE)),Tbl_Labor_Rates[#Headers],0)),""),"") ->  | CH31: =IF(OR(Type="A", Type="LOE"), _xlfn.IFNA(INDEX(Tbl_Labor_Rates[#All],MATCH('Project Estimation'!CF31,'Labor Rate Sheet'!$B$11:$B$51,0),MATCH(_xlfn.CONCAT("OT_",VLOOKUP(Client_Name,'Project Details'!$AO$15:$AS$56,4,FALSE)),Tbl_Labor_Rates[#Headers],0)),""),"") ->  | CM31: =IF(Type="WBS", SUMIFS(CM32:CM$54,$G32:$G$54,WBS_ID),IF(Type="A", ($S31*P31)+($AA31*P31)+($AI31*P31)+($AQ31*P31)+($AY31*P31)+($BG31*P31)+($BO31*P31)+($BW31*P31)+($CE31*P31), IF(Type="SUB", 0,IF(Type="M", 0,"")))) -> 0 | CN31: =IF(Type="WBS", SUMIFS(CN32:CN$54,$G32:$G$54,WBS_ID),IF(Type="A", ($S31*Q31)+($AA31*Q31)+($AI31*Q31)+($AQ31*Q31)+($AY31*Q31)+($BG31*Q31)+($BO31*Q31)+($BW31*Q31)+($CE31*Q31), IF(Type="SUB", 0,IF(Type="M", 0,"")))) -> 0 | CO31: =IF(Type="WBS", SUMIFS(CO36:CO$54,$G36:$G$54,WBS_ID),IF(Type="A", $CM31+$CN31, IF(Type="SUB", 0,IF(Type="M", 0,"")))) -> 0 | CP31: =IF(Type="WBS", SUMIFS($CP32:$CP$185,$G32:$G$185,WBS_ID), IF($N31<>"", IF(OR(Type="A",Type="LOE"), SUM(IF(ISBLANK(AM31), 0, AM31), IF(ISBLANK(AE31), 0, AE31), IF(ISBLANK(W31), 0, W31)), IF(Type="SUB", 0,IF(Type="M", 0,""))),"")) -> $0.00 | CQ31: =IF(Type="WBS", SUMIFS($CQ32:$CQ$185,$G32:$G$185,WBS_ID), IF($N31<>"", IF(OR(Type="A",Type="LOE"), SUM(IF(ISBLANK(AN31), 0, AN31), IF(ISBLANK(AF31), 0, AF31), IF(ISBLANK(X31), 0, X31)), IF(Type="SUB", 0,IF(Type="M", 0,""))),"")) -> $0.00 | CR31: =IF(Type="SUB", 0, IF(Type="WBS", SUMIFS($CR32:CR$185,$G32:$G$185,WBS_ID), IFERROR(IF(SUM(IF(ISBLANK($AN31), 0, $AN31), IF(ISBLANK($AM31), 0, $AM31), IF(ISBLANK($AG31), 0, $AG31), IF(ISBLANK($Y31), 0, $Y31), IF(ISBLANK($AO31), 0, $AO31))=0, "", SUM(IF(ISBLANK($AN31), 0, $AN31), IF(ISBLANK($AM31), 0, $AM31), IF(ISBLANK($AG31), 0, $AG31), IF(ISBLANK($Y31), 0, $Y31), IF(ISBLANK($AO31), 0, $AO31))),""))) ->  | CV31: =_xlfn.IFNA(INDEX(Tbl_Equipment_Rates[#All],MATCH('Project Estimation'!CT31,Tbl_Equipment_Rates[EQUIPMENT CLASSIFICATION],0),MATCH(_xlfn.CONCAT("Hourly Rate ",VLOOKUP(Client_Name,'Project Details'!$AO$15:$AS$60,4,FALSE)), Tbl_Equipment_Rates[#Headers],0)),"") ->  | DA31: =_xlfn.IFNA(INDEX(Tbl_Equipment_Rates[#All],MATCH('Project Estimation'!CY31,Tbl_Equipment_Rates[EQUIPMENT CLASSIFICATION],0),MATCH(_xlfn.CONCAT("Hourly Rate ",VLOOKUP(Client_Name,'Project Details'!$AO$15:$AS$60,4,FALSE)), Tbl_Equipment_Rates[#Headers],0)),"") ->  | DF31: =_xlfn.IFNA(INDEX(Tbl_Equipment_Rates[#All],MATCH('Project Estimation'!DD31,Tbl_Equipment_Rates[EQUIPMENT CLASSIFICATION],0),MATCH(_xlfn.CONCAT("Hourly Rate ",VLOOKUP(Client_Name,'Project Details'!$AO$15:$AS$60,4,FALSE)), Tbl_Equipment_Rates[#Headers],0)),"") ->  | DK31: =_xlfn.IFNA(INDEX(Tbl_Equipment_Rates[#All],MATCH('Project Estimation'!DI31,Tbl_Equipment_Rates[EQUIPMENT CLASSIFICATION],0),MATCH(_xlfn.CONCAT("Hourly Rate ",VLOOKUP(Client_Name,'Project Details'!$AO$15:$AS$60,4,FALSE)), Tbl_Equipment_Rates[#Headers],0)),"") ->  | DP31: =_xlfn.IFNA(INDEX(Tbl_Equipment_Rates[#All],MATCH('Project Estimation'!DN31,Tbl_Equipment_Rates[EQUIPMENT CLASSIFICATION],0),MATCH(_xlfn.CONCAT("Hourly Rate ",VLOOKUP(Client_Name,'Project Details'!$AO$15:$AS$60,4,FALSE)), Tbl_Equipment_Rates[#Headers],0)),"") -> 
B32: 7 | D32: =IF(AND(Type="WBS", WBS_Level>=1), COUNTIFS(C$25:C32, Stage_ID, $K$25:K32, 1), "") ->  | E32: =IF(AND(Type="WBS", WBS_Level>=2), COUNTIFS(D$25:D32, Level_1, $K$25:$K32, 2), "") ->  | F32: =IF(AND(Type="WBS", WBS_Level>=3), COUNTIFS(E$25:E32, Level_2, $K$25:K32, 3), "") ->  | G32: 1 | H32: 0 | I32: 7 | L32: M | M32: Fabrication of Piping complete | N32: 0 | O32: =IF(Type="WBS", SUMIFS($O33:$O$185,$G33:$G$185,WBS_ID), IF(OR(Type="A", Type="LOE"), ($N32 /Field_Sch_Hours), IF(Type="SUB", $FK32/Field_Sch_Hours,""))) ->  | P32: =IF(Type="WBS", SUMIFS($P33:$P$185,$G33:$G$185,WBS_ID), IF($N32<>"", IF($N32<=8,$N32,IF(AND(Field_Sch_Days>4,Field_Sch_Hours>8),$N32*(8/Field_Sch_Hours),$N32)), "")) -> 0 | Q32: 0 | U32: =IF(OR(Type="A", Type="LOE"), _xlfn.IFNA(INDEX(Tbl_Labor_Rates[#All],MATCH('Project Estimation'!T32,'Labor Rate Sheet'!$B$11:$B$51,0),MATCH(_xlfn.CONCAT("ST_",VLOOKUP(Client_Name,'Project Details'!$AO$15:$AS$56,4,FALSE)),Tbl_Labor_Rates[#Headers],0)),""),"") ->  | V32: =IF(OR(Type="A", Type="LOE"), _xlfn.IFNA(INDEX(Tbl_Labor_Rates[#All],MATCH('Project Estimation'!T32,'Labor Rate Sheet'!$B$11:$B$51,0),MATCH(_xlfn.CONCAT("OT_",VLOOKUP(Client_Name,'Project Details'!$AO$15:$AS$56,4,FALSE)),Tbl_Labor_Rates[#Headers],0)),""),"") ->  | AC32: =IF(OR(Type="A", Type="LOE"), _xlfn.IFNA(INDEX(Tbl_Labor_Rates[#All],MATCH('Project Estimation'!AB32,'Labor Rate Sheet'!$B$11:$B$51,0),MATCH(_xlfn.CONCAT("ST_",VLOOKUP(Client_Name,'Project Details'!$AO$15:$AS$56,4,FALSE)),Tbl_Labor_Rates[#Headers],0)),""),"") ->  | AD32: =IF(OR(Type="A", Type="LOE"), _xlfn.IFNA(INDEX(Tbl_Labor_Rates[#All],MATCH('Project Estimation'!AB32,'Labor Rate Sheet'!$B$11:$B$51,0),MATCH(_xlfn.CONCAT("OT_",VLOOKUP(Client_Name,'Project Details'!$AO$15:$AS$56,4,FALSE)),Tbl_Labor_Rates[#Headers],0)),""),"") ->  | AK32: =IF(OR(Type="A", Type="LOE"), _xlfn.IFNA(INDEX(Tbl_Labor_Rates[#All],MATCH('Project Estimation'!AJ32,'Labor Rate Sheet'!$B$11:$B$51,0),MATCH(_xlfn.CONCAT("ST_",VLOOKUP(Client_Name,'Project Details'!$AO$15:$AS$56,4,FALSE)),Tbl_Labor_Rates[#Headers],0)),""),"") ->  | AL32: =IF(OR(Type="A", Type="LOE"), _xlfn.IFNA(INDEX(Tbl_Labor_Rates[#All],MATCH('Project Estimation'!AJ32,'Labor Rate Sheet'!$B$11:$B$51,0),MATCH(_xlfn.CONCAT("OT_",VLOOKUP(Client_Name,'Project Details'!$AO$15:$AS$56,4,FALSE)),Tbl_Labor_Rates[#Headers],0)),""),"") ->  | AS32: =IF(OR(Type="A", Type="LOE"), _xlfn.IFNA(INDEX(Tbl_Labor_Rates[#All],MATCH('Project Estimation'!AR32,'Labor Rate Sheet'!$B$11:$B$51,0),MATCH(_xlfn.CONCAT("ST_",VLOOKUP(Client_Name,'Project Details'!$AO$15:$AS$56,4,FALSE)),Tbl_Labor_Rates[#Headers],0)),""),"") ->  | AT32: =IF(OR(Type="A", Type="LOE"), _xlfn.IFNA(INDEX(Tbl_Labor_Rates[#All],MATCH('Project Estimation'!AR32,'Labor Rate Sheet'!$B$11:$B$51,0),MATCH(_xlfn.CONCAT("OT_",VLOOKUP(Client_Name,'Project Details'!$AO$15:$AS$56,4,FALSE)),Tbl_Labor_Rates[#Headers],0)),""),"") ->  | BA32: =IF(OR(Type="A", Type="LOE"), _xlfn.IFNA(INDEX(Tbl_Labor_Rates[#All],MATCH('Project Estimation'!AZ32,'Labor Rate Sheet'!$B$11:$B$51,0),MATCH(_xlfn.CONCAT("ST_",VLOOKUP(Client_Name,'Project Details'!$AO$15:$AS$56,4,FALSE)),Tbl_Labor_Rates[#Headers],0)),""),"") ->  | BB32: =IF(OR(Type="A", Type="LOE"), _xlfn.IFNA(INDEX(Tbl_Labor_Rates[#All],MATCH('Project Estimation'!AZ32,'Labor Rate Sheet'!$B$11:$B$51,0),MATCH(_xlfn.CONCAT("OT_",VLOOKUP(Client_Name,'Project Details'!$AO$15:$AS$56,4,FALSE)),Tbl_Labor_Rates[#Headers],0)),""),"") ->  | BI32: =IF(OR(Type="A", Type="LOE"), _xlfn.IFNA(INDEX(Tbl_Labor_Rates[#All],MATCH('Project Estimation'!BH32,'Labor Rate Sheet'!$B$11:$B$51,0),MATCH(_xlfn.CONCAT("ST_",VLOOKUP(Client_Name,'Project Details'!$AO$15:$AS$56,4,FALSE)),Tbl_Labor_Rates[#Headers],0)),""),"") ->  | BJ32: =IF(OR(Type="A", Type="LOE"), _xlfn.IFNA(INDEX(Tbl_Labor_Rates[#All],MATCH('Project Estimation'!BH32,'Labor Rate Sheet'!$B$11:$B$51,0),MATCH(_xlfn.CONCAT("OT_",VLOOKUP(Client_Name,'Project Details'!$AO$15:$AS$56,4,FALSE)),Tbl_Labor_Rates[#Headers],0)),""),"") ->  | BQ32: =IF(OR(Type="A", Type="LOE"), _xlfn.IFNA(INDEX(Tbl_Labor_Rates[#All],MATCH('Project Estimation'!BP32,'Labor Rate Sheet'!$B$11:$B$51,0),MATCH(_xlfn.CONCAT("ST_",VLOOKUP(Client_Name,'Project Details'!$AO$15:$AS$56,4,FALSE)),Tbl_Labor_Rates[#Headers],0)),""),"") ->  | BR32: =IF(OR(Type="A", Type="LOE"), _xlfn.IFNA(INDEX(Tbl_Labor_Rates[#All],MATCH('Project Estimation'!BP32,'Labor Rate Sheet'!$B$11:$B$51,0),MATCH(_xlfn.CONCAT("OT_",VLOOKUP(Client_Name,'Project Details'!$AO$15:$AS$56,4,FALSE)),Tbl_Labor_Rates[#Headers],0)),""),"") ->  | BY32: =IF(OR(Type="A", Type="LOE"), _xlfn.IFNA(INDEX(Tbl_Labor_Rates[#All],MATCH('Project Estimation'!BX32,'Labor Rate Sheet'!$B$11:$B$51,0),MATCH(_xlfn.CONCAT("ST_",VLOOKUP(Client_Name,'Project Details'!$AO$15:$AS$56,4,FALSE)),Tbl_Labor_Rates[#Headers],0)),""),"") ->  | BZ32: =IF(OR(Type="A", Type="LOE"), _xlfn.IFNA(INDEX(Tbl_Labor_Rates[#All],MATCH('Project Estimation'!BX32,'Labor Rate Sheet'!$B$11:$B$51,0),MATCH(_xlfn.CONCAT("OT_",VLOOKUP(Client_Name,'Project Details'!$AO$15:$AS$56,4,FALSE)),Tbl_Labor_Rates[#Headers],0)),""),"") ->  | CG32: =IF(OR(Type="A", Type="LOE"), _xlfn.IFNA(INDEX(Tbl_Labor_Rates[#All],MATCH('Project Estimation'!CF32,'Labor Rate Sheet'!$B$11:$B$51,0),MATCH(_xlfn.CONCAT("ST_",VLOOKUP(Client_Name,'Project Details'!$AO$15:$AS$56,4,FALSE)),Tbl_Labor_Rates[#Headers],0)),""),"") ->  | CH32: =IF(OR(Type="A", Type="LOE"), _xlfn.IFNA(INDEX(Tbl_Labor_Rates[#All],MATCH('Project Estimation'!CF32,'Labor Rate Sheet'!$B$11:$B$51,0),MATCH(_xlfn.CONCAT("OT_",VLOOKUP(Client_Name,'Project Details'!$AO$15:$AS$56,4,FALSE)),Tbl_Labor_Rates[#Headers],0)),""),"") ->  | CM32: =IF(Type="WBS", SUMIFS(CM33:CM$54,$G33:$G$54,WBS_ID),IF(Type="A", ($S32*P32)+($AA32*P32)+($AI32*P32)+($AQ32*P32)+($AY32*P32)+($BG32*P32)+($BO32*P32)+($BW32*P32)+($CE32*P32), IF(Type="SUB", 0,IF(Type="M", 0,"")))) -> 0 | CN32: =IF(Type="WBS", SUMIFS(CN33:CN$54,$G33:$G$54,WBS_ID),IF(Type="A", ($S32*Q32)+($AA32*Q32)+($AI32*Q32)+($AQ32*Q32)+($AY32*Q32)+($BG32*Q32)+($BO32*Q32)+($BW32*Q32)+($CE32*Q32), IF(Type="SUB", 0,IF(Type="M", 0,"")))) -> 0 | CO32: =IF(Type="WBS", SUMIFS(CO37:CO$54,$G37:$G$54,WBS_ID),IF(Type="A", $CM32+$CN32, IF(Type="SUB", 0,IF(Type="M", 0,"")))) -> 0 | CP32: =IF(Type="WBS", SUMIFS($CP33:$CP$185,$G33:$G$185,WBS_ID), IF($N32<>"", IF(OR(Type="A",Type="LOE"), SUM(IF(ISBLANK(AM32), 0, AM32), IF(ISBLANK(AE32), 0, AE32), IF(ISBLANK(W32), 0, W32)), IF(Type="SUB", 0,IF(Type="M", 0,""))),"")) -> $0.00 | CQ32: =IF(Type="WBS", SUMIFS($CQ33:$CQ$185,$G33:$G$185,WBS_ID), IF($N32<>"", IF(OR(Type="A",Type="LOE"), SUM(IF(ISBLANK(AN32), 0, AN32), IF(ISBLANK(AF32), 0, AF32), IF(ISBLANK(X32), 0, X32)), IF(Type="SUB", 0,IF(Type="M", 0,""))),"")) -> $0.00 | CR32: =IF(Type="SUB", 0, IF(Type="WBS", SUMIFS($CR33:CR$185,$G33:$G$185,WBS_ID), IFERROR(IF(SUM(IF(ISBLANK($AN32), 0, $AN32), IF(ISBLANK($AM32), 0, $AM32), IF(ISBLANK($AG32), 0, $AG32), IF(ISBLANK($Y32), 0, $Y32), IF(ISBLANK($AO32), 0, $AO32))=0, "", SUM(IF(ISBLANK($AN32), 0, $AN32), IF(ISBLANK($AM32), 0, $AM32), IF(ISBLANK($AG32), 0, $AG32), IF(ISBLANK($Y32), 0, $Y32), IF(ISBLANK($AO32), 0, $AO32))),""))) ->  | CV32: =_xlfn.IFNA(INDEX(Tbl_Equipment_Rates[#All],MATCH('Project Estimation'!CT32,Tbl_Equipment_Rates[EQUIPMENT CLASSIFICATION],0),MATCH(_xlfn.CONCAT("Hourly Rate ",VLOOKUP(Client_Name,'Project Details'!$AO$15:$AS$60,4,FALSE)), Tbl_Equipment_Rates[#Headers],0)),"") ->  | DA32: =_xlfn.IFNA(INDEX(Tbl_Equipment_Rates[#All],MATCH('Project Estimation'!CY32,Tbl_Equipment_Rates[EQUIPMENT CLASSIFICATION],0),MATCH(_xlfn.CONCAT("Hourly Rate ",VLOOKUP(Client_Name,'Project Details'!$AO$15:$AS$60,4,FALSE)), Tbl_Equipment_Rates[#Headers],0)),"") ->  | DF32: =_xlfn.IFNA(INDEX(Tbl_Equipment_Rates[#All],MATCH('Project Estimation'!DD32,Tbl_Equipment_Rates[EQUIPMENT CLASSIFICATION],0),MATCH(_xlfn.CONCAT("Hourly Rate ",VLOOKUP(Client_Name,'Project Details'!$AO$15:$AS$60,4,FALSE)), Tbl_Equipment_Rates[#Headers],0)),"") ->  | DK32: =_xlfn.IFNA(INDEX(Tbl_Equipment_Rates[#All],MATCH('Project Estimation'!DI32,Tbl_Equipment_Rates[EQUIPMENT CLASSIFICATION],0),MATCH(_xlfn.CONCAT("Hourly Rate ",VLOOKUP(Client_Name,'Project Details'!$AO$15:$AS$60,4,FALSE)), Tbl_Equipment_Rates[#Headers],0)),"") ->  | DP32: =_xlfn.IFNA(INDEX(Tbl_Equipment_Rates[#All],MATCH('Project Estimation'!DN32,Tbl_Equipment_Rates[EQUIPMENT CLASSIFICATION],0),MATCH(_xlfn.CONCAT("Hourly Rate ",VLOOKUP(Client_Name,'Project Details'!$AO$15:$AS$60,4,FALSE)), Tbl_Equipment_Rates[#Headers],0)),"") ->  | DY32: =IFERROR(DS32*DV32*(1+DX32),"") ->  | EG32: =IFERROR(EA32*ED32*(1+EF32),"") -> 
B33: 8 | D33: =IF(AND(Type="WBS", WBS_Level>=1), COUNTIFS(C$25:C33, Stage_ID, $K$25:K33, 1), "") ->  | E33: =IF(AND(Type="WBS", WBS_Level>=2), COUNTIFS(D$25:D33, Level_1, $K$25:$K33, 2), "") ->  | F33: =IF(AND(Type="WBS", WBS_Level>=3), COUNTIFS(E$25:E33, Level_2, $K$25:K33, 3), "") ->  | G33: 1 | H33: 0 | I33: 8 | L33: M | M33: Hydrostatic Testing of Piping Complete | N33: 0 | O33: =IF(Type="WBS", SUMIFS($O34:$O$185,$G34:$G$185,WBS_ID), IF(OR(Type="A", Type="LOE"), ($N33 /Field_Sch_Hours), IF(Type="SUB", $FK33/Field_Sch_Hours,""))) ->  | P33: =IF(Type="WBS", SUMIFS($P34:$P$185,$G34:$G$185,WBS_ID), IF($N33<>"", IF($N33<=8,$N33,IF(AND(Field_Sch_Days>4,Field_Sch_Hours>8),$N33*(8/Field_Sch_Hours),$N33)), "")) -> 0 | Q33: 0 | U33: =IF(OR(Type="A", Type="LOE"), _xlfn.IFNA(INDEX(Tbl_Labor_Rates[#All],MATCH('Project Estimation'!T33,'Labor Rate Sheet'!$B$11:$B$51,0),MATCH(_xlfn.CONCAT("ST_",VLOOKUP(Client_Name,'Project Details'!$AO$15:$AS$56,4,FALSE)),Tbl_Labor_Rates[#Headers],0)),""),"") ->  | V33: =IF(OR(Type="A", Type="LOE"), _xlfn.IFNA(INDEX(Tbl_Labor_Rates[#All],MATCH('Project Estimation'!T33,'Labor Rate Sheet'!$B$11:$B$51,0),MATCH(_xlfn.CONCAT("OT_",VLOOKUP(Client_Name,'Project Details'!$AO$15:$AS$56,4,FALSE)),Tbl_Labor_Rates[#Headers],0)),""),"") ->  | AC33: =IF(OR(Type="A", Type="LOE"), _xlfn.IFNA(INDEX(Tbl_Labor_Rates[#All],MATCH('Project Estimation'!AB33,'Labor Rate Sheet'!$B$11:$B$51,0),MATCH(_xlfn.CONCAT("ST_",VLOOKUP(Client_Name,'Project Details'!$AO$15:$AS$56,4,FALSE)),Tbl_Labor_Rates[#Headers],0)),""),"") ->  | AD33: =IF(OR(Type="A", Type="LOE"), _xlfn.IFNA(INDEX(Tbl_Labor_Rates[#All],MATCH('Project Estimation'!AB33,'Labor Rate Sheet'!$B$11:$B$51,0),MATCH(_xlfn.CONCAT("OT_",VLOOKUP(Client_Name,'Project Details'!$AO$15:$AS$56,4,FALSE)),Tbl_Labor_Rates[#Headers],0)),""),"") ->  | AK33: =IF(OR(Type="A", Type="LOE"), _xlfn.IFNA(INDEX(Tbl_Labor_Rates[#All],MATCH('Project Estimation'!AJ33,'Labor Rate Sheet'!$B$11:$B$51,0),MATCH(_xlfn.CONCAT("ST_",VLOOKUP(Client_Name,'Project Details'!$AO$15:$AS$56,4,FALSE)),Tbl_Labor_Rates[#Headers],0)),""),"") ->  | AL33: =IF(OR(Type="A", Type="LOE"), _xlfn.IFNA(INDEX(Tbl_Labor_Rates[#All],MATCH('Project Estimation'!AJ33,'Labor Rate Sheet'!$B$11:$B$51,0),MATCH(_xlfn.CONCAT("OT_",VLOOKUP(Client_Name,'Project Details'!$AO$15:$AS$56,4,FALSE)),Tbl_Labor_Rates[#Headers],0)),""),"") ->  | AS33: =IF(OR(Type="A", Type="LOE"), _xlfn.IFNA(INDEX(Tbl_Labor_Rates[#All],MATCH('Project Estimation'!AR33,'Labor Rate Sheet'!$B$11:$B$51,0),MATCH(_xlfn.CONCAT("ST_",VLOOKUP(Client_Name,'Project Details'!$AO$15:$AS$56,4,FALSE)),Tbl_Labor_Rates[#Headers],0)),""),"") ->  | AT33: =IF(OR(Type="A", Type="LOE"), _xlfn.IFNA(INDEX(Tbl_Labor_Rates[#All],MATCH('Project Estimation'!AR33,'Labor Rate Sheet'!$B$11:$B$51,0),MATCH(_xlfn.CONCAT("OT_",VLOOKUP(Client_Name,'Project Details'!$AO$15:$AS$56,4,FALSE)),Tbl_Labor_Rates[#Headers],0)),""),"") ->  | BA33: =IF(OR(Type="A", Type="LOE"), _xlfn.IFNA(INDEX(Tbl_Labor_Rates[#All],MATCH('Project Estimation'!AZ33,'Labor Rate Sheet'!$B$11:$B$51,0),MATCH(_xlfn.CONCAT("ST_",VLOOKUP(Client_Name,'Project Details'!$AO$15:$AS$56,4,FALSE)),Tbl_Labor_Rates[#Headers],0)),""),"") ->  | BB33: =IF(OR(Type="A", Type="LOE"), _xlfn.IFNA(INDEX(Tbl_Labor_Rates[#All],MATCH('Project Estimation'!AZ33,'Labor Rate Sheet'!$B$11:$B$51,0),MATCH(_xlfn.CONCAT("OT_",VLOOKUP(Client_Name,'Project Details'!$AO$15:$AS$56,4,FALSE)),Tbl_Labor_Rates[#Headers],0)),""),"") ->  | BI33: =IF(OR(Type="A", Type="LOE"), _xlfn.IFNA(INDEX(Tbl_Labor_Rates[#All],MATCH('Project Estimation'!BH33,'Labor Rate Sheet'!$B$11:$B$51,0),MATCH(_xlfn.CONCAT("ST_",VLOOKUP(Client_Name,'Project Details'!$AO$15:$AS$56,4,FALSE)),Tbl_Labor_Rates[#Headers],0)),""),"") ->  | BJ33: =IF(OR(Type="A", Type="LOE"), _xlfn.IFNA(INDEX(Tbl_Labor_Rates[#All],MATCH('Project Estimation'!BH33,'Labor Rate Sheet'!$B$11:$B$51,0),MATCH(_xlfn.CONCAT("OT_",VLOOKUP(Client_Name,'Project Details'!$AO$15:$AS$56,4,FALSE)),Tbl_Labor_Rates[#Headers],0)),""),"") ->  | BQ33: =IF(OR(Type="A", Type="LOE"), _xlfn.IFNA(INDEX(Tbl_Labor_Rates[#All],MATCH('Project Estimation'!BP33,'Labor Rate Sheet'!$B$11:$B$51,0),MATCH(_xlfn.CONCAT("ST_",VLOOKUP(Client_Name,'Project Details'!$AO$15:$AS$56,4,FALSE)),Tbl_Labor_Rates[#Headers],0)),""),"") ->  | BR33: =IF(OR(Type="A", Type="LOE"), _xlfn.IFNA(INDEX(Tbl_Labor_Rates[#All],MATCH('Project Estimation'!BP33,'Labor Rate Sheet'!$B$11:$B$51,0),MATCH(_xlfn.CONCAT("OT_",VLOOKUP(Client_Name,'Project Details'!$AO$15:$AS$56,4,FALSE)),Tbl_Labor_Rates[#Headers],0)),""),"") ->  | BY33: =IF(OR(Type="A", Type="LOE"), _xlfn.IFNA(INDEX(Tbl_Labor_Rates[#All],MATCH('Project Estimation'!BX33,'Labor Rate Sheet'!$B$11:$B$51,0),MATCH(_xlfn.CONCAT("ST_",VLOOKUP(Client_Name,'Project Details'!$AO$15:$AS$56,4,FALSE)),Tbl_Labor_Rates[#Headers],0)),""),"") ->  | BZ33: =IF(OR(Type="A", Type="LOE"), _xlfn.IFNA(INDEX(Tbl_Labor_Rates[#All],MATCH('Project Estimation'!BX33,'Labor Rate Sheet'!$B$11:$B$51,0),MATCH(_xlfn.CONCAT("OT_",VLOOKUP(Client_Name,'Project Details'!$AO$15:$AS$56,4,FALSE)),Tbl_Labor_Rates[#Headers],0)),""),"") ->  | CG33: =IF(OR(Type="A", Type="LOE"), _xlfn.IFNA(INDEX(Tbl_Labor_Rates[#All],MATCH('Project Estimation'!CF33,'Labor Rate Sheet'!$B$11:$B$51,0),MATCH(_xlfn.CONCAT("ST_",VLOOKUP(Client_Name,'Project Details'!$AO$15:$AS$56,4,FALSE)),Tbl_Labor_Rates[#Headers],0)),""),"") ->  | CH33: =IF(OR(Type="A", Type="LOE"), _xlfn.IFNA(INDEX(Tbl_Labor_Rates[#All],MATCH('Project Estimation'!CF33,'Labor Rate Sheet'!$B$11:$B$51,0),MATCH(_xlfn.CONCAT("OT_",VLOOKUP(Client_Name,'Project Details'!$AO$15:$AS$56,4,FALSE)),Tbl_Labor_Rates[#Headers],0)),""),"") ->  | CM33: =IF(Type="WBS", SUMIFS(CM34:CM$54,$G34:$G$54,WBS_ID),IF(Type="A", ($S33*P33)+($AA33*P33)+($AI33*P33)+($AQ33*P33)+($AY33*P33)+($BG33*P33)+($BO33*P33)+($BW33*P33)+($CE33*P33), IF(Type="SUB", 0,IF(Type="M", 0,"")))) -> 0 | CN33: =IF(Type="WBS", SUMIFS(CN34:CN$54,$G34:$G$54,WBS_ID),IF(Type="A", ($S33*Q33)+($AA33*Q33)+($AI33*Q33)+($AQ33*Q33)+($AY33*Q33)+($BG33*Q33)+($BO33*Q33)+($BW33*Q33)+($CE33*Q33), IF(Type="SUB", 0,IF(Type="M", 0,"")))) -> 0 | CO33: =IF(Type="WBS", SUMIFS(CO38:CO$54,$G38:$G$54,WBS_ID),IF(Type="A", $CM33+$CN33, IF(Type="SUB", 0,IF(Type="M", 0,"")))) -> 0 | CP33: =IF(Type="WBS", SUMIFS($CP34:$CP$185,$G34:$G$185,WBS_ID), IF($N33<>"", IF(OR(Type="A",Type="LOE"), SUM(IF(ISBLANK(AM33), 0, AM33), IF(ISBLANK(AE33), 0, AE33), IF(ISBLANK(W33), 0, W33)), IF(Type="SUB", 0,IF(Type="M", 0,""))),"")) -> $0.00 | CQ33: =IF(Type="WBS", SUMIFS($CQ34:$CQ$185,$G34:$G$185,WBS_ID), IF($N33<>"", IF(OR(Type="A",Type="LOE"), SUM(IF(ISBLANK(AN33), 0, AN33), IF(ISBLANK(AF33), 0, AF33), IF(ISBLANK(X33), 0, X33)), IF(Type="SUB", 0,IF(Type="M", 0,""))),"")) -> $0.00 | CR33: =IF(Type="SUB", 0, IF(Type="WBS", SUMIFS($CR34:CR$185,$G34:$G$185,WBS_ID), IFERROR(IF(SUM(IF(ISBLANK($AN33), 0, $AN33), IF(ISBLANK($AM33), 0, $AM33), IF(ISBLANK($AG33), 0, $AG33), IF(ISBLANK($Y33), 0, $Y33), IF(ISBLANK($AO33), 0, $AO33))=0, "", SUM(IF(ISBLANK($AN33), 0, $AN33), IF(ISBLANK($AM33), 0, $AM33), IF(ISBLANK($AG33), 0, $AG33), IF(ISBLANK($Y33), 0, $Y33), IF(ISBLANK($AO33), 0, $AO33))),""))) ->  | CV33: =_xlfn.IFNA(INDEX(Tbl_Equipment_Rates[#All],MATCH('Project Estimation'!CT33,Tbl_Equipment_Rates[EQUIPMENT CLASSIFICATION],0),MATCH(_xlfn.CONCAT("Hourly Rate ",VLOOKUP(Client_Name,'Project Details'!$AO$15:$AS$60,4,FALSE)), Tbl_Equipment_Rates[#Headers],0)),"") ->  | DA33: =_xlfn.IFNA(INDEX(Tbl_Equipment_Rates[#All],MATCH('Project Estimation'!CY33,Tbl_Equipment_Rates[EQUIPMENT CLASSIFICATION],0),MATCH(_xlfn.CONCAT("Hourly Rate ",VLOOKUP(Client_Name,'Project Details'!$AO$15:$AS$60,4,FALSE)), Tbl_Equipment_Rates[#Headers],0)),"") ->  | DF33: =_xlfn.IFNA(INDEX(Tbl_Equipment_Rates[#All],MATCH('Project Estimation'!DD33,Tbl_Equipment_Rates[EQUIPMENT CLASSIFICATION],0),MATCH(_xlfn.CONCAT("Hourly Rate ",VLOOKUP(Client_Name,'Project Details'!$AO$15:$AS$60,4,FALSE)), Tbl_Equipment_Rates[#Headers],0)),"") ->  | DK33: =_xlfn.IFNA(INDEX(Tbl_Equipment_Rates[#All],MATCH('Project Estimation'!DI33,Tbl_Equipment_Rates[EQUIPMENT CLASSIFICATION],0),MATCH(_xlfn.CONCAT("Hourly Rate ",VLOOKUP(Client_Name,'Project Details'!$AO$15:$AS$60,4,FALSE)), Tbl_Equipment_Rates[#Headers],0)),"") ->  | DP33: =_xlfn.IFNA(INDEX(Tbl_Equipment_Rates[#All],MATCH('Project Estimation'!DN33,Tbl_Equipment_Rates[EQUIPMENT CLASSIFICATION],0),MATCH(_xlfn.CONCAT("Hourly Rate ",VLOOKUP(Client_Name,'Project Details'!$AO$15:$AS$60,4,FALSE)), Tbl_Equipment_Rates[#Headers],0)),"") -> 
B34: 9 | D34: =IF(AND(Type="WBS", WBS_Level>=1), COUNTIFS(C$25:C34, Stage_ID, $K$25:K34, 1), "") ->  | E34: =IF(AND(Type="WBS", WBS_Level>=2), COUNTIFS(D$25:D34, Level_1, $K$25:$K34, 2), "") ->  | F34: =IF(AND(Type="WBS", WBS_Level>=3), COUNTIFS(E$25:E34, Level_2, $K$25:K34, 3), "") ->  | G34: 1 | H34: 0 | I34: 9 | L34: M | M34: Sonotube Pipe Support Installations Complete | N34: 0 | O34: =IF(Type="WBS", SUMIFS($O35:$O$185,$G35:$G$185,WBS_ID), IF(OR(Type="A", Type="LOE"), ($N34 /Field_Sch_Hours), IF(Type="SUB", $FK34/Field_Sch_Hours,""))) ->  | P34: =IF(Type="WBS", SUMIFS($P35:$P$185,$G35:$G$185,WBS_ID), IF($N34<>"", IF($N34<=8,$N34,IF(AND(Field_Sch_Days>4,Field_Sch_Hours>8),$N34*(8/Field_Sch_Hours),$N34)), "")) -> 0 | Q34: 0 | U34: =IF(OR(Type="A", Type="LOE"), _xlfn.IFNA(INDEX(Tbl_Labor_Rates[#All],MATCH('Project Estimation'!T34,'Labor Rate Sheet'!$B$11:$B$51,0),MATCH(_xlfn.CONCAT("ST_",VLOOKUP(Client_Name,'Project Details'!$AO$15:$AS$56,4,FALSE)),Tbl_Labor_Rates[#Headers],0)),""),"") ->  | V34: =IF(OR(Type="A", Type="LOE"), _xlfn.IFNA(INDEX(Tbl_Labor_Rates[#All],MATCH('Project Estimation'!T34,'Labor Rate Sheet'!$B$11:$B$51,0),MATCH(_xlfn.CONCAT("OT_",VLOOKUP(Client_Name,'Project Details'!$AO$15:$AS$56,4,FALSE)),Tbl_Labor_Rates[#Headers],0)),""),"") ->  | AC34: =IF(OR(Type="A", Type="LOE"), _xlfn.IFNA(INDEX(Tbl_Labor_Rates[#All],MATCH('Project Estimation'!AB34,'Labor Rate Sheet'!$B$11:$B$51,0),MATCH(_xlfn.CONCAT("ST_",VLOOKUP(Client_Name,'Project Details'!$AO$15:$AS$56,4,FALSE)),Tbl_Labor_Rates[#Headers],0)),""),"") ->  | AD34: =IF(OR(Type="A", Type="LOE"), _xlfn.IFNA(INDEX(Tbl_Labor_Rates[#All],MATCH('Project Estimation'!AB34,'Labor Rate Sheet'!$B$11:$B$51,0),MATCH(_xlfn.CONCAT("OT_",VLOOKUP(Client_Name,'Project Details'!$AO$15:$AS$56,4,FALSE)),Tbl_Labor_Rates[#Headers],0)),""),"") ->  | AK34: =IF(OR(Type="A", Type="LOE"), _xlfn.IFNA(INDEX(Tbl_Labor_Rates[#All],MATCH('Project Estimation'!AJ34,'Labor Rate Sheet'!$B$11:$B$51,0),MATCH(_xlfn.CONCAT("ST_",VLOOKUP(Client_Name,'Project Details'!$AO$15:$AS$56,4,FALSE)),Tbl_Labor_Rates[#Headers],0)),""),"") ->  | AL34: =IF(OR(Type="A", Type="LOE"), _xlfn.IFNA(INDEX(Tbl_Labor_Rates[#All],MATCH('Project Estimation'!AJ34,'Labor Rate Sheet'!$B$11:$B$51,0),MATCH(_xlfn.CONCAT("OT_",VLOOKUP(Client_Name,'Project Details'!$AO$15:$AS$56,4,FALSE)),Tbl_Labor_Rates[#Headers],0)),""),"") ->  | AS34: =IF(OR(Type="A", Type="LOE"), _xlfn.IFNA(INDEX(Tbl_Labor_Rates[#All],MATCH('Project Estimation'!AR34,'Labor Rate Sheet'!$B$11:$B$51,0),MATCH(_xlfn.CONCAT("ST_",VLOOKUP(Client_Name,'Project Details'!$AO$15:$AS$56,4,FALSE)),Tbl_Labor_Rates[#Headers],0)),""),"") ->  | AT34: =IF(OR(Type="A", Type="LOE"), _xlfn.IFNA(INDEX(Tbl_Labor_Rates[#All],MATCH('Project Estimation'!AR34,'Labor Rate Sheet'!$B$11:$B$51,0),MATCH(_xlfn.CONCAT("OT_",VLOOKUP(Client_Name,'Project Details'!$AO$15:$AS$56,4,FALSE)),Tbl_Labor_Rates[#Headers],0)),""),"") ->  | BA34: =IF(OR(Type="A", Type="LOE"), _xlfn.IFNA(INDEX(Tbl_Labor_Rates[#All],MATCH('Project Estimation'!AZ34,'Labor Rate Sheet'!$B$11:$B$51,0),MATCH(_xlfn.CONCAT("ST_",VLOOKUP(Client_Name,'Project Details'!$AO$15:$AS$56,4,FALSE)),Tbl_Labor_Rates[#Headers],0)),""),"") ->  | BB34: =IF(OR(Type="A", Type="LOE"), _xlfn.IFNA(INDEX(Tbl_Labor_Rates[#All],MATCH('Project Estimation'!AZ34,'Labor Rate Sheet'!$B$11:$B$51,0),MATCH(_xlfn.CONCAT("OT_",VLOOKUP(Client_Name,'Project Details'!$AO$15:$AS$56,4,FALSE)),Tbl_Labor_Rates[#Headers],0)),""),"") ->  | BI34: =IF(OR(Type="A", Type="LOE"), _xlfn.IFNA(INDEX(Tbl_Labor_Rates[#All],MATCH('Project Estimation'!BH34,'Labor Rate Sheet'!$B$11:$B$51,0),MATCH(_xlfn.CONCAT("ST_",VLOOKUP(Client_Name,'Project Details'!$AO$15:$AS$56,4,FALSE)),Tbl_Labor_Rates[#Headers],0)),""),"") ->  | BJ34: =IF(OR(Type="A", Type="LOE"), _xlfn.IFNA(INDEX(Tbl_Labor_Rates[#All],MATCH('Project Estimation'!BH34,'Labor Rate Sheet'!$B$11:$B$51,0),MATCH(_xlfn.CONCAT("OT_",VLOOKUP(Client_Name,'Project Details'!$AO$15:$AS$56,4,FALSE)),Tbl_Labor_Rates[#Headers],0)),""),"") ->  | BQ34: =IF(OR(Type="A", Type="LOE"), _xlfn.IFNA(INDEX(Tbl_Labor_Rates[#All],MATCH('Project Estimation'!BP34,'Labor Rate Sheet'!$B$11:$B$51,0),MATCH(_xlfn.CONCAT("ST_",VLOOKUP(Client_Name,'Project Details'!$AO$15:$AS$56,4,FALSE)),Tbl_Labor_Rates[#Headers],0)),""),"") ->  | BR34: =IF(OR(Type="A", Type="LOE"), _xlfn.IFNA(INDEX(Tbl_Labor_Rates[#All],MATCH('Project Estimation'!BP34,'Labor Rate Sheet'!$B$11:$B$51,0),MATCH(_xlfn.CONCAT("OT_",VLOOKUP(Client_Name,'Project Details'!$AO$15:$AS$56,4,FALSE)),Tbl_Labor_Rates[#Headers],0)),""),"") ->  | BY34: =IF(OR(Type="A", Type="LOE"), _xlfn.IFNA(INDEX(Tbl_Labor_Rates[#All],MATCH('Project Estimation'!BX34,'Labor Rate Sheet'!$B$11:$B$51,0),MATCH(_xlfn.CONCAT("ST_",VLOOKUP(Client_Name,'Project Details'!$AO$15:$AS$56,4,FALSE)),Tbl_Labor_Rates[#Headers],0)),""),"") ->  | BZ34: =IF(OR(Type="A", Type="LOE"), _xlfn.IFNA(INDEX(Tbl_Labor_Rates[#All],MATCH('Project Estimation'!BX34,'Labor Rate Sheet'!$B$11:$B$51,0),MATCH(_xlfn.CONCAT("OT_",VLOOKUP(Client_Name,'Project Details'!$AO$15:$AS$56,4,FALSE)),Tbl_Labor_Rates[#Headers],0)),""),"") ->  | CG34: =IF(OR(Type="A", Type="LOE"), _xlfn.IFNA(INDEX(Tbl_Labor_Rates[#All],MATCH('Project Estimation'!CF34,'Labor Rate Sheet'!$B$11:$B$51,0),MATCH(_xlfn.CONCAT("ST_",VLOOKUP(Client_Name,'Project Details'!$AO$15:$AS$56,4,FALSE)),Tbl_Labor_Rates[#Headers],0)),""),"") ->  | CH34: =IF(OR(Type="A", Type="LOE"), _xlfn.IFNA(INDEX(Tbl_Labor_Rates[#All],MATCH('Project Estimation'!CF34,'Labor Rate Sheet'!$B$11:$B$51,0),MATCH(_xlfn.CONCAT("OT_",VLOOKUP(Client_Name,'Project Details'!$AO$15:$AS$56,4,FALSE)),Tbl_Labor_Rates[#Headers],0)),""),"") ->  | CM34: =IF(Type="WBS", SUMIFS(CM35:CM$54,$G35:$G$54,WBS_ID),IF(Type="A", ($S34*P34)+($AA34*P34)+($AI34*P34)+($AQ34*P34)+($AY34*P34)+($BG34*P34)+($BO34*P34)+($BW34*P34)+($CE34*P34), IF(Type="SUB", 0,IF(Type="M", 0,"")))) -> 0 | CN34: =IF(Type="WBS", SUMIFS(CN35:CN$54,$G35:$G$54,WBS_ID),IF(Type="A", ($S34*Q34)+($AA34*Q34)+($AI34*Q34)+($AQ34*Q34)+($AY34*Q34)+($BG34*Q34)+($BO34*Q34)+($BW34*Q34)+($CE34*Q34), IF(Type="SUB", 0,IF(Type="M", 0,"")))) -> 0 | CO34: =IF(Type="WBS", SUMIFS(CO39:CO$54,$G39:$G$54,WBS_ID),IF(Type="A", $CM34+$CN34, IF(Type="SUB", 0,IF(Type="M", 0,"")))) -> 0 | CP34: =IF(Type="WBS", SUMIFS($CP35:$CP$185,$G35:$G$185,WBS_ID), IF($N34<>"", IF(OR(Type="A",Type="LOE"), SUM(IF(ISBLANK(AM34), 0, AM34), IF(ISBLANK(AE34), 0, AE34), IF(ISBLANK(W34), 0, W34)), IF(Type="SUB", 0,IF(Type="M", 0,""))),"")) -> $0.00 | CQ34: =IF(Type="WBS", SUMIFS($CQ35:$CQ$185,$G35:$G$185,WBS_ID), IF($N34<>"", IF(OR(Type="A",Type="LOE"), SUM(IF(ISBLANK(AN34), 0, AN34), IF(ISBLANK(AF34), 0, AF34), IF(ISBLANK(X34), 0, X34)), IF(Type="SUB", 0,IF(Type="M", 0,""))),"")) -> $0.00 | CR34: =IF(Type="SUB", 0, IF(Type="WBS", SUMIFS($CR35:CR$185,$G35:$G$185,WBS_ID), IFERROR(IF(SUM(IF(ISBLANK($AN34), 0, $AN34), IF(ISBLANK($AM34), 0, $AM34), IF(ISBLANK($AG34), 0, $AG34), IF(ISBLANK($Y34), 0, $Y34), IF(ISBLANK($AO34), 0, $AO34))=0, "", SUM(IF(ISBLANK($AN34), 0, $AN34), IF(ISBLANK($AM34), 0, $AM34), IF(ISBLANK($AG34), 0, $AG34), IF(ISBLANK($Y34), 0, $Y34), IF(ISBLANK($AO34), 0, $AO34))),""))) ->  | CV34: =_xlfn.IFNA(INDEX(Tbl_Equipment_Rates[#All],MATCH('Project Estimation'!CT34,Tbl_Equipment_Rates[EQUIPMENT CLASSIFICATION],0),MATCH(_xlfn.CONCAT("Hourly Rate ",VLOOKUP(Client_Name,'Project Details'!$AO$15:$AS$60,4,FALSE)), Tbl_Equipment_Rates[#Headers],0)),"") ->  | DA34: =_xlfn.IFNA(INDEX(Tbl_Equipment_Rates[#All],MATCH('Project Estimation'!CY34,Tbl_Equipment_Rates[EQUIPMENT CLASSIFICATION],0),MATCH(_xlfn.CONCAT("Hourly Rate ",VLOOKUP(Client_Name,'Project Details'!$AO$15:$AS$60,4,FALSE)), Tbl_Equipment_Rates[#Headers],0)),"") ->  | DF34: =_xlfn.IFNA(INDEX(Tbl_Equipment_Rates[#All],MATCH('Project Estimation'!DD34,Tbl_Equipment_Rates[EQUIPMENT CLASSIFICATION],0),MATCH(_xlfn.CONCAT("Hourly Rate ",VLOOKUP(Client_Name,'Project Details'!$AO$15:$AS$60,4,FALSE)), Tbl_Equipment_Rates[#Headers],0)),"") ->  | DK34: =_xlfn.IFNA(INDEX(Tbl_Equipment_Rates[#All],MATCH('Project Estimation'!DI34,Tbl_Equipment_Rates[EQUIPMENT CLASSIFICATION],0),MATCH(_xlfn.CONCAT("Hourly Rate ",VLOOKUP(Client_Name,'Project Details'!$AO$15:$AS$60,4,FALSE)), Tbl_Equipment_Rates[#Headers],0)),"") ->  | DP34: =_xlfn.IFNA(INDEX(Tbl_Equipment_Rates[#All],MATCH('Project Estimation'!DN34,Tbl_Equipment_Rates[EQUIPMENT CLASSIFICATION],0),MATCH(_xlfn.CONCAT("Hourly Rate ",VLOOKUP(Client_Name,'Project Details'!$AO$15:$AS$60,4,FALSE)), Tbl_Equipment_Rates[#Headers],0)),"") -> 
B35: 10 | D35: =IF(AND(Type="WBS", WBS_Level>=1), COUNTIFS(C$25:C35, Stage_ID, $K$25:K35, 1), "") ->  | E35: =IF(AND(Type="WBS", WBS_Level>=2), COUNTIFS(D$25:D35, Level_1, $K$25:$K35, 2), "") ->  | F35: =IF(AND(Type="WBS", WBS_Level>=3), COUNTIFS(E$25:E35, Level_2, $K$25:K35, 3), "") ->  | G35: 1 | H35: 0 | I35: 10 | L35: M | M35: Backfill excavations at roadway Complete | N35: 0 | O35: =IF(Type="WBS", SUMIFS($O36:$O$185,$G36:$G$185,WBS_ID), IF(OR(Type="A", Type="LOE"), ($N35 /Field_Sch_Hours), IF(Type="SUB", $FK35/Field_Sch_Hours,""))) ->  | P35: =IF(Type="WBS", SUMIFS($P36:$P$185,$G36:$G$185,WBS_ID), IF($N35<>"", IF($N35<=8,$N35,IF(AND(Field_Sch_Days>4,Field_Sch_Hours>8),$N35*(8/Field_Sch_Hours),$N35)), "")) -> 0 | Q35: 0 | U35: =IF(OR(Type="A", Type="LOE"), _xlfn.IFNA(INDEX(Tbl_Labor_Rates[#All],MATCH('Project Estimation'!T35,'Labor Rate Sheet'!$B$11:$B$51,0),MATCH(_xlfn.CONCAT("ST_",VLOOKUP(Client_Name,'Project Details'!$AO$15:$AS$56,4,FALSE)),Tbl_Labor_Rates[#Headers],0)),""),"") ->  | V35: =IF(OR(Type="A", Type="LOE"), _xlfn.IFNA(INDEX(Tbl_Labor_Rates[#All],MATCH('Project Estimation'!T35,'Labor Rate Sheet'!$B$11:$B$51,0),MATCH(_xlfn.CONCAT("OT_",VLOOKUP(Client_Name,'Project Details'!$AO$15:$AS$56,4,FALSE)),Tbl_Labor_Rates[#Headers],0)),""),"") ->  | AC35: =IF(OR(Type="A", Type="LOE"), _xlfn.IFNA(INDEX(Tbl_Labor_Rates[#All],MATCH('Project Estimation'!AB35,'Labor Rate Sheet'!$B$11:$B$51,0),MATCH(_xlfn.CONCAT("ST_",VLOOKUP(Client_Name,'Project Details'!$AO$15:$AS$56,4,FALSE)),Tbl_Labor_Rates[#Headers],0)),""),"") ->  | AD35: =IF(OR(Type="A", Type="LOE"), _xlfn.IFNA(INDEX(Tbl_Labor_Rates[#All],MATCH('Project Estimation'!AB35,'Labor Rate Sheet'!$B$11:$B$51,0),MATCH(_xlfn.CONCAT("OT_",VLOOKUP(Client_Name,'Project Details'!$AO$15:$AS$56,4,FALSE)),Tbl_Labor_Rates[#Headers],0)),""),"") ->  | AK35: =IF(OR(Type="A", Type="LOE"), _xlfn.IFNA(INDEX(Tbl_Labor_Rates[#All],MATCH('Project Estimation'!AJ35,'Labor Rate Sheet'!$B$11:$B$51,0),MATCH(_xlfn.CONCAT("ST_",VLOOKUP(Client_Name,'Project Details'!$AO$15:$AS$56,4,FALSE)),Tbl_Labor_Rates[#Headers],0)),""),"") ->  | AL35: =IF(OR(Type="A", Type="LOE"), _xlfn.IFNA(INDEX(Tbl_Labor_Rates[#All],MATCH('Project Estimation'!AJ35,'Labor Rate Sheet'!$B$11:$B$51,0),MATCH(_xlfn.CONCAT("OT_",VLOOKUP(Client_Name,'Project Details'!$AO$15:$AS$56,4,FALSE)),Tbl_Labor_Rates[#Headers],0)),""),"") ->  | AS35: =IF(OR(Type="A", Type="LOE"), _xlfn.IFNA(INDEX(Tbl_Labor_Rates[#All],MATCH('Project Estimation'!AR35,'Labor Rate Sheet'!$B$11:$B$51,0),MATCH(_xlfn.CONCAT("ST_",VLOOKUP(Client_Name,'Project Details'!$AO$15:$AS$56,4,FALSE)),Tbl_Labor_Rates[#Headers],0)),""),"") ->  | AT35: =IF(OR(Type="A", Type="LOE"), _xlfn.IFNA(INDEX(Tbl_Labor_Rates[#All],MATCH('Project Estimation'!AR35,'Labor Rate Sheet'!$B$11:$B$51,0),MATCH(_xlfn.CONCAT("OT_",VLOOKUP(Client_Name,'Project Details'!$AO$15:$AS$56,4,FALSE)),Tbl_Labor_Rates[#Headers],0)),""),"") ->  | BA35: =IF(OR(Type="A", Type="LOE"), _xlfn.IFNA(INDEX(Tbl_Labor_Rates[#All],MATCH('Project Estimation'!AZ35,'Labor Rate Sheet'!$B$11:$B$51,0),MATCH(_xlfn.CONCAT("ST_",VLOOKUP(Client_Name,'Project Details'!$AO$15:$AS$56,4,FALSE)),Tbl_Labor_Rates[#Headers],0)),""),"") ->  | BB35: =IF(OR(Type="A", Type="LOE"), _xlfn.IFNA(INDEX(Tbl_Labor_Rates[#All],MATCH('Project Estimation'!AZ35,'Labor Rate Sheet'!$B$11:$B$51,0),MATCH(_xlfn.CONCAT("OT_",VLOOKUP(Client_Name,'Project Details'!$AO$15:$AS$56,4,FALSE)),Tbl_Labor_Rates[#Headers],0)),""),"") ->  | BI35: =IF(OR(Type="A", Type="LOE"), _xlfn.IFNA(INDEX(Tbl_Labor_Rates[#All],MATCH('Project Estimation'!BH35,'Labor Rate Sheet'!$B$11:$B$51,0),MATCH(_xlfn.CONCAT("ST_",VLOOKUP(Client_Name,'Project Details'!$AO$15:$AS$56,4,FALSE)),Tbl_Labor_Rates[#Headers],0)),""),"") ->  | BJ35: =IF(OR(Type="A", Type="LOE"), _xlfn.IFNA(INDEX(Tbl_Labor_Rates[#All],MATCH('Project Estimation'!BH35,'Labor Rate Sheet'!$B$11:$B$51,0),MATCH(_xlfn.CONCAT("OT_",VLOOKUP(Client_Name,'Project Details'!$AO$15:$AS$56,4,FALSE)),Tbl_Labor_Rates[#Headers],0)),""),"") ->  | BQ35: =IF(OR(Type="A", Type="LOE"), _xlfn.IFNA(INDEX(Tbl_Labor_Rates[#All],MATCH('Project Estimation'!BP35,'Labor Rate Sheet'!$B$11:$B$51,0),MATCH(_xlfn.CONCAT("ST_",VLOOKUP(Client_Name,'Project Details'!$AO$15:$AS$56,4,FALSE)),Tbl_Labor_Rates[#Headers],0)),""),"") ->  | BR35: =IF(OR(Type="A", Type="LOE"), _xlfn.IFNA(INDEX(Tbl_Labor_Rates[#All],MATCH('Project Estimation'!BP35,'Labor Rate Sheet'!$B$11:$B$51,0),MATCH(_xlfn.CONCAT("OT_",VLOOKUP(Client_Name,'Project Details'!$AO$15:$AS$56,4,FALSE)),Tbl_Labor_Rates[#Headers],0)),""),"") ->  | BY35: =IF(OR(Type="A", Type="LOE"), _xlfn.IFNA(INDEX(Tbl_Labor_Rates[#All],MATCH('Project Estimation'!BX35,'Labor Rate Sheet'!$B$11:$B$51,0),MATCH(_xlfn.CONCAT("ST_",VLOOKUP(Client_Name,'Project Details'!$AO$15:$AS$56,4,FALSE)),Tbl_Labor_Rates[#Headers],0)),""),"") ->  | BZ35: =IF(OR(Type="A", Type="LOE"), _xlfn.IFNA(INDEX(Tbl_Labor_Rates[#All],MATCH('Project Estimation'!BX35,'Labor Rate Sheet'!$B$11:$B$51,0),MATCH(_xlfn.CONCAT("OT_",VLOOKUP(Client_Name,'Project Details'!$AO$15:$AS$56,4,FALSE)),Tbl_Labor_Rates[#Headers],0)),""),"") ->  | CG35: =IF(OR(Type="A", Type="LOE"), _xlfn.IFNA(INDEX(Tbl_Labor_Rates[#All],MATCH('Project Estimation'!CF35,'Labor Rate Sheet'!$B$11:$B$51,0),MATCH(_xlfn.CONCAT("ST_",VLOOKUP(Client_Name,'Project Details'!$AO$15:$AS$56,4,FALSE)),Tbl_Labor_Rates[#Headers],0)),""),"") ->  | CH35: =IF(OR(Type="A", Type="LOE"), _xlfn.IFNA(INDEX(Tbl_Labor_Rates[#All],MATCH('Project Estimation'!CF35,'Labor Rate Sheet'!$B$11:$B$51,0),MATCH(_xlfn.CONCAT("OT_",VLOOKUP(Client_Name,'Project Details'!$AO$15:$AS$56,4,FALSE)),Tbl_Labor_Rates[#Headers],0)),""),"") ->  | CM35: =IF(Type="WBS", SUMIFS(CM36:CM$54,$G36:$G$54,WBS_ID),IF(Type="A", ($S35*P35)+($AA35*P35)+($AI35*P35)+($AQ35*P35)+($AY35*P35)+($BG35*P35)+($BO35*P35)+($BW35*P35)+($CE35*P35), IF(Type="SUB", 0,IF(Type="M", 0,"")))) -> 0 | CN35: =IF(Type="WBS", SUMIFS(CN36:CN$54,$G36:$G$54,WBS_ID),IF(Type="A", ($S35*Q35)+($AA35*Q35)+($AI35*Q35)+($AQ35*Q35)+($AY35*Q35)+($BG35*Q35)+($BO35*Q35)+($BW35*Q35)+($CE35*Q35), IF(Type="SUB", 0,IF(Type="M", 0,"")))) -> 0 | CO35: =IF(Type="WBS", SUMIFS(CO40:CO$54,$G40:$G$54,WBS_ID),IF(Type="A", $CM35+$CN35, IF(Type="SUB", 0,IF(Type="M", 0,"")))) -> 0 | CP35: =IF(Type="WBS", SUMIFS($CP36:$CP$185,$G36:$G$185,WBS_ID), IF($N35<>"", IF(OR(Type="A",Type="LOE"), SUM(IF(ISBLANK(AM35), 0, AM35), IF(ISBLANK(AE35), 0, AE35), IF(ISBLANK(W35), 0, W35)), IF(Type="SUB", 0,IF(Type="M", 0,""))),"")) -> $0.00 | CQ35: =IF(Type="WBS", SUMIFS($CQ36:$CQ$185,$G36:$G$185,WBS_ID), IF($N35<>"", IF(OR(Type="A",Type="LOE"), SUM(IF(ISBLANK(AN35), 0, AN35), IF(ISBLANK(AF35), 0, AF35), IF(ISBLANK(X35), 0, X35)), IF(Type="SUB", 0,IF(Type="M", 0,""))),"")) -> $0.00 | CR35: =IF(Type="SUB", 0, IF(Type="WBS", SUMIFS($CR36:CR$185,$G36:$G$185,WBS_ID), IFERROR(IF(SUM(IF(ISBLANK($AN35), 0, $AN35), IF(ISBLANK($AM35), 0, $AM35), IF(ISBLANK($AG35), 0, $AG35), IF(ISBLANK($Y35), 0, $Y35), IF(ISBLANK($AO35), 0, $AO35))=0, "", SUM(IF(ISBLANK($AN35), 0, $AN35), IF(ISBLANK($AM35), 0, $AM35), IF(ISBLANK($AG35), 0, $AG35), IF(ISBLANK($Y35), 0, $Y35), IF(ISBLANK($AO35), 0, $AO35))),""))) ->  | CV35: =_xlfn.IFNA(INDEX(Tbl_Equipment_Rates[#All],MATCH('Project Estimation'!CT35,Tbl_Equipment_Rates[EQUIPMENT CLASSIFICATION],0),MATCH(_xlfn.CONCAT("Hourly Rate ",VLOOKUP(Client_Name,'Project Details'!$AO$15:$AS$60,4,FALSE)), Tbl_Equipment_Rates[#Headers],0)),"") ->  | DA35: =_xlfn.IFNA(INDEX(Tbl_Equipment_Rates[#All],MATCH('Project Estimation'!CY35,Tbl_Equipment_Rates[EQUIPMENT CLASSIFICATION],0),MATCH(_xlfn.CONCAT("Hourly Rate ",VLOOKUP(Client_Name,'Project Details'!$AO$15:$AS$60,4,FALSE)), Tbl_Equipment_Rates[#Headers],0)),"") ->  | DF35: =_xlfn.IFNA(INDEX(Tbl_Equipment_Rates[#All],MATCH('Project Estimation'!DD35,Tbl_Equipment_Rates[EQUIPMENT CLASSIFICATION],0),MATCH(_xlfn.CONCAT("Hourly Rate ",VLOOKUP(Client_Name,'Project Details'!$AO$15:$AS$60,4,FALSE)), Tbl_Equipment_Rates[#Headers],0)),"") ->  | DK35: =_xlfn.IFNA(INDEX(Tbl_Equipment_Rates[#All],MATCH('Project Estimation'!DI35,Tbl_Equipment_Rates[EQUIPMENT CLASSIFICATION],0),MATCH(_xlfn.CONCAT("Hourly Rate ",VLOOKUP(Client_Name,'Project Details'!$AO$15:$AS$60,4,FALSE)), Tbl_Equipment_Rates[#Headers],0)),"") ->  | DP35: =_xlfn.IFNA(INDEX(Tbl_Equipment_Rates[#All],MATCH('Project Estimation'!DN35,Tbl_Equipment_Rates[EQUIPMENT CLASSIFICATION],0),MATCH(_xlfn.CONCAT("Hourly Rate ",VLOOKUP(Client_Name,'Project Details'!$AO$15:$AS$60,4,FALSE)), Tbl_Equipment_Rates[#Headers],0)),"") -> 
B36: 11 | D36: =IF(AND(Type="WBS", WBS_Level>=1), COUNTIFS(C$25:C36, Stage_ID, $K$25:K36, 1), "") ->  | E36: =IF(AND(Type="WBS", WBS_Level>=2), COUNTIFS(D$25:D36, Level_1, $K$25:$K36, 2), "") ->  | F36: =IF(AND(Type="WBS", WBS_Level>=3), COUNTIFS(E$25:E36, Level_2, $K$25:K36, 3), "") ->  | G36: 1 | H36: 0 | I36: 11 | L36: M | M36: Sandblasting and Coatings | N36: 0 | O36: =IF(Type="WBS", SUMIFS($O37:$O$185,$G37:$G$185,WBS_ID), IF(OR(Type="A", Type="LOE"), ($N36 /Field_Sch_Hours), IF(Type="SUB", $FK36/Field_Sch_Hours,""))) ->  | P36: =IF(Type="WBS", SUMIFS($P37:$P$185,$G37:$G$185,WBS_ID), IF($N36<>"", IF($N36<=8,$N36,IF(AND(Field_Sch_Days>4,Field_Sch_Hours>8),$N36*(8/Field_Sch_Hours),$N36)), "")) -> 0 | Q36: 0 | U36: =IF(OR(Type="A", Type="LOE"), _xlfn.IFNA(INDEX(Tbl_Labor_Rates[#All],MATCH('Project Estimation'!T36,'Labor Rate Sheet'!$B$11:$B$51,0),MATCH(_xlfn.CONCAT("ST_",VLOOKUP(Client_Name,'Project Details'!$AO$15:$AS$56,4,FALSE)),Tbl_Labor_Rates[#Headers],0)),""),"") ->  | V36: =IF(OR(Type="A", Type="LOE"), _xlfn.IFNA(INDEX(Tbl_Labor_Rates[#All],MATCH('Project Estimation'!T36,'Labor Rate Sheet'!$B$11:$B$51,0),MATCH(_xlfn.CONCAT("OT_",VLOOKUP(Client_Name,'Project Details'!$AO$15:$AS$56,4,FALSE)),Tbl_Labor_Rates[#Headers],0)),""),"") ->  | AC36: =IF(OR(Type="A", Type="LOE"), _xlfn.IFNA(INDEX(Tbl_Labor_Rates[#All],MATCH('Project Estimation'!AB36,'Labor Rate Sheet'!$B$11:$B$51,0),MATCH(_xlfn.CONCAT("ST_",VLOOKUP(Client_Name,'Project Details'!$AO$15:$AS$56,4,FALSE)),Tbl_Labor_Rates[#Headers],0)),""),"") ->  | AD36: =IF(OR(Type="A", Type="LOE"), _xlfn.IFNA(INDEX(Tbl_Labor_Rates[#All],MATCH('Project Estimation'!AB36,'Labor Rate Sheet'!$B$11:$B$51,0),MATCH(_xlfn.CONCAT("OT_",VLOOKUP(Client_Name,'Project Details'!$AO$15:$AS$56,4,FALSE)),Tbl_Labor_Rates[#Headers],0)),""),"") ->  | AK36: =IF(OR(Type="A", Type="LOE"), _xlfn.IFNA(INDEX(Tbl_Labor_Rates[#All],MATCH('Project Estimation'!AJ36,'Labor Rate Sheet'!$B$11:$B$51,0),MATCH(_xlfn.CONCAT("ST_",VLOOKUP(Client_Name,'Project Details'!$AO$15:$AS$56,4,FALSE)),Tbl_Labor_Rates[#Headers],0)),""),"") ->  | AL36: =IF(OR(Type="A", Type="LOE"), _xlfn.IFNA(INDEX(Tbl_Labor_Rates[#All],MATCH('Project Estimation'!AJ36,'Labor Rate Sheet'!$B$11:$B$51,0),MATCH(_xlfn.CONCAT("OT_",VLOOKUP(Client_Name,'Project Details'!$AO$15:$AS$56,4,FALSE)),Tbl_Labor_Rates[#Headers],0)),""),"") ->  | AS36: =IF(OR(Type="A", Type="LOE"), _xlfn.IFNA(INDEX(Tbl_Labor_Rates[#All],MATCH('Project Estimation'!AR36,'Labor Rate Sheet'!$B$11:$B$51,0),MATCH(_xlfn.CONCAT("ST_",VLOOKUP(Client_Name,'Project Details'!$AO$15:$AS$56,4,FALSE)),Tbl_Labor_Rates[#Headers],0)),""),"") ->  | AT36: =IF(OR(Type="A", Type="LOE"), _xlfn.IFNA(INDEX(Tbl_Labor_Rates[#All],MATCH('Project Estimation'!AR36,'Labor Rate Sheet'!$B$11:$B$51,0),MATCH(_xlfn.CONCAT("OT_",VLOOKUP(Client_Name,'Project Details'!$AO$15:$AS$56,4,FALSE)),Tbl_Labor_Rates[#Headers],0)),""),"") ->  | BA36: =IF(OR(Type="A", Type="LOE"), _xlfn.IFNA(INDEX(Tbl_Labor_Rates[#All],MATCH('Project Estimation'!AZ36,'Labor Rate Sheet'!$B$11:$B$51,0),MATCH(_xlfn.CONCAT("ST_",VLOOKUP(Client_Name,'Project Details'!$AO$15:$AS$56,4,FALSE)),Tbl_Labor_Rates[#Headers],0)),""),"") ->  | BB36: =IF(OR(Type="A", Type="LOE"), _xlfn.IFNA(INDEX(Tbl_Labor_Rates[#All],MATCH('Project Estimation'!AZ36,'Labor Rate Sheet'!$B$11:$B$51,0),MATCH(_xlfn.CONCAT("OT_",VLOOKUP(Client_Name,'Project Details'!$AO$15:$AS$56,4,FALSE)),Tbl_Labor_Rates[#Headers],0)),""),"") ->  | BI36: =IF(OR(Type="A", Type="LOE"), _xlfn.IFNA(INDEX(Tbl_Labor_Rates[#All],MATCH('Project Estimation'!BH36,'Labor Rate Sheet'!$B$11:$B$51,0),MATCH(_xlfn.CONCAT("ST_",VLOOKUP(Client_Name,'Project Details'!$AO$15:$AS$56,4,FALSE)),Tbl_Labor_Rates[#Headers],0)),""),"") ->  | BJ36: =IF(OR(Type="A", Type="LOE"), _xlfn.IFNA(INDEX(Tbl_Labor_Rates[#All],MATCH('Project Estimation'!BH36,'Labor Rate Sheet'!$B$11:$B$51,0),MATCH(_xlfn.CONCAT("OT_",VLOOKUP(Client_Name,'Project Details'!$AO$15:$AS$56,4,FALSE)),Tbl_Labor_Rates[#Headers],0)),""),"") ->  | BQ36: =IF(OR(Type="A", Type="LOE"), _xlfn.IFNA(INDEX(Tbl_Labor_Rates[#All],MATCH('Project Estimation'!BP36,'Labor Rate Sheet'!$B$11:$B$51,0),MATCH(_xlfn.CONCAT("ST_",VLOOKUP(Client_Name,'Project Details'!$AO$15:$AS$56,4,FALSE)),Tbl_Labor_Rates[#Headers],0)),""),"") ->  | BR36: =IF(OR(Type="A", Type="LOE"), _xlfn.IFNA(INDEX(Tbl_Labor_Rates[#All],MATCH('Project Estimation'!BP36,'Labor Rate Sheet'!$B$11:$B$51,0),MATCH(_xlfn.CONCAT("OT_",VLOOKUP(Client_Name,'Project Details'!$AO$15:$AS$56,4,FALSE)),Tbl_Labor_Rates[#Headers],0)),""),"") ->  | BY36: =IF(OR(Type="A", Type="LOE"), _xlfn.IFNA(INDEX(Tbl_Labor_Rates[#All],MATCH('Project Estimation'!BX36,'Labor Rate Sheet'!$B$11:$B$51,0),MATCH(_xlfn.CONCAT("ST_",VLOOKUP(Client_Name,'Project Details'!$AO$15:$AS$56,4,FALSE)),Tbl_Labor_Rates[#Headers],0)),""),"") ->  | BZ36: =IF(OR(Type="A", Type="LOE"), _xlfn.IFNA(INDEX(Tbl_Labor_Rates[#All],MATCH('Project Estimation'!BX36,'Labor Rate Sheet'!$B$11:$B$51,0),MATCH(_xlfn.CONCAT("OT_",VLOOKUP(Client_Name,'Project Details'!$AO$15:$AS$56,4,FALSE)),Tbl_Labor_Rates[#Headers],0)),""),"") ->  | CG36: =IF(OR(Type="A", Type="LOE"), _xlfn.IFNA(INDEX(Tbl_Labor_Rates[#All],MATCH('Project Estimation'!CF36,'Labor Rate Sheet'!$B$11:$B$51,0),MATCH(_xlfn.CONCAT("ST_",VLOOKUP(Client_Name,'Project Details'!$AO$15:$AS$56,4,FALSE)),Tbl_Labor_Rates[#Headers],0)),""),"") ->  | CH36: =IF(OR(Type="A", Type="LOE"), _xlfn.IFNA(INDEX(Tbl_Labor_Rates[#All],MATCH('Project Estimation'!CF36,'Labor Rate Sheet'!$B$11:$B$51,0),MATCH(_xlfn.CONCAT("OT_",VLOOKUP(Client_Name,'Project Details'!$AO$15:$AS$56,4,FALSE)),Tbl_Labor_Rates[#Headers],0)),""),"") ->  | CM36: =IF(Type="WBS", SUMIFS(CM37:CM$54,$G37:$G$54,WBS_ID),IF(Type="A", ($S36*P36)+($AA36*P36)+($AI36*P36)+($AQ36*P36)+($AY36*P36)+($BG36*P36)+($BO36*P36)+($BW36*P36)+($CE36*P36), IF(Type="SUB", 0,IF(Type="M", 0,"")))) -> 0 | CN36: =IF(Type="WBS", SUMIFS(CN37:CN$54,$G37:$G$54,WBS_ID),IF(Type="A", ($S36*Q36)+($AA36*Q36)+($AI36*Q36)+($AQ36*Q36)+($AY36*Q36)+($BG36*Q36)+($BO36*Q36)+($BW36*Q36)+($CE36*Q36), IF(Type="SUB", 0,IF(Type="M", 0,"")))) -> 0 | CO36: =IF(Type="WBS", SUMIFS(CO41:CO$54,$G41:$G$54,WBS_ID),IF(Type="A", $CM36+$CN36, IF(Type="SUB", 0,IF(Type="M", 0,"")))) -> 0 | CP36: =IF(Type="WBS", SUMIFS($CP37:$CP$185,$G37:$G$185,WBS_ID), IF($N36<>"", IF(OR(Type="A",Type="LOE"), SUM(IF(ISBLANK(AM36), 0, AM36), IF(ISBLANK(AE36), 0, AE36), IF(ISBLANK(W36), 0, W36)), IF(Type="SUB", 0,IF(Type="M", 0,""))),"")) -> $0.00 | CQ36: =IF(Type="WBS", SUMIFS($CQ37:$CQ$185,$G37:$G$185,WBS_ID), IF($N36<>"", IF(OR(Type="A",Type="LOE"), SUM(IF(ISBLANK(AN36), 0, AN36), IF(ISBLANK(AF36), 0, AF36), IF(ISBLANK(X36), 0, X36)), IF(Type="SUB", 0,IF(Type="M", 0,""))),"")) -> $0.00 | CR36: =IF(Type="SUB", 0, IF(Type="WBS", SUMIFS($CR37:CR$185,$G37:$G$185,WBS_ID), IFERROR(IF(SUM(IF(ISBLANK($AN36), 0, $AN36), IF(ISBLANK($AM36), 0, $AM36), IF(ISBLANK($AG36), 0, $AG36), IF(ISBLANK($Y36), 0, $Y36), IF(ISBLANK($AO36), 0, $AO36))=0, "", SUM(IF(ISBLANK($AN36), 0, $AN36), IF(ISBLANK($AM36), 0, $AM36), IF(ISBLANK($AG36), 0, $AG36), IF(ISBLANK($Y36), 0, $Y36), IF(ISBLANK($AO36), 0, $AO36))),""))) ->  | CV36: =_xlfn.IFNA(INDEX(Tbl_Equipment_Rates[#All],MATCH('Project Estimation'!CT36,Tbl_Equipment_Rates[EQUIPMENT CLASSIFICATION],0),MATCH(_xlfn.CONCAT("Hourly Rate ",VLOOKUP(Client_Name,'Project Details'!$AO$15:$AS$60,4,FALSE)), Tbl_Equipment_Rates[#Headers],0)),"") ->  | DA36: =_xlfn.IFNA(INDEX(Tbl_Equipment_Rates[#All],MATCH('Project Estimation'!CY36,Tbl_Equipment_Rates[EQUIPMENT CLASSIFICATION],0),MATCH(_xlfn.CONCAT("Hourly Rate ",VLOOKUP(Client_Name,'Project Details'!$AO$15:$AS$60,4,FALSE)), Tbl_Equipment_Rates[#Headers],0)),"") ->  | DF36: =_xlfn.IFNA(INDEX(Tbl_Equipment_Rates[#All],MATCH('Project Estimation'!DD36,Tbl_Equipment_Rates[EQUIPMENT CLASSIFICATION],0),MATCH(_xlfn.CONCAT("Hourly Rate ",VLOOKUP(Client_Name,'Project Details'!$AO$15:$AS$60,4,FALSE)), Tbl_Equipment_Rates[#Headers],0)),"") ->  | DK36: =_xlfn.IFNA(INDEX(Tbl_Equipment_Rates[#All],MATCH('Project Estimation'!DI36,Tbl_Equipment_Rates[EQUIPMENT CLASSIFICATION],0),MATCH(_xlfn.CONCAT("Hourly Rate ",VLOOKUP(Client_Name,'Project Details'!$AO$15:$AS$60,4,FALSE)), Tbl_Equipment_Rates[#Headers],0)),"") ->  | DP36: =_xlfn.IFNA(INDEX(Tbl_Equipment_Rates[#All],MATCH('Project Estimation'!DN36,Tbl_Equipment_Rates[EQUIPMENT CLASSIFICATION],0),MATCH(_xlfn.CONCAT("Hourly Rate ",VLOOKUP(Client_Name,'Project Details'!$AO$15:$AS$60,4,FALSE)), Tbl_Equipment_Rates[#Headers],0)),"") -> 
B37: 12 | D37: =IF(AND(Type="WBS", WBS_Level>=1), COUNTIFS(C$25:C37, Stage_ID, $K$25:K37, 1), "") ->  | E37: =IF(AND(Type="WBS", WBS_Level>=2), COUNTIFS(D$25:D37, Level_1, $K$25:$K37, 2), "") ->  | F37: =IF(AND(Type="WBS", WBS_Level>=3), COUNTIFS(E$25:E37, Level_2, $K$25:K37, 3), "") ->  | G37: 1 | H37: 0 | I37: 12 | L37: M | M37: Backfill & Finalizations Complete | N37: 0 | O37: =IF(Type="WBS", SUMIFS($O38:$O$185,$G38:$G$185,WBS_ID), IF(OR(Type="A", Type="LOE"), ($N37 /Field_Sch_Hours), IF(Type="SUB", $FK37/Field_Sch_Hours,""))) ->  | P37: =IF(Type="WBS", SUMIFS($P38:$P$185,$G38:$G$185,WBS_ID), IF($N37<>"", IF($N37<=8,$N37,IF(AND(Field_Sch_Days>4,Field_Sch_Hours>8),$N37*(8/Field_Sch_Hours),$N37)), "")) -> 0 | Q37: 0 | U37: =IF(OR(Type="A", Type="LOE"), _xlfn.IFNA(INDEX(Tbl_Labor_Rates[#All],MATCH('Project Estimation'!T37,'Labor Rate Sheet'!$B$11:$B$51,0),MATCH(_xlfn.CONCAT("ST_",VLOOKUP(Client_Name,'Project Details'!$AO$15:$AS$56,4,FALSE)),Tbl_Labor_Rates[#Headers],0)),""),"") ->  | V37: =IF(OR(Type="A", Type="LOE"), _xlfn.IFNA(INDEX(Tbl_Labor_Rates[#All],MATCH('Project Estimation'!T37,'Labor Rate Sheet'!$B$11:$B$51,0),MATCH(_xlfn.CONCAT("OT_",VLOOKUP(Client_Name,'Project Details'!$AO$15:$AS$56,4,FALSE)),Tbl_Labor_Rates[#Headers],0)),""),"") ->  | AC37: =IF(OR(Type="A", Type="LOE"), _xlfn.IFNA(INDEX(Tbl_Labor_Rates[#All],MATCH('Project Estimation'!AB37,'Labor Rate Sheet'!$B$11:$B$51,0),MATCH(_xlfn.CONCAT("ST_",VLOOKUP(Client_Name,'Project Details'!$AO$15:$AS$56,4,FALSE)),Tbl_Labor_Rates[#Headers],0)),""),"") ->  | AD37: =IF(OR(Type="A", Type="LOE"), _xlfn.IFNA(INDEX(Tbl_Labor_Rates[#All],MATCH('Project Estimation'!AB37,'Labor Rate Sheet'!$B$11:$B$51,0),MATCH(_xlfn.CONCAT("OT_",VLOOKUP(Client_Name,'Project Details'!$AO$15:$AS$56,4,FALSE)),Tbl_Labor_Rates[#Headers],0)),""),"") ->  | AK37: =IF(OR(Type="A", Type="LOE"), _xlfn.IFNA(INDEX(Tbl_Labor_Rates[#All],MATCH('Project Estimation'!AJ37,'Labor Rate Sheet'!$B$11:$B$51,0),MATCH(_xlfn.CONCAT("ST_",VLOOKUP(Client_Name,'Project Details'!$AO$15:$AS$56,4,FALSE)),Tbl_Labor_Rates[#Headers],0)),""),"") ->  | AL37: =IF(OR(Type="A", Type="LOE"), _xlfn.IFNA(INDEX(Tbl_Labor_Rates[#All],MATCH('Project Estimation'!AJ37,'Labor Rate Sheet'!$B$11:$B$51,0),MATCH(_xlfn.CONCAT("OT_",VLOOKUP(Client_Name,'Project Details'!$AO$15:$AS$56,4,FALSE)),Tbl_Labor_Rates[#Headers],0)),""),"") ->  | AS37: =IF(OR(Type="A", Type="LOE"), _xlfn.IFNA(INDEX(Tbl_Labor_Rates[#All],MATCH('Project Estimation'!AR37,'Labor Rate Sheet'!$B$11:$B$51,0),MATCH(_xlfn.CONCAT("ST_",VLOOKUP(Client_Name,'Project Details'!$AO$15:$AS$56,4,FALSE)),Tbl_Labor_Rates[#Headers],0)),""),"") ->  | AT37: =IF(OR(Type="A", Type="LOE"), _xlfn.IFNA(INDEX(Tbl_Labor_Rates[#All],MATCH('Project Estimation'!AR37,'Labor Rate Sheet'!$B$11:$B$51,0),MATCH(_xlfn.CONCAT("OT_",VLOOKUP(Client_Name,'Project Details'!$AO$15:$AS$56,4,FALSE)),Tbl_Labor_Rates[#Headers],0)),""),"") ->  | BA37: =IF(OR(Type="A", Type="LOE"), _xlfn.IFNA(INDEX(Tbl_Labor_Rates[#All],MATCH('Project Estimation'!AZ37,'Labor Rate Sheet'!$B$11:$B$51,0),MATCH(_xlfn.CONCAT("ST_",VLOOKUP(Client_Name,'Project Details'!$AO$15:$AS$56,4,FALSE)),Tbl_Labor_Rates[#Headers],0)),""),"") ->  | BB37: =IF(OR(Type="A", Type="LOE"), _xlfn.IFNA(INDEX(Tbl_Labor_Rates[#All],MATCH('Project Estimation'!AZ37,'Labor Rate Sheet'!$B$11:$B$51,0),MATCH(_xlfn.CONCAT("OT_",VLOOKUP(Client_Name,'Project Details'!$AO$15:$AS$56,4,FALSE)),Tbl_Labor_Rates[#Headers],0)),""),"") ->  | BI37: =IF(OR(Type="A", Type="LOE"), _xlfn.IFNA(INDEX(Tbl_Labor_Rates[#All],MATCH('Project Estimation'!BH37,'Labor Rate Sheet'!$B$11:$B$51,0),MATCH(_xlfn.CONCAT("ST_",VLOOKUP(Client_Name,'Project Details'!$AO$15:$AS$56,4,FALSE)),Tbl_Labor_Rates[#Headers],0)),""),"") ->  | BJ37: =IF(OR(Type="A", Type="LOE"), _xlfn.IFNA(INDEX(Tbl_Labor_Rates[#All],MATCH('Project Estimation'!BH37,'Labor Rate Sheet'!$B$11:$B$51,0),MATCH(_xlfn.CONCAT("OT_",VLOOKUP(Client_Name,'Project Details'!$AO$15:$AS$56,4,FALSE)),Tbl_Labor_Rates[#Headers],0)),""),"") ->  | BQ37: =IF(OR(Type="A", Type="LOE"), _xlfn.IFNA(INDEX(Tbl_Labor_Rates[#All],MATCH('Project Estimation'!BP37,'Labor Rate Sheet'!$B$11:$B$51,0),MATCH(_xlfn.CONCAT("ST_",VLOOKUP(Client_Name,'Project Details'!$AO$15:$AS$56,4,FALSE)),Tbl_Labor_Rates[#Headers],0)),""),"") ->  | BR37: =IF(OR(Type="A", Type="LOE"), _xlfn.IFNA(INDEX(Tbl_Labor_Rates[#All],MATCH('Project Estimation'!BP37,'Labor Rate Sheet'!$B$11:$B$51,0),MATCH(_xlfn.CONCAT("OT_",VLOOKUP(Client_Name,'Project Details'!$AO$15:$AS$56,4,FALSE)),Tbl_Labor_Rates[#Headers],0)),""),"") ->  | BY37: =IF(OR(Type="A", Type="LOE"), _xlfn.IFNA(INDEX(Tbl_Labor_Rates[#All],MATCH('Project Estimation'!BX37,'Labor Rate Sheet'!$B$11:$B$51,0),MATCH(_xlfn.CONCAT("ST_",VLOOKUP(Client_Name,'Project Details'!$AO$15:$AS$56,4,FALSE)),Tbl_Labor_Rates[#Headers],0)),""),"") ->  | BZ37: =IF(OR(Type="A", Type="LOE"), _xlfn.IFNA(INDEX(Tbl_Labor_Rates[#All],MATCH('Project Estimation'!BX37,'Labor Rate Sheet'!$B$11:$B$51,0),MATCH(_xlfn.CONCAT("OT_",VLOOKUP(Client_Name,'Project Details'!$AO$15:$AS$56,4,FALSE)),Tbl_Labor_Rates[#Headers],0)),""),"") ->  | CG37: =IF(OR(Type="A", Type="LOE"), _xlfn.IFNA(INDEX(Tbl_Labor_Rates[#All],MATCH('Project Estimation'!CF37,'Labor Rate Sheet'!$B$11:$B$51,0),MATCH(_xlfn.CONCAT("ST_",VLOOKUP(Client_Name,'Project Details'!$AO$15:$AS$56,4,FALSE)),Tbl_Labor_Rates[#Headers],0)),""),"") ->  | CH37: =IF(OR(Type="A", Type="LOE"), _xlfn.IFNA(INDEX(Tbl_Labor_Rates[#All],MATCH('Project Estimation'!CF37,'Labor Rate Sheet'!$B$11:$B$51,0),MATCH(_xlfn.CONCAT("OT_",VLOOKUP(Client_Name,'Project Details'!$AO$15:$AS$56,4,FALSE)),Tbl_Labor_Rates[#Headers],0)),""),"") ->  | CM37: =IF(Type="WBS", SUMIFS(CM38:CM$54,$G38:$G$54,WBS_ID),IF(Type="A", ($S37*P37)+($AA37*P37)+($AI37*P37)+($AQ37*P37)+($AY37*P37)+($BG37*P37)+($BO37*P37)+($BW37*P37)+($CE37*P37), IF(Type="SUB", 0,IF(Type="M", 0,"")))) -> 0 | CN37: =IF(Type="WBS", SUMIFS(CN38:CN$54,$G38:$G$54,WBS_ID),IF(Type="A", ($S37*Q37)+($AA37*Q37)+($AI37*Q37)+($AQ37*Q37)+($AY37*Q37)+($BG37*Q37)+($BO37*Q37)+($BW37*Q37)+($CE37*Q37), IF(Type="SUB", 0,IF(Type="M", 0,"")))) -> 0 | CO37: =IF(Type="WBS", SUMIFS(CO42:CO$54,$G42:$G$54,WBS_ID),IF(Type="A", $CM37+$CN37, IF(Type="SUB", 0,IF(Type="M", 0,"")))) -> 0 | CP37: =IF(Type="WBS", SUMIFS($CP38:$CP$185,$G38:$G$185,WBS_ID), IF($N37<>"", IF(OR(Type="A",Type="LOE"), SUM(IF(ISBLANK(AM37), 0, AM37), IF(ISBLANK(AE37), 0, AE37), IF(ISBLANK(W37), 0, W37)), IF(Type="SUB", 0,IF(Type="M", 0,""))),"")) -> $0.00 | CQ37: =IF(Type="WBS", SUMIFS($CQ38:$CQ$185,$G38:$G$185,WBS_ID), IF($N37<>"", IF(OR(Type="A",Type="LOE"), SUM(IF(ISBLANK(AN37), 0, AN37), IF(ISBLANK(AF37), 0, AF37), IF(ISBLANK(X37), 0, X37)), IF(Type="SUB", 0,IF(Type="M", 0,""))),"")) -> $0.00 | CR37: =IF(Type="SUB", 0, IF(Type="WBS", SUMIFS($CR38:CR$185,$G38:$G$185,WBS_ID), IFERROR(IF(SUM(IF(ISBLANK($AN37), 0, $AN37), IF(ISBLANK($AM37), 0, $AM37), IF(ISBLANK($AG37), 0, $AG37), IF(ISBLANK($Y37), 0, $Y37), IF(ISBLANK($AO37), 0, $AO37))=0, "", SUM(IF(ISBLANK($AN37), 0, $AN37), IF(ISBLANK($AM37), 0, $AM37), IF(ISBLANK($AG37), 0, $AG37), IF(ISBLANK($Y37), 0, $Y37), IF(ISBLANK($AO37), 0, $AO37))),""))) ->  | CV37: =_xlfn.IFNA(INDEX(Tbl_Equipment_Rates[#All],MATCH('Project Estimation'!CT37,Tbl_Equipment_Rates[EQUIPMENT CLASSIFICATION],0),MATCH(_xlfn.CONCAT("Hourly Rate ",VLOOKUP(Client_Name,'Project Details'!$AO$15:$AS$60,4,FALSE)), Tbl_Equipment_Rates[#Headers],0)),"") ->  | DA37: =_xlfn.IFNA(INDEX(Tbl_Equipment_Rates[#All],MATCH('Project Estimation'!CY37,Tbl_Equipment_Rates[EQUIPMENT CLASSIFICATION],0),MATCH(_xlfn.CONCAT("Hourly Rate ",VLOOKUP(Client_Name,'Project Details'!$AO$15:$AS$60,4,FALSE)), Tbl_Equipment_Rates[#Headers],0)),"") ->  | DF37: =_xlfn.IFNA(INDEX(Tbl_Equipment_Rates[#All],MATCH('Project Estimation'!DD37,Tbl_Equipment_Rates[EQUIPMENT CLASSIFICATION],0),MATCH(_xlfn.CONCAT("Hourly Rate ",VLOOKUP(Client_Name,'Project Details'!$AO$15:$AS$60,4,FALSE)), Tbl_Equipment_Rates[#Headers],0)),"") ->  | DK37: =_xlfn.IFNA(INDEX(Tbl_Equipment_Rates[#All],MATCH('Project Estimation'!DI37,Tbl_Equipment_Rates[EQUIPMENT CLASSIFICATION],0),MATCH(_xlfn.CONCAT("Hourly Rate ",VLOOKUP(Client_Name,'Project Details'!$AO$15:$AS$60,4,FALSE)), Tbl_Equipment_Rates[#Headers],0)),"") ->  | DP37: =_xlfn.IFNA(INDEX(Tbl_Equipment_Rates[#All],MATCH('Project Estimation'!DN37,Tbl_Equipment_Rates[EQUIPMENT CLASSIFICATION],0),MATCH(_xlfn.CONCAT("Hourly Rate ",VLOOKUP(Client_Name,'Project Details'!$AO$15:$AS$60,4,FALSE)), Tbl_Equipment_Rates[#Headers],0)),"") ->  | DW37: =IF(OR(DS37<>"",DT37<>"",DU37<>"",DV37<>""), DV37*DS37,"") ->  | DY37: =IFERROR(DS37*DV37*(1+DX37),"") ->  | EE37: =IF(OR(EA37<>"",EB37<>"",EC37<>"",ED37<>""), ED37*EA37,"") ->  | EG37: =IFERROR(EA37*ED37*(1+EF37),"") -> 
B38: 13 | D38: =IF(AND(Type="WBS", WBS_Level>=1), COUNTIFS(C$25:C38, Stage_ID, $K$25:K38, 1), "") ->  | E38: =IF(AND(Type="WBS", WBS_Level>=2), COUNTIFS(D$25:D38, Level_1, $K$25:$K38, 2), "") ->  | F38: =IF(AND(Type="WBS", WBS_Level>=3), COUNTIFS(E$25:E38, Level_2, $K$25:K38, 3), "") ->  | G38: 1 | H38: 0 | I38: 13 | L38: M | M38: Signage Installed 1 week in advance at Gruver | N38: 0 | O38: =IF(Type="WBS", SUMIFS($O39:$O$185,$G39:$G$185,WBS_ID), IF(OR(Type="A", Type="LOE"), ($N38 /Field_Sch_Hours), IF(Type="SUB", $FK38/Field_Sch_Hours,""))) ->  | P38: =IF(Type="WBS", SUMIFS($P39:$P$185,$G39:$G$185,WBS_ID), IF($N38<>"", IF($N38<=8,$N38,IF(AND(Field_Sch_Days>4,Field_Sch_Hours>8),$N38*(8/Field_Sch_Hours),$N38)), "")) -> 0 | Q38: 0 | U38: =IF(OR(Type="A", Type="LOE"), _xlfn.IFNA(INDEX(Tbl_Labor_Rates[#All],MATCH('Project Estimation'!T38,'Labor Rate Sheet'!$B$11:$B$51,0),MATCH(_xlfn.CONCAT("ST_",VLOOKUP(Client_Name,'Project Details'!$AO$15:$AS$56,4,FALSE)),Tbl_Labor_Rates[#Headers],0)),""),"") ->  | V38: =IF(OR(Type="A", Type="LOE"), _xlfn.IFNA(INDEX(Tbl_Labor_Rates[#All],MATCH('Project Estimation'!T38,'Labor Rate Sheet'!$B$11:$B$51,0),MATCH(_xlfn.CONCAT("OT_",VLOOKUP(Client_Name,'Project Details'!$AO$15:$AS$56,4,FALSE)),Tbl_Labor_Rates[#Headers],0)),""),"") ->  | AC38: =IF(OR(Type="A", Type="LOE"), _xlfn.IFNA(INDEX(Tbl_Labor_Rates[#All],MATCH('Project Estimation'!AB38,'Labor Rate Sheet'!$B$11:$B$51,0),MATCH(_xlfn.CONCAT("ST_",VLOOKUP(Client_Name,'Project Details'!$AO$15:$AS$56,4,FALSE)),Tbl_Labor_Rates[#Headers],0)),""),"") ->  | AD38: =IF(OR(Type="A", Type="LOE"), _xlfn.IFNA(INDEX(Tbl_Labor_Rates[#All],MATCH('Project Estimation'!AB38,'Labor Rate Sheet'!$B$11:$B$51,0),MATCH(_xlfn.CONCAT("OT_",VLOOKUP(Client_Name,'Project Details'!$AO$15:$AS$56,4,FALSE)),Tbl_Labor_Rates[#Headers],0)),""),"") ->  | AK38: =IF(OR(Type="A", Type="LOE"), _xlfn.IFNA(INDEX(Tbl_Labor_Rates[#All],MATCH('Project Estimation'!AJ38,'Labor Rate Sheet'!$B$11:$B$51,0),MATCH(_xlfn.CONCAT("ST_",VLOOKUP(Client_Name,'Project Details'!$AO$15:$AS$56,4,FALSE)),Tbl_Labor_Rates[#Headers],0)),""),"") ->  | AL38: =IF(OR(Type="A", Type="LOE"), _xlfn.IFNA(INDEX(Tbl_Labor_Rates[#All],MATCH('Project Estimation'!AJ38,'Labor Rate Sheet'!$B$11:$B$51,0),MATCH(_xlfn.CONCAT("OT_",VLOOKUP(Client_Name,'Project Details'!$AO$15:$AS$56,4,FALSE)),Tbl_Labor_Rates[#Headers],0)),""),"") ->  | AS38: =IF(OR(Type="A", Type="LOE"), _xlfn.IFNA(INDEX(Tbl_Labor_Rates[#All],MATCH('Project Estimation'!AR38,'Labor Rate Sheet'!$B$11:$B$51,0),MATCH(_xlfn.CONCAT("ST_",VLOOKUP(Client_Name,'Project Details'!$AO$15:$AS$56,4,FALSE)),Tbl_Labor_Rates[#Headers],0)),""),"") ->  | AT38: =IF(OR(Type="A", Type="LOE"), _xlfn.IFNA(INDEX(Tbl_Labor_Rates[#All],MATCH('Project Estimation'!AR38,'Labor Rate Sheet'!$B$11:$B$51,0),MATCH(_xlfn.CONCAT("OT_",VLOOKUP(Client_Name,'Project Details'!$AO$15:$AS$56,4,FALSE)),Tbl_Labor_Rates[#Headers],0)),""),"") ->  | BA38: =IF(OR(Type="A", Type="LOE"), _xlfn.IFNA(INDEX(Tbl_Labor_Rates[#All],MATCH('Project Estimation'!AZ38,'Labor Rate Sheet'!$B$11:$B$51,0),MATCH(_xlfn.CONCAT("ST_",VLOOKUP(Client_Name,'Project Details'!$AO$15:$AS$56,4,FALSE)),Tbl_Labor_Rates[#Headers],0)),""),"") ->  | BB38: =IF(OR(Type="A", Type="LOE"), _xlfn.IFNA(INDEX(Tbl_Labor_Rates[#All],MATCH('Project Estimation'!AZ38,'Labor Rate Sheet'!$B$11:$B$51,0),MATCH(_xlfn.CONCAT("OT_",VLOOKUP(Client_Name,'Project Details'!$AO$15:$AS$56,4,FALSE)),Tbl_Labor_Rates[#Headers],0)),""),"") ->  | BI38: =IF(OR(Type="A", Type="LOE"), _xlfn.IFNA(INDEX(Tbl_Labor_Rates[#All],MATCH('Project Estimation'!BH38,'Labor Rate Sheet'!$B$11:$B$51,0),MATCH(_xlfn.CONCAT("ST_",VLOOKUP(Client_Name,'Project Details'!$AO$15:$AS$56,4,FALSE)),Tbl_Labor_Rates[#Headers],0)),""),"") ->  | BJ38: =IF(OR(Type="A", Type="LOE"), _xlfn.IFNA(INDEX(Tbl_Labor_Rates[#All],MATCH('Project Estimation'!BH38,'Labor Rate Sheet'!$B$11:$B$51,0),MATCH(_xlfn.CONCAT("OT_",VLOOKUP(Client_Name,'Project Details'!$AO$15:$AS$56,4,FALSE)),Tbl_Labor_Rates[#Headers],0)),""),"") ->  | BQ38: =IF(OR(Type="A", Type="LOE"), _xlfn.IFNA(INDEX(Tbl_Labor_Rates[#All],MATCH('Project Estimation'!BP38,'Labor Rate Sheet'!$B$11:$B$51,0),MATCH(_xlfn.CONCAT("ST_",VLOOKUP(Client_Name,'Project Details'!$AO$15:$AS$56,4,FALSE)),Tbl_Labor_Rates[#Headers],0)),""),"") ->  | BR38: =IF(OR(Type="A", Type="LOE"), _xlfn.IFNA(INDEX(Tbl_Labor_Rates[#All],MATCH('Project Estimation'!BP38,'Labor Rate Sheet'!$B$11:$B$51,0),MATCH(_xlfn.CONCAT("OT_",VLOOKUP(Client_Name,'Project Details'!$AO$15:$AS$56,4,FALSE)),Tbl_Labor_Rates[#Headers],0)),""),"") ->  | BY38: =IF(OR(Type="A", Type="LOE"), _xlfn.IFNA(INDEX(Tbl_Labor_Rates[#All],MATCH('Project Estimation'!BX38,'Labor Rate Sheet'!$B$11:$B$51,0),MATCH(_xlfn.CONCAT("ST_",VLOOKUP(Client_Name,'Project Details'!$AO$15:$AS$56,4,FALSE)),Tbl_Labor_Rates[#Headers],0)),""),"") ->  | BZ38: =IF(OR(Type="A", Type="LOE"), _xlfn.IFNA(INDEX(Tbl_Labor_Rates[#All],MATCH('Project Estimation'!BX38,'Labor Rate Sheet'!$B$11:$B$51,0),MATCH(_xlfn.CONCAT("OT_",VLOOKUP(Client_Name,'Project Details'!$AO$15:$AS$56,4,FALSE)),Tbl_Labor_Rates[#Headers],0)),""),"") ->  | CG38: =IF(OR(Type="A", Type="LOE"), _xlfn.IFNA(INDEX(Tbl_Labor_Rates[#All],MATCH('Project Estimation'!CF38,'Labor Rate Sheet'!$B$11:$B$51,0),MATCH(_xlfn.CONCAT("ST_",VLOOKUP(Client_Name,'Project Details'!$AO$15:$AS$56,4,FALSE)),Tbl_Labor_Rates[#Headers],0)),""),"") ->  | CH38: =IF(OR(Type="A", Type="LOE"), _xlfn.IFNA(INDEX(Tbl_Labor_Rates[#All],MATCH('Project Estimation'!CF38,'Labor Rate Sheet'!$B$11:$B$51,0),MATCH(_xlfn.CONCAT("OT_",VLOOKUP(Client_Name,'Project Details'!$AO$15:$AS$56,4,FALSE)),Tbl_Labor_Rates[#Headers],0)),""),"") ->  | CM38: =IF(Type="WBS", SUMIFS(CM39:CM$54,$G39:$G$54,WBS_ID),IF(Type="A", ($S38*P38)+($AA38*P38)+($AI38*P38)+($AQ38*P38)+($AY38*P38)+($BG38*P38)+($BO38*P38)+($BW38*P38)+($CE38*P38), IF(Type="SUB", 0,IF(Type="M", 0,"")))) -> 0 | CN38: =IF(Type="WBS", SUMIFS(CN39:CN$54,$G39:$G$54,WBS_ID),IF(Type="A", ($S38*Q38)+($AA38*Q38)+($AI38*Q38)+($AQ38*Q38)+($AY38*Q38)+($BG38*Q38)+($BO38*Q38)+($BW38*Q38)+($CE38*Q38), IF(Type="SUB", 0,IF(Type="M", 0,"")))) -> 0 | CO38: =IF(Type="WBS", SUMIFS(CO43:CO$54,$G43:$G$54,WBS_ID),IF(Type="A", $CM38+$CN38, IF(Type="SUB", 0,IF(Type="M", 0,"")))) -> 0 | CP38: =IF(Type="WBS", SUMIFS($CP39:$CP$185,$G39:$G$185,WBS_ID), IF($N38<>"", IF(OR(Type="A",Type="LOE"), SUM(IF(ISBLANK(AM38), 0, AM38), IF(ISBLANK(AE38), 0, AE38), IF(ISBLANK(W38), 0, W38)), IF(Type="SUB", 0,IF(Type="M", 0,""))),"")) -> $0.00 | CQ38: =IF(Type="WBS", SUMIFS($CQ39:$CQ$185,$G39:$G$185,WBS_ID), IF($N38<>"", IF(OR(Type="A",Type="LOE"), SUM(IF(ISBLANK(AN38), 0, AN38), IF(ISBLANK(AF38), 0, AF38), IF(ISBLANK(X38), 0, X38)), IF(Type="SUB", 0,IF(Type="M", 0,""))),"")) -> $0.00 | CR38: =IF(Type="SUB", 0, IF(Type="WBS", SUMIFS($CR39:CR$185,$G39:$G$185,WBS_ID), IFERROR(IF(SUM(IF(ISBLANK($AN38), 0, $AN38), IF(ISBLANK($AM38), 0, $AM38), IF(ISBLANK($AG38), 0, $AG38), IF(ISBLANK($Y38), 0, $Y38), IF(ISBLANK($AO38), 0, $AO38))=0, "", SUM(IF(ISBLANK($AN38), 0, $AN38), IF(ISBLANK($AM38), 0, $AM38), IF(ISBLANK($AG38), 0, $AG38), IF(ISBLANK($Y38), 0, $Y38), IF(ISBLANK($AO38), 0, $AO38))),""))) ->  | CV38: =_xlfn.IFNA(INDEX(Tbl_Equipment_Rates[#All],MATCH('Project Estimation'!CT38,Tbl_Equipment_Rates[EQUIPMENT CLASSIFICATION],0),MATCH(_xlfn.CONCAT("Hourly Rate ",VLOOKUP(Client_Name,'Project Details'!$AO$15:$AS$60,4,FALSE)), Tbl_Equipment_Rates[#Headers],0)),"") ->  | DA38: =_xlfn.IFNA(INDEX(Tbl_Equipment_Rates[#All],MATCH('Project Estimation'!CY38,Tbl_Equipment_Rates[EQUIPMENT CLASSIFICATION],0),MATCH(_xlfn.CONCAT("Hourly Rate ",VLOOKUP(Client_Name,'Project Details'!$AO$15:$AS$60,4,FALSE)), Tbl_Equipment_Rates[#Headers],0)),"") ->  | DF38: =_xlfn.IFNA(INDEX(Tbl_Equipment_Rates[#All],MATCH('Project Estimation'!DD38,Tbl_Equipment_Rates[EQUIPMENT CLASSIFICATION],0),MATCH(_xlfn.CONCAT("Hourly Rate ",VLOOKUP(Client_Name,'Project Details'!$AO$15:$AS$60,4,FALSE)), Tbl_Equipment_Rates[#Headers],0)),"") ->  | DK38: =_xlfn.IFNA(INDEX(Tbl_Equipment_Rates[#All],MATCH('Project Estimation'!DI38,Tbl_Equipment_Rates[EQUIPMENT CLASSIFICATION],0),MATCH(_xlfn.CONCAT("Hourly Rate ",VLOOKUP(Client_Name,'Project Details'!$AO$15:$AS$60,4,FALSE)), Tbl_Equipment_Rates[#Headers],0)),"") ->  | DP38: =_xlfn.IFNA(INDEX(Tbl_Equipment_Rates[#All],MATCH('Project Estimation'!DN38,Tbl_Equipment_Rates[EQUIPMENT CLASSIFICATION],0),MATCH(_xlfn.CONCAT("Hourly Rate ",VLOOKUP(Client_Name,'Project Details'!$AO$15:$AS$60,4,FALSE)), Tbl_Equipment_Rates[#Headers],0)),"") -> 
B39: 14 | D39: =IF(AND(Type="WBS", WBS_Level>=1), COUNTIFS(C$25:C39, Stage_ID, $K$25:K39, 1), "") ->  | E39: =IF(AND(Type="WBS", WBS_Level>=2), COUNTIFS(D$25:D39, Level_1, $K$25:$K39, 2), "") ->  | F39: =IF(AND(Type="WBS", WBS_Level>=3), COUNTIFS(E$25:E39, Level_2, $K$25:K39, 3), "") ->  | G39: 1 | H39: 0 | I39: 14 | L39: M | M39: Mobilization to YYYY | N39: 0 | O39: =IF(Type="WBS", SUMIFS($O40:$O$185,$G40:$G$185,WBS_ID), IF(OR(Type="A", Type="LOE"), ($N39 /Field_Sch_Hours), IF(Type="SUB", $FK39/Field_Sch_Hours,""))) ->  | P39: =IF(Type="WBS", SUMIFS($P40:$P$185,$G40:$G$185,WBS_ID), IF($N39<>"", IF($N39<=8,$N39,IF(AND(Field_Sch_Days>4,Field_Sch_Hours>8),$N39*(8/Field_Sch_Hours),$N39)), "")) -> 0 | Q39: 0 | U39: =IF(OR(Type="A", Type="LOE"), _xlfn.IFNA(INDEX(Tbl_Labor_Rates[#All],MATCH('Project Estimation'!T39,'Labor Rate Sheet'!$B$11:$B$51,0),MATCH(_xlfn.CONCAT("ST_",VLOOKUP(Client_Name,'Project Details'!$AO$15:$AS$56,4,FALSE)),Tbl_Labor_Rates[#Headers],0)),""),"") ->  | V39: =IF(OR(Type="A", Type="LOE"), _xlfn.IFNA(INDEX(Tbl_Labor_Rates[#All],MATCH('Project Estimation'!T39,'Labor Rate Sheet'!$B$11:$B$51,0),MATCH(_xlfn.CONCAT("OT_",VLOOKUP(Client_Name,'Project Details'!$AO$15:$AS$56,4,FALSE)),Tbl_Labor_Rates[#Headers],0)),""),"") ->  | AC39: =IF(OR(Type="A", Type="LOE"), _xlfn.IFNA(INDEX(Tbl_Labor_Rates[#All],MATCH('Project Estimation'!AB39,'Labor Rate Sheet'!$B$11:$B$51,0),MATCH(_xlfn.CONCAT("ST_",VLOOKUP(Client_Name,'Project Details'!$AO$15:$AS$56,4,FALSE)),Tbl_Labor_Rates[#Headers],0)),""),"") ->  | AD39: =IF(OR(Type="A", Type="LOE"), _xlfn.IFNA(INDEX(Tbl_Labor_Rates[#All],MATCH('Project Estimation'!AB39,'Labor Rate Sheet'!$B$11:$B$51,0),MATCH(_xlfn.CONCAT("OT_",VLOOKUP(Client_Name,'Project Details'!$AO$15:$AS$56,4,FALSE)),Tbl_Labor_Rates[#Headers],0)),""),"") ->  | AK39: =IF(OR(Type="A", Type="LOE"), _xlfn.IFNA(INDEX(Tbl_Labor_Rates[#All],MATCH('Project Estimation'!AJ39,'Labor Rate Sheet'!$B$11:$B$51,0),MATCH(_xlfn.CONCAT("ST_",VLOOKUP(Client_Name,'Project Details'!$AO$15:$AS$56,4,FALSE)),Tbl_Labor_Rates[#Headers],0)),""),"") ->  | AL39: =IF(OR(Type="A", Type="LOE"), _xlfn.IFNA(INDEX(Tbl_Labor_Rates[#All],MATCH('Project Estimation'!AJ39,'Labor Rate Sheet'!$B$11:$B$51,0),MATCH(_xlfn.CONCAT("OT_",VLOOKUP(Client_Name,'Project Details'!$AO$15:$AS$56,4,FALSE)),Tbl_Labor_Rates[#Headers],0)),""),"") ->  | AS39: =IF(OR(Type="A", Type="LOE"), _xlfn.IFNA(INDEX(Tbl_Labor_Rates[#All],MATCH('Project Estimation'!AR39,'Labor Rate Sheet'!$B$11:$B$51,0),MATCH(_xlfn.CONCAT("ST_",VLOOKUP(Client_Name,'Project Details'!$AO$15:$AS$56,4,FALSE)),Tbl_Labor_Rates[#Headers],0)),""),"") ->  | AT39: =IF(OR(Type="A", Type="LOE"), _xlfn.IFNA(INDEX(Tbl_Labor_Rates[#All],MATCH('Project Estimation'!AR39,'Labor Rate Sheet'!$B$11:$B$51,0),MATCH(_xlfn.CONCAT("OT_",VLOOKUP(Client_Name,'Project Details'!$AO$15:$AS$56,4,FALSE)),Tbl_Labor_Rates[#Headers],0)),""),"") ->  | BA39: =IF(OR(Type="A", Type="LOE"), _xlfn.IFNA(INDEX(Tbl_Labor_Rates[#All],MATCH('Project Estimation'!AZ39,'Labor Rate Sheet'!$B$11:$B$51,0),MATCH(_xlfn.CONCAT("ST_",VLOOKUP(Client_Name,'Project Details'!$AO$15:$AS$56,4,FALSE)),Tbl_Labor_Rates[#Headers],0)),""),"") ->  | BB39: =IF(OR(Type="A", Type="LOE"), _xlfn.IFNA(INDEX(Tbl_Labor_Rates[#All],MATCH('Project Estimation'!AZ39,'Labor Rate Sheet'!$B$11:$B$51,0),MATCH(_xlfn.CONCAT("OT_",VLOOKUP(Client_Name,'Project Details'!$AO$15:$AS$56,4,FALSE)),Tbl_Labor_Rates[#Headers],0)),""),"") ->  | BI39: =IF(OR(Type="A", Type="LOE"), _xlfn.IFNA(INDEX(Tbl_Labor_Rates[#All],MATCH('Project Estimation'!BH39,'Labor Rate Sheet'!$B$11:$B$51,0),MATCH(_xlfn.CONCAT("ST_",VLOOKUP(Client_Name,'Project Details'!$AO$15:$AS$56,4,FALSE)),Tbl_Labor_Rates[#Headers],0)),""),"") ->  | BJ39: =IF(OR(Type="A", Type="LOE"), _xlfn.IFNA(INDEX(Tbl_Labor_Rates[#All],MATCH('Project Estimation'!BH39,'Labor Rate Sheet'!$B$11:$B$51,0),MATCH(_xlfn.CONCAT("OT_",VLOOKUP(Client_Name,'Project Details'!$AO$15:$AS$56,4,FALSE)),Tbl_Labor_Rates[#Headers],0)),""),"") ->  | BQ39: =IF(OR(Type="A", Type="LOE"), _xlfn.IFNA(INDEX(Tbl_Labor_Rates[#All],MATCH('Project Estimation'!BP39,'Labor Rate Sheet'!$B$11:$B$51,0),MATCH(_xlfn.CONCAT("ST_",VLOOKUP(Client_Name,'Project Details'!$AO$15:$AS$56,4,FALSE)),Tbl_Labor_Rates[#Headers],0)),""),"") ->  | BR39: =IF(OR(Type="A", Type="LOE"), _xlfn.IFNA(INDEX(Tbl_Labor_Rates[#All],MATCH('Project Estimation'!BP39,'Labor Rate Sheet'!$B$11:$B$51,0),MATCH(_xlfn.CONCAT("OT_",VLOOKUP(Client_Name,'Project Details'!$AO$15:$AS$56,4,FALSE)),Tbl_Labor_Rates[#Headers],0)),""),"") ->  | BY39: =IF(OR(Type="A", Type="LOE"), _xlfn.IFNA(INDEX(Tbl_Labor_Rates[#All],MATCH('Project Estimation'!BX39,'Labor Rate Sheet'!$B$11:$B$51,0),MATCH(_xlfn.CONCAT("ST_",VLOOKUP(Client_Name,'Project Details'!$AO$15:$AS$56,4,FALSE)),Tbl_Labor_Rates[#Headers],0)),""),"") ->  | BZ39: =IF(OR(Type="A", Type="LOE"), _xlfn.IFNA(INDEX(Tbl_Labor_Rates[#All],MATCH('Project Estimation'!BX39,'Labor Rate Sheet'!$B$11:$B$51,0),MATCH(_xlfn.CONCAT("OT_",VLOOKUP(Client_Name,'Project Details'!$AO$15:$AS$56,4,FALSE)),Tbl_Labor_Rates[#Headers],0)),""),"") ->  | CG39: =IF(OR(Type="A", Type="LOE"), _xlfn.IFNA(INDEX(Tbl_Labor_Rates[#All],MATCH('Project Estimation'!CF39,'Labor Rate Sheet'!$B$11:$B$51,0),MATCH(_xlfn.CONCAT("ST_",VLOOKUP(Client_Name,'Project Details'!$AO$15:$AS$56,4,FALSE)),Tbl_Labor_Rates[#Headers],0)),""),"") ->  | CH39: =IF(OR(Type="A", Type="LOE"), _xlfn.IFNA(INDEX(Tbl_Labor_Rates[#All],MATCH('Project Estimation'!CF39,'Labor Rate Sheet'!$B$11:$B$51,0),MATCH(_xlfn.CONCAT("OT_",VLOOKUP(Client_Name,'Project Details'!$AO$15:$AS$56,4,FALSE)),Tbl_Labor_Rates[#Headers],0)),""),"") ->  | CM39: =IF(Type="WBS", SUMIFS(CM40:CM$54,$G40:$G$54,WBS_ID),IF(Type="A", ($S39*P39)+($AA39*P39)+($AI39*P39)+($AQ39*P39)+($AY39*P39)+($BG39*P39)+($BO39*P39)+($BW39*P39)+($CE39*P39), IF(Type="SUB", 0,IF(Type="M", 0,"")))) -> 0 | CN39: =IF(Type="WBS", SUMIFS(CN40:CN$54,$G40:$G$54,WBS_ID),IF(Type="A", ($S39*Q39)+($AA39*Q39)+($AI39*Q39)+($AQ39*Q39)+($AY39*Q39)+($BG39*Q39)+($BO39*Q39)+($BW39*Q39)+($CE39*Q39), IF(Type="SUB", 0,IF(Type="M", 0,"")))) -> 0 | CO39: =IF(Type="WBS", SUMIFS(CO44:CO$54,$G44:$G$54,WBS_ID),IF(Type="A", $CM39+$CN39, IF(Type="SUB", 0,IF(Type="M", 0,"")))) -> 0 | CP39: =IF(Type="WBS", SUMIFS($CP40:$CP$185,$G40:$G$185,WBS_ID), IF($N39<>"", IF(OR(Type="A",Type="LOE"), SUM(IF(ISBLANK(AM39), 0, AM39), IF(ISBLANK(AE39), 0, AE39), IF(ISBLANK(W39), 0, W39)), IF(Type="SUB", 0,IF(Type="M", 0,""))),"")) -> $0.00 | CQ39: =IF(Type="WBS", SUMIFS($CQ40:$CQ$185,$G40:$G$185,WBS_ID), IF($N39<>"", IF(OR(Type="A",Type="LOE"), SUM(IF(ISBLANK(AN39), 0, AN39), IF(ISBLANK(AF39), 0, AF39), IF(ISBLANK(X39), 0, X39)), IF(Type="SUB", 0,IF(Type="M", 0,""))),"")) -> $0.00 | CR39: =IF(Type="SUB", 0, IF(Type="WBS", SUMIFS($CR57:CR$185,$G57:$G$185,WBS_ID), IFERROR(IF(SUM(IF(ISBLANK($AN39), 0, $AN39), IF(ISBLANK($AM39), 0, $AM39), IF(ISBLANK($AG39), 0, $AG39), IF(ISBLANK($Y39), 0, $Y39), IF(ISBLANK($AO39), 0, $AO39))=0, "", SUM(IF(ISBLANK($AN39), 0, $AN39), IF(ISBLANK($AM39), 0, $AM39), IF(ISBLANK($AG39), 0, $AG39), IF(ISBLANK($Y39), 0, $Y39), IF(ISBLANK($AO39), 0, $AO39))),""))) ->  | CV39: =_xlfn.IFNA(INDEX(Tbl_Equipment_Rates[#All],MATCH('Project Estimation'!CT39,Tbl_Equipment_Rates[EQUIPMENT CLASSIFICATION],0),MATCH(_xlfn.CONCAT("Hourly Rate ",VLOOKUP(Client_Name,'Project Details'!$AO$15:$AS$60,4,FALSE)), Tbl_Equipment_Rates[#Headers],0)),"") ->  | DA39: =_xlfn.IFNA(INDEX(Tbl_Equipment_Rates[#All],MATCH('Project Estimation'!CY39,Tbl_Equipment_Rates[EQUIPMENT CLASSIFICATION],0),MATCH(_xlfn.CONCAT("Hourly Rate ",VLOOKUP(Client_Name,'Project Details'!$AO$15:$AS$60,4,FALSE)), Tbl_Equipment_Rates[#Headers],0)),"") ->  | DF39: =_xlfn.IFNA(INDEX(Tbl_Equipment_Rates[#All],MATCH('Project Estimation'!DD39,Tbl_Equipment_Rates[EQUIPMENT CLASSIFICATION],0),MATCH(_xlfn.CONCAT("Hourly Rate ",VLOOKUP(Client_Name,'Project Details'!$AO$15:$AS$60,4,FALSE)), Tbl_Equipment_Rates[#Headers],0)),"") ->  | DK39: =_xlfn.IFNA(INDEX(Tbl_Equipment_Rates[#All],MATCH('Project Estimation'!DI39,Tbl_Equipment_Rates[EQUIPMENT CLASSIFICATION],0),MATCH(_xlfn.CONCAT("Hourly Rate ",VLOOKUP(Client_Name,'Project Details'!$AO$15:$AS$60,4,FALSE)), Tbl_Equipment_Rates[#Headers],0)),"") ->  | DP39: =_xlfn.IFNA(INDEX(Tbl_Equipment_Rates[#All],MATCH('Project Estimation'!DN39,Tbl_Equipment_Rates[EQUIPMENT CLASSIFICATION],0),MATCH(_xlfn.CONCAT("Hourly Rate ",VLOOKUP(Client_Name,'Project Details'!$AO$15:$AS$60,4,FALSE)), Tbl_Equipment_Rates[#Headers],0)),"") -> 
B40: 15 | D40: =IF(AND(Type="WBS", WBS_Level>=1), COUNTIFS(C$25:C40, Stage_ID, $K$25:K40, 1), "") ->  | E40: =IF(AND(Type="WBS", WBS_Level>=2), COUNTIFS(D$25:D40, Level_1, $K$25:$K40, 2), "") ->  | F40: =IF(AND(Type="WBS", WBS_Level>=3), COUNTIFS(E$25:E40, Level_2, $K$25:K40, 3), "") ->  | G40: 1 | H40: 0 | I40: 15 | L40: M | M40: Hydrovac Complete | N40: 0 | O40: =IF(Type="WBS", SUMIFS($O41:$O$185,$G41:$G$185,WBS_ID), IF(OR(Type="A", Type="LOE"), ($N40 /Field_Sch_Hours), IF(Type="SUB", $FK40/Field_Sch_Hours,""))) ->  | P40: =IF(Type="WBS", SUMIFS($P41:$P$185,$G41:$G$185,WBS_ID), IF($N40<>"", IF($N40<=8,$N40,IF(AND(Field_Sch_Days>4,Field_Sch_Hours>8),$N40*(8/Field_Sch_Hours),$N40)), "")) -> 0 | Q40: 0 | U40: =IF(OR(Type="A", Type="LOE"), _xlfn.IFNA(INDEX(Tbl_Labor_Rates[#All],MATCH('Project Estimation'!T40,'Labor Rate Sheet'!$B$11:$B$51,0),MATCH(_xlfn.CONCAT("ST_",VLOOKUP(Client_Name,'Project Details'!$AO$15:$AS$56,4,FALSE)),Tbl_Labor_Rates[#Headers],0)),""),"") ->  | V40: =IF(OR(Type="A", Type="LOE"), _xlfn.IFNA(INDEX(Tbl_Labor_Rates[#All],MATCH('Project Estimation'!T40,'Labor Rate Sheet'!$B$11:$B$51,0),MATCH(_xlfn.CONCAT("OT_",VLOOKUP(Client_Name,'Project Details'!$AO$15:$AS$56,4,FALSE)),Tbl_Labor_Rates[#Headers],0)),""),"") ->  | AC40: =IF(OR(Type="A", Type="LOE"), _xlfn.IFNA(INDEX(Tbl_Labor_Rates[#All],MATCH('Project Estimation'!AB40,'Labor Rate Sheet'!$B$11:$B$51,0),MATCH(_xlfn.CONCAT("ST_",VLOOKUP(Client_Name,'Project Details'!$AO$15:$AS$56,4,FALSE)),Tbl_Labor_Rates[#Headers],0)),""),"") ->  | AD40: =IF(OR(Type="A", Type="LOE"), _xlfn.IFNA(INDEX(Tbl_Labor_Rates[#All],MATCH('Project Estimation'!AB40,'Labor Rate Sheet'!$B$11:$B$51,0),MATCH(_xlfn.CONCAT("OT_",VLOOKUP(Client_Name,'Project Details'!$AO$15:$AS$56,4,FALSE)),Tbl_Labor_Rates[#Headers],0)),""),"") ->  | AK40: =IF(OR(Type="A", Type="LOE"), _xlfn.IFNA(INDEX(Tbl_Labor_Rates[#All],MATCH('Project Estimation'!AJ40,'Labor Rate Sheet'!$B$11:$B$51,0),MATCH(_xlfn.CONCAT("ST_",VLOOKUP(Client_Name,'Project Details'!$AO$15:$AS$56,4,FALSE)),Tbl_Labor_Rates[#Headers],0)),""),"") ->  | AL40: =IF(OR(Type="A", Type="LOE"), _xlfn.IFNA(INDEX(Tbl_Labor_Rates[#All],MATCH('Project Estimation'!AJ40,'Labor Rate Sheet'!$B$11:$B$51,0),MATCH(_xlfn.CONCAT("OT_",VLOOKUP(Client_Name,'Project Details'!$AO$15:$AS$56,4,FALSE)),Tbl_Labor_Rates[#Headers],0)),""),"") ->  | AS40: =IF(OR(Type="A", Type="LOE"), _xlfn.IFNA(INDEX(Tbl_Labor_Rates[#All],MATCH('Project Estimation'!AR40,'Labor Rate Sheet'!$B$11:$B$51,0),MATCH(_xlfn.CONCAT("ST_",VLOOKUP(Client_Name,'Project Details'!$AO$15:$AS$56,4,FALSE)),Tbl_Labor_Rates[#Headers],0)),""),"") ->  | AT40: =IF(OR(Type="A", Type="LOE"), _xlfn.IFNA(INDEX(Tbl_Labor_Rates[#All],MATCH('Project Estimation'!AR40,'Labor Rate Sheet'!$B$11:$B$51,0),MATCH(_xlfn.CONCAT("OT_",VLOOKUP(Client_Name,'Project Details'!$AO$15:$AS$56,4,FALSE)),Tbl_Labor_Rates[#Headers],0)),""),"") ->  | BA40: =IF(OR(Type="A", Type="LOE"), _xlfn.IFNA(INDEX(Tbl_Labor_Rates[#All],MATCH('Project Estimation'!AZ40,'Labor Rate Sheet'!$B$11:$B$51,0),MATCH(_xlfn.CONCAT("ST_",VLOOKUP(Client_Name,'Project Details'!$AO$15:$AS$56,4,FALSE)),Tbl_Labor_Rates[#Headers],0)),""),"") ->  | BB40: =IF(OR(Type="A", Type="LOE"), _xlfn.IFNA(INDEX(Tbl_Labor_Rates[#All],MATCH('Project Estimation'!AZ40,'Labor Rate Sheet'!$B$11:$B$51,0),MATCH(_xlfn.CONCAT("OT_",VLOOKUP(Client_Name,'Project Details'!$AO$15:$AS$56,4,FALSE)),Tbl_Labor_Rates[#Headers],0)),""),"") ->  | BI40: =IF(OR(Type="A", Type="LOE"), _xlfn.IFNA(INDEX(Tbl_Labor_Rates[#All],MATCH('Project Estimation'!BH40,'Labor Rate Sheet'!$B$11:$B$51,0),MATCH(_xlfn.CONCAT("ST_",VLOOKUP(Client_Name,'Project Details'!$AO$15:$AS$56,4,FALSE)),Tbl_Labor_Rates[#Headers],0)),""),"") ->  | BJ40: =IF(OR(Type="A", Type="LOE"), _xlfn.IFNA(INDEX(Tbl_Labor_Rates[#All],MATCH('Project Estimation'!BH40,'Labor Rate Sheet'!$B$11:$B$51,0),MATCH(_xlfn.CONCAT("OT_",VLOOKUP(Client_Name,'Project Details'!$AO$15:$AS$56,4,FALSE)),Tbl_Labor_Rates[#Headers],0)),""),"") ->  | BQ40: =IF(OR(Type="A", Type="LOE"), _xlfn.IFNA(INDEX(Tbl_Labor_Rates[#All],MATCH('Project Estimation'!BP40,'Labor Rate Sheet'!$B$11:$B$51,0),MATCH(_xlfn.CONCAT("ST_",VLOOKUP(Client_Name,'Project Details'!$AO$15:$AS$56,4,FALSE)),Tbl_Labor_Rates[#Headers],0)),""),"") ->  | BR40: =IF(OR(Type="A", Type="LOE"), _xlfn.IFNA(INDEX(Tbl_Labor_Rates[#All],MATCH('Project Estimation'!BP40,'Labor Rate Sheet'!$B$11:$B$51,0),MATCH(_xlfn.CONCAT("OT_",VLOOKUP(Client_Name,'Project Details'!$AO$15:$AS$56,4,FALSE)),Tbl_Labor_Rates[#Headers],0)),""),"") ->  | BY40: =IF(OR(Type="A", Type="LOE"), _xlfn.IFNA(INDEX(Tbl_Labor_Rates[#All],MATCH('Project Estimation'!BX40,'Labor Rate Sheet'!$B$11:$B$51,0),MATCH(_xlfn.CONCAT("ST_",VLOOKUP(Client_Name,'Project Details'!$AO$15:$AS$56,4,FALSE)),Tbl_Labor_Rates[#Headers],0)),""),"") ->  | BZ40: =IF(OR(Type="A", Type="LOE"), _xlfn.IFNA(INDEX(Tbl_Labor_Rates[#All],MATCH('Project Estimation'!BX40,'Labor Rate Sheet'!$B$11:$B$51,0),MATCH(_xlfn.CONCAT("OT_",VLOOKUP(Client_Name,'Project Details'!$AO$15:$AS$56,4,FALSE)),Tbl_Labor_Rates[#Headers],0)),""),"") ->  | CG40: =IF(OR(Type="A", Type="LOE"), _xlfn.IFNA(INDEX(Tbl_Labor_Rates[#All],MATCH('Project Estimation'!CF40,'Labor Rate Sheet'!$B$11:$B$51,0),MATCH(_xlfn.CONCAT("ST_",VLOOKUP(Client_Name,'Project Details'!$AO$15:$AS$56,4,FALSE)),Tbl_Labor_Rates[#Headers],0)),""),"") ->  | CH40: =IF(OR(Type="A", Type="LOE"), _xlfn.IFNA(INDEX(Tbl_Labor_Rates[#All],MATCH('Project Estimation'!CF40,'Labor Rate Sheet'!$B$11:$B$51,0),MATCH(_xlfn.CONCAT("OT_",VLOOKUP(Client_Name,'Project Details'!$AO$15:$AS$56,4,FALSE)),Tbl_Labor_Rates[#Headers],0)),""),"") ->  | CM40: =IF(Type="WBS", SUMIFS(CM41:CM$54,$G41:$G$54,WBS_ID),IF(Type="A", ($S40*P40)+($AA40*P40)+($AI40*P40)+($AQ40*P40)+($AY40*P40)+($BG40*P40)+($BO40*P40)+($BW40*P40)+($CE40*P40), IF(Type="SUB", 0,IF(Type="M", 0,"")))) -> 0 | CN40: =IF(Type="WBS", SUMIFS(CN41:CN$54,$G41:$G$54,WBS_ID),IF(Type="A", ($S40*Q40)+($AA40*Q40)+($AI40*Q40)+($AQ40*Q40)+($AY40*Q40)+($BG40*Q40)+($BO40*Q40)+($BW40*Q40)+($CE40*Q40), IF(Type="SUB", 0,IF(Type="M", 0,"")))) -> 0 | CO40: =IF(Type="WBS", SUMIFS(CO45:CO$54,$G45:$G$54,WBS_ID),IF(Type="A", $CM40+$CN40, IF(Type="SUB", 0,IF(Type="M", 0,"")))) -> 0 | CP40: =IF(Type="WBS", SUMIFS($CP41:$CP$185,$G41:$G$185,WBS_ID), IF($N40<>"", IF(OR(Type="A",Type="LOE"), SUM(IF(ISBLANK(AM40), 0, AM40), IF(ISBLANK(AE40), 0, AE40), IF(ISBLANK(W40), 0, W40)), IF(Type="SUB", 0,IF(Type="M", 0,""))),"")) -> $0.00 | CQ40: =IF(Type="WBS", SUMIFS($CQ41:$CQ$185,$G41:$G$185,WBS_ID), IF($N40<>"", IF(OR(Type="A",Type="LOE"), SUM(IF(ISBLANK(AN40), 0, AN40), IF(ISBLANK(AF40), 0, AF40), IF(ISBLANK(X40), 0, X40)), IF(Type="SUB", 0,IF(Type="M", 0,""))),"")) -> $0.00 | CR40: =IF(Type="SUB", 0, IF(Type="WBS", SUMIFS($CR41:CR$185,$G41:$G$185,WBS_ID), IFERROR(IF(SUM(IF(ISBLANK($AN40), 0, $AN40), IF(ISBLANK($AM40), 0, $AM40), IF(ISBLANK($AG40), 0, $AG40), IF(ISBLANK($Y40), 0, $Y40), IF(ISBLANK($AO40), 0, $AO40))=0, "", SUM(IF(ISBLANK($AN40), 0, $AN40), IF(ISBLANK($AM40), 0, $AM40), IF(ISBLANK($AG40), 0, $AG40), IF(ISBLANK($Y40), 0, $Y40), IF(ISBLANK($AO40), 0, $AO40))),""))) ->  | CV40: =_xlfn.IFNA(INDEX(Tbl_Equipment_Rates[#All],MATCH('Project Estimation'!CT40,Tbl_Equipment_Rates[EQUIPMENT CLASSIFICATION],0),MATCH(_xlfn.CONCAT("Hourly Rate ",VLOOKUP(Client_Name,'Project Details'!$AO$15:$AS$60,4,FALSE)), Tbl_Equipment_Rates[#Headers],0)),"") ->  | CW40: =IF(CT40<>"", CU40*CV40, "") ->  | DA40: =_xlfn.IFNA(INDEX(Tbl_Equipment_Rates[#All],MATCH('Project Estimation'!CY40,Tbl_Equipment_Rates[EQUIPMENT CLASSIFICATION],0),MATCH(_xlfn.CONCAT("Hourly Rate ",VLOOKUP(Client_Name,'Project Details'!$AO$15:$AS$60,4,FALSE)), Tbl_Equipment_Rates[#Headers],0)),"") ->  | DB40: =IF(CY40<>"", CZ40*DA40, "") ->  | DF40: =_xlfn.IFNA(INDEX(Tbl_Equipment_Rates[#All],MATCH('Project Estimation'!DD40,Tbl_Equipment_Rates[EQUIPMENT CLASSIFICATION],0),MATCH(_xlfn.CONCAT("Hourly Rate ",VLOOKUP(Client_Name,'Project Details'!$AO$15:$AS$60,4,FALSE)), Tbl_Equipment_Rates[#Headers],0)),"") ->  | DG40: =IF(DD40<>"", DE40*DF40, "") ->  | DK40: =_xlfn.IFNA(INDEX(Tbl_Equipment_Rates[#All],MATCH('Project Estimation'!DI40,Tbl_Equipment_Rates[EQUIPMENT CLASSIFICATION],0),MATCH(_xlfn.CONCAT("Hourly Rate ",VLOOKUP(Client_Name,'Project Details'!$AO$15:$AS$60,4,FALSE)), Tbl_Equipment_Rates[#Headers],0)),"") ->  | DL40: =IF(DI40<>"", DJ40*DK40, "") ->  | DP40: =_xlfn.IFNA(INDEX(Tbl_Equipment_Rates[#All],MATCH('Project Estimation'!DN40,Tbl_Equipment_Rates[EQUIPMENT CLASSIFICATION],0),MATCH(_xlfn.CONCAT("Hourly Rate ",VLOOKUP(Client_Name,'Project Details'!$AO$15:$AS$60,4,FALSE)), Tbl_Equipment_Rates[#Headers],0)),"") ->  | DW40: =IF(OR(DS40<>"",DT40<>"",DU40<>"",DV40<>""), DV40*DS40,"") ->  | DX40: =IF(OR(DT40<>0,DU40<>0,DV40<>0), $CU$5, "") ->  | DY40: =IFERROR(DS40*DV40*(1+DX40),"") ->  | EE40: =IF(OR(EA40<>"",EB40<>"",EC40<>"",ED40<>""), ED40*EA40,"") ->  | EF40: =IF(OR(EB40<>0,EC40<>0,ED40<>0), $CU$5, "") ->  | EG40: =IFERROR(EA40*ED40*(1+EF40),"") ->  | EM40: =IF(OR(EI40<>"",EJ40<>"",EK40<>"",EL40<>""), EL40*EI40,"") ->  | EN40: =IF(OR(EJ40<>0,EK40<>0,EL40<>0), $CU$5, "") ->  | EO40: =IFERROR(EI40*EL40*(1+EN40),"") -> 
B41: 16 | D41: =IF(AND(Type="WBS", WBS_Level>=1), COUNTIFS(C$25:C41, Stage_ID, $K$25:K41, 1), "") ->  | E41: =IF(AND(Type="WBS", WBS_Level>=2), COUNTIFS(D$25:D41, Level_1, $K$25:$K41, 2), "") ->  | F41: =IF(AND(Type="WBS", WBS_Level>=3), COUNTIFS(E$25:E41, Level_2, $K$25:K41, 3), "") ->  | G41: 1 | H41: 0 | I41: 16 | L41: M | M41: Complete Inspection - 16 Hour Standby Complete | N41: 0 | O41: =IF(Type="WBS", SUMIFS($O42:$O$185,$G42:$G$185,WBS_ID), IF(OR(Type="A", Type="LOE"), ($N41 /Field_Sch_Hours), IF(Type="SUB", $FK41/Field_Sch_Hours,""))) ->  | P41: =IF(Type="WBS", SUMIFS($P42:$P$185,$G42:$G$185,WBS_ID), IF($N41<>"", IF($N41<=8,$N41,IF(AND(Field_Sch_Days>4,Field_Sch_Hours>8),$N41*(8/Field_Sch_Hours),$N41)), "")) -> 0 | Q41: 0 | U41: =IF(OR(Type="A", Type="LOE"), _xlfn.IFNA(INDEX(Tbl_Labor_Rates[#All],MATCH('Project Estimation'!T41,'Labor Rate Sheet'!$B$11:$B$51,0),MATCH(_xlfn.CONCAT("ST_",VLOOKUP(Client_Name,'Project Details'!$AO$15:$AS$56,4,FALSE)),Tbl_Labor_Rates[#Headers],0)),""),"") ->  | V41: =IF(OR(Type="A", Type="LOE"), _xlfn.IFNA(INDEX(Tbl_Labor_Rates[#All],MATCH('Project Estimation'!T41,'Labor Rate Sheet'!$B$11:$B$51,0),MATCH(_xlfn.CONCAT("OT_",VLOOKUP(Client_Name,'Project Details'!$AO$15:$AS$56,4,FALSE)),Tbl_Labor_Rates[#Headers],0)),""),"") ->  | AC41: =IF(OR(Type="A", Type="LOE"), _xlfn.IFNA(INDEX(Tbl_Labor_Rates[#All],MATCH('Project Estimation'!AB41,'Labor Rate Sheet'!$B$11:$B$51,0),MATCH(_xlfn.CONCAT("ST_",VLOOKUP(Client_Name,'Project Details'!$AO$15:$AS$56,4,FALSE)),Tbl_Labor_Rates[#Headers],0)),""),"") ->  | AD41: =IF(OR(Type="A", Type="LOE"), _xlfn.IFNA(INDEX(Tbl_Labor_Rates[#All],MATCH('Project Estimation'!AB41,'Labor Rate Sheet'!$B$11:$B$51,0),MATCH(_xlfn.CONCAT("OT_",VLOOKUP(Client_Name,'Project Details'!$AO$15:$AS$56,4,FALSE)),Tbl_Labor_Rates[#Headers],0)),""),"") ->  | AK41: =IF(OR(Type="A", Type="LOE"), _xlfn.IFNA(INDEX(Tbl_Labor_Rates[#All],MATCH('Project Estimation'!AJ41,'Labor Rate Sheet'!$B$11:$B$51,0),MATCH(_xlfn.CONCAT("ST_",VLOOKUP(Client_Name,'Project Details'!$AO$15:$AS$56,4,FALSE)),Tbl_Labor_Rates[#Headers],0)),""),"") ->  | AL41: =IF(OR(Type="A", Type="LOE"), _xlfn.IFNA(INDEX(Tbl_Labor_Rates[#All],MATCH('Project Estimation'!AJ41,'Labor Rate Sheet'!$B$11:$B$51,0),MATCH(_xlfn.CONCAT("OT_",VLOOKUP(Client_Name,'Project Details'!$AO$15:$AS$56,4,FALSE)),Tbl_Labor_Rates[#Headers],0)),""),"") ->  | AS41: =IF(OR(Type="A", Type="LOE"), _xlfn.IFNA(INDEX(Tbl_Labor_Rates[#All],MATCH('Project Estimation'!AR41,'Labor Rate Sheet'!$B$11:$B$51,0),MATCH(_xlfn.CONCAT("ST_",VLOOKUP(Client_Name,'Project Details'!$AO$15:$AS$56,4,FALSE)),Tbl_Labor_Rates[#Headers],0)),""),"") ->  | AT41: =IF(OR(Type="A", Type="LOE"), _xlfn.IFNA(INDEX(Tbl_Labor_Rates[#All],MATCH('Project Estimation'!AR41,'Labor Rate Sheet'!$B$11:$B$51,0),MATCH(_xlfn.CONCAT("OT_",VLOOKUP(Client_Name,'Project Details'!$AO$15:$AS$56,4,FALSE)),Tbl_Labor_Rates[#Headers],0)),""),"") ->  | BA41: =IF(OR(Type="A", Type="LOE"), _xlfn.IFNA(INDEX(Tbl_Labor_Rates[#All],MATCH('Project Estimation'!AZ41,'Labor Rate Sheet'!$B$11:$B$51,0),MATCH(_xlfn.CONCAT("ST_",VLOOKUP(Client_Name,'Project Details'!$AO$15:$AS$56,4,FALSE)),Tbl_Labor_Rates[#Headers],0)),""),"") ->  | BB41: =IF(OR(Type="A", Type="LOE"), _xlfn.IFNA(INDEX(Tbl_Labor_Rates[#All],MATCH('Project Estimation'!AZ41,'Labor Rate Sheet'!$B$11:$B$51,0),MATCH(_xlfn.CONCAT("OT_",VLOOKUP(Client_Name,'Project Details'!$AO$15:$AS$56,4,FALSE)),Tbl_Labor_Rates[#Headers],0)),""),"") ->  | BI41: =IF(OR(Type="A", Type="LOE"), _xlfn.IFNA(INDEX(Tbl_Labor_Rates[#All],MATCH('Project Estimation'!BH41,'Labor Rate Sheet'!$B$11:$B$51,0),MATCH(_xlfn.CONCAT("ST_",VLOOKUP(Client_Name,'Project Details'!$AO$15:$AS$56,4,FALSE)),Tbl_Labor_Rates[#Headers],0)),""),"") ->  | BJ41: =IF(OR(Type="A", Type="LOE"), _xlfn.IFNA(INDEX(Tbl_Labor_Rates[#All],MATCH('Project Estimation'!BH41,'Labor Rate Sheet'!$B$11:$B$51,0),MATCH(_xlfn.CONCAT("OT_",VLOOKUP(Client_Name,'Project Details'!$AO$15:$AS$56,4,FALSE)),Tbl_Labor_Rates[#Headers],0)),""),"") ->  | BQ41: =IF(OR(Type="A", Type="LOE"), _xlfn.IFNA(INDEX(Tbl_Labor_Rates[#All],MATCH('Project Estimation'!BP41,'Labor Rate Sheet'!$B$11:$B$51,0),MATCH(_xlfn.CONCAT("ST_",VLOOKUP(Client_Name,'Project Details'!$AO$15:$AS$56,4,FALSE)),Tbl_Labor_Rates[#Headers],0)),""),"") ->  | BR41: =IF(OR(Type="A", Type="LOE"), _xlfn.IFNA(INDEX(Tbl_Labor_Rates[#All],MATCH('Project Estimation'!BP41,'Labor Rate Sheet'!$B$11:$B$51,0),MATCH(_xlfn.CONCAT("OT_",VLOOKUP(Client_Name,'Project Details'!$AO$15:$AS$56,4,FALSE)),Tbl_Labor_Rates[#Headers],0)),""),"") ->  | BY41: =IF(OR(Type="A", Type="LOE"), _xlfn.IFNA(INDEX(Tbl_Labor_Rates[#All],MATCH('Project Estimation'!BX41,'Labor Rate Sheet'!$B$11:$B$51,0),MATCH(_xlfn.CONCAT("ST_",VLOOKUP(Client_Name,'Project Details'!$AO$15:$AS$56,4,FALSE)),Tbl_Labor_Rates[#Headers],0)),""),"") ->  | BZ41: =IF(OR(Type="A", Type="LOE"), _xlfn.IFNA(INDEX(Tbl_Labor_Rates[#All],MATCH('Project Estimation'!BX41,'Labor Rate Sheet'!$B$11:$B$51,0),MATCH(_xlfn.CONCAT("OT_",VLOOKUP(Client_Name,'Project Details'!$AO$15:$AS$56,4,FALSE)),Tbl_Labor_Rates[#Headers],0)),""),"") ->  | CG41: =IF(OR(Type="A", Type="LOE"), _xlfn.IFNA(INDEX(Tbl_Labor_Rates[#All],MATCH('Project Estimation'!CF41,'Labor Rate Sheet'!$B$11:$B$51,0),MATCH(_xlfn.CONCAT("ST_",VLOOKUP(Client_Name,'Project Details'!$AO$15:$AS$56,4,FALSE)),Tbl_Labor_Rates[#Headers],0)),""),"") ->  | CH41: =IF(OR(Type="A", Type="LOE"), _xlfn.IFNA(INDEX(Tbl_Labor_Rates[#All],MATCH('Project Estimation'!CF41,'Labor Rate Sheet'!$B$11:$B$51,0),MATCH(_xlfn.CONCAT("OT_",VLOOKUP(Client_Name,'Project Details'!$AO$15:$AS$56,4,FALSE)),Tbl_Labor_Rates[#Headers],0)),""),"") ->  | CM41: =IF(Type="WBS", SUMIFS(CM42:CM$54,$G42:$G$54,WBS_ID),IF(Type="A", ($S41*P41)+($AA41*P41)+($AI41*P41)+($AQ41*P41)+($AY41*P41)+($BG41*P41)+($BO41*P41)+($BW41*P41)+($CE41*P41), IF(Type="SUB", 0,IF(Type="M", 0,"")))) -> 0 | CN41: =IF(Type="WBS", SUMIFS(CN42:CN$54,$G42:$G$54,WBS_ID),IF(Type="A", ($S41*Q41)+($AA41*Q41)+($AI41*Q41)+($AQ41*Q41)+($AY41*Q41)+($BG41*Q41)+($BO41*Q41)+($BW41*Q41)+($CE41*Q41), IF(Type="SUB", 0,IF(Type="M", 0,"")))) -> 0 | CO41: =IF(Type="WBS", SUMIFS(CO46:CO$54,$G46:$G$54,WBS_ID),IF(Type="A", $CM41+$CN41, IF(Type="SUB", 0,IF(Type="M", 0,"")))) -> 0 | CP41: =IF(Type="WBS", SUMIFS($CP42:$CP$185,$G42:$G$185,WBS_ID), IF($N41<>"", IF(OR(Type="A",Type="LOE"), SUM(IF(ISBLANK(AM41), 0, AM41), IF(ISBLANK(AE41), 0, AE41), IF(ISBLANK(W41), 0, W41)), IF(Type="SUB", 0,IF(Type="M", 0,""))),"")) -> $0.00 | CQ41: =IF(Type="WBS", SUMIFS($CQ42:$CQ$185,$G42:$G$185,WBS_ID), IF($N41<>"", IF(OR(Type="A",Type="LOE"), SUM(IF(ISBLANK(AN41), 0, AN41), IF(ISBLANK(AF41), 0, AF41), IF(ISBLANK(X41), 0, X41)), IF(Type="SUB", 0,IF(Type="M", 0,""))),"")) -> $0.00 | CR41: =IF(Type="SUB", 0, IF(Type="WBS", SUMIFS($CR42:CR$185,$G42:$G$185,WBS_ID), IFERROR(IF(SUM(IF(ISBLANK($AN41), 0, $AN41), IF(ISBLANK($AM41), 0, $AM41), IF(ISBLANK($AG41), 0, $AG41), IF(ISBLANK($Y41), 0, $Y41), IF(ISBLANK($AO41), 0, $AO41))=0, "", SUM(IF(ISBLANK($AN41), 0, $AN41), IF(ISBLANK($AM41), 0, $AM41), IF(ISBLANK($AG41), 0, $AG41), IF(ISBLANK($Y41), 0, $Y41), IF(ISBLANK($AO41), 0, $AO41))),""))) ->  | CV41: =_xlfn.IFNA(INDEX(Tbl_Equipment_Rates[#All],MATCH('Project Estimation'!CT41,Tbl_Equipment_Rates[EQUIPMENT CLASSIFICATION],0),MATCH(_xlfn.CONCAT("Hourly Rate ",VLOOKUP(Client_Name,'Project Details'!$AO$15:$AS$60,4,FALSE)), Tbl_Equipment_Rates[#Headers],0)),"") ->  | DA41: =_xlfn.IFNA(INDEX(Tbl_Equipment_Rates[#All],MATCH('Project Estimation'!CY41,Tbl_Equipment_Rates[EQUIPMENT CLASSIFICATION],0),MATCH(_xlfn.CONCAT("Hourly Rate ",VLOOKUP(Client_Name,'Project Details'!$AO$15:$AS$60,4,FALSE)), Tbl_Equipment_Rates[#Headers],0)),"") ->  | DF41: =_xlfn.IFNA(INDEX(Tbl_Equipment_Rates[#All],MATCH('Project Estimation'!DD41,Tbl_Equipment_Rates[EQUIPMENT CLASSIFICATION],0),MATCH(_xlfn.CONCAT("Hourly Rate ",VLOOKUP(Client_Name,'Project Details'!$AO$15:$AS$60,4,FALSE)), Tbl_Equipment_Rates[#Headers],0)),"") ->  | DK41: =_xlfn.IFNA(INDEX(Tbl_Equipment_Rates[#All],MATCH('Project Estimation'!DI41,Tbl_Equipment_Rates[EQUIPMENT CLASSIFICATION],0),MATCH(_xlfn.CONCAT("Hourly Rate ",VLOOKUP(Client_Name,'Project Details'!$AO$15:$AS$60,4,FALSE)), Tbl_Equipment_Rates[#Headers],0)),"") ->  | DP41: =_xlfn.IFNA(INDEX(Tbl_Equipment_Rates[#All],MATCH('Project Estimation'!DN41,Tbl_Equipment_Rates[EQUIPMENT CLASSIFICATION],0),MATCH(_xlfn.CONCAT("Hourly Rate ",VLOOKUP(Client_Name,'Project Details'!$AO$15:$AS$60,4,FALSE)), Tbl_Equipment_Rates[#Headers],0)),"") -> 
B42: 17 | D42: =IF(AND(Type="WBS", WBS_Level>=1), COUNTIFS(C$25:C42, Stage_ID, $K$25:K42, 1), "") ->  | E42: =IF(AND(Type="WBS", WBS_Level>=2), COUNTIFS(D$25:D42, Level_1, $K$25:$K42, 2), "") ->  | F42: =IF(AND(Type="WBS", WBS_Level>=3), COUNTIFS(E$25:E42, Level_2, $K$25:K42, 3), "") ->  | G42: 1 | H42: 0 | I42: 17 | L42: M | M42: Finish Construction | N42: 0 | O42: =IF(Type="WBS", SUMIFS($O43:$O$185,$G43:$G$185,WBS_ID), IF(OR(Type="A", Type="LOE"), ($N42 /Field_Sch_Hours), IF(Type="SUB", $FK42/Field_Sch_Hours,""))) ->  | P42: =IF(Type="WBS", SUMIFS($P43:$P$185,$G43:$G$185,WBS_ID), IF($N42<>"", IF($N42<=8,$N42,IF(AND(Field_Sch_Days>4,Field_Sch_Hours>8),$N42*(8/Field_Sch_Hours),$N42)), "")) -> 0 | Q42: 0 | U42: =IF(OR(Type="A", Type="LOE"), _xlfn.IFNA(INDEX(Tbl_Labor_Rates[#All],MATCH('Project Estimation'!T42,'Labor Rate Sheet'!$B$11:$B$51,0),MATCH(_xlfn.CONCAT("ST_",VLOOKUP(Client_Name,'Project Details'!$AO$15:$AS$56,4,FALSE)),Tbl_Labor_Rates[#Headers],0)),""),"") ->  | V42: =IF(OR(Type="A", Type="LOE"), _xlfn.IFNA(INDEX(Tbl_Labor_Rates[#All],MATCH('Project Estimation'!T42,'Labor Rate Sheet'!$B$11:$B$51,0),MATCH(_xlfn.CONCAT("OT_",VLOOKUP(Client_Name,'Project Details'!$AO$15:$AS$56,4,FALSE)),Tbl_Labor_Rates[#Headers],0)),""),"") ->  | AC42: =IF(OR(Type="A", Type="LOE"), _xlfn.IFNA(INDEX(Tbl_Labor_Rates[#All],MATCH('Project Estimation'!AB42,'Labor Rate Sheet'!$B$11:$B$51,0),MATCH(_xlfn.CONCAT("ST_",VLOOKUP(Client_Name,'Project Details'!$AO$15:$AS$56,4,FALSE)),Tbl_Labor_Rates[#Headers],0)),""),"") ->  | AD42: =IF(OR(Type="A", Type="LOE"), _xlfn.IFNA(INDEX(Tbl_Labor_Rates[#All],MATCH('Project Estimation'!AB42,'Labor Rate Sheet'!$B$11:$B$51,0),MATCH(_xlfn.CONCAT("OT_",VLOOKUP(Client_Name,'Project Details'!$AO$15:$AS$56,4,FALSE)),Tbl_Labor_Rates[#Headers],0)),""),"") ->  | AK42: =IF(OR(Type="A", Type="LOE"), _xlfn.IFNA(INDEX(Tbl_Labor_Rates[#All],MATCH('Project Estimation'!AJ42,'Labor Rate Sheet'!$B$11:$B$51,0),MATCH(_xlfn.CONCAT("ST_",VLOOKUP(Client_Name,'Project Details'!$AO$15:$AS$56,4,FALSE)),Tbl_Labor_Rates[#Headers],0)),""),"") ->  | AL42: =IF(OR(Type="A", Type="LOE"), _xlfn.IFNA(INDEX(Tbl_Labor_Rates[#All],MATCH('Project Estimation'!AJ42,'Labor Rate Sheet'!$B$11:$B$51,0),MATCH(_xlfn.CONCAT("OT_",VLOOKUP(Client_Name,'Project Details'!$AO$15:$AS$56,4,FALSE)),Tbl_Labor_Rates[#Headers],0)),""),"") ->  | AS42: =IF(OR(Type="A", Type="LOE"), _xlfn.IFNA(INDEX(Tbl_Labor_Rates[#All],MATCH('Project Estimation'!AR42,'Labor Rate Sheet'!$B$11:$B$51,0),MATCH(_xlfn.CONCAT("ST_",VLOOKUP(Client_Name,'Project Details'!$AO$15:$AS$56,4,FALSE)),Tbl_Labor_Rates[#Headers],0)),""),"") ->  | AT42: =IF(OR(Type="A", Type="LOE"), _xlfn.IFNA(INDEX(Tbl_Labor_Rates[#All],MATCH('Project Estimation'!AR42,'Labor Rate Sheet'!$B$11:$B$51,0),MATCH(_xlfn.CONCAT("OT_",VLOOKUP(Client_Name,'Project Details'!$AO$15:$AS$56,4,FALSE)),Tbl_Labor_Rates[#Headers],0)),""),"") ->  | BA42: =IF(OR(Type="A", Type="LOE"), _xlfn.IFNA(INDEX(Tbl_Labor_Rates[#All],MATCH('Project Estimation'!AZ42,'Labor Rate Sheet'!$B$11:$B$51,0),MATCH(_xlfn.CONCAT("ST_",VLOOKUP(Client_Name,'Project Details'!$AO$15:$AS$56,4,FALSE)),Tbl_Labor_Rates[#Headers],0)),""),"") ->  | BB42: =IF(OR(Type="A", Type="LOE"), _xlfn.IFNA(INDEX(Tbl_Labor_Rates[#All],MATCH('Project Estimation'!AZ42,'Labor Rate Sheet'!$B$11:$B$51,0),MATCH(_xlfn.CONCAT("OT_",VLOOKUP(Client_Name,'Project Details'!$AO$15:$AS$56,4,FALSE)),Tbl_Labor_Rates[#Headers],0)),""),"") ->  | BI42: =IF(OR(Type="A", Type="LOE"), _xlfn.IFNA(INDEX(Tbl_Labor_Rates[#All],MATCH('Project Estimation'!BH42,'Labor Rate Sheet'!$B$11:$B$51,0),MATCH(_xlfn.CONCAT("ST_",VLOOKUP(Client_Name,'Project Details'!$AO$15:$AS$56,4,FALSE)),Tbl_Labor_Rates[#Headers],0)),""),"") ->  | BJ42: =IF(OR(Type="A", Type="LOE"), _xlfn.IFNA(INDEX(Tbl_Labor_Rates[#All],MATCH('Project Estimation'!BH42,'Labor Rate Sheet'!$B$11:$B$51,0),MATCH(_xlfn.CONCAT("OT_",VLOOKUP(Client_Name,'Project Details'!$AO$15:$AS$56,4,FALSE)),Tbl_Labor_Rates[#Headers],0)),""),"") ->  | BQ42: =IF(OR(Type="A", Type="LOE"), _xlfn.IFNA(INDEX(Tbl_Labor_Rates[#All],MATCH('Project Estimation'!BP42,'Labor Rate Sheet'!$B$11:$B$51,0),MATCH(_xlfn.CONCAT("ST_",VLOOKUP(Client_Name,'Project Details'!$AO$15:$AS$56,4,FALSE)),Tbl_Labor_Rates[#Headers],0)),""),"") ->  | BR42: =IF(OR(Type="A", Type="LOE"), _xlfn.IFNA(INDEX(Tbl_Labor_Rates[#All],MATCH('Project Estimation'!BP42,'Labor Rate Sheet'!$B$11:$B$51,0),MATCH(_xlfn.CONCAT("OT_",VLOOKUP(Client_Name,'Project Details'!$AO$15:$AS$56,4,FALSE)),Tbl_Labor_Rates[#Headers],0)),""),"") ->  | BY42: =IF(OR(Type="A", Type="LOE"), _xlfn.IFNA(INDEX(Tbl_Labor_Rates[#All],MATCH('Project Estimation'!BX42,'Labor Rate Sheet'!$B$11:$B$51,0),MATCH(_xlfn.CONCAT("ST_",VLOOKUP(Client_Name,'Project Details'!$AO$15:$AS$56,4,FALSE)),Tbl_Labor_Rates[#Headers],0)),""),"") ->  | BZ42: =IF(OR(Type="A", Type="LOE"), _xlfn.IFNA(INDEX(Tbl_Labor_Rates[#All],MATCH('Project Estimation'!BX42,'Labor Rate Sheet'!$B$11:$B$51,0),MATCH(_xlfn.CONCAT("OT_",VLOOKUP(Client_Name,'Project Details'!$AO$15:$AS$56,4,FALSE)),Tbl_Labor_Rates[#Headers],0)),""),"") ->  | CG42: =IF(OR(Type="A", Type="LOE"), _xlfn.IFNA(INDEX(Tbl_Labor_Rates[#All],MATCH('Project Estimation'!CF42,'Labor Rate Sheet'!$B$11:$B$51,0),MATCH(_xlfn.CONCAT("ST_",VLOOKUP(Client_Name,'Project Details'!$AO$15:$AS$56,4,FALSE)),Tbl_Labor_Rates[#Headers],0)),""),"") ->  | CH42: =IF(OR(Type="A", Type="LOE"), _xlfn.IFNA(INDEX(Tbl_Labor_Rates[#All],MATCH('Project Estimation'!CF42,'Labor Rate Sheet'!$B$11:$B$51,0),MATCH(_xlfn.CONCAT("OT_",VLOOKUP(Client_Name,'Project Details'!$AO$15:$AS$56,4,FALSE)),Tbl_Labor_Rates[#Headers],0)),""),"") ->  | CM42: =IF(Type="WBS", SUMIFS(CM43:CM$54,$G43:$G$54,WBS_ID),IF(Type="A", ($S42*P42)+($AA42*P42)+($AI42*P42)+($AQ42*P42)+($AY42*P42)+($BG42*P42)+($BO42*P42)+($BW42*P42)+($CE42*P42), IF(Type="SUB", 0,IF(Type="M", 0,"")))) -> 0 | CN42: =IF(Type="WBS", SUMIFS(CN43:CN$54,$G43:$G$54,WBS_ID),IF(Type="A", ($S42*Q42)+($AA42*Q42)+($AI42*Q42)+($AQ42*Q42)+($AY42*Q42)+($BG42*Q42)+($BO42*Q42)+($BW42*Q42)+($CE42*Q42), IF(Type="SUB", 0,IF(Type="M", 0,"")))) -> 0 | CO42: =IF(Type="WBS", SUMIFS(CO47:CO$54,$G47:$G$54,WBS_ID),IF(Type="A", $CM42+$CN42, IF(Type="SUB", 0,IF(Type="M", 0,"")))) -> 0 | CP42: =IF(Type="WBS", SUMIFS($CP43:$CP$185,$G43:$G$185,WBS_ID), IF($N42<>"", IF(OR(Type="A",Type="LOE"), SUM(IF(ISBLANK(AM42), 0, AM42), IF(ISBLANK(AE42), 0, AE42), IF(ISBLANK(W42), 0, W42)), IF(Type="SUB", 0,IF(Type="M", 0,""))),"")) -> $0.00 | CQ42: =IF(Type="WBS", SUMIFS($CQ43:$CQ$185,$G43:$G$185,WBS_ID), IF($N42<>"", IF(OR(Type="A",Type="LOE"), SUM(IF(ISBLANK(AN42), 0, AN42), IF(ISBLANK(AF42), 0, AF42), IF(ISBLANK(X42), 0, X42)), IF(Type="SUB", 0,IF(Type="M", 0,""))),"")) -> $0.00 | CR42: =IF(Type="SUB", 0, IF(Type="WBS", SUMIFS($CR43:CR$185,$G43:$G$185,WBS_ID), IFERROR(IF(SUM(IF(ISBLANK($AN42), 0, $AN42), IF(ISBLANK($AM42), 0, $AM42), IF(ISBLANK($AG42), 0, $AG42), IF(ISBLANK($Y42), 0, $Y42), IF(ISBLANK($AO42), 0, $AO42))=0, "", SUM(IF(ISBLANK($AN42), 0, $AN42), IF(ISBLANK($AM42), 0, $AM42), IF(ISBLANK($AG42), 0, $AG42), IF(ISBLANK($Y42), 0, $Y42), IF(ISBLANK($AO42), 0, $AO42))),""))) ->  | CV42: =_xlfn.IFNA(INDEX(Tbl_Equipment_Rates[#All],MATCH('Project Estimation'!CT42,Tbl_Equipment_Rates[EQUIPMENT CLASSIFICATION],0),MATCH(_xlfn.CONCAT("Hourly Rate ",VLOOKUP(Client_Name,'Project Details'!$AO$15:$AS$60,4,FALSE)), Tbl_Equipment_Rates[#Headers],0)),"") ->  | DA42: =_xlfn.IFNA(INDEX(Tbl_Equipment_Rates[#All],MATCH('Project Estimation'!CY42,Tbl_Equipment_Rates[EQUIPMENT CLASSIFICATION],0),MATCH(_xlfn.CONCAT("Hourly Rate ",VLOOKUP(Client_Name,'Project Details'!$AO$15:$AS$60,4,FALSE)), Tbl_Equipment_Rates[#Headers],0)),"") ->  | DF42: =_xlfn.IFNA(INDEX(Tbl_Equipment_Rates[#All],MATCH('Project Estimation'!DD42,Tbl_Equipment_Rates[EQUIPMENT CLASSIFICATION],0),MATCH(_xlfn.CONCAT("Hourly Rate ",VLOOKUP(Client_Name,'Project Details'!$AO$15:$AS$60,4,FALSE)), Tbl_Equipment_Rates[#Headers],0)),"") ->  | DK42: =_xlfn.IFNA(INDEX(Tbl_Equipment_Rates[#All],MATCH('Project Estimation'!DI42,Tbl_Equipment_Rates[EQUIPMENT CLASSIFICATION],0),MATCH(_xlfn.CONCAT("Hourly Rate ",VLOOKUP(Client_Name,'Project Details'!$AO$15:$AS$60,4,FALSE)), Tbl_Equipment_Rates[#Headers],0)),"") ->  | DP42: =_xlfn.IFNA(INDEX(Tbl_Equipment_Rates[#All],MATCH('Project Estimation'!DN42,Tbl_Equipment_Rates[EQUIPMENT CLASSIFICATION],0),MATCH(_xlfn.CONCAT("Hourly Rate ",VLOOKUP(Client_Name,'Project Details'!$AO$15:$AS$60,4,FALSE)), Tbl_Equipment_Rates[#Headers],0)),"") -> 
B43: 18 | D43: =IF(AND(Type="WBS", WBS_Level>=1), COUNTIFS(C$25:C43, Stage_ID, $K$25:K43, 1), "") ->  | E43: =IF(AND(Type="WBS", WBS_Level>=2), COUNTIFS(D$25:D43, Level_1, $K$25:$K43, 2), "") ->  | F43: =IF(AND(Type="WBS", WBS_Level>=3), COUNTIFS(E$25:E43, Level_2, $K$25:K43, 3), "") ->  | G43: 1 | H43: 0 | I43: 18 | L43: M | U43: =IF(OR(Type="A", Type="LOE"), _xlfn.IFNA(INDEX(Tbl_Labor_Rates[#All],MATCH('Project Estimation'!T43,'Labor Rate Sheet'!$B$11:$B$51,0),MATCH(_xlfn.CONCAT("ST_",VLOOKUP(Client_Name,'Project Details'!$AO$15:$AS$56,4,FALSE)),Tbl_Labor_Rates[#Headers],0)),""),"") ->  | V43: =IF(OR(Type="A", Type="LOE"), _xlfn.IFNA(INDEX(Tbl_Labor_Rates[#All],MATCH('Project Estimation'!T43,'Labor Rate Sheet'!$B$11:$B$51,0),MATCH(_xlfn.CONCAT("OT_",VLOOKUP(Client_Name,'Project Details'!$AO$15:$AS$56,4,FALSE)),Tbl_Labor_Rates[#Headers],0)),""),"") ->  | AC43: =IF(OR(Type="A", Type="LOE"), _xlfn.IFNA(INDEX(Tbl_Labor_Rates[#All],MATCH('Project Estimation'!AB43,'Labor Rate Sheet'!$B$11:$B$51,0),MATCH(_xlfn.CONCAT("ST_",VLOOKUP(Client_Name,'Project Details'!$AO$15:$AS$56,4,FALSE)),Tbl_Labor_Rates[#Headers],0)),""),"") ->  | AD43: =IF(OR(Type="A", Type="LOE"), _xlfn.IFNA(INDEX(Tbl_Labor_Rates[#All],MATCH('Project Estimation'!AB43,'Labor Rate Sheet'!$B$11:$B$51,0),MATCH(_xlfn.CONCAT("OT_",VLOOKUP(Client_Name,'Project Details'!$AO$15:$AS$56,4,FALSE)),Tbl_Labor_Rates[#Headers],0)),""),"") ->  | AK43: =IF(OR(Type="A", Type="LOE"), _xlfn.IFNA(INDEX(Tbl_Labor_Rates[#All],MATCH('Project Estimation'!AJ43,'Labor Rate Sheet'!$B$11:$B$51,0),MATCH(_xlfn.CONCAT("ST_",VLOOKUP(Client_Name,'Project Details'!$AO$15:$AS$56,4,FALSE)),Tbl_Labor_Rates[#Headers],0)),""),"") ->  | AL43: =IF(OR(Type="A", Type="LOE"), _xlfn.IFNA(INDEX(Tbl_Labor_Rates[#All],MATCH('Project Estimation'!AJ43,'Labor Rate Sheet'!$B$11:$B$51,0),MATCH(_xlfn.CONCAT("OT_",VLOOKUP(Client_Name,'Project Details'!$AO$15:$AS$56,4,FALSE)),Tbl_Labor_Rates[#Headers],0)),""),"") ->  | AS43: =IF(OR(Type="A", Type="LOE"), _xlfn.IFNA(INDEX(Tbl_Labor_Rates[#All],MATCH('Project Estimation'!AR43,'Labor Rate Sheet'!$B$11:$B$51,0),MATCH(_xlfn.CONCAT("ST_",VLOOKUP(Client_Name,'Project Details'!$AO$15:$AS$56,4,FALSE)),Tbl_Labor_Rates[#Headers],0)),""),"") ->  | AT43: =IF(OR(Type="A", Type="LOE"), _xlfn.IFNA(INDEX(Tbl_Labor_Rates[#All],MATCH('Project Estimation'!AR43,'Labor Rate Sheet'!$B$11:$B$51,0),MATCH(_xlfn.CONCAT("OT_",VLOOKUP(Client_Name,'Project Details'!$AO$15:$AS$56,4,FALSE)),Tbl_Labor_Rates[#Headers],0)),""),"") ->  | BA43: =IF(OR(Type="A", Type="LOE"), _xlfn.IFNA(INDEX(Tbl_Labor_Rates[#All],MATCH('Project Estimation'!AZ43,'Labor Rate Sheet'!$B$11:$B$51,0),MATCH(_xlfn.CONCAT("ST_",VLOOKUP(Client_Name,'Project Details'!$AO$15:$AS$56,4,FALSE)),Tbl_Labor_Rates[#Headers],0)),""),"") ->  | BB43: =IF(OR(Type="A", Type="LOE"), _xlfn.IFNA(INDEX(Tbl_Labor_Rates[#All],MATCH('Project Estimation'!AZ43,'Labor Rate Sheet'!$B$11:$B$51,0),MATCH(_xlfn.CONCAT("OT_",VLOOKUP(Client_Name,'Project Details'!$AO$15:$AS$56,4,FALSE)),Tbl_Labor_Rates[#Headers],0)),""),"") ->  | BI43: =IF(OR(Type="A", Type="LOE"), _xlfn.IFNA(INDEX(Tbl_Labor_Rates[#All],MATCH('Project Estimation'!BH43,'Labor Rate Sheet'!$B$11:$B$51,0),MATCH(_xlfn.CONCAT("ST_",VLOOKUP(Client_Name,'Project Details'!$AO$15:$AS$56,4,FALSE)),Tbl_Labor_Rates[#Headers],0)),""),"") ->  | BJ43: =IF(OR(Type="A", Type="LOE"), _xlfn.IFNA(INDEX(Tbl_Labor_Rates[#All],MATCH('Project Estimation'!BH43,'Labor Rate Sheet'!$B$11:$B$51,0),MATCH(_xlfn.CONCAT("OT_",VLOOKUP(Client_Name,'Project Details'!$AO$15:$AS$56,4,FALSE)),Tbl_Labor_Rates[#Headers],0)),""),"") ->  | BQ43: =IF(OR(Type="A", Type="LOE"), _xlfn.IFNA(INDEX(Tbl_Labor_Rates[#All],MATCH('Project Estimation'!BP43,'Labor Rate Sheet'!$B$11:$B$51,0),MATCH(_xlfn.CONCAT("ST_",VLOOKUP(Client_Name,'Project Details'!$AO$15:$AS$56,4,FALSE)),Tbl_Labor_Rates[#Headers],0)),""),"") ->  | BR43: =IF(OR(Type="A", Type="LOE"), _xlfn.IFNA(INDEX(Tbl_Labor_Rates[#All],MATCH('Project Estimation'!BP43,'Labor Rate Sheet'!$B$11:$B$51,0),MATCH(_xlfn.CONCAT("OT_",VLOOKUP(Client_Name,'Project Details'!$AO$15:$AS$56,4,FALSE)),Tbl_Labor_Rates[#Headers],0)),""),"") ->  | BY43: =IF(OR(Type="A", Type="LOE"), _xlfn.IFNA(INDEX(Tbl_Labor_Rates[#All],MATCH('Project Estimation'!BX43,'Labor Rate Sheet'!$B$11:$B$51,0),MATCH(_xlfn.CONCAT("ST_",VLOOKUP(Client_Name,'Project Details'!$AO$15:$AS$56,4,FALSE)),Tbl_Labor_Rates[#Headers],0)),""),"") ->  | BZ43: =IF(OR(Type="A", Type="LOE"), _xlfn.IFNA(INDEX(Tbl_Labor_Rates[#All],MATCH('Project Estimation'!BX43,'Labor Rate Sheet'!$B$11:$B$51,0),MATCH(_xlfn.CONCAT("OT_",VLOOKUP(Client_Name,'Project Details'!$AO$15:$AS$56,4,FALSE)),Tbl_Labor_Rates[#Headers],0)),""),"") ->  | CG43: =IF(OR(Type="A", Type="LOE"), _xlfn.IFNA(INDEX(Tbl_Labor_Rates[#All],MATCH('Project Estimation'!CF43,'Labor Rate Sheet'!$B$11:$B$51,0),MATCH(_xlfn.CONCAT("ST_",VLOOKUP(Client_Name,'Project Details'!$AO$15:$AS$56,4,FALSE)),Tbl_Labor_Rates[#Headers],0)),""),"") ->  | CH43: =IF(OR(Type="A", Type="LOE"), _xlfn.IFNA(INDEX(Tbl_Labor_Rates[#All],MATCH('Project Estimation'!CF43,'Labor Rate Sheet'!$B$11:$B$51,0),MATCH(_xlfn.CONCAT("OT_",VLOOKUP(Client_Name,'Project Details'!$AO$15:$AS$56,4,FALSE)),Tbl_Labor_Rates[#Headers],0)),""),"") ->  | CM43: =IF(Type="WBS", SUMIFS(CM44:CM$54,$G44:$G$54,WBS_ID),IF(Type="A", ($S43*P43)+($AA43*P43)+($AI43*P43)+($AQ43*P43)+($AY43*P43)+($BG43*P43)+($BO43*P43)+($BW43*P43)+($CE43*P43), IF(Type="SUB", 0,IF(Type="M", 0,"")))) -> 0 | CN43: =IF(Type="WBS", SUMIFS(CN44:CN$54,$G44:$G$54,WBS_ID),IF(Type="A", ($S43*Q43)+($AA43*Q43)+($AI43*Q43)+($AQ43*Q43)+($AY43*Q43)+($BG43*Q43)+($BO43*Q43)+($BW43*Q43)+($CE43*Q43), IF(Type="SUB", 0,IF(Type="M", 0,"")))) -> 0 | CO43: =IF(Type="WBS", SUMIFS(CO48:CO$54,$G48:$G$54,WBS_ID),IF(Type="A", $CM43+$CN43, IF(Type="SUB", 0,IF(Type="M", 0,"")))) -> 0 | CP43: =IF(Type="WBS", SUMIFS($CP59:$CP$185,$G59:$G$185,WBS_ID), IF($N43<>"", IF(OR(Type="A",Type="LOE"), SUM(IF(ISBLANK(AM43), 0, AM43), IF(ISBLANK(AE43), 0, AE43), IF(ISBLANK(W43), 0, W43)), IF(Type="SUB", 0,IF(Type="M", 0,""))),"")) ->  | CQ43: =IF(Type="WBS", SUMIFS($CQ59:$CQ$185,$G59:$G$185,WBS_ID), IF($N43<>"", IF(OR(Type="A",Type="LOE"), SUM(IF(ISBLANK(AN43), 0, AN43), IF(ISBLANK(AF43), 0, AF43), IF(ISBLANK(X43), 0, X43)), IF(Type="SUB", 0,IF(Type="M", 0,""))),"")) ->  | CR43: =IF(Type="SUB", 0, IF(Type="WBS", SUMIFS($CR59:CR$185,$G59:$G$185,WBS_ID), IFERROR(IF(SUM(IF(ISBLANK($AN43), 0, $AN43), IF(ISBLANK($AM43), 0, $AM43), IF(ISBLANK($AG43), 0, $AG43), IF(ISBLANK($Y43), 0, $Y43), IF(ISBLANK($AO43), 0, $AO43))=0, "", SUM(IF(ISBLANK($AN43), 0, $AN43), IF(ISBLANK($AM43), 0, $AM43), IF(ISBLANK($AG43), 0, $AG43), IF(ISBLANK($Y43), 0, $Y43), IF(ISBLANK($AO43), 0, $AO43))),""))) ->  | CV43: =_xlfn.IFNA(INDEX(Tbl_Equipment_Rates[#All],MATCH('Project Estimation'!CT43,Tbl_Equipment_Rates[EQUIPMENT CLASSIFICATION],0),MATCH(_xlfn.CONCAT("Hourly Rate ",VLOOKUP(Client_Name,'Project Details'!$AO$15:$AS$60,4,FALSE)), Tbl_Equipment_Rates[#Headers],0)),"") ->  | DA43: =_xlfn.IFNA(INDEX(Tbl_Equipment_Rates[#All],MATCH('Project Estimation'!CY43,Tbl_Equipment_Rates[EQUIPMENT CLASSIFICATION],0),MATCH(_xlfn.CONCAT("Hourly Rate ",VLOOKUP(Client_Name,'Project Details'!$AO$15:$AS$60,4,FALSE)), Tbl_Equipment_Rates[#Headers],0)),"") ->  | DF43: =_xlfn.IFNA(INDEX(Tbl_Equipment_Rates[#All],MATCH('Project Estimation'!DD43,Tbl_Equipment_Rates[EQUIPMENT CLASSIFICATION],0),MATCH(_xlfn.CONCAT("Hourly Rate ",VLOOKUP(Client_Name,'Project Details'!$AO$15:$AS$60,4,FALSE)), Tbl_Equipment_Rates[#Headers],0)),"") ->  | DK43: =_xlfn.IFNA(INDEX(Tbl_Equipment_Rates[#All],MATCH('Project Estimation'!DI43,Tbl_Equipment_Rates[EQUIPMENT CLASSIFICATION],0),MATCH(_xlfn.CONCAT("Hourly Rate ",VLOOKUP(Client_Name,'Project Details'!$AO$15:$AS$60,4,FALSE)), Tbl_Equipment_Rates[#Headers],0)),"") ->  | DP43: =_xlfn.IFNA(INDEX(Tbl_Equipment_Rates[#All],MATCH('Project Estimation'!DN43,Tbl_Equipment_Rates[EQUIPMENT CLASSIFICATION],0),MATCH(_xlfn.CONCAT("Hourly Rate ",VLOOKUP(Client_Name,'Project Details'!$AO$15:$AS$60,4,FALSE)), Tbl_Equipment_Rates[#Headers],0)),"") -> 
B44: 19 | C44: 2 | D44: =IF(AND(Type="WBS", WBS_Level>=1), COUNTIFS(C$25:C44, Stage_ID, $K$25:K44, 1), "") ->  | E44: =IF(AND(Type="WBS", WBS_Level>=2), COUNTIFS(D$25:D44, Level_1, $K$25:$K44, 2), "") ->  | F44: =IF(AND(Type="WBS", WBS_Level>=3), COUNTIFS(E$25:E44, Level_2, $K$25:K44, 3), "") ->  | G44: 2 | K44: 0 | L44: WBS | M44: Direct Shop Work | T44: SUPERVISION | U44: =IF(OR(Type="A", Type="LOE"), _xlfn.IFNA(INDEX(Tbl_Labor_Rates[#All],MATCH('Project Estimation'!T44,'Labor Rate Sheet'!$B$11:$B$51,0),MATCH(_xlfn.CONCAT("ST_",VLOOKUP(Client_Name,'Project Details'!$AO$15:$AS$56,4,FALSE)),Tbl_Labor_Rates[#Headers],0)),""),"") ->  | V44: =IF(OR(Type="A", Type="LOE"), _xlfn.IFNA(INDEX(Tbl_Labor_Rates[#All],MATCH('Project Estimation'!T44,'Labor Rate Sheet'!$B$11:$B$51,0),MATCH(_xlfn.CONCAT("OT_",VLOOKUP(Client_Name,'Project Details'!$AO$15:$AS$56,4,FALSE)),Tbl_Labor_Rates[#Headers],0)),""),"") ->  | AB44: SUPERVISION | AC44: =IF(OR(Type="A", Type="LOE"), _xlfn.IFNA(INDEX(Tbl_Labor_Rates[#All],MATCH('Project Estimation'!AB44,'Labor Rate Sheet'!$B$11:$B$51,0),MATCH(_xlfn.CONCAT("ST_",VLOOKUP(Client_Name,'Project Details'!$AO$15:$AS$56,4,FALSE)),Tbl_Labor_Rates[#Headers],0)),""),"") ->  | AD44: =IF(OR(Type="A", Type="LOE"), _xlfn.IFNA(INDEX(Tbl_Labor_Rates[#All],MATCH('Project Estimation'!AB44,'Labor Rate Sheet'!$B$11:$B$51,0),MATCH(_xlfn.CONCAT("OT_",VLOOKUP(Client_Name,'Project Details'!$AO$15:$AS$56,4,FALSE)),Tbl_Labor_Rates[#Headers],0)),""),"") ->  | AJ44: OPERATORS | AK44: =IF(OR(Type="A", Type="LOE"), _xlfn.IFNA(INDEX(Tbl_Labor_Rates[#All],MATCH('Project Estimation'!AJ44,'Labor Rate Sheet'!$B$11:$B$51,0),MATCH(_xlfn.CONCAT("ST_",VLOOKUP(Client_Name,'Project Details'!$AO$15:$AS$56,4,FALSE)),Tbl_Labor_Rates[#Headers],0)),""),"") ->  | AL44: =IF(OR(Type="A", Type="LOE"), _xlfn.IFNA(INDEX(Tbl_Labor_Rates[#All],MATCH('Project Estimation'!AJ44,'Labor Rate Sheet'!$B$11:$B$51,0),MATCH(_xlfn.CONCAT("OT_",VLOOKUP(Client_Name,'Project Details'!$AO$15:$AS$56,4,FALSE)),Tbl_Labor_Rates[#Headers],0)),""),"") ->  | AR44: WELDERS | AS44: =IF(OR(Type="A", Type="LOE"), _xlfn.IFNA(INDEX(Tbl_Labor_Rates[#All],MATCH('Project Estimation'!AR44,'Labor Rate Sheet'!$B$11:$B$51,0),MATCH(_xlfn.CONCAT("ST_",VLOOKUP(Client_Name,'Project Details'!$AO$15:$AS$56,4,FALSE)),Tbl_Labor_Rates[#Headers],0)),""),"") ->  | AT44: =IF(OR(Type="A", Type="LOE"), _xlfn.IFNA(INDEX(Tbl_Labor_Rates[#All],MATCH('Project Estimation'!AR44,'Labor Rate Sheet'!$B$11:$B$51,0),MATCH(_xlfn.CONCAT("OT_",VLOOKUP(Client_Name,'Project Details'!$AO$15:$AS$56,4,FALSE)),Tbl_Labor_Rates[#Headers],0)),""),"") ->  | AZ44: CRAFT | BA44: =IF(OR(Type="A", Type="LOE"), _xlfn.IFNA(INDEX(Tbl_Labor_Rates[#All],MATCH('Project Estimation'!AZ44,'Labor Rate Sheet'!$B$11:$B$51,0),MATCH(_xlfn.CONCAT("ST_",VLOOKUP(Client_Name,'Project Details'!$AO$15:$AS$56,4,FALSE)),Tbl_Labor_Rates[#Headers],0)),""),"") ->  | BB44: =IF(OR(Type="A", Type="LOE"), _xlfn.IFNA(INDEX(Tbl_Labor_Rates[#All],MATCH('Project Estimation'!AZ44,'Labor Rate Sheet'!$B$11:$B$51,0),MATCH(_xlfn.CONCAT("OT_",VLOOKUP(Client_Name,'Project Details'!$AO$15:$AS$56,4,FALSE)),Tbl_Labor_Rates[#Headers],0)),""),"") ->  | BH44: CRAFT | BI44: =IF(OR(Type="A", Type="LOE"), _xlfn.IFNA(INDEX(Tbl_Labor_Rates[#All],MATCH('Project Estimation'!BH44,'Labor Rate Sheet'!$B$11:$B$51,0),MATCH(_xlfn.CONCAT("ST_",VLOOKUP(Client_Name,'Project Details'!$AO$15:$AS$56,4,FALSE)),Tbl_Labor_Rates[#Headers],0)),""),"") ->  | BJ44: =IF(OR(Type="A", Type="LOE"), _xlfn.IFNA(INDEX(Tbl_Labor_Rates[#All],MATCH('Project Estimation'!BH44,'Labor Rate Sheet'!$B$11:$B$51,0),MATCH(_xlfn.CONCAT("OT_",VLOOKUP(Client_Name,'Project Details'!$AO$15:$AS$56,4,FALSE)),Tbl_Labor_Rates[#Headers],0)),""),"") ->  | BP44: HELPER | BQ44: =IF(OR(Type="A", Type="LOE"), _xlfn.IFNA(INDEX(Tbl_Labor_Rates[#All],MATCH('Project Estimation'!BP44,'Labor Rate Sheet'!$B$11:$B$51,0),MATCH(_xlfn.CONCAT("ST_",VLOOKUP(Client_Name,'Project Details'!$AO$15:$AS$56,4,FALSE)),Tbl_Labor_Rates[#Headers],0)),""),"") ->  | BR44: =IF(OR(Type="A", Type="LOE"), _xlfn.IFNA(INDEX(Tbl_Labor_Rates[#All],MATCH('Project Estimation'!BP44,'Labor Rate Sheet'!$B$11:$B$51,0),MATCH(_xlfn.CONCAT("OT_",VLOOKUP(Client_Name,'Project Details'!$AO$15:$AS$56,4,FALSE)),Tbl_Labor_Rates[#Headers],0)),""),"") ->  | BX44: SAFETY | BY44: =IF(OR(Type="A", Type="LOE"), _xlfn.IFNA(INDEX(Tbl_Labor_Rates[#All],MATCH('Project Estimation'!BX44,'Labor Rate Sheet'!$B$11:$B$51,0),MATCH(_xlfn.CONCAT("ST_",VLOOKUP(Client_Name,'Project Details'!$AO$15:$AS$56,4,FALSE)),Tbl_Labor_Rates[#Headers],0)),""),"") ->  | BZ44: =IF(OR(Type="A", Type="LOE"), _xlfn.IFNA(INDEX(Tbl_Labor_Rates[#All],MATCH('Project Estimation'!BX44,'Labor Rate Sheet'!$B$11:$B$51,0),MATCH(_xlfn.CONCAT("OT_",VLOOKUP(Client_Name,'Project Details'!$AO$15:$AS$56,4,FALSE)),Tbl_Labor_Rates[#Headers],0)),""),"") ->  | CF44: QC | CG44: =IF(OR(Type="A", Type="LOE"), _xlfn.IFNA(INDEX(Tbl_Labor_Rates[#All],MATCH('Project Estimation'!CF44,'Labor Rate Sheet'!$B$11:$B$51,0),MATCH(_xlfn.CONCAT("ST_",VLOOKUP(Client_Name,'Project Details'!$AO$15:$AS$56,4,FALSE)),Tbl_Labor_Rates[#Headers],0)),""),"") ->  | CH44: =IF(OR(Type="A", Type="LOE"), _xlfn.IFNA(INDEX(Tbl_Labor_Rates[#All],MATCH('Project Estimation'!CF44,'Labor Rate Sheet'!$B$11:$B$51,0),MATCH(_xlfn.CONCAT("OT_",VLOOKUP(Client_Name,'Project Details'!$AO$15:$AS$56,4,FALSE)),Tbl_Labor_Rates[#Headers],0)),""),"") ->  | CM44: =SUMIF($L45:$L54,"A", CM$45:CM$54) -> 0 | CN44: =SUMIF($L45:$L54,"A", CN$45:CN$54) -> 0 | CO44: =SUMIF($L45:$L54,"A", CO$45:CO$54) -> 0 | CP44: =SUM(CP$46:CP$54) -> $0.00 | CQ44: $0.00 | CR44: =SUM(CR$46:CR$54) -> $0.00 | CV44: =_xlfn.IFNA(INDEX(Tbl_Equipment_Rates[#All],MATCH('Project Estimation'!CT44,Tbl_Equipment_Rates[EQUIPMENT CLASSIFICATION],0),MATCH(_xlfn.CONCAT("Hourly Rate ",VLOOKUP(Client_Name,'Project Details'!$AO$15:$AS$60,4,FALSE)), Tbl_Equipment_Rates[#Headers],0)),"") ->  | DA44: =_xlfn.IFNA(INDEX(Tbl_Equipment_Rates[#All],MATCH('Project Estimation'!CY44,Tbl_Equipment_Rates[EQUIPMENT CLASSIFICATION],0),MATCH(_xlfn.CONCAT("Hourly Rate ",VLOOKUP(Client_Name,'Project Details'!$AO$15:$AS$60,4,FALSE)), Tbl_Equipment_Rates[#Headers],0)),"") ->  | DF44: =_xlfn.IFNA(INDEX(Tbl_Equipment_Rates[#All],MATCH('Project Estimation'!DD44,Tbl_Equipment_Rates[EQUIPMENT CLASSIFICATION],0),MATCH(_xlfn.CONCAT("Hourly Rate ",VLOOKUP(Client_Name,'Project Details'!$AO$15:$AS$60,4,FALSE)), Tbl_Equipment_Rates[#Headers],0)),"") ->  | DK44: =_xlfn.IFNA(INDEX(Tbl_Equipment_Rates[#All],MATCH('Project Estimation'!DI44,Tbl_Equipment_Rates[EQUIPMENT CLASSIFICATION],0),MATCH(_xlfn.CONCAT("Hourly Rate ",VLOOKUP(Client_Name,'Project Details'!$AO$15:$AS$60,4,FALSE)), Tbl_Equipment_Rates[#Headers],0)),"") ->  | DL44: =IF(DI44<>"", DJ44*DK44, "") ->  | DP44: =_xlfn.IFNA(INDEX(Tbl_Equipment_Rates[#All],MATCH('Project Estimation'!DN44,Tbl_Equipment_Rates[EQUIPMENT CLASSIFICATION],0),MATCH(_xlfn.CONCAT("Hourly Rate ",VLOOKUP(Client_Name,'Project Details'!$AO$15:$AS$60,4,FALSE)), Tbl_Equipment_Rates[#Headers],0)),"") ->  | EE44: =IF(OR(EA44<>"",EB44<>"",EC44<>"",ED44<>""), ED44*EA44,"") ->  | EF44: =IF(OR(EB44<>0,EC44<>0,ED44<>0), $CU$5, "") ->  | EG44: =IFERROR(EA44*ED44*(1+EF44),"") -> 
B45: 20 | C45: 2 | D45: =IF(AND(Type="WBS", WBS_Level>=1), COUNTIFS(C$25:C45, Stage_ID, $K$25:K45, 1), "") -> 1 | E45: =IF(AND(Type="WBS", WBS_Level>=2), COUNTIFS(D$25:D45, Level_1, $K$25:$K45, 2), "") ->  | F45: =IF(AND(Type="WBS", WBS_Level>=3), COUNTIFS(E$25:E45, Level_2, $K$25:K45, 3), "") ->  | G45: 3 | H45: =IF(Type<>"", IF(ROW(Act_ID)=ROWS($H$23)+4, 0, IF(OR(Type="A",Type="SUB"), MAX(Prev_Col_Range)+1, 0)),-1) -> 0 | I45: =IF(Type<>"", IF(ROW(Act_ID)=ROWS($H$23)+4, 0, IF(WBS_ID=MAX(Left_Prev_Col_Range), COUNTIF(Left_Prev_Col_Range, WBS_ID), 0)),-1) -> 0 | K45: =IF(Type="WBS", 1, "") -> 1 | L45: WBS | M45: ShopWork (Only Standard Company Rates used in this section) | N45: =IF('Project Estimation'!$L45="WBS",SUMIFS($N46:$N$54,$G46:$G$54,WBS_ID),IF('Project Estimation'!$L45="SUB",$FK45,"")) -> 20 | O45: =IF(Type="WBS", SUMIFS($O46:$O$54,$G$46:$G$54,WBS_ID), IF(OR(Type="A", Type="LOE"), ($N45 /Shop_Sch_Hours), IF(Type="SUB", $FK45,""))) -> 1.67 | P45: =IF(Type="WBS", SUMIFS($P46:$P$185,$G46:$G$185,WBS_ID), IF($N45<>"", IF($N45<=8,$N45,IF(AND(Shop_Sch_Days>4,Shop_Sch_Hours>8),$N45*(8/Shop_Sch_Hours),$N45)), "")) -> 13 | Q45: =$N45-$P45 -> 7 | U45: =IF(OR(Type="A", Type="LOE"), _xlfn.IFNA(INDEX(Tbl_Labor_Rates[#All],MATCH('Project Estimation'!T45,'Labor Rate Sheet'!$B$11:$B$51,0),MATCH(_xlfn.CONCAT("ST_",VLOOKUP(Client_Name,'Project Details'!$AO$15:$AS$56,4,FALSE)),Tbl_Labor_Rates[#Headers],0)),""),"") ->  | V45: =IF(OR(Type="A", Type="LOE"), _xlfn.IFNA(INDEX(Tbl_Labor_Rates[#All],MATCH('Project Estimation'!T45,'Labor Rate Sheet'!$B$11:$B$51,0),MATCH(_xlfn.CONCAT("OT_",VLOOKUP(Client_Name,'Project Details'!$AO$15:$AS$56,4,FALSE)),Tbl_Labor_Rates[#Headers],0)),""),"") ->  | AC45: =IF(OR(Type="A", Type="LOE"), _xlfn.IFNA(INDEX(Tbl_Labor_Rates[#All],MATCH('Project Estimation'!AB45,'Labor Rate Sheet'!$B$11:$B$51,0),MATCH(_xlfn.CONCAT("ST_",VLOOKUP(Client_Name,'Project Details'!$AO$15:$AS$56,4,FALSE)),Tbl_Labor_Rates[#Headers],0)),""),"") ->  | AD45: =IF(OR(Type="A", Type="LOE"), _xlfn.IFNA(INDEX(Tbl_Labor_Rates[#All],MATCH('Project Estimation'!AB45,'Labor Rate Sheet'!$B$11:$B$51,0),MATCH(_xlfn.CONCAT("OT_",VLOOKUP(Client_Name,'Project Details'!$AO$15:$AS$56,4,FALSE)),Tbl_Labor_Rates[#Headers],0)),""),"") ->  | AK45: =IF(OR(Type="A", Type="LOE"), _xlfn.IFNA(INDEX(Tbl_Labor_Rates[#All],MATCH('Project Estimation'!AJ45,'Labor Rate Sheet'!$B$11:$B$51,0),MATCH(_xlfn.CONCAT("ST_",VLOOKUP(Client_Name,'Project Details'!$AO$15:$AS$56,4,FALSE)),Tbl_Labor_Rates[#Headers],0)),""),"") ->  | AL45: =IF(OR(Type="A", Type="LOE"), _xlfn.IFNA(INDEX(Tbl_Labor_Rates[#All],MATCH('Project Estimation'!AJ45,'Labor Rate Sheet'!$B$11:$B$51,0),MATCH(_xlfn.CONCAT("OT_",VLOOKUP(Client_Name,'Project Details'!$AO$15:$AS$56,4,FALSE)),Tbl_Labor_Rates[#Headers],0)),""),"") ->  | AS45: =IF(OR(Type="A", Type="LOE"), _xlfn.IFNA(INDEX(Tbl_Labor_Rates[#All],MATCH('Project Estimation'!AR45,'Labor Rate Sheet'!$B$11:$B$51,0),MATCH(_xlfn.CONCAT("ST_",VLOOKUP(Client_Name,'Project Details'!$AO$15:$AS$56,4,FALSE)),Tbl_Labor_Rates[#Headers],0)),""),"") ->  | AT45: =IF(OR(Type="A", Type="LOE"), _xlfn.IFNA(INDEX(Tbl_Labor_Rates[#All],MATCH('Project Estimation'!AR45,'Labor Rate Sheet'!$B$11:$B$51,0),MATCH(_xlfn.CONCAT("OT_",VLOOKUP(Client_Name,'Project Details'!$AO$15:$AS$56,4,FALSE)),Tbl_Labor_Rates[#Headers],0)),""),"") ->  | BA45: =IF(OR(Type="A", Type="LOE"), _xlfn.IFNA(INDEX(Tbl_Labor_Rates[#All],MATCH('Project Estimation'!AZ45,'Labor Rate Sheet'!$B$11:$B$51,0),MATCH(_xlfn.CONCAT("ST_",VLOOKUP(Client_Name,'Project Details'!$AO$15:$AS$56,4,FALSE)),Tbl_Labor_Rates[#Headers],0)),""),"") ->  | BB45: =IF(OR(Type="A", Type="LOE"), _xlfn.IFNA(INDEX(Tbl_Labor_Rates[#All],MATCH('Project Estimation'!AZ45,'Labor Rate Sheet'!$B$11:$B$51,0),MATCH(_xlfn.CONCAT("OT_",VLOOKUP(Client_Name,'Project Details'!$AO$15:$AS$56,4,FALSE)),Tbl_Labor_Rates[#Headers],0)),""),"") ->  | BI45: =IF(OR(Type="A", Type="LOE"), _xlfn.IFNA(INDEX(Tbl_Labor_Rates[#All],MATCH('Project Estimation'!BH45,'Labor Rate Sheet'!$B$11:$B$51,0),MATCH(_xlfn.CONCAT("ST_",VLOOKUP(Client_Name,'Project Details'!$AO$15:$AS$56,4,FALSE)),Tbl_Labor_Rates[#Headers],0)),""),"") ->  | BJ45: =IF(OR(Type="A", Type="LOE"), _xlfn.IFNA(INDEX(Tbl_Labor_Rates[#All],MATCH('Project Estimation'!BH45,'Labor Rate Sheet'!$B$11:$B$51,0),MATCH(_xlfn.CONCAT("OT_",VLOOKUP(Client_Name,'Project Details'!$AO$15:$AS$56,4,FALSE)),Tbl_Labor_Rates[#Headers],0)),""),"") ->  | BQ45: =IF(OR(Type="A", Type="LOE"), _xlfn.IFNA(INDEX(Tbl_Labor_Rates[#All],MATCH('Project Estimation'!BP45,'Labor Rate Sheet'!$B$11:$B$51,0),MATCH(_xlfn.CONCAT("ST_",VLOOKUP(Client_Name,'Project Details'!$AO$15:$AS$56,4,FALSE)),Tbl_Labor_Rates[#Headers],0)),""),"") ->  | BR45: =IF(OR(Type="A", Type="LOE"), _xlfn.IFNA(INDEX(Tbl_Labor_Rates[#All],MATCH('Project Estimation'!BP45,'Labor Rate Sheet'!$B$11:$B$51,0),MATCH(_xlfn.CONCAT("OT_",VLOOKUP(Client_Name,'Project Details'!$AO$15:$AS$56,4,FALSE)),Tbl_Labor_Rates[#Headers],0)),""),"") ->  | BY45: =IF(OR(Type="A", Type="LOE"), _xlfn.IFNA(INDEX(Tbl_Labor_Rates[#All],MATCH('Project Estimation'!BX45,'Labor Rate Sheet'!$B$11:$B$51,0),MATCH(_xlfn.CONCAT("ST_",VLOOKUP(Client_Name,'Project Details'!$AO$15:$AS$56,4,FALSE)),Tbl_Labor_Rates[#Headers],0)),""),"") ->  | BZ45: =IF(OR(Type="A", Type="LOE"), _xlfn.IFNA(INDEX(Tbl_Labor_Rates[#All],MATCH('Project Estimation'!BX45,'Labor Rate Sheet'!$B$11:$B$51,0),MATCH(_xlfn.CONCAT("OT_",VLOOKUP(Client_Name,'Project Details'!$AO$15:$AS$56,4,FALSE)),Tbl_Labor_Rates[#Headers],0)),""),"") ->  | CG45: =IF(OR(Type="A", Type="LOE"), _xlfn.IFNA(INDEX(Tbl_Labor_Rates[#All],MATCH('Project Estimation'!CF45,'Labor Rate Sheet'!$B$11:$B$51,0),MATCH(_xlfn.CONCAT("ST_",VLOOKUP(Client_Name,'Project Details'!$AO$15:$AS$56,4,FALSE)),Tbl_Labor_Rates[#Headers],0)),""),"") ->  | CH45: =IF(OR(Type="A", Type="LOE"), _xlfn.IFNA(INDEX(Tbl_Labor_Rates[#All],MATCH('Project Estimation'!CF45,'Labor Rate Sheet'!$B$11:$B$51,0),MATCH(_xlfn.CONCAT("OT_",VLOOKUP(Client_Name,'Project Details'!$AO$15:$AS$56,4,FALSE)),Tbl_Labor_Rates[#Headers],0)),""),"") ->  | CM45: =IF(Type="WBS", SUMIFS(CM46:CM$54,$G46:$G$54,WBS_ID),IF(Type="A", ($S45*P45)+($AA45*P45)+($AI45*P45), IF(Type="SUB", 0,IF(Type="M", 0,"")))) -> 0 | CN45: =IF(Type="WBS", SUMIFS(CN46:CN$54,$G46:$G$54,WBS_ID),IF(Type="A", ($S45*Q45)+($AA45*Q45)+($AI45*Q45), IF(Type="SUB", 0,IF(Type="M", 0,"")))) -> 0 | CO45: =IF(Type="WBS", SUMIFS(CO50:CO$54,$G50:$G$54,WBS_ID),IF(Type="A", $CM45+$CN45, IF(Type="SUB", 0,IF(Type="M", 0,"")))) -> 0 | CP45: =SUM($CP$46:$CP$54) -> $0.00 | CQ45: =SUM($CQ$46:$CQ$54) -> $0.00 | CR45: =SUM($CR$46:$CR$54) -> $0.00 | CU45: =IF(CT45<>"", $N45, "") ->  | CV45: =_xlfn.IFNA(INDEX(Tbl_Equipment_Rates[#All],MATCH('Project Estimation'!CT45,Tbl_Equipment_Rates[EQUIPMENT CLASSIFICATION],0),MATCH(_xlfn.CONCAT("Hourly Rate ",VLOOKUP(Client_Name,'Project Details'!$AO$15:$AS$60,4,FALSE)), Tbl_Equipment_Rates[#Headers],0)),"") ->  | CW45: =IF(CT45<>"", CU45*CV45, "") ->  | CZ45: =IF(CY45<>"", $N45, "") ->  | DA45: =_xlfn.IFNA(INDEX(Tbl_Equipment_Rates[#All],MATCH('Project Estimation'!CY45,Tbl_Equipment_Rates[EQUIPMENT CLASSIFICATION],0),MATCH(_xlfn.CONCAT("Hourly Rate ",VLOOKUP(Client_Name,'Project Details'!$AO$15:$AS$60,4,FALSE)), Tbl_Equipment_Rates[#Headers],0)),"") ->  | DB45: =IF(CY45<>"", CZ45*DA45, "") ->  | DE45: =IF(DD45<>"", $N45, "") ->  | DF45: =_xlfn.IFNA(INDEX(Tbl_Equipment_Rates[#All],MATCH('Project Estimation'!DD45,Tbl_Equipment_Rates[EQUIPMENT CLASSIFICATION],0),MATCH(_xlfn.CONCAT("Hourly Rate ",VLOOKUP(Client_Name,'Project Details'!$AO$15:$AS$60,4,FALSE)), Tbl_Equipment_Rates[#Headers],0)),"") ->  | DG45: =IF(DD45<>"", DE45*DF45, "") ->  | DJ45: =IF(DI45<>"", $N45, "") ->  | DK45: =_xlfn.IFNA(INDEX(Tbl_Equipment_Rates[#All],MATCH('Project Estimation'!DI45,Tbl_Equipment_Rates[EQUIPMENT CLASSIFICATION],0),MATCH(_xlfn.CONCAT("Hourly Rate ",VLOOKUP(Client_Name,'Project Details'!$AO$15:$AS$60,4,FALSE)), Tbl_Equipment_Rates[#Headers],0)),"") ->  | DO45: =IF(DN45<>"", $N45, "") ->  | DP45: =_xlfn.IFNA(INDEX(Tbl_Equipment_Rates[#All],MATCH('Project Estimation'!DN45,Tbl_Equipment_Rates[EQUIPMENT CLASSIFICATION],0),MATCH(_xlfn.CONCAT("Hourly Rate ",VLOOKUP(Client_Name,'Project Details'!$AO$15:$AS$60,4,FALSE)), Tbl_Equipment_Rates[#Headers],0)),"") ->  | DW45: =IF(OR(DS45<>"",DT45<>"",DU45<>"",DV45<>""), DV45*DS45,"") ->  | DX45: =IF(OR(DT45<>0,DU45<>0,DV45<>0), $CU$5, "") ->  | DY45: =IFERROR(DS45*DV45*(1+DX45),"") ->  | EE45: =IF(OR(EA45<>"",EB45<>"",EC45<>"",ED45<>""), ED45*EA45,"") ->  | EM45: =IF(OR(EI45<>"",EJ45<>"",EK45<>"",EL45<>""), EL45*EI45,"") ->  | EN45: =IF(OR(EJ45<>0,EK45<>0,EL45<>0), $CU$5, "") ->  | EO45: =IFERROR(EI45*EL45*(1+EN45),"") ->  | EU45: =IF(OR(EQ45<>"",ER45<>"",ES45<>"",ET45<>""), ET45*EQ45,"") ->  | EV45: =IF(OR(ER45<>0,ES45<>0,ET45<>0), $CU$5, "") ->  | EW45: =IFERROR(EQ45*ET45*(1+EV45),"") ->  | FC45: =IF(OR(EY45<>"",EZ45<>"",FA45<>"",FB45<>""), FB45*EY45,"") ->  | FD45: =IF(OR(EZ45<>0,FA45<>0,FB45<>0), $CU$5, "") ->  | FE45: =IFERROR(EY45*FB45*(1+FD45),"") ->  | FM45: =IF($FG45<>"", $FJ45*(1+$FL45),IF($FL45<>"", 0,"")) -> 
B46: 21 | D46: =IF(AND(Type="WBS", WBS_Level>=1), COUNTIFS(C$25:C46, Stage_ID, $K$25:K46, 1), "") ->  | E46: =IF(AND(Type="WBS", WBS_Level>=2), COUNTIFS(D$25:D46, Level_1, $K$25:$K46, 2), "") ->  | F46: =IF(AND(Type="WBS", WBS_Level>=3), COUNTIFS(E$25:E46, Level_2, $K$25:K46, 3), "") ->  | G46: 3 | H46: 1 | I46: 1 | K46: =IF(Type="WBS", 1, "") ->  | L46: A | M46: Only Shop Work Planned in this section as different rates based on shop schedules are calculated | N46: 20 | O46: =IF(Type="WBS", SUMIFS($O47:$O$54,$G$46:$G$54,WBS_ID), IF(OR(Type="A", Type="LOE"), ($N46 /Shop_Sch_Hours), IF(Type="SUB", $FK46,""))) -> 1.67 | P46: =IF(Type="WBS", SUMIFS($P47:$P$54,$G47:$G$54,WBS_ID), IF($N46<>"", IF($N46<=8,$N46,IF(AND(Shop_Sch_Days>4,Shop_Sch_Hours>8),$N46*(8/Shop_Sch_Hours),$N46)), "")) -> 13 | Q46: =IFERROR($N46-$P46,"") -> 7 | U46: =IF(OR(Type="A", Type="LOE"), _xlfn.IFNA(INDEX(Tbl_Labor_Rates[#All],MATCH('Project Estimation'!T46,'Labor Rate Sheet'!$B$11:$B$51,0),MATCH(_xlfn.CONCAT("ST_",VLOOKUP(Client_Name,'Project Details'!$AO$15:$AS$56,4,FALSE)),Tbl_Labor_Rates[#Headers],0)),""),"") ->  | V46: =IF(OR(Type="A", Type="LOE"), _xlfn.IFNA(INDEX(Tbl_Labor_Rates[#All],MATCH('Project Estimation'!T46,'Labor Rate Sheet'!$B$11:$B$51,0),MATCH(_xlfn.CONCAT("OT_",VLOOKUP(Client_Name,'Project Details'!$AO$15:$AS$56,4,FALSE)),Tbl_Labor_Rates[#Headers],0)),""),"") ->  | AC46: =IF(OR(Type="A", Type="LOE"), _xlfn.IFNA(INDEX(Tbl_Labor_Rates[#All],MATCH('Project Estimation'!AB46,'Labor Rate Sheet'!$B$11:$B$51,0),MATCH(_xlfn.CONCAT("ST_",VLOOKUP(Client_Name,'Project Details'!$AO$15:$AS$56,4,FALSE)),Tbl_Labor_Rates[#Headers],0)),""),"") ->  | AD46: =IF(OR(Type="A", Type="LOE"), _xlfn.IFNA(INDEX(Tbl_Labor_Rates[#All],MATCH('Project Estimation'!AB46,'Labor Rate Sheet'!$B$11:$B$51,0),MATCH(_xlfn.CONCAT("OT_",VLOOKUP(Client_Name,'Project Details'!$AO$15:$AS$56,4,FALSE)),Tbl_Labor_Rates[#Headers],0)),""),"") ->  | AK46: =IF(OR(Type="A", Type="LOE"), _xlfn.IFNA(INDEX(Tbl_Labor_Rates[#All],MATCH('Project Estimation'!AJ46,'Labor Rate Sheet'!$B$11:$B$51,0),MATCH(_xlfn.CONCAT("ST_",VLOOKUP(Client_Name,'Project Details'!$AO$15:$AS$56,4,FALSE)),Tbl_Labor_Rates[#Headers],0)),""),"") ->  | AL46: =IF(OR(Type="A", Type="LOE"), _xlfn.IFNA(INDEX(Tbl_Labor_Rates[#All],MATCH('Project Estimation'!AJ46,'Labor Rate Sheet'!$B$11:$B$51,0),MATCH(_xlfn.CONCAT("OT_",VLOOKUP(Client_Name,'Project Details'!$AO$15:$AS$56,4,FALSE)),Tbl_Labor_Rates[#Headers],0)),""),"") ->  | AS46: =IF(OR(Type="A", Type="LOE"), _xlfn.IFNA(INDEX(Tbl_Labor_Rates[#All],MATCH('Project Estimation'!AR46,'Labor Rate Sheet'!$B$11:$B$51,0),MATCH(_xlfn.CONCAT("ST_",VLOOKUP(Client_Name,'Project Details'!$AO$15:$AS$56,4,FALSE)),Tbl_Labor_Rates[#Headers],0)),""),"") ->  | AT46: =IF(OR(Type="A", Type="LOE"), _xlfn.IFNA(INDEX(Tbl_Labor_Rates[#All],MATCH('Project Estimation'!AR46,'Labor Rate Sheet'!$B$11:$B$51,0),MATCH(_xlfn.CONCAT("OT_",VLOOKUP(Client_Name,'Project Details'!$AO$15:$AS$56,4,FALSE)),Tbl_Labor_Rates[#Headers],0)),""),"") ->  | BA46: =IF(OR(Type="A", Type="LOE"), _xlfn.IFNA(INDEX(Tbl_Labor_Rates[#All],MATCH('Project Estimation'!AZ46,'Labor Rate Sheet'!$B$11:$B$51,0),MATCH(_xlfn.CONCAT("ST_",VLOOKUP(Client_Name,'Project Details'!$AO$15:$AS$56,4,FALSE)),Tbl_Labor_Rates[#Headers],0)),""),"") ->  | BB46: =IF(OR(Type="A", Type="LOE"), _xlfn.IFNA(INDEX(Tbl_Labor_Rates[#All],MATCH('Project Estimation'!AZ46,'Labor Rate Sheet'!$B$11:$B$51,0),MATCH(_xlfn.CONCAT("OT_",VLOOKUP(Client_Name,'Project Details'!$AO$15:$AS$56,4,FALSE)),Tbl_Labor_Rates[#Headers],0)),""),"") ->  | BI46: =IF(OR(Type="A", Type="LOE"), _xlfn.IFNA(INDEX(Tbl_Labor_Rates[#All],MATCH('Project Estimation'!BH46,'Labor Rate Sheet'!$B$11:$B$51,0),MATCH(_xlfn.CONCAT("ST_",VLOOKUP(Client_Name,'Project Details'!$AO$15:$AS$56,4,FALSE)),Tbl_Labor_Rates[#Headers],0)),""),"") ->  | BJ46: =IF(OR(Type="A", Type="LOE"), _xlfn.IFNA(INDEX(Tbl_Labor_Rates[#All],MATCH('Project Estimation'!BH46,'Labor Rate Sheet'!$B$11:$B$51,0),MATCH(_xlfn.CONCAT("OT_",VLOOKUP(Client_Name,'Project Details'!$AO$15:$AS$56,4,FALSE)),Tbl_Labor_Rates[#Headers],0)),""),"") ->  | BQ46: =IF(OR(Type="A", Type="LOE"), _xlfn.IFNA(INDEX(Tbl_Labor_Rates[#All],MATCH('Project Estimation'!BP46,'Labor Rate Sheet'!$B$11:$B$51,0),MATCH(_xlfn.CONCAT("ST_",VLOOKUP(Client_Name,'Project Details'!$AO$15:$AS$56,4,FALSE)),Tbl_Labor_Rates[#Headers],0)),""),"") ->  | BR46: =IF(OR(Type="A", Type="LOE"), _xlfn.IFNA(INDEX(Tbl_Labor_Rates[#All],MATCH('Project Estimation'!BP46,'Labor Rate Sheet'!$B$11:$B$51,0),MATCH(_xlfn.CONCAT("OT_",VLOOKUP(Client_Name,'Project Details'!$AO$15:$AS$56,4,FALSE)),Tbl_Labor_Rates[#Headers],0)),""),"") ->  | BY46: =IF(OR(Type="A", Type="LOE"), _xlfn.IFNA(INDEX(Tbl_Labor_Rates[#All],MATCH('Project Estimation'!BX46,'Labor Rate Sheet'!$B$11:$B$51,0),MATCH(_xlfn.CONCAT("ST_",VLOOKUP(Client_Name,'Project Details'!$AO$15:$AS$56,4,FALSE)),Tbl_Labor_Rates[#Headers],0)),""),"") ->  | BZ46: =IF(OR(Type="A", Type="LOE"), _xlfn.IFNA(INDEX(Tbl_Labor_Rates[#All],MATCH('Project Estimation'!BX46,'Labor Rate Sheet'!$B$11:$B$51,0),MATCH(_xlfn.CONCAT("OT_",VLOOKUP(Client_Name,'Project Details'!$AO$15:$AS$56,4,FALSE)),Tbl_Labor_Rates[#Headers],0)),""),"") ->  | CG46: =IF(OR(Type="A", Type="LOE"), _xlfn.IFNA(INDEX(Tbl_Labor_Rates[#All],MATCH('Project Estimation'!CF46,'Labor Rate Sheet'!$B$11:$B$51,0),MATCH(_xlfn.CONCAT("ST_",VLOOKUP(Client_Name,'Project Details'!$AO$15:$AS$56,4,FALSE)),Tbl_Labor_Rates[#Headers],0)),""),"") ->  | CH46: =IF(OR(Type="A", Type="LOE"), _xlfn.IFNA(INDEX(Tbl_Labor_Rates[#All],MATCH('Project Estimation'!CF46,'Labor Rate Sheet'!$B$11:$B$51,0),MATCH(_xlfn.CONCAT("OT_",VLOOKUP(Client_Name,'Project Details'!$AO$15:$AS$56,4,FALSE)),Tbl_Labor_Rates[#Headers],0)),""),"") ->  | CM46: =IF(Type="WBS", SUMIFS(CM47:CM$54,$G47:$G$54,WBS_ID),IF(Type="A", ($S46*P46)+($AA46*P46)+($AI46*P46)+($AQ46*P46)+($AY46*P46)+($BG46*P46)+($BO46*P46)+($BW46*P46)+($CE46*P46), IF(Type="SUB", 0,IF(Type="M", 0,"")))) -> 0 | CN46: =IF(Type="WBS", SUMIFS(CN47:CN$54,$G47:$G$54,WBS_ID),IF(Type="A", ($S46*Q46)+($AA46*Q46)+($AI46*Q46)+($AQ46*Q46)+($AY46*Q46)+($BG46*Q46)+($BO46*Q46)+($BW46*Q46)+($CE46*Q46), IF(Type="SUB", 0,IF(Type="M", 0,"")))) -> 0 | CO46: =IF(Type="WBS", SUMIFS(CO51:CO$54,$G51:$G$54,WBS_ID),IF(Type="A", $CM46+$CN46, IF(Type="SUB", 0,IF(Type="M", 0,"")))) -> 0 | CP46: =IFERROR(IF($N46<>"",SUM(IF(ISBLANK($AM46),0,$AM46),IF(ISBLANK($AE46),0,$AE46),IF(ISBLANK($W46),0,$W46)),""),"") -> $0.00 | CQ46: =IF($N46<>"",SUM(IF(ISBLANK($AN46),0,$AN46),IF(ISBLANK($AF46),0,$AF46),IF(ISBLANK($X46),0,$X46)),"") -> $0.00 | CR46: =IF($N46<>"", SUM(IF(ISBLANK($AN46), 0, $AN46), IF(ISBLANK($AM46), 0, $AM46), IF(ISBLANK($AG46), 0, $AG46), IF(ISBLANK($Y46), 0, $Y46), IF(ISBLANK($AO46), 0, $AO46)), "") -> $0.00 | CV46: =_xlfn.IFNA(INDEX(Tbl_Equipment_Rates[#All],MATCH('Project Estimation'!CT46,Tbl_Equipment_Rates[EQUIPMENT CLASSIFICATION],0),MATCH(_xlfn.CONCAT("Hourly Rate ",VLOOKUP(Client_Name,'Project Details'!$AO$15:$AS$60,4,FALSE)), Tbl_Equipment_Rates[#Headers],0)),"") ->  | CW46: =IF(CT46<>"", CU46*CV46, "") ->  | DA46: =_xlfn.IFNA(INDEX(Tbl_Equipment_Rates[#All],MATCH('Project Estimation'!CY46,Tbl_Equipment_Rates[EQUIPMENT CLASSIFICATION],0),MATCH(_xlfn.CONCAT("Hourly Rate ",VLOOKUP(Client_Name,'Project Details'!$AO$15:$AS$60,4,FALSE)), Tbl_Equipment_Rates[#Headers],0)),"") ->  | DB46: =IF(CY46<>"", CZ46*DA46, "") ->  | DF46: =_xlfn.IFNA(INDEX(Tbl_Equipment_Rates[#All],MATCH('Project Estimation'!DD46,Tbl_Equipment_Rates[EQUIPMENT CLASSIFICATION],0),MATCH(_xlfn.CONCAT("Hourly Rate ",VLOOKUP(Client_Name,'Project Details'!$AO$15:$AS$60,4,FALSE)), Tbl_Equipment_Rates[#Headers],0)),"") ->  | DK46: =_xlfn.IFNA(INDEX(Tbl_Equipment_Rates[#All],MATCH('Project Estimation'!DI46,Tbl_Equipment_Rates[EQUIPMENT CLASSIFICATION],0),MATCH(_xlfn.CONCAT("Hourly Rate ",VLOOKUP(Client_Name,'Project Details'!$AO$15:$AS$60,4,FALSE)), Tbl_Equipment_Rates[#Headers],0)),"") ->  | DP46: =_xlfn.IFNA(INDEX(Tbl_Equipment_Rates[#All],MATCH('Project Estimation'!DN46,Tbl_Equipment_Rates[EQUIPMENT CLASSIFICATION],0),MATCH(_xlfn.CONCAT("Hourly Rate ",VLOOKUP(Client_Name,'Project Details'!$AO$15:$AS$60,4,FALSE)), Tbl_Equipment_Rates[#Headers],0)),"") ->  | DW46: =IF(OR(DS46<>"",DT46<>"",DU46<>"",DV46<>""), DV46*DS46,"") ->  | DY46: =IFERROR(DS46*DV46*(1+DX46),"") ->  | EE46: =IF(OR(EA46<>"",EB46<>"",EC46<>"",ED46<>""), ED46*EA46,"") -> 
B47: 22 | D47: =IF(AND(Type="WBS", WBS_Level>=1), COUNTIFS(C$25:C47, Stage_ID, $K$25:K47, 1), "") ->  | E47: =IF(AND(Type="WBS", WBS_Level>=2), COUNTIFS(D$25:D47, Level_1, $K$25:$K47, 2), "") ->  | F47: =IF(AND(Type="WBS", WBS_Level>=3), COUNTIFS(E$25:E47, Level_2, $K$25:K47, 3), "") ->  | G47: -1 | H47: -1 | I47: -1 | N47: =IF('Project Estimation'!$L47="WBS",SUMIFS($N48:$N$54,$G48:$G$54,WBS_ID),IF('Project Estimation'!$L47="SUB",$FK47,"")) ->  | O47: =IF(Type="WBS", SUMIFS($O48:$O$54,$G$46:$G$54,WBS_ID), IF(OR(Type="A", Type="LOE"), ($N47 /Shop_Sch_Hours), IF(Type="SUB", $FK47,""))) ->  | P47: =IF(Type="WBS", SUMIFS($P48:$P$54,$G48:$G$54,WBS_ID), IF($N47<>"", IF($N47<=8,$N47,IF(AND(Shop_Sch_Days>4,Shop_Sch_Hours>8),$N47*(8/Shop_Sch_Hours),$N47)), "")) ->  | U47: =IF(OR(Type="A", Type="LOE"), _xlfn.IFNA(INDEX(Tbl_Labor_Rates[#All],MATCH('Project Estimation'!T47,'Labor Rate Sheet'!$B$11:$B$51,0),MATCH(_xlfn.CONCAT("ST_",VLOOKUP(Client_Name,'Project Details'!$AO$15:$AS$56,4,FALSE)),Tbl_Labor_Rates[#Headers],0)),""),"") ->  | V47: =IF(OR(Type="A", Type="LOE"), _xlfn.IFNA(INDEX(Tbl_Labor_Rates[#All],MATCH('Project Estimation'!T47,'Labor Rate Sheet'!$B$11:$B$51,0),MATCH(_xlfn.CONCAT("OT_",VLOOKUP(Client_Name,'Project Details'!$AO$15:$AS$56,4,FALSE)),Tbl_Labor_Rates[#Headers],0)),""),"") ->  | AC47: =IF(OR(Type="A", Type="LOE"), _xlfn.IFNA(INDEX(Tbl_Labor_Rates[#All],MATCH('Project Estimation'!AB47,'Labor Rate Sheet'!$B$11:$B$51,0),MATCH(_xlfn.CONCAT("ST_",VLOOKUP(Client_Name,'Project Details'!$AO$15:$AS$56,4,FALSE)),Tbl_Labor_Rates[#Headers],0)),""),"") ->  | AD47: =IF(OR(Type="A", Type="LOE"), _xlfn.IFNA(INDEX(Tbl_Labor_Rates[#All],MATCH('Project Estimation'!AB47,'Labor Rate Sheet'!$B$11:$B$51,0),MATCH(_xlfn.CONCAT("OT_",VLOOKUP(Client_Name,'Project Details'!$AO$15:$AS$56,4,FALSE)),Tbl_Labor_Rates[#Headers],0)),""),"") ->  | AK47: =IF(OR(Type="A", Type="LOE"), _xlfn.IFNA(INDEX(Tbl_Labor_Rates[#All],MATCH('Project Estimation'!AJ47,'Labor Rate Sheet'!$B$11:$B$51,0),MATCH(_xlfn.CONCAT("ST_",VLOOKUP(Client_Name,'Project Details'!$AO$15:$AS$56,4,FALSE)),Tbl_Labor_Rates[#Headers],0)),""),"") ->  | AL47: =IF(OR(Type="A", Type="LOE"), _xlfn.IFNA(INDEX(Tbl_Labor_Rates[#All],MATCH('Project Estimation'!AJ47,'Labor Rate Sheet'!$B$11:$B$51,0),MATCH(_xlfn.CONCAT("OT_",VLOOKUP(Client_Name,'Project Details'!$AO$15:$AS$56,4,FALSE)),Tbl_Labor_Rates[#Headers],0)),""),"") ->  | AS47: =IF(OR(Type="A", Type="LOE"), _xlfn.IFNA(INDEX(Tbl_Labor_Rates[#All],MATCH('Project Estimation'!AR47,'Labor Rate Sheet'!$B$11:$B$51,0),MATCH(_xlfn.CONCAT("ST_",VLOOKUP(Client_Name,'Project Details'!$AO$15:$AS$56,4,FALSE)),Tbl_Labor_Rates[#Headers],0)),""),"") ->  | AT47: =IF(OR(Type="A", Type="LOE"), _xlfn.IFNA(INDEX(Tbl_Labor_Rates[#All],MATCH('Project Estimation'!AR47,'Labor Rate Sheet'!$B$11:$B$51,0),MATCH(_xlfn.CONCAT("OT_",VLOOKUP(Client_Name,'Project Details'!$AO$15:$AS$56,4,FALSE)),Tbl_Labor_Rates[#Headers],0)),""),"") ->  | BA47: =IF(OR(Type="A", Type="LOE"), _xlfn.IFNA(INDEX(Tbl_Labor_Rates[#All],MATCH('Project Estimation'!AZ47,'Labor Rate Sheet'!$B$11:$B$51,0),MATCH(_xlfn.CONCAT("ST_",VLOOKUP(Client_Name,'Project Details'!$AO$15:$AS$56,4,FALSE)),Tbl_Labor_Rates[#Headers],0)),""),"") ->  | BB47: =IF(OR(Type="A", Type="LOE"), _xlfn.IFNA(INDEX(Tbl_Labor_Rates[#All],MATCH('Project Estimation'!AZ47,'Labor Rate Sheet'!$B$11:$B$51,0),MATCH(_xlfn.CONCAT("OT_",VLOOKUP(Client_Name,'Project Details'!$AO$15:$AS$56,4,FALSE)),Tbl_Labor_Rates[#Headers],0)),""),"") ->  | BI47: =IF(OR(Type="A", Type="LOE"), _xlfn.IFNA(INDEX(Tbl_Labor_Rates[#All],MATCH('Project Estimation'!BH47,'Labor Rate Sheet'!$B$11:$B$51,0),MATCH(_xlfn.CONCAT("ST_",VLOOKUP(Client_Name,'Project Details'!$AO$15:$AS$56,4,FALSE)),Tbl_Labor_Rates[#Headers],0)),""),"") ->  | BJ47: =IF(OR(Type="A", Type="LOE"), _xlfn.IFNA(INDEX(Tbl_Labor_Rates[#All],MATCH('Project Estimation'!BH47,'Labor Rate Sheet'!$B$11:$B$51,0),MATCH(_xlfn.CONCAT("OT_",VLOOKUP(Client_Name,'Project Details'!$AO$15:$AS$56,4,FALSE)),Tbl_Labor_Rates[#Headers],0)),""),"") ->  | BQ47: =IF(OR(Type="A", Type="LOE"), _xlfn.IFNA(INDEX(Tbl_Labor_Rates[#All],MATCH('Project Estimation'!BP47,'Labor Rate Sheet'!$B$11:$B$51,0),MATCH(_xlfn.CONCAT("ST_",VLOOKUP(Client_Name,'Project Details'!$AO$15:$AS$56,4,FALSE)),Tbl_Labor_Rates[#Headers],0)),""),"") ->  | BR47: =IF(OR(Type="A", Type="LOE"), _xlfn.IFNA(INDEX(Tbl_Labor_Rates[#All],MATCH('Project Estimation'!BP47,'Labor Rate Sheet'!$B$11:$B$51,0),MATCH(_xlfn.CONCAT("OT_",VLOOKUP(Client_Name,'Project Details'!$AO$15:$AS$56,4,FALSE)),Tbl_Labor_Rates[#Headers],0)),""),"") ->  | BY47: =IF(OR(Type="A", Type="LOE"), _xlfn.IFNA(INDEX(Tbl_Labor_Rates[#All],MATCH('Project Estimation'!BX47,'Labor Rate Sheet'!$B$11:$B$51,0),MATCH(_xlfn.CONCAT("ST_",VLOOKUP(Client_Name,'Project Details'!$AO$15:$AS$56,4,FALSE)),Tbl_Labor_Rates[#Headers],0)),""),"") ->  | BZ47: =IF(OR(Type="A", Type="LOE"), _xlfn.IFNA(INDEX(Tbl_Labor_Rates[#All],MATCH('Project Estimation'!BX47,'Labor Rate Sheet'!$B$11:$B$51,0),MATCH(_xlfn.CONCAT("OT_",VLOOKUP(Client_Name,'Project Details'!$AO$15:$AS$56,4,FALSE)),Tbl_Labor_Rates[#Headers],0)),""),"") ->  | CG47: =IF(OR(Type="A", Type="LOE"), _xlfn.IFNA(INDEX(Tbl_Labor_Rates[#All],MATCH('Project Estimation'!CF47,'Labor Rate Sheet'!$B$11:$B$51,0),MATCH(_xlfn.CONCAT("ST_",VLOOKUP(Client_Name,'Project Details'!$AO$15:$AS$56,4,FALSE)),Tbl_Labor_Rates[#Headers],0)),""),"") ->  | CH47: =IF(OR(Type="A", Type="LOE"), _xlfn.IFNA(INDEX(Tbl_Labor_Rates[#All],MATCH('Project Estimation'!CF47,'Labor Rate Sheet'!$B$11:$B$51,0),MATCH(_xlfn.CONCAT("OT_",VLOOKUP(Client_Name,'Project Details'!$AO$15:$AS$56,4,FALSE)),Tbl_Labor_Rates[#Headers],0)),""),"") ->  | CM47: =IF(Type="WBS", SUMIFS(CM48:CM$54,$G48:$G$54,WBS_ID),IF(Type="A", ($S47*P47)+($AA47*P47)+($AI47*P47)+($AQ47*P47)+($AY47*P47)+($BG47*P47)+($BO47*P47)+($BW47*P47)+($CE47*P47), IF(Type="SUB", 0,IF(Type="M", 0,"")))) ->  | CN47: =IF(Type="WBS", SUMIFS(CN48:CN$54,$G48:$G$54,WBS_ID),IF(Type="A", ($S47*Q47)+($AA47*Q47)+($AI47*Q47)+($AQ47*Q47)+($AY47*Q47)+($BG47*Q47)+($BO47*Q47)+($BW47*Q47)+($CE47*Q47), IF(Type="SUB", 0,IF(Type="M", 0,"")))) ->  | CO47: =IF(Type="WBS", SUMIFS(CO52:CO$54,$G52:$G$54,WBS_ID),IF(Type="A", $CM47+$CN47, IF(Type="SUB", 0,IF(Type="M", 0,"")))) ->  | CV47: =_xlfn.IFNA(INDEX(Tbl_Equipment_Rates[#All],MATCH('Project Estimation'!CT47,Tbl_Equipment_Rates[EQUIPMENT CLASSIFICATION],0),MATCH(_xlfn.CONCAT("Hourly Rate ",VLOOKUP(Client_Name,'Project Details'!$AO$15:$AS$60,4,FALSE)), Tbl_Equipment_Rates[#Headers],0)),"") ->  | CW47: =IF(CT47<>"", CU47*CV47, "") ->  | DA47: =_xlfn.IFNA(INDEX(Tbl_Equipment_Rates[#All],MATCH('Project Estimation'!CY47,Tbl_Equipment_Rates[EQUIPMENT CLASSIFICATION],0),MATCH(_xlfn.CONCAT("Hourly Rate ",VLOOKUP(Client_Name,'Project Details'!$AO$15:$AS$60,4,FALSE)), Tbl_Equipment_Rates[#Headers],0)),"") ->  | DB47: =IF(CY47<>"", CZ47*DA47, "") ->  | DF47: =_xlfn.IFNA(INDEX(Tbl_Equipment_Rates[#All],MATCH('Project Estimation'!DD47,Tbl_Equipment_Rates[EQUIPMENT CLASSIFICATION],0),MATCH(_xlfn.CONCAT("Hourly Rate ",VLOOKUP(Client_Name,'Project Details'!$AO$15:$AS$60,4,FALSE)), Tbl_Equipment_Rates[#Headers],0)),"") ->  | DK47: =_xlfn.IFNA(INDEX(Tbl_Equipment_Rates[#All],MATCH('Project Estimation'!DI47,Tbl_Equipment_Rates[EQUIPMENT CLASSIFICATION],0),MATCH(_xlfn.CONCAT("Hourly Rate ",VLOOKUP(Client_Name,'Project Details'!$AO$15:$AS$60,4,FALSE)), Tbl_Equipment_Rates[#Headers],0)),"") ->  | DL47: =IF(DI47<>"", DJ47*DK47, "") ->  | DP47: =_xlfn.IFNA(INDEX(Tbl_Equipment_Rates[#All],MATCH('Project Estimation'!DN47,Tbl_Equipment_Rates[EQUIPMENT CLASSIFICATION],0),MATCH(_xlfn.CONCAT("Hourly Rate ",VLOOKUP(Client_Name,'Project Details'!$AO$15:$AS$60,4,FALSE)), Tbl_Equipment_Rates[#Headers],0)),"") ->  | DW47: =IF(OR(DS47<>"",DT47<>"",DU47<>"",DV47<>""), DV47*DS47,"") ->  | DX47: =IF(OR(DT47<>0,DU47<>0,DV47<>0), $CU$5, "") ->  | DY47: =IFERROR(DS47*DV47*(1+DX47),"") ->  | EE47: =IF(OR(EA47<>"",EB47<>"",EC47<>"",ED47<>""), ED47*EA47,"") ->  | EF47: =IF(OR(EB47<>0,EC47<>0,ED47<>0), $CU$5, "") ->  | EG47: =IFERROR(EA47*ED47*(1+EF47),"") ->  | EM47: =IF(OR(EI47<>"",EJ47<>"",EK47<>"",EL47<>""), EL47*EI47,"") ->  | EN47: =IF(OR(EJ47<>0,EK47<>0,EL47<>0), $CU$5, "") ->  | EO47: =IFERROR(EI47*EL47*(1+EN47),"") -> 
B48: 23 | D48: =IF(AND(Type="WBS", WBS_Level>=1), COUNTIFS(C$25:C48, Stage_ID, $K$25:K48, 1), "") ->  | E48: =IF(AND(Type="WBS", WBS_Level>=2), COUNTIFS(D$25:D48, Level_1, $K$25:$K48, 2), "") ->  | F48: =IF(AND(Type="WBS", WBS_Level>=3), COUNTIFS(E$25:E48, Level_2, $K$25:K48, 3), "") ->  | G48: -1 | H48: -1 | I48: -1 | O48: =IF(Type="WBS", SUMIFS($O49:$O$54,$G$46:$G$54,WBS_ID), IF(OR(Type="A", Type="LOE"), ($N48 /Shop_Sch_Hours), IF(Type="SUB", $FK48,""))) ->  | P48: =IF(Type="WBS", SUMIFS($P49:$P$54,$G49:$G$54,WBS_ID), IF($N48<>"", IF($N48<=8,$N48,IF(AND(Shop_Sch_Days>4,Shop_Sch_Hours>8),$N48*(8/Shop_Sch_Hours),$N48)), "")) ->  | U48: =IF(OR(Type="A", Type="LOE"), _xlfn.IFNA(INDEX(Tbl_Labor_Rates[#All],MATCH('Project Estimation'!T48,'Labor Rate Sheet'!$B$11:$B$51,0),MATCH(_xlfn.CONCAT("ST_",VLOOKUP(Client_Name,'Project Details'!$AO$15:$AS$56,4,FALSE)),Tbl_Labor_Rates[#Headers],0)),""),"") ->  | V48: =IF(OR(Type="A", Type="LOE"), _xlfn.IFNA(INDEX(Tbl_Labor_Rates[#All],MATCH('Project Estimation'!T48,'Labor Rate Sheet'!$B$11:$B$51,0),MATCH(_xlfn.CONCAT("OT_",VLOOKUP(Client_Name,'Project Details'!$AO$15:$AS$56,4,FALSE)),Tbl_Labor_Rates[#Headers],0)),""),"") ->  | AC48: =IF(OR(Type="A", Type="LOE"), _xlfn.IFNA(INDEX(Tbl_Labor_Rates[#All],MATCH('Project Estimation'!AB48,'Labor Rate Sheet'!$B$11:$B$51,0),MATCH(_xlfn.CONCAT("ST_",VLOOKUP(Client_Name,'Project Details'!$AO$15:$AS$56,4,FALSE)),Tbl_Labor_Rates[#Headers],0)),""),"") ->  | AD48: =IF(OR(Type="A", Type="LOE"), _xlfn.IFNA(INDEX(Tbl_Labor_Rates[#All],MATCH('Project Estimation'!AB48,'Labor Rate Sheet'!$B$11:$B$51,0),MATCH(_xlfn.CONCAT("OT_",VLOOKUP(Client_Name,'Project Details'!$AO$15:$AS$56,4,FALSE)),Tbl_Labor_Rates[#Headers],0)),""),"") ->  | AK48: =IF(OR(Type="A", Type="LOE"), _xlfn.IFNA(INDEX(Tbl_Labor_Rates[#All],MATCH('Project Estimation'!AJ48,'Labor Rate Sheet'!$B$11:$B$51,0),MATCH(_xlfn.CONCAT("ST_",VLOOKUP(Client_Name,'Project Details'!$AO$15:$AS$56,4,FALSE)),Tbl_Labor_Rates[#Headers],0)),""),"") ->  | AL48: =IF(OR(Type="A", Type="LOE"), _xlfn.IFNA(INDEX(Tbl_Labor_Rates[#All],MATCH('Project Estimation'!AJ48,'Labor Rate Sheet'!$B$11:$B$51,0),MATCH(_xlfn.CONCAT("OT_",VLOOKUP(Client_Name,'Project Details'!$AO$15:$AS$56,4,FALSE)),Tbl_Labor_Rates[#Headers],0)),""),"") ->  | AS48: =IF(OR(Type="A", Type="LOE"), _xlfn.IFNA(INDEX(Tbl_Labor_Rates[#All],MATCH('Project Estimation'!AR48,'Labor Rate Sheet'!$B$11:$B$51,0),MATCH(_xlfn.CONCAT("ST_",VLOOKUP(Client_Name,'Project Details'!$AO$15:$AS$56,4,FALSE)),Tbl_Labor_Rates[#Headers],0)),""),"") ->  | AT48: =IF(OR(Type="A", Type="LOE"), _xlfn.IFNA(INDEX(Tbl_Labor_Rates[#All],MATCH('Project Estimation'!AR48,'Labor Rate Sheet'!$B$11:$B$51,0),MATCH(_xlfn.CONCAT("OT_",VLOOKUP(Client_Name,'Project Details'!$AO$15:$AS$56,4,FALSE)),Tbl_Labor_Rates[#Headers],0)),""),"") ->  | BA48: =IF(OR(Type="A", Type="LOE"), _xlfn.IFNA(INDEX(Tbl_Labor_Rates[#All],MATCH('Project Estimation'!AZ48,'Labor Rate Sheet'!$B$11:$B$51,0),MATCH(_xlfn.CONCAT("ST_",VLOOKUP(Client_Name,'Project Details'!$AO$15:$AS$56,4,FALSE)),Tbl_Labor_Rates[#Headers],0)),""),"") ->  | BB48: =IF(OR(Type="A", Type="LOE"), _xlfn.IFNA(INDEX(Tbl_Labor_Rates[#All],MATCH('Project Estimation'!AZ48,'Labor Rate Sheet'!$B$11:$B$51,0),MATCH(_xlfn.CONCAT("OT_",VLOOKUP(Client_Name,'Project Details'!$AO$15:$AS$56,4,FALSE)),Tbl_Labor_Rates[#Headers],0)),""),"") ->  | BI48: =IF(OR(Type="A", Type="LOE"), _xlfn.IFNA(INDEX(Tbl_Labor_Rates[#All],MATCH('Project Estimation'!BH48,'Labor Rate Sheet'!$B$11:$B$51,0),MATCH(_xlfn.CONCAT("ST_",VLOOKUP(Client_Name,'Project Details'!$AO$15:$AS$56,4,FALSE)),Tbl_Labor_Rates[#Headers],0)),""),"") ->  | BJ48: =IF(OR(Type="A", Type="LOE"), _xlfn.IFNA(INDEX(Tbl_Labor_Rates[#All],MATCH('Project Estimation'!BH48,'Labor Rate Sheet'!$B$11:$B$51,0),MATCH(_xlfn.CONCAT("OT_",VLOOKUP(Client_Name,'Project Details'!$AO$15:$AS$56,4,FALSE)),Tbl_Labor_Rates[#Headers],0)),""),"") ->  | BQ48: =IF(OR(Type="A", Type="LOE"), _xlfn.IFNA(INDEX(Tbl_Labor_Rates[#All],MATCH('Project Estimation'!BP48,'Labor Rate Sheet'!$B$11:$B$51,0),MATCH(_xlfn.CONCAT("ST_",VLOOKUP(Client_Name,'Project Details'!$AO$15:$AS$56,4,FALSE)),Tbl_Labor_Rates[#Headers],0)),""),"") ->  | BR48: =IF(OR(Type="A", Type="LOE"), _xlfn.IFNA(INDEX(Tbl_Labor_Rates[#All],MATCH('Project Estimation'!BP48,'Labor Rate Sheet'!$B$11:$B$51,0),MATCH(_xlfn.CONCAT("OT_",VLOOKUP(Client_Name,'Project Details'!$AO$15:$AS$56,4,FALSE)),Tbl_Labor_Rates[#Headers],0)),""),"") ->  | BY48: =IF(OR(Type="A", Type="LOE"), _xlfn.IFNA(INDEX(Tbl_Labor_Rates[#All],MATCH('Project Estimation'!BX48,'Labor Rate Sheet'!$B$11:$B$51,0),MATCH(_xlfn.CONCAT("ST_",VLOOKUP(Client_Name,'Project Details'!$AO$15:$AS$56,4,FALSE)),Tbl_Labor_Rates[#Headers],0)),""),"") ->  | BZ48: =IF(OR(Type="A", Type="LOE"), _xlfn.IFNA(INDEX(Tbl_Labor_Rates[#All],MATCH('Project Estimation'!BX48,'Labor Rate Sheet'!$B$11:$B$51,0),MATCH(_xlfn.CONCAT("OT_",VLOOKUP(Client_Name,'Project Details'!$AO$15:$AS$56,4,FALSE)),Tbl_Labor_Rates[#Headers],0)),""),"") ->  | CG48: =IF(OR(Type="A", Type="LOE"), _xlfn.IFNA(INDEX(Tbl_Labor_Rates[#All],MATCH('Project Estimation'!CF48,'Labor Rate Sheet'!$B$11:$B$51,0),MATCH(_xlfn.CONCAT("ST_",VLOOKUP(Client_Name,'Project Details'!$AO$15:$AS$56,4,FALSE)),Tbl_Labor_Rates[#Headers],0)),""),"") ->  | CH48: =IF(OR(Type="A", Type="LOE"), _xlfn.IFNA(INDEX(Tbl_Labor_Rates[#All],MATCH('Project Estimation'!CF48,'Labor Rate Sheet'!$B$11:$B$51,0),MATCH(_xlfn.CONCAT("OT_",VLOOKUP(Client_Name,'Project Details'!$AO$15:$AS$56,4,FALSE)),Tbl_Labor_Rates[#Headers],0)),""),"") ->  | CM48: =IF(Type="WBS", SUMIFS(CM49:CM$54,$G49:$G$54,WBS_ID),IF(Type="A", ($S48*P48)+($AA48*P48)+($AI48*P48)+($AQ48*P48)+($AY48*P48)+($BG48*P48)+($BO48*P48)+($BW48*P48)+($CE48*P48), IF(Type="SUB", 0,IF(Type="M", 0,"")))) ->  | CN48: =IF(Type="WBS", SUMIFS(CN49:CN$54,$G49:$G$54,WBS_ID),IF(Type="A", ($S48*Q48)+($AA48*Q48)+($AI48*Q48)+($AQ48*Q48)+($AY48*Q48)+($BG48*Q48)+($BO48*Q48)+($BW48*Q48)+($CE48*Q48), IF(Type="SUB", 0,IF(Type="M", 0,"")))) ->  | CO48: =IF(Type="WBS", SUMIFS(CO53:CO$54,$G53:$G$54,WBS_ID),IF(Type="A", $CM48+$CN48, IF(Type="SUB", 0,IF(Type="M", 0,"")))) ->  | CV48: =_xlfn.IFNA(INDEX(Tbl_Equipment_Rates[#All],MATCH('Project Estimation'!CT48,Tbl_Equipment_Rates[EQUIPMENT CLASSIFICATION],0),MATCH(_xlfn.CONCAT("Hourly Rate ",VLOOKUP(Client_Name,'Project Details'!$AO$15:$AS$60,4,FALSE)), Tbl_Equipment_Rates[#Headers],0)),"") ->  | DA48: =_xlfn.IFNA(INDEX(Tbl_Equipment_Rates[#All],MATCH('Project Estimation'!CY48,Tbl_Equipment_Rates[EQUIPMENT CLASSIFICATION],0),MATCH(_xlfn.CONCAT("Hourly Rate ",VLOOKUP(Client_Name,'Project Details'!$AO$15:$AS$60,4,FALSE)), Tbl_Equipment_Rates[#Headers],0)),"") ->  | DF48: =_xlfn.IFNA(INDEX(Tbl_Equipment_Rates[#All],MATCH('Project Estimation'!DD48,Tbl_Equipment_Rates[EQUIPMENT CLASSIFICATION],0),MATCH(_xlfn.CONCAT("Hourly Rate ",VLOOKUP(Client_Name,'Project Details'!$AO$15:$AS$60,4,FALSE)), Tbl_Equipment_Rates[#Headers],0)),"") ->  | DK48: =_xlfn.IFNA(INDEX(Tbl_Equipment_Rates[#All],MATCH('Project Estimation'!DI48,Tbl_Equipment_Rates[EQUIPMENT CLASSIFICATION],0),MATCH(_xlfn.CONCAT("Hourly Rate ",VLOOKUP(Client_Name,'Project Details'!$AO$15:$AS$60,4,FALSE)), Tbl_Equipment_Rates[#Headers],0)),"") ->  | DP48: =_xlfn.IFNA(INDEX(Tbl_Equipment_Rates[#All],MATCH('Project Estimation'!DN48,Tbl_Equipment_Rates[EQUIPMENT CLASSIFICATION],0),MATCH(_xlfn.CONCAT("Hourly Rate ",VLOOKUP(Client_Name,'Project Details'!$AO$15:$AS$60,4,FALSE)), Tbl_Equipment_Rates[#Headers],0)),"") ->  | FY48: $FO$:FS, $FV,$FY,$GB,$GC,$GJ,$GM,$GP,$GS,$GV, $GY,$HA,$HC:$HG
B49: 24 | D49: =IF(AND(Type="WBS", WBS_Level>=1), COUNTIFS(C$25:C49, Stage_ID, $K$25:K49, 1), "") ->  | E49: =IF(AND(Type="WBS", WBS_Level>=2), COUNTIFS(D$25:D49, Level_1, $K$25:$K49, 2), "") ->  | F49: =IF(AND(Type="WBS", WBS_Level>=3), COUNTIFS(E$25:E49, Level_2, $K$25:K49, 3), "") ->  | G49: -1 | H49: -1 | I49: -1 | N49: =IF('Project Estimation'!$L49="WBS",SUMIFS($N50:$N$54,$G50:$G$54,WBS_ID),IF('Project Estimation'!$L49="SUB",$FK49,"")) ->  | O49: =IF(Type="WBS", SUMIFS($O50:$O$54,$G$46:$G$54,WBS_ID), IF(OR(Type="A", Type="LOE"), ($N49 /Shop_Sch_Hours), IF(Type="SUB", $FK49,""))) ->  | P49: =IF(Type="WBS", SUMIFS($P50:$P$54,$G50:$G$54,WBS_ID), IF($N49<>"", IF($N49<=8,$N49,IF(AND(Shop_Sch_Days>4,Shop_Sch_Hours>8),$N49*(8/Shop_Sch_Hours),$N49)), "")) ->  | U49: =IF(OR(Type="A", Type="LOE"), _xlfn.IFNA(INDEX(Tbl_Labor_Rates[#All],MATCH('Project Estimation'!T49,'Labor Rate Sheet'!$B$11:$B$51,0),MATCH(_xlfn.CONCAT("ST_",VLOOKUP(Client_Name,'Project Details'!$AO$15:$AS$56,4,FALSE)),Tbl_Labor_Rates[#Headers],0)),""),"") ->  | V49: =IF(OR(Type="A", Type="LOE"), _xlfn.IFNA(INDEX(Tbl_Labor_Rates[#All],MATCH('Project Estimation'!T49,'Labor Rate Sheet'!$B$11:$B$51,0),MATCH(_xlfn.CONCAT("OT_",VLOOKUP(Client_Name,'Project Details'!$AO$15:$AS$56,4,FALSE)),Tbl_Labor_Rates[#Headers],0)),""),"") ->  | AC49: =IF(OR(Type="A", Type="LOE"), _xlfn.IFNA(INDEX(Tbl_Labor_Rates[#All],MATCH('Project Estimation'!AB49,'Labor Rate Sheet'!$B$11:$B$51,0),MATCH(_xlfn.CONCAT("ST_",VLOOKUP(Client_Name,'Project Details'!$AO$15:$AS$56,4,FALSE)),Tbl_Labor_Rates[#Headers],0)),""),"") ->  | AD49: =IF(OR(Type="A", Type="LOE"), _xlfn.IFNA(INDEX(Tbl_Labor_Rates[#All],MATCH('Project Estimation'!AB49,'Labor Rate Sheet'!$B$11:$B$51,0),MATCH(_xlfn.CONCAT("OT_",VLOOKUP(Client_Name,'Project Details'!$AO$15:$AS$56,4,FALSE)),Tbl_Labor_Rates[#Headers],0)),""),"") ->  | AK49: =IF(OR(Type="A", Type="LOE"), _xlfn.IFNA(INDEX(Tbl_Labor_Rates[#All],MATCH('Project Estimation'!AJ49,'Labor Rate Sheet'!$B$11:$B$51,0),MATCH(_xlfn.CONCAT("ST_",VLOOKUP(Client_Name,'Project Details'!$AO$15:$AS$56,4,FALSE)),Tbl_Labor_Rates[#Headers],0)),""),"") ->  | AL49: =IF(OR(Type="A", Type="LOE"), _xlfn.IFNA(INDEX(Tbl_Labor_Rates[#All],MATCH('Project Estimation'!AJ49,'Labor Rate Sheet'!$B$11:$B$51,0),MATCH(_xlfn.CONCAT("OT_",VLOOKUP(Client_Name,'Project Details'!$AO$15:$AS$56,4,FALSE)),Tbl_Labor_Rates[#Headers],0)),""),"") ->  | AS49: =IF(OR(Type="A", Type="LOE"), _xlfn.IFNA(INDEX(Tbl_Labor_Rates[#All],MATCH('Project Estimation'!AR49,'Labor Rate Sheet'!$B$11:$B$51,0),MATCH(_xlfn.CONCAT("ST_",VLOOKUP(Client_Name,'Project Details'!$AO$15:$AS$56,4,FALSE)),Tbl_Labor_Rates[#Headers],0)),""),"") ->  | AT49: =IF(OR(Type="A", Type="LOE"), _xlfn.IFNA(INDEX(Tbl_Labor_Rates[#All],MATCH('Project Estimation'!AR49,'Labor Rate Sheet'!$B$11:$B$51,0),MATCH(_xlfn.CONCAT("OT_",VLOOKUP(Client_Name,'Project Details'!$AO$15:$AS$56,4,FALSE)),Tbl_Labor_Rates[#Headers],0)),""),"") ->  | BA49: =IF(OR(Type="A", Type="LOE"), _xlfn.IFNA(INDEX(Tbl_Labor_Rates[#All],MATCH('Project Estimation'!AZ49,'Labor Rate Sheet'!$B$11:$B$51,0),MATCH(_xlfn.CONCAT("ST_",VLOOKUP(Client_Name,'Project Details'!$AO$15:$AS$56,4,FALSE)),Tbl_Labor_Rates[#Headers],0)),""),"") ->  | BB49: =IF(OR(Type="A", Type="LOE"), _xlfn.IFNA(INDEX(Tbl_Labor_Rates[#All],MATCH('Project Estimation'!AZ49,'Labor Rate Sheet'!$B$11:$B$51,0),MATCH(_xlfn.CONCAT("OT_",VLOOKUP(Client_Name,'Project Details'!$AO$15:$AS$56,4,FALSE)),Tbl_Labor_Rates[#Headers],0)),""),"") ->  | BI49: =IF(OR(Type="A", Type="LOE"), _xlfn.IFNA(INDEX(Tbl_Labor_Rates[#All],MATCH('Project Estimation'!BH49,'Labor Rate Sheet'!$B$11:$B$51,0),MATCH(_xlfn.CONCAT("ST_",VLOOKUP(Client_Name,'Project Details'!$AO$15:$AS$56,4,FALSE)),Tbl_Labor_Rates[#Headers],0)),""),"") ->  | BJ49: =IF(OR(Type="A", Type="LOE"), _xlfn.IFNA(INDEX(Tbl_Labor_Rates[#All],MATCH('Project Estimation'!BH49,'Labor Rate Sheet'!$B$11:$B$51,0),MATCH(_xlfn.CONCAT("OT_",VLOOKUP(Client_Name,'Project Details'!$AO$15:$AS$56,4,FALSE)),Tbl_Labor_Rates[#Headers],0)),""),"") ->  | BQ49: =IF(OR(Type="A", Type="LOE"), _xlfn.IFNA(INDEX(Tbl_Labor_Rates[#All],MATCH('Project Estimation'!BP49,'Labor Rate Sheet'!$B$11:$B$51,0),MATCH(_xlfn.CONCAT("ST_",VLOOKUP(Client_Name,'Project Details'!$AO$15:$AS$56,4,FALSE)),Tbl_Labor_Rates[#Headers],0)),""),"") ->  | BR49: =IF(OR(Type="A", Type="LOE"), _xlfn.IFNA(INDEX(Tbl_Labor_Rates[#All],MATCH('Project Estimation'!BP49,'Labor Rate Sheet'!$B$11:$B$51,0),MATCH(_xlfn.CONCAT("OT_",VLOOKUP(Client_Name,'Project Details'!$AO$15:$AS$56,4,FALSE)),Tbl_Labor_Rates[#Headers],0)),""),"") ->  | BY49: =IF(OR(Type="A", Type="LOE"), _xlfn.IFNA(INDEX(Tbl_Labor_Rates[#All],MATCH('Project Estimation'!BX49,'Labor Rate Sheet'!$B$11:$B$51,0),MATCH(_xlfn.CONCAT("ST_",VLOOKUP(Client_Name,'Project Details'!$AO$15:$AS$56,4,FALSE)),Tbl_Labor_Rates[#Headers],0)),""),"") ->  | BZ49: =IF(OR(Type="A", Type="LOE"), _xlfn.IFNA(INDEX(Tbl_Labor_Rates[#All],MATCH('Project Estimation'!BX49,'Labor Rate Sheet'!$B$11:$B$51,0),MATCH(_xlfn.CONCAT("OT_",VLOOKUP(Client_Name,'Project Details'!$AO$15:$AS$56,4,FALSE)),Tbl_Labor_Rates[#Headers],0)),""),"") ->  | CG49: =IF(OR(Type="A", Type="LOE"), _xlfn.IFNA(INDEX(Tbl_Labor_Rates[#All],MATCH('Project Estimation'!CF49,'Labor Rate Sheet'!$B$11:$B$51,0),MATCH(_xlfn.CONCAT("ST_",VLOOKUP(Client_Name,'Project Details'!$AO$15:$AS$56,4,FALSE)),Tbl_Labor_Rates[#Headers],0)),""),"") ->  | CH49: =IF(OR(Type="A", Type="LOE"), _xlfn.IFNA(INDEX(Tbl_Labor_Rates[#All],MATCH('Project Estimation'!CF49,'Labor Rate Sheet'!$B$11:$B$51,0),MATCH(_xlfn.CONCAT("OT_",VLOOKUP(Client_Name,'Project Details'!$AO$15:$AS$56,4,FALSE)),Tbl_Labor_Rates[#Headers],0)),""),"") ->  | CM49: =IF(Type="WBS", SUMIFS(CM50:CM$54,$G50:$G$54,WBS_ID),IF(Type="A", ($S49*P49)+($AA49*P49)+($AI49*P49)+($AQ49*P49)+($AY49*P49)+($BG49*P49)+($BO49*P49)+($BW49*P49)+($CE49*P49), IF(Type="SUB", 0,IF(Type="M", 0,"")))) ->  | CN49: =IF(Type="WBS", SUMIFS(CN50:CN$54,$G50:$G$54,WBS_ID),IF(Type="A", ($S49*Q49)+($AA49*Q49)+($AI49*Q49)+($AQ49*Q49)+($AY49*Q49)+($BG49*Q49)+($BO49*Q49)+($BW49*Q49)+($CE49*Q49), IF(Type="SUB", 0,IF(Type="M", 0,"")))) ->  | CO49: =IF(Type="WBS", SUMIFS(CO$54:CO54,$G$54:$G54,WBS_ID),IF(Type="A", $CM49+$CN49, IF(Type="SUB", 0,IF(Type="M", 0,"")))) ->  | CV49: =_xlfn.IFNA(INDEX(Tbl_Equipment_Rates[#All],MATCH('Project Estimation'!CT49,Tbl_Equipment_Rates[EQUIPMENT CLASSIFICATION],0),MATCH(_xlfn.CONCAT("Hourly Rate ",VLOOKUP(Client_Name,'Project Details'!$AO$15:$AS$60,4,FALSE)), Tbl_Equipment_Rates[#Headers],0)),"") ->  | DA49: =_xlfn.IFNA(INDEX(Tbl_Equipment_Rates[#All],MATCH('Project Estimation'!CY49,Tbl_Equipment_Rates[EQUIPMENT CLASSIFICATION],0),MATCH(_xlfn.CONCAT("Hourly Rate ",VLOOKUP(Client_Name,'Project Details'!$AO$15:$AS$60,4,FALSE)), Tbl_Equipment_Rates[#Headers],0)),"") ->  | DF49: =_xlfn.IFNA(INDEX(Tbl_Equipment_Rates[#All],MATCH('Project Estimation'!DD49,Tbl_Equipment_Rates[EQUIPMENT CLASSIFICATION],0),MATCH(_xlfn.CONCAT("Hourly Rate ",VLOOKUP(Client_Name,'Project Details'!$AO$15:$AS$60,4,FALSE)), Tbl_Equipment_Rates[#Headers],0)),"") ->  | DK49: =_xlfn.IFNA(INDEX(Tbl_Equipment_Rates[#All],MATCH('Project Estimation'!DI49,Tbl_Equipment_Rates[EQUIPMENT CLASSIFICATION],0),MATCH(_xlfn.CONCAT("Hourly Rate ",VLOOKUP(Client_Name,'Project Details'!$AO$15:$AS$60,4,FALSE)), Tbl_Equipment_Rates[#Headers],0)),"") ->  | DP49: =_xlfn.IFNA(INDEX(Tbl_Equipment_Rates[#All],MATCH('Project Estimation'!DN49,Tbl_Equipment_Rates[EQUIPMENT CLASSIFICATION],0),MATCH(_xlfn.CONCAT("Hourly Rate ",VLOOKUP(Client_Name,'Project Details'!$AO$15:$AS$60,4,FALSE)), Tbl_Equipment_Rates[#Headers],0)),"") -> 
B50: 25 | D50: =IF(AND(Type="WBS", WBS_Level>=1), COUNTIFS(C$25:C50, Stage_ID, $K$25:K50, 1), "") ->  | E50: =IF(AND(Type="WBS", WBS_Level>=2), COUNTIFS(D$25:D50, Level_1, $K$25:$K50, 2), "") ->  | F50: =IF(AND(Type="WBS", WBS_Level>=3), COUNTIFS(E$25:E50, Level_2, $K$25:K50, 3), "") ->  | G50: -1 | H50: -1 | I50: -1 | K50: =IF(Type="WBS", 1, "") ->  | N50: =IF('Project Estimation'!$L50="WBS",SUMIFS($N51:$N$54,$G51:$G$54,WBS_ID),IF('Project Estimation'!$L50="SUB",$FK50,"")) ->  | O50: =IF(Type="WBS", SUMIFS($O51:$O$54,$G$46:$G$54,WBS_ID), IF(OR(Type="A", Type="LOE"), ($N50 /Shop_Sch_Hours), IF(Type="SUB", $FK50,""))) ->  | P50: =IF(Type="WBS", SUMIFS($P51:$P$54,$G51:$G$54,WBS_ID), IF($N50<>"", IF($N50<=8,$N50,IF(AND(Shop_Sch_Days>4,Shop_Sch_Hours>8),$N50*(8/Shop_Sch_Hours),$N50)), "")) ->  | U50: =IF(OR(Type="A", Type="LOE"), _xlfn.IFNA(INDEX(Tbl_Labor_Rates[#All],MATCH('Project Estimation'!T50,'Labor Rate Sheet'!$B$11:$B$51,0),MATCH(_xlfn.CONCAT("ST_",VLOOKUP(Client_Name,'Project Details'!$AO$15:$AS$56,4,FALSE)),Tbl_Labor_Rates[#Headers],0)),""),"") ->  | V50: =IF(OR(Type="A", Type="LOE"), _xlfn.IFNA(INDEX(Tbl_Labor_Rates[#All],MATCH('Project Estimation'!T50,'Labor Rate Sheet'!$B$11:$B$51,0),MATCH(_xlfn.CONCAT("OT_",VLOOKUP(Client_Name,'Project Details'!$AO$15:$AS$56,4,FALSE)),Tbl_Labor_Rates[#Headers],0)),""),"") ->  | AC50: =IF(OR(Type="A", Type="LOE"), _xlfn.IFNA(INDEX(Tbl_Labor_Rates[#All],MATCH('Project Estimation'!AB50,'Labor Rate Sheet'!$B$11:$B$51,0),MATCH(_xlfn.CONCAT("ST_",VLOOKUP(Client_Name,'Project Details'!$AO$15:$AS$56,4,FALSE)),Tbl_Labor_Rates[#Headers],0)),""),"") ->  | AD50: =IF(OR(Type="A", Type="LOE"), _xlfn.IFNA(INDEX(Tbl_Labor_Rates[#All],MATCH('Project Estimation'!AB50,'Labor Rate Sheet'!$B$11:$B$51,0),MATCH(_xlfn.CONCAT("OT_",VLOOKUP(Client_Name,'Project Details'!$AO$15:$AS$56,4,FALSE)),Tbl_Labor_Rates[#Headers],0)),""),"") ->  | AK50: =IF(OR(Type="A", Type="LOE"), _xlfn.IFNA(INDEX(Tbl_Labor_Rates[#All],MATCH('Project Estimation'!AJ50,'Labor Rate Sheet'!$B$11:$B$51,0),MATCH(_xlfn.CONCAT("ST_",VLOOKUP(Client_Name,'Project Details'!$AO$15:$AS$56,4,FALSE)),Tbl_Labor_Rates[#Headers],0)),""),"") ->  | AL50: =IF(OR(Type="A", Type="LOE"), _xlfn.IFNA(INDEX(Tbl_Labor_Rates[#All],MATCH('Project Estimation'!AJ50,'Labor Rate Sheet'!$B$11:$B$51,0),MATCH(_xlfn.CONCAT("OT_",VLOOKUP(Client_Name,'Project Details'!$AO$15:$AS$56,4,FALSE)),Tbl_Labor_Rates[#Headers],0)),""),"") ->  | AS50: =IF(OR(Type="A", Type="LOE"), _xlfn.IFNA(INDEX(Tbl_Labor_Rates[#All],MATCH('Project Estimation'!AR50,'Labor Rate Sheet'!$B$11:$B$51,0),MATCH(_xlfn.CONCAT("ST_",VLOOKUP(Client_Name,'Project Details'!$AO$15:$AS$56,4,FALSE)),Tbl_Labor_Rates[#Headers],0)),""),"") ->  | AT50: =IF(OR(Type="A", Type="LOE"), _xlfn.IFNA(INDEX(Tbl_Labor_Rates[#All],MATCH('Project Estimation'!AR50,'Labor Rate Sheet'!$B$11:$B$51,0),MATCH(_xlfn.CONCAT("OT_",VLOOKUP(Client_Name,'Project Details'!$AO$15:$AS$56,4,FALSE)),Tbl_Labor_Rates[#Headers],0)),""),"") ->  | BA50: =IF(OR(Type="A", Type="LOE"), _xlfn.IFNA(INDEX(Tbl_Labor_Rates[#All],MATCH('Project Estimation'!AZ50,'Labor Rate Sheet'!$B$11:$B$51,0),MATCH(_xlfn.CONCAT("ST_",VLOOKUP(Client_Name,'Project Details'!$AO$15:$AS$56,4,FALSE)),Tbl_Labor_Rates[#Headers],0)),""),"") ->  | BB50: =IF(OR(Type="A", Type="LOE"), _xlfn.IFNA(INDEX(Tbl_Labor_Rates[#All],MATCH('Project Estimation'!AZ50,'Labor Rate Sheet'!$B$11:$B$51,0),MATCH(_xlfn.CONCAT("OT_",VLOOKUP(Client_Name,'Project Details'!$AO$15:$AS$56,4,FALSE)),Tbl_Labor_Rates[#Headers],0)),""),"") ->  | BI50: =IF(OR(Type="A", Type="LOE"), _xlfn.IFNA(INDEX(Tbl_Labor_Rates[#All],MATCH('Project Estimation'!BH50,'Labor Rate Sheet'!$B$11:$B$51,0),MATCH(_xlfn.CONCAT("ST_",VLOOKUP(Client_Name,'Project Details'!$AO$15:$AS$56,4,FALSE)),Tbl_Labor_Rates[#Headers],0)),""),"") ->  | BJ50: =IF(OR(Type="A", Type="LOE"), _xlfn.IFNA(INDEX(Tbl_Labor_Rates[#All],MATCH('Project Estimation'!BH50,'Labor Rate Sheet'!$B$11:$B$51,0),MATCH(_xlfn.CONCAT("OT_",VLOOKUP(Client_Name,'Project Details'!$AO$15:$AS$56,4,FALSE)),Tbl_Labor_Rates[#Headers],0)),""),"") ->  | BQ50: =IF(OR(Type="A", Type="LOE"), _xlfn.IFNA(INDEX(Tbl_Labor_Rates[#All],MATCH('Project Estimation'!BP50,'Labor Rate Sheet'!$B$11:$B$51,0),MATCH(_xlfn.CONCAT("ST_",VLOOKUP(Client_Name,'Project Details'!$AO$15:$AS$56,4,FALSE)),Tbl_Labor_Rates[#Headers],0)),""),"") ->  | BR50: =IF(OR(Type="A", Type="LOE"), _xlfn.IFNA(INDEX(Tbl_Labor_Rates[#All],MATCH('Project Estimation'!BP50,'Labor Rate Sheet'!$B$11:$B$51,0),MATCH(_xlfn.CONCAT("OT_",VLOOKUP(Client_Name,'Project Details'!$AO$15:$AS$56,4,FALSE)),Tbl_Labor_Rates[#Headers],0)),""),"") ->  | BY50: =IF(OR(Type="A", Type="LOE"), _xlfn.IFNA(INDEX(Tbl_Labor_Rates[#All],MATCH('Project Estimation'!BX50,'Labor Rate Sheet'!$B$11:$B$51,0),MATCH(_xlfn.CONCAT("ST_",VLOOKUP(Client_Name,'Project Details'!$AO$15:$AS$56,4,FALSE)),Tbl_Labor_Rates[#Headers],0)),""),"") ->  | BZ50: =IF(OR(Type="A", Type="LOE"), _xlfn.IFNA(INDEX(Tbl_Labor_Rates[#All],MATCH('Project Estimation'!BX50,'Labor Rate Sheet'!$B$11:$B$51,0),MATCH(_xlfn.CONCAT("OT_",VLOOKUP(Client_Name,'Project Details'!$AO$15:$AS$56,4,FALSE)),Tbl_Labor_Rates[#Headers],0)),""),"") ->  | CG50: =IF(OR(Type="A", Type="LOE"), _xlfn.IFNA(INDEX(Tbl_Labor_Rates[#All],MATCH('Project Estimation'!CF50,'Labor Rate Sheet'!$B$11:$B$51,0),MATCH(_xlfn.CONCAT("ST_",VLOOKUP(Client_Name,'Project Details'!$AO$15:$AS$56,4,FALSE)),Tbl_Labor_Rates[#Headers],0)),""),"") ->  | CH50: =IF(OR(Type="A", Type="LOE"), _xlfn.IFNA(INDEX(Tbl_Labor_Rates[#All],MATCH('Project Estimation'!CF50,'Labor Rate Sheet'!$B$11:$B$51,0),MATCH(_xlfn.CONCAT("OT_",VLOOKUP(Client_Name,'Project Details'!$AO$15:$AS$56,4,FALSE)),Tbl_Labor_Rates[#Headers],0)),""),"") ->  | CM50: =IF(Type="WBS", SUMIFS(CM51:CM$54,$G51:$G$54,WBS_ID),IF(Type="A", ($S50*P50)+($AA50*P50)+($AI50*P50)+($AQ50*P50)+($AY50*P50)+($BG50*P50)+($BO50*P50)+($BW50*P50)+($CE50*P50), IF(Type="SUB", 0,IF(Type="M", 0,"")))) ->  | CN50: =IF(Type="WBS", SUMIFS(CN51:CN$54,$G51:$G$54,WBS_ID),IF(Type="A", ($S50*Q50)+($AA50*Q50)+($AI50*Q50)+($AQ50*Q50)+($AY50*Q50)+($BG50*Q50)+($BO50*Q50)+($BW50*Q50)+($CE50*Q50), IF(Type="SUB", 0,IF(Type="M", 0,"")))) ->  | CO50: =IF(Type="WBS", SUMIFS(CO$54:CO56,$G$54:$G56,WBS_ID),IF(Type="A", $CM50+$CN50, IF(Type="SUB", 0,IF(Type="M", 0,"")))) ->  | CV50: =_xlfn.IFNA(INDEX(Tbl_Equipment_Rates[#All],MATCH('Project Estimation'!CT50,Tbl_Equipment_Rates[EQUIPMENT CLASSIFICATION],0),MATCH(_xlfn.CONCAT("Hourly Rate ",VLOOKUP(Client_Name,'Project Details'!$AO$15:$AS$60,4,FALSE)), Tbl_Equipment_Rates[#Headers],0)),"") ->  | DA50: =_xlfn.IFNA(INDEX(Tbl_Equipment_Rates[#All],MATCH('Project Estimation'!CY50,Tbl_Equipment_Rates[EQUIPMENT CLASSIFICATION],0),MATCH(_xlfn.CONCAT("Hourly Rate ",VLOOKUP(Client_Name,'Project Details'!$AO$15:$AS$60,4,FALSE)), Tbl_Equipment_Rates[#Headers],0)),"") ->  | DF50: =_xlfn.IFNA(INDEX(Tbl_Equipment_Rates[#All],MATCH('Project Estimation'!DD50,Tbl_Equipment_Rates[EQUIPMENT CLASSIFICATION],0),MATCH(_xlfn.CONCAT("Hourly Rate ",VLOOKUP(Client_Name,'Project Details'!$AO$15:$AS$60,4,FALSE)), Tbl_Equipment_Rates[#Headers],0)),"") ->  | DK50: =_xlfn.IFNA(INDEX(Tbl_Equipment_Rates[#All],MATCH('Project Estimation'!DI50,Tbl_Equipment_Rates[EQUIPMENT CLASSIFICATION],0),MATCH(_xlfn.CONCAT("Hourly Rate ",VLOOKUP(Client_Name,'Project Details'!$AO$15:$AS$60,4,FALSE)), Tbl_Equipment_Rates[#Headers],0)),"") ->  | DP50: =_xlfn.IFNA(INDEX(Tbl_Equipment_Rates[#All],MATCH('Project Estimation'!DN50,Tbl_Equipment_Rates[EQUIPMENT CLASSIFICATION],0),MATCH(_xlfn.CONCAT("Hourly Rate ",VLOOKUP(Client_Name,'Project Details'!$AO$15:$AS$60,4,FALSE)), Tbl_Equipment_Rates[#Headers],0)),"") -> 
B51: 26 | D51: =IF(AND(Type="WBS", WBS_Level>=1), COUNTIFS(C$25:C51, Stage_ID, $K$25:K51, 1), "") ->  | E51: =IF(AND(Type="WBS", WBS_Level>=2), COUNTIFS(D$25:D51, Level_1, $K$25:$K51, 2), "") ->  | F51: =IF(AND(Type="WBS", WBS_Level>=3), COUNTIFS(E$25:E51, Level_2, $K$25:K51, 3), "") ->  | G51: -1 | H51: -1 | I51: -1 | N51: =IF('Project Estimation'!$L51="WBS",SUMIFS($N52:$N$54,$G52:$G$54,WBS_ID),IF('Project Estimation'!$L51="SUB",$FK51,"")) ->  | O51: =IF(Type="WBS", SUMIFS($O52:$O$54,$G$46:$G$54,WBS_ID), IF(OR(Type="A", Type="LOE"), ($N51 /Shop_Sch_Hours), IF(Type="SUB", $FK51,""))) ->  | P51: =IF(Type="WBS", SUMIFS($P52:$P$54,$G52:$G$54,WBS_ID), IF($N51<>"", IF($N51<=8,$N51,IF(AND(Shop_Sch_Days>4,Shop_Sch_Hours>8),$N51*(8/Shop_Sch_Hours),$N51)), "")) ->  | U51: =IF(OR(Type="A", Type="LOE"), _xlfn.IFNA(INDEX(Tbl_Labor_Rates[#All],MATCH('Project Estimation'!T51,'Labor Rate Sheet'!$B$11:$B$51,0),MATCH(_xlfn.CONCAT("ST_",VLOOKUP(Client_Name,'Project Details'!$AO$15:$AS$56,4,FALSE)),Tbl_Labor_Rates[#Headers],0)),""),"") ->  | V51: =IF(OR(Type="A", Type="LOE"), _xlfn.IFNA(INDEX(Tbl_Labor_Rates[#All],MATCH('Project Estimation'!T51,'Labor Rate Sheet'!$B$11:$B$51,0),MATCH(_xlfn.CONCAT("OT_",VLOOKUP(Client_Name,'Project Details'!$AO$15:$AS$56,4,FALSE)),Tbl_Labor_Rates[#Headers],0)),""),"") ->  | AC51: =IF(OR(Type="A", Type="LOE"), _xlfn.IFNA(INDEX(Tbl_Labor_Rates[#All],MATCH('Project Estimation'!AB51,'Labor Rate Sheet'!$B$11:$B$51,0),MATCH(_xlfn.CONCAT("ST_",VLOOKUP(Client_Name,'Project Details'!$AO$15:$AS$56,4,FALSE)),Tbl_Labor_Rates[#Headers],0)),""),"") ->  | AD51: =IF(OR(Type="A", Type="LOE"), _xlfn.IFNA(INDEX(Tbl_Labor_Rates[#All],MATCH('Project Estimation'!AB51,'Labor Rate Sheet'!$B$11:$B$51,0),MATCH(_xlfn.CONCAT("OT_",VLOOKUP(Client_Name,'Project Details'!$AO$15:$AS$56,4,FALSE)),Tbl_Labor_Rates[#Headers],0)),""),"") ->  | AK51: =IF(OR(Type="A", Type="LOE"), _xlfn.IFNA(INDEX(Tbl_Labor_Rates[#All],MATCH('Project Estimation'!AJ51,'Labor Rate Sheet'!$B$11:$B$51,0),MATCH(_xlfn.CONCAT("ST_",VLOOKUP(Client_Name,'Project Details'!$AO$15:$AS$56,4,FALSE)),Tbl_Labor_Rates[#Headers],0)),""),"") ->  | AL51: =IF(OR(Type="A", Type="LOE"), _xlfn.IFNA(INDEX(Tbl_Labor_Rates[#All],MATCH('Project Estimation'!AJ51,'Labor Rate Sheet'!$B$11:$B$51,0),MATCH(_xlfn.CONCAT("OT_",VLOOKUP(Client_Name,'Project Details'!$AO$15:$AS$56,4,FALSE)),Tbl_Labor_Rates[#Headers],0)),""),"") ->  | AS51: =IF(OR(Type="A", Type="LOE"), _xlfn.IFNA(INDEX(Tbl_Labor_Rates[#All],MATCH('Project Estimation'!AR51,'Labor Rate Sheet'!$B$11:$B$51,0),MATCH(_xlfn.CONCAT("ST_",VLOOKUP(Client_Name,'Project Details'!$AO$15:$AS$56,4,FALSE)),Tbl_Labor_Rates[#Headers],0)),""),"") ->  | AT51: =IF(OR(Type="A", Type="LOE"), _xlfn.IFNA(INDEX(Tbl_Labor_Rates[#All],MATCH('Project Estimation'!AR51,'Labor Rate Sheet'!$B$11:$B$51,0),MATCH(_xlfn.CONCAT("OT_",VLOOKUP(Client_Name,'Project Details'!$AO$15:$AS$56,4,FALSE)),Tbl_Labor_Rates[#Headers],0)),""),"") ->  | BA51: =IF(OR(Type="A", Type="LOE"), _xlfn.IFNA(INDEX(Tbl_Labor_Rates[#All],MATCH('Project Estimation'!AZ51,'Labor Rate Sheet'!$B$11:$B$51,0),MATCH(_xlfn.CONCAT("ST_",VLOOKUP(Client_Name,'Project Details'!$AO$15:$AS$56,4,FALSE)),Tbl_Labor_Rates[#Headers],0)),""),"") ->  | BB51: =IF(OR(Type="A", Type="LOE"), _xlfn.IFNA(INDEX(Tbl_Labor_Rates[#All],MATCH('Project Estimation'!AZ51,'Labor Rate Sheet'!$B$11:$B$51,0),MATCH(_xlfn.CONCAT("OT_",VLOOKUP(Client_Name,'Project Details'!$AO$15:$AS$56,4,FALSE)),Tbl_Labor_Rates[#Headers],0)),""),"") ->  | BI51: =IF(OR(Type="A", Type="LOE"), _xlfn.IFNA(INDEX(Tbl_Labor_Rates[#All],MATCH('Project Estimation'!BH51,'Labor Rate Sheet'!$B$11:$B$51,0),MATCH(_xlfn.CONCAT("ST_",VLOOKUP(Client_Name,'Project Details'!$AO$15:$AS$56,4,FALSE)),Tbl_Labor_Rates[#Headers],0)),""),"") ->  | BJ51: =IF(OR(Type="A", Type="LOE"), _xlfn.IFNA(INDEX(Tbl_Labor_Rates[#All],MATCH('Project Estimation'!BH51,'Labor Rate Sheet'!$B$11:$B$51,0),MATCH(_xlfn.CONCAT("OT_",VLOOKUP(Client_Name,'Project Details'!$AO$15:$AS$56,4,FALSE)),Tbl_Labor_Rates[#Headers],0)),""),"") ->  | BQ51: =IF(OR(Type="A", Type="LOE"), _xlfn.IFNA(INDEX(Tbl_Labor_Rates[#All],MATCH('Project Estimation'!BP51,'Labor Rate Sheet'!$B$11:$B$51,0),MATCH(_xlfn.CONCAT("ST_",VLOOKUP(Client_Name,'Project Details'!$AO$15:$AS$56,4,FALSE)),Tbl_Labor_Rates[#Headers],0)),""),"") ->  | BR51: =IF(OR(Type="A", Type="LOE"), _xlfn.IFNA(INDEX(Tbl_Labor_Rates[#All],MATCH('Project Estimation'!BP51,'Labor Rate Sheet'!$B$11:$B$51,0),MATCH(_xlfn.CONCAT("OT_",VLOOKUP(Client_Name,'Project Details'!$AO$15:$AS$56,4,FALSE)),Tbl_Labor_Rates[#Headers],0)),""),"") ->  | BY51: =IF(OR(Type="A", Type="LOE"), _xlfn.IFNA(INDEX(Tbl_Labor_Rates[#All],MATCH('Project Estimation'!BX51,'Labor Rate Sheet'!$B$11:$B$51,0),MATCH(_xlfn.CONCAT("ST_",VLOOKUP(Client_Name,'Project Details'!$AO$15:$AS$56,4,FALSE)),Tbl_Labor_Rates[#Headers],0)),""),"") ->  | BZ51: =IF(OR(Type="A", Type="LOE"), _xlfn.IFNA(INDEX(Tbl_Labor_Rates[#All],MATCH('Project Estimation'!BX51,'Labor Rate Sheet'!$B$11:$B$51,0),MATCH(_xlfn.CONCAT("OT_",VLOOKUP(Client_Name,'Project Details'!$AO$15:$AS$56,4,FALSE)),Tbl_Labor_Rates[#Headers],0)),""),"") ->  | CG51: =IF(OR(Type="A", Type="LOE"), _xlfn.IFNA(INDEX(Tbl_Labor_Rates[#All],MATCH('Project Estimation'!CF51,'Labor Rate Sheet'!$B$11:$B$51,0),MATCH(_xlfn.CONCAT("ST_",VLOOKUP(Client_Name,'Project Details'!$AO$15:$AS$56,4,FALSE)),Tbl_Labor_Rates[#Headers],0)),""),"") ->  | CH51: =IF(OR(Type="A", Type="LOE"), _xlfn.IFNA(INDEX(Tbl_Labor_Rates[#All],MATCH('Project Estimation'!CF51,'Labor Rate Sheet'!$B$11:$B$51,0),MATCH(_xlfn.CONCAT("OT_",VLOOKUP(Client_Name,'Project Details'!$AO$15:$AS$56,4,FALSE)),Tbl_Labor_Rates[#Headers],0)),""),"") ->  | CM51: =IF(Type="WBS", SUMIFS(CM52:CM$54,$G52:$G$54,WBS_ID),IF(Type="A", ($S51*P51)+($AA51*P51)+($AI51*P51)+($AQ51*P51)+($AY51*P51)+($BG51*P51)+($BO51*P51)+($BW51*P51)+($CE51*P51), IF(Type="SUB", 0,IF(Type="M", 0,"")))) ->  | CN51: =IF(Type="WBS", SUMIFS(CN52:CN$54,$G52:$G$54,WBS_ID),IF(Type="A", ($S51*Q51)+($AA51*Q51)+($AI51*Q51)+($AQ51*Q51)+($AY51*Q51)+($BG51*Q51)+($BO51*Q51)+($BW51*Q51)+($CE51*Q51), IF(Type="SUB", 0,IF(Type="M", 0,"")))) ->  | CO51: =IF(Type="WBS", SUMIFS(CO$54:CO57,$G$54:$G57,WBS_ID),IF(Type="A", $CM51+$CN51, IF(Type="SUB", 0,IF(Type="M", 0,"")))) ->  | CV51: =_xlfn.IFNA(INDEX(Tbl_Equipment_Rates[#All],MATCH('Project Estimation'!CT51,Tbl_Equipment_Rates[EQUIPMENT CLASSIFICATION],0),MATCH(_xlfn.CONCAT("Hourly Rate ",VLOOKUP(Client_Name,'Project Details'!$AO$15:$AS$60,4,FALSE)), Tbl_Equipment_Rates[#Headers],0)),"") ->  | CW51: =IF(CT51<>"", CU51*CV51, "") ->  | DA51: =_xlfn.IFNA(INDEX(Tbl_Equipment_Rates[#All],MATCH('Project Estimation'!CY51,Tbl_Equipment_Rates[EQUIPMENT CLASSIFICATION],0),MATCH(_xlfn.CONCAT("Hourly Rate ",VLOOKUP(Client_Name,'Project Details'!$AO$15:$AS$60,4,FALSE)), Tbl_Equipment_Rates[#Headers],0)),"") ->  | DB51: =IF(CY51<>"", CZ51*DA51, "") ->  | DF51: =_xlfn.IFNA(INDEX(Tbl_Equipment_Rates[#All],MATCH('Project Estimation'!DD51,Tbl_Equipment_Rates[EQUIPMENT CLASSIFICATION],0),MATCH(_xlfn.CONCAT("Hourly Rate ",VLOOKUP(Client_Name,'Project Details'!$AO$15:$AS$60,4,FALSE)), Tbl_Equipment_Rates[#Headers],0)),"") ->  | DK51: =_xlfn.IFNA(INDEX(Tbl_Equipment_Rates[#All],MATCH('Project Estimation'!DI51,Tbl_Equipment_Rates[EQUIPMENT CLASSIFICATION],0),MATCH(_xlfn.CONCAT("Hourly Rate ",VLOOKUP(Client_Name,'Project Details'!$AO$15:$AS$60,4,FALSE)), Tbl_Equipment_Rates[#Headers],0)),"") ->  | DP51: =_xlfn.IFNA(INDEX(Tbl_Equipment_Rates[#All],MATCH('Project Estimation'!DN51,Tbl_Equipment_Rates[EQUIPMENT CLASSIFICATION],0),MATCH(_xlfn.CONCAT("Hourly Rate ",VLOOKUP(Client_Name,'Project Details'!$AO$15:$AS$60,4,FALSE)), Tbl_Equipment_Rates[#Headers],0)),"") ->  | DW51: =IF(OR(DS51<>"",DT51<>"",DU51<>"",DV51<>""), DV51*DS51,"") ->  | DY51: =IFERROR(DS51*DV51*(1+DX51),"") ->  | EE51: =IF(OR(EA51<>"",EB51<>"",EC51<>"",ED51<>""), ED51*EA51,"") -> 
